Workbook

Sheet Velkomst

Sheet Tabel 1 VJ
A1: Tabel 1. Forsikrede medlemmer
A3: Vestjylland
C5: Mænd | E5: Kvinder | G5: I alt
A7: Civ. ing. | C7: 653 | E7: 202 | G7: 855
A8: Diplom ing. | C8: 1398 | E8: 297 | G8: 1695
A9: Cand. Scient. Tek. | C9: 190 | E9: 150 | G9: 340
A10: MA. Hum. | C10: 390 | E10: 769 | G10: 1159
A11: MA. Nat. | C11: 255 | E11: 191 | G11: 446
A12: MA. Ph.d. | C12: 20 | E12: 22 | G12: 42
A13: MA. Samf. | C13: 17 | E13: 46 | G13: 63
A14: Øvrige Mag. | C14: 39 | E14: 56 | G14: 95
A15: Agronom | C15: 134 | E15: 95 | G15: 229
A16: Landsk. Arkt. | C16: 3 | E16: 5 | G16: 8
A17: Hortonom | C17: 4 | E17: 6 | G17: 10
A18: Forstkand. | C18: 18 | E18: 6 | G18: 24
A19: Jordbrugsakad. | C19: 159 | E19: 112 | G19: 271
A20: Mejeriing. | C20: 12 | E20: 12 | G20: 24
A21: Levn.m.kand. | C21: 0 | E21: 4 | G21: 4
A22: Dyrlæge | C22: 27 | E22: 122 | G22: 149
A23: Farmaceut | C23: 16 | E23: 61 | G23: 77
A24: Læge | C24: 102 | E24: 237 | G24: 339
A25: Tandlæge | C25: 13 | E25: 75 | G25: 88
A26: Arkitekt | C26: 39 | E26: 63 | G26: 102
A27: Landinspek. | C27: 36 | E27: 20 | G27: 56
A28: Bibliotekar | C28: 35 | E28: 116 | G28: 151
A29: Musikudd. | C29: 22 | E29: 30 | G29: 52
A30: Teolog | C30: 59 | E30: 65 | G30: 124
A31: Psykolog | C31: 40 | E31: 209 | G31: 249
A32: Jurist | C32: 130 | E32: 260 | G32: 390
A33: Økonom | C33: 92 | E33: 81 | G33: 173
A34: Samf. Adm. | C34: 196 | E34: 271 | G34: 467
A35: Cand. Merc. | C35: 417 | E35: 417 | G35: 834
A36: HA | C36: 162 | E36: 148 | G36: 310
A37: HD | C37: 126 | E37: 72 | G37: 198
A38: Komm. og Sprog | C38: 17 | E38: 231 | G38: 248
A39: Cand. IT. | C39: 30 | E39: 29 | G39: 59
A40: Bac. Samf. | C40: 13 | E40: 18 | G40: 31
A41: Bac. Hum. | C41: 34 | E41: 48 | G41: 82
A42: Bac. Nat. | C42: 60 | E42: 29 | G42: 89
A43: Andre | C43: 359 | E43: 238 | G43: 597
A45: Total | C45: 5158 | E45: 4701 | G45: 9859
A47: Ingeniører i alt | C47: 2051 | E47: 499 | G47: 2550
A48: Magistre i alt | C48: 721 | E48: 1084 | G48: 1805
A49: DJØF'ere i alt | C49: 997 | E49: 1177 | G49: 2174
A56: Herning
C58: Mænd | E58: Kvinder | G58: I alt
A60: Civ. ing. | C60: 158 | E60: 45 | G60: 203
A61: Diplom ing. | C61: 359 | E61: 87 | G61: 446
A62: Cand. Scient. Tek. | C62: 41 | E62: 27 | G62: 68
A63: MA. Hum. | C63: 65 | E63: 141 | G63: 206
A64: MA. Nat. | C64: 33 | E64: 30 | G64: 63
A65: MA. Ph.d. | C65: 2 | E65: 4 | G65: 6
A66: MA. Samf. | C66: 4 | E66: 10 | G66: 14
A67: Øvrige Mag. | C67: 2 | E67: 10 | G67: 12
A68: Agronom | C68: 16 | E68: 10 | G68: 26
A69: Landsk. Arkt. | C69: 2 | E69: 2 | G69: 4
A70: Hortonom | C70: 0 | E70: 1 | G70: 1
A71: Forstkand. | C71: 3 | E71: 1 | G71: 4
A72: Jordbrugsakad. | C72: 21 | E72: 14 | G72: 35
A73: Mejeriing. | C73: 7 | E73: 1 | G73: 8
A74: Levn.m.kand. | C74: 0 | E74: 2 | G74: 2
A75: Dyrlæge | C75: 6 | E75: 26 | G75: 32
A76: Farmaceut | C76: 4 | E76: 18 | G76: 22
A77: Læge | C77: 21 | E77: 57 | G77: 78
A78: Tandlæge | C78: 4 | E78: 13 | G78: 17
A79: Arkitekt | C79: 3 | E79: 9 | G79: 12
A80: Landinspek. | C80: 3 | E80: 3 | G80: 6
A81: Bibliotekar | C81: 12 | E81: 24 | G81: 36
A82: Musikudd. | C82: 5 | E82: 6 | G82: 11
A83: Teolog | C83: 8 | E83: 7 | G83: 15
A84: Psykolog | C84: 7 | E84: 40 | G84: 47
A85: Jurist | C85: 32 | E85: 60 | G85: 92
A86: Økonom | C86: 22 | E86: 16 | G86: 38
A87: Samf. Adm. | C87: 43 | E87: 44 | G87: 87
A88: Cand. Merc. | C88: 137 | E88: 126 | G88: 263
A89: HA | C89: 65 | E89: 56 | G89: 121
A90: HD | C90: 32 | E90: 16 | G90: 48
A91: Komm. og Sprog | C91: 4 | E91: 68 | G91: 72
A92: Cand. IT. | C92: 5 | E92: 6 | G92: 11
A93: Bac. Samf. | C93: 3 | E93: 2 | G93: 5
A94: Bac. Hum. | C94: 11 | E94: 5 | G94: 16
A95: Bac. Nat. | C95: 17 | E95: 8 | G95: 25
A96: Andre | C96: 105 | E96: 62 | G96: 167
A98: Total | C98: 1241 | E98: 1043 | G98: 2284
A100: Ingeniører i alt | C100: 517 | E100: 132 | G100: 649
A101: Magistre i alt | C101: 106 | E101: 195 | G101: 301
A102: DJØF'ere i alt | C102: 299 | E102: 302 | G102: 601
A109: Holstebro
C111: Mænd | E111: Kvinder | G111: I alt
A113: Civ. ing. | C113: 79 | E113: 21 | G113: 100
A114: Diplom ing. | C114: 185 | E114: 36 | G114: 221
A115: Cand. Scient. Tek. | C115: 24 | E115: 13 | G115: 37
A116: MA. Hum. | C116: 54 | E116: 125 | G116: 179
A117: MA. Nat. | C117: 34 | E117: 18 | G117: 52
A118: MA. Ph.d. | C118: 0 | E118: 1 | G118: 1
A119: MA. Samf. | C119: 2 | E119: 10 | G119: 12
A120: Øvrige Mag. | C120: 11 | E120: 9 | G120: 20
A121: Agronom | C121: 14 | E121: 8 | G121: 22
A122: Landsk. Arkt. | C122: 0 | E122: 0 | G122: 0
A123: Hortonom | C123: 2 | E123: 2 | G123: 4
A124: Forstkand. | C124: 4 | E124: 0 | G124: 4
A125: Jordbrugsakad. | C125: 20 | E125: 10 | G125: 30
A126: Mejeriing. | C126: 1 | E126: 2 | G126: 3
A127: Levn.m.kand. | C127: 0 | E127: 1 | G127: 1
A128: Dyrlæge | C128: 4 | E128: 18 | G128: 22
A129: Farmaceut | C129: 2 | E129: 8 | G129: 10
A130: Læge | C130: 28 | E130: 48 | G130: 76
A131: Tandlæge | C131: 3 | E131: 15 | G131: 18
A132: Arkitekt | C132: 9 | E132: 4 | G132: 13
A133: Landinspek. | C133: 2 | E133: 4 | G133: 6
A134: Bibliotekar | C134: 3 | E134: 22 | G134: 25
A135: Musikudd. | C135: 5 | E135: 4 | G135: 9
A136: Teolog | C136: 9 | E136: 9 | G136: 18
A137: Psykolog | C137: 7 | E137: 37 | G137: 44
A138: Jurist | C138: 24 | E138: 29 | G138: 53
A139: Økonom | C139: 10 | E139: 12 | G139: 22
A140: Samf. Adm. | C140: 23 | E140: 41 | G140: 64
A141: Cand. Merc. | C141: 68 | E141: 47 | G141: 115
A142: HA | C142: 15 | E142: 19 | G142: 34
A143: HD | C143: 21 | E143: 6 | G143: 27
A144: Komm. og Sprog | C144: 2 | E144: 22 | G144: 24
A145: Cand. IT. | C145: 3 | E145: 2 | G145: 5
A146: Bac. Samf. | C146: 2 | E146: 1 | G146: 3
A147: Bac. Hum. | C147: 2 | E147: 6 | G147: 8
A148: Bac. Nat. | C148: 6 | E148: 2 | G148: 8
A149: Andre | C149: 38 | E149: 36 | G149: 74
A151: Total | C151: 696 | E151: 638 | G151: 1334
A153: Ingeniører i alt | C153: 264 | E153: 57 | G153: 321
A154: Magistre i alt | C154: 101 | E154: 163 | G154: 264
A155: DJØF'ere i alt | C155: 140 | E155: 148 | G155: 288
A162: Lemvig
C164: Mænd | E164: Kvinder | G164: I alt
A166: Civ. ing. | C166: 24 | E166: 8 | G166: 32
A167: Diplom ing. | C167: 29 | E167: 9 | G167: 38
A168: Cand. Scient. Tek. | C168: 10 | E168: 13 | G168: 23
A169: MA. Hum. | C169: 16 | E169: 28 | G169: 44
A170: MA. Nat. | C170: 15 | E170: 18 | G170: 33
A171: MA. Ph.d. | C171: 1 | E171: 3 | G171: 4
A172: MA. Samf. | C172: 1 | E172: 1 | G172: 2
A173: Øvrige Mag. | C173: 2 | E173: 9 | G173: 11
A174: Agronom | C174: 7 | E174: 7 | G174: 14
A175: Landsk. Arkt. | C175: 0 | E175: 0 | G175: 0
A176: Hortonom | C176: 0 | E176: 0 | G176: 0
A177: Forstkand. | C177: 2 | E177: 0 | G177: 2
A178: Jordbrugsakad. | C178: 9 | E178: 7 | G178: 16
A179: Mejeriing. | C179: 0 | E179: 0 | G179: 0
A180: Levn.m.kand. | C180: 0 | E180: 0 | G180: 0
A181: Dyrlæge | C181: 1 | E181: 4 | G181: 5
A182: Farmaceut | C182: 2 | E182: 1 | G182: 3
A183: Læge | C183: 0 | E183: 3 | G183: 3
A184: Tandlæge | C184: 0 | E184: 1 | G184: 1
A185: Arkitekt | C185: 3 | E185: 3 | G185: 6
A186: Landinspek. | C186: 4 | E186: 1 | G186: 5
A187: Bibliotekar | C187: 2 | E187: 8 | G187: 10
A188: Musikudd. | C188: 0 | E188: 0 | G188: 0
A189: Teolog | C189: 4 | E189: 5 | G189: 9
A190: Psykolog | C190: 2 | E190: 3 | G190: 5
A191: Jurist | C191: 2 | E191: 4 | G191: 6
A192: Økonom | C192: 0 | E192: 0 | G192: 0
A193: Samf. Adm. | C193: 8 | E193: 9 | G193: 17
A194: Cand. Merc. | C194: 9 | E194: 8 | G194: 17
A195: HA | C195: 2 | E195: 2 | G195: 4
A196: HD | C196: 4 | E196: 3 | G196: 7
A197: Komm. og Sprog | C197: 0 | E197: 3 | G197: 3
A198: Cand. IT. | C198: 2 | E198: 0 | G198: 2
A199: Bac. Samf. | C199: 1 | E199: 0 | G199: 1
A200: Bac. Hum. | C200: 0 | E200: 2 | G200: 2
A201: Bac. Nat. | C201: 1 | E201: 1 | G201: 2
A202: Andre | C202: 13 | E202: 5 | G202: 18
A204: Total | C204: 167 | E204: 162 | G204: 329
A206: Ingeniører i alt | C206: 53 | E206: 17 | G206: 70
A207: Magistre i alt | C207: 35 | E207: 59 | G207: 94
A208: DJØF'ere i alt | C208: 21 | E208: 23 | G208: 44
A215: Struer
C217: Mænd | E217: Kvinder | G217: I alt
A219: Civ. ing. | C219: 39 | E219: 10 | G219: 49
A220: Diplom ing. | C220: 115 | E220: 14 | G220: 129
A221: Cand. Scient. Tek. | C221: 8 | E221: 8 | G221: 16
A222: MA. Hum. | C222: 19 | E222: 37 | G222: 56
A223: MA. Nat. | C223: 8 | E223: 8 | G223: 16
A224: MA. Ph.d. | C224: 0 | E224: 2 | G224: 2
A225: MA. Samf. | C225: 1 | E225: 5 | G225: 6
A226: Øvrige Mag. | C226: 7 | E226: 3 | G226: 10
A227: Agronom | C227: 4 | E227: 2 | G227: 6
A228: Landsk. Arkt. | C228: 0 | E228: 0 | G228: 0
A229: Hortonom | C229: 0 | E229: 0 | G229: 0
A230: Forstkand. | C230: 1 | E230: 0 | G230: 1
A231: Jordbrugsakad. | C231: 5 | E231: 2 | G231: 7
A232: Mejeriing. | C232: 0 | E232: 1 | G232: 1
A233: Levn.m.kand. | C233: 0 | E233: 0 | G233: 0
A234: Dyrlæge | C234: 0 | E234: 6 | G234: 6
A235: Farmaceut | C235: 0 | E235: 4 | G235: 4
A236: Læge | C236: 0 | E236: 2 | G236: 2
A237: Tandlæge | C237: 0 | E237: 1 | G237: 1
A238: Arkitekt | C238: 1 | E238: 4 | G238: 5
A239: Landinspek. | C239: 0 | E239: 1 | G239: 1
A240: Bibliotekar | C240: 2 | E240: 5 | G240: 7
A241: Musikudd. | C241: 2 | E241: 1 | G241: 3
A242: Teolog | C242: 4 | E242: 1 | G242: 5
A243: Psykolog | C243: 2 | E243: 8 | G243: 10
... 188 more rows

Sheet Tabel 2 VJ
A1: Tabel 2. Antal bruttoledighedsberørte og gennemsnitlig antal ledige brutto
A3: Vestjylland
C5: Mænd | F5: Kvinder | I5: I alt
C6: Ledigheds- berørte | D6: Gns. brutto- ledighed | F6: Ledigheds- berørte | G6: Gns. brutto- ledighed | I6: Ledigheds- berørte | J6: Gns. brutto- ledighed
A9: Civ. ing. | C9: 15 | D9: 9.60394187 | F9: 4 | G9: 3.999251544 | I9: 19 | J9: 13.60319341
A10: Diplom ing. | C10: 26 | D10: 20.22890289 | F10: 4 | G10: 3.136031934 | I10: 30 | J10: 23.36493482
A11: Cand. Scient. Tek. | C11: 11 | D11: 8.644046654 | F11: 7 | G11: 6.113016903 | I11: 18 | J11: 14.75706356
A12: MA. Hum. | C12: 33 | D12: 30.63431672 | F12: 62 | G12: 50.16278925 | I12: 95 | J12: 80.79710597
A13: MA. Nat. | C13: 8 | D13: 6.350651781 | F13: 4 | G13: 2.816066862 | I13: 12 | J13: 9.166718643
A14: MA. Ph.d. | C14: 0 | D14: 0 | F14: 1 | G14: 0.7085386391 | I14: 1 | J14: 0.7085386391
A15: MA. Samf. | C15: 6 | D15: 4.801347221 | F15: 6 | G15: 4.349154868 | I15: 12 | J15: 9.150502089
A16: Øvrige Mag. | C16: 2 | D16: 1.999625772 | F16: 4 | G16: 3.467223851 | I16: 6 | J16: 5.466849623
A17: Agronom | C17: 3 | D17: 2.953283852 | F17: 3 | G17: 2.399426183 | I17: 6 | J17: 5.352710036
A18: Landsk. Arkt. | C18: 0 | D18: 0 | F18: 1 | G18: 0.8912867211 | I18: 1 | J18: 0.8912867211
A19: Hortonom | C19: 0 | D19: 0 | F19: 0 | G19: 0 | I19: 0 | J19: 0
A20: Forstkand. | C20: 1 | D20: 0.9998128859 | F20: 0 | G20: 0 | I20: 1 | J20: 0.9998128859
A21: Jordbrugsakad. | C21: 4 | D21: 3.953096738 | F21: 4 | G21: 3.290712905 | I21: 8 | J21: 7.243809643
A22: Mejeriing. | C22: 1 | D22: 0.9998128859 | F22: 0 | G22: 0 | I22: 1 | J22: 0.9998128859
A23: Levn.m.kand. | C23: 0 | D23: 0 | F23: 0 | G23: 0 | I23: 0 | J23: 0
A24: Dyrlæge | C24: 0 | D24: 0 | F24: 1 | G24: 0.4060375476 | I24: 1 | J24: 0.4060375476
A25: Farmaceut | C25: 1 | D25: 0.3074908002 | F25: 2 | G25: 1.999625772 | I25: 3 | J25: 2.307116572
A26: Læge | C26: 1 | D26: 0.8195596582 | F26: 3 | G26: 1.937878126 | I26: 4 | J26: 2.757437785
A27: Tandlæge | C27: 0 | D27: 0 | F27: 1 | G27: 0.7690388574 | I27: 1 | J27: 0.7690388574
A28: Arkitekt | C28: 1 | D28: 0.9998128859 | F28: 3 | G28: 2.478014096 | I28: 4 | J28: 3.477826982
A29: Landinspek. | C29: 1 | D29: 0.7228840516 | F29: 0 | G29: 0 | I29: 1 | J29: 0.7228840516
A30: Bibliotekar | C30: 1 | D30: 0.6767292459 | F30: 5 | G30: 4.67598079 | I30: 6 | J30: 5.352710036
A31: Musikudd. | C31: 1 | D31: 0.9998128859 | F31: 0 | G31: 0 | I31: 1 | J31: 0.9998128859
A32: Teolog | C32: 0 | D32: 0 | F32: 0 | G32: 0 | I32: 0 | J32: 0
A33: Psykolog | C33: 1 | D33: 0.9998128859 | F33: 9 | G33: 7.790806462 | I33: 10 | J33: 8.790619348
A34: Jurist | C34: 4 | D34: 3.999251544 | F34: 0 | G34: 0 | I34: 4 | J34: 3.999251544
A35: Økonom | C35: 2 | D35: 1.999625772 | F35: 2 | G35: 1.990270068 | I35: 4 | J35: 3.98989584
A36: Samf. Adm. | C36: 10 | D36: 8.751949105 | F36: 20 | G36: 17.00430362 | I36: 30 | J36: 25.75625273
A37: Cand. Merc. | C37: 16 | D37: 12.91149504 | F37: 23 | G37: 19.94199464 | I37: 39 | J37: 32.85348968
A38: HA | C38: 5 | D38: 4.908625959 | F38: 15 | G38: 13.50589409 | I38: 20 | J38: 18.41452005
A39: HD | C39: 3 | D39: 2.972618973 | F39: 2 | G39: 1.78569201 | I39: 5 | J39: 4.758310984
A40: Komm. og Sprog | C40: 1 | D40: 0.9998128859 | F40: 16 | G40: 13.03499033 | I40: 17 | J40: 14.03480322
A41: Cand. IT. | C41: 5 | D41: 4.768290401 | F41: 5 | G41: 3.881369675 | I41: 10 | J41: 8.649660076
A42: Bac. Samf. | C42: 0 | D42: 0 | F42: 0 | G42: 0 | I42: 0 | J42: 0
A43: Bac. Hum. | C43: 3 | D43: 2.768664629 | F43: 5 | G43: 4.862471153 | I43: 8 | J43: 7.631135782
A44: Bac. Nat. | C44: 0 | D44: 0 | F44: 1 | G44: 0.9998128859 | I44: 1 | J44: 0.9998128859
A45: Andre | C45: 15 | D45: 13.21524356 | F45: 13 | G45: 9.731803156 | I45: 28 | J45: 22.94704672
A47: Total | C47: 177 | D47: 150.0374228 | F47: 222 | G47: 184.83877 | I47: 399 | J47: 334.8761929
A49: Ingeniører i alt | C49: 41 | D49: 29.83284476 | F49: 8 | G49: 7.135283478 | I49: 49 | J49: 36.96812824
A50: Magistre i alt | C50: 49 | D50: 43.7859415 | F50: 77 | G50: 61.50377347 | I50: 126 | J50: 105.289715
A51: DJØF'ere i alt | C51: 37 | D51: 32.57094742 | F51: 60 | G51: 52.44246242 | I51: 97 | J51: 85.01340984
A56: Herning
C58: Mænd | F58: Kvinder | I58: I alt
C59: Ledigheds- berørte | D59: Gns. brutto- ledighed | F59: Ledigheds- berørte | G59: Gns. brutto- ledighed | I59: Ledigheds- berørte | J59: Gns. brutto- ledighed
A62: Civ. ing. | C62: 3 | D62: 1.426432982 | F62: 2 | G62: 1.999625772 | I62: 5 | J62: 3.426058754
A63: Diplom ing. | C63: 10 | D63: 7.268758186 | F63: 2 | G63: 1.676542132 | I63: 12 | J63: 8.945300318
A64: Cand. Scient. Tek. | C64: 5 | D64: 3.475955841 | F64: 2 | G64: 1.491922909 | I64: 7 | J64: 4.96787875
A65: MA. Hum. | C65: 5 | D65: 4.772656396 | F65: 13 | G65: 11.63724818 | I65: 18 | J65: 16.40990457
A66: MA. Nat. | C66: 1 | D66: 0.7690388574 | F66: 2 | G66: 1.370298759 | I66: 3 | J66: 2.139337616
A67: MA. Ph.d. | C67: 0 | D67: 0 | F67: 1 | G67: 0.7085386391 | I67: 1 | J67: 0.7085386391
A68: MA. Samf. | C68: 1 | D68: 0.9536580802 | F68: 0 | G68: 0 | I68: 1 | J68: 0.9536580802
A69: Øvrige Mag. | C69: 0 | D69: 0 | F69: 1 | G69: 0.9998128859 | I69: 1 | J69: 0.9998128859
A70: Agronom | C70: 0 | D70: 0 | F70: 2 | G70: 1.445768103 | I70: 2 | J70: 1.445768103
A71: Landsk. Arkt. | C71: 0 | D71: 0 | F71: 1 | G71: 0.8912867211 | I71: 1 | J71: 0.8912867211
A72: Hortonom | C72: 0 | D72: 0 | F72: 0 | G72: 0 | I72: 0 | J72: 0
A73: Forstkand. | C73: 0 | D73: 0 | F73: 0 | G73: 0 | I73: 0 | J73: 0
A74: Jordbrugsakad. | C74: 0 | D74: 0 | F74: 3 | G74: 2.337054824 | I74: 3 | J74: 2.337054824
A75: Mejeriing. | C75: 0 | D75: 0 | F75: 0 | G75: 0 | I75: 0 | J75: 0
A76: Levn.m.kand. | C76: 0 | D76: 0 | F76: 0 | G76: 0 | I76: 0 | J76: 0
A77: Dyrlæge | C77: 0 | D77: 0 | F77: 0 | G77: 0 | I77: 0 | J77: 0
A78: Farmaceut | C78: 0 | D78: 0 | F78: 2 | G78: 1.999625772 | I78: 2 | J78: 1.999625772
A79: Læge | C79: 0 | D79: 0 | F79: 1 | G79: 0.9998128859 | I79: 1 | J79: 0.9998128859
A80: Tandlæge | C80: 0 | D80: 0 | F80: 0 | G80: 0 | I80: 0 | J80: 0
A81: Arkitekt | C81: 0 | D81: 0 | F81: 0 | G81: 0 | I81: 0 | J81: 0
A82: Landinspek. | C82: 0 | D82: 0 | F82: 0 | G82: 0 | I82: 0 | J82: 0
A83: Bibliotekar | C83: 1 | D83: 0.6767292459 | F83: 1 | G83: 0.6767292459 | I83: 2 | J83: 1.353458492
A84: Musikudd. | C84: 0 | D84: 0 | F84: 0 | G84: 0 | I84: 0 | J84: 0
A85: Teolog | C85: 0 | D85: 0 | F85: 0 | G85: 0 | I85: 0 | J85: 0
A86: Psykolog | C86: 0 | D86: 0 | F86: 2 | G86: 1.999625772 | I86: 2 | J86: 1.999625772
A87: Jurist | C87: 1 | D87: 0.9998128859 | F87: 0 | G87: 0 | I87: 1 | J87: 0.9998128859
A88: Økonom | C88: 0 | D88: 0 | F88: 0 | G88: 0 | I88: 0 | J88: 0
A89: Samf. Adm. | C89: 2 | D89: 1.999625772 | F89: 5 | G89: 3.130418512 | I89: 7 | J89: 5.130044284
A90: Cand. Merc. | C90: 6 | D90: 4.505706979 | F90: 9 | G90: 8.466911994 | I90: 15 | J90: 12.97261897
A91: HA | C91: 0 | D91: 0 | F91: 6 | G91: 5.244807584 | I91: 6 | J91: 5.244807584
A92: HD | C92: 0 | D92: 0 | F92: 0 | G92: 0 | I92: 0 | J92: 0
A93: Komm. og Sprog | C93: 0 | D93: 0 | F93: 4 | G93: 2.847876255 | I93: 4 | J93: 2.847876255
A94: Cand. IT. | C94: 0 | D94: 0 | F94: 1 | G94: 0.9156115512 | I94: 1 | J94: 0.9156115512
A95: Bac. Samf. | C95: 0 | D95: 0 | F95: 0 | G95: 0 | I95: 0 | J95: 0
A96: Bac. Hum. | C96: 2 | D96: 1.999625772 | F96: 0 | G96: 0 | I96: 2 | J96: 1.999625772
A97: Bac. Nat. | C97: 0 | D97: 0 | F97: 0 | G97: 0 | I97: 0 | J97: 0
A98: Andre | C98: 5 | D98: 3.787812636 | F98: 2 | G98: 1.256782885 | I98: 7 | J98: 5.044595522
A100: Total | C100: 42 | D100: 32.63581363 | F100: 59 | G100: 49.75924655 | I100: 101 | J100: 82.39506019
A102: Ingeniører i alt | C102: 13 | D102: 8.695191168 | F102: 4 | G102: 3.676167904 | I102: 17 | J102: 12.37135907
A103: Magistre i alt | C103: 7 | D103: 6.495353334 | F103: 17 | G103: 14.71589846 | I103: 24 | J103: 21.21125179
A104: DJØF'ere i alt | C104: 9 | D104: 7.505145637 | F104: 20 | G104: 16.84213809 | I104: 29 | J104: 24.34728373
A109: Holstebro
C111: Mænd | F111: Kvinder | I111: I alt
C112: Ledigheds- berørte | D112: Gns. brutto- ledighed | F112: Ledigheds- berørte | G112: Gns. brutto- ledighed | I112: Ledigheds- berørte | J112: Gns. brutto- ledighed
A115: Civ. ing. | C115: 1 | D115: 0.4459552174 | F115: 1 | G115: 0.9998128859 | I115: 2 | J115: 1.445768103
A116: Diplom ing. | C116: 2 | D116: 1.58423252 | F116: 0 | G116: 0 | I116: 2 | J116: 1.58423252
A117: Cand. Scient. Tek. | C117: 2 | D117: 1.999625772 | F117: 0 | G117: 0 | I117: 2 | J117: 1.999625772
A118: MA. Hum. | C118: 3 | D118: 2.501715212 | F118: 10 | G118: 8.038420757 | I118: 13 | J118: 10.54013597
A119: MA. Nat. | C119: 2 | D119: 1.321025385 | F119: 1 | G119: 0.9998128859 | I119: 3 | J119: 2.320838271
A120: MA. Ph.d. | C120: 0 | D120: 0 | F120: 0 | G120: 0 | I120: 0 | J120: 0
A121: MA. Samf. | C121: 1 | D121: 0.725378906 | F121: 3 | G121: 1.67279985 | I121: 4 | J121: 2.398178756
A122: Øvrige Mag. | C122: 0 | D122: 0 | F122: 0 | G122: 0 | I122: 0 | J122: 0
A123: Agronom | C123: 0 | D123: 0 | F123: 0 | G123: 0 | I123: 0 | J123: 0
A124: Landsk. Arkt. | C124: 0 | D124: 0 | F124: 0 | G124: 0 | I124: 0 | J124: 0
A125: Hortonom | C125: 0 | D125: 0 | F125: 0 | G125: 0 | I125: 0 | J125: 0
A126: Forstkand. | C126: 1 | D126: 0.9998128859 | F126: 0 | G126: 0 | I126: 1 | J126: 0.9998128859
A127: Jordbrugsakad. | C127: 1 | D127: 0.9998128859 | F127: 0 | G127: 0 | I127: 1 | J127: 0.9998128859
A128: Mejeriing. | C128: 1 | D128: 0.9998128859 | F128: 0 | G128: 0 | I128: 1 | J128: 0.9998128859
A129: Levn.m.kand. | C129: 0 | D129: 0 | F129: 0 | G129: 0 | I129: 0 | J129: 0
A130: Dyrlæge | C130: 0 | D130: 0 | F130: 0 | G130: 0 | I130: 0 | J130: 0
A131: Farmaceut | C131: 1 | D131: 0.3074908002 | F131: 0 | G131: 0 | I131: 1 | J131: 0.3074908002
A132: Læge | C132: 1 | D132: 0.8195596582 | F132: 1 | G132: 0.3074908002 | I132: 2 | J132: 1.127050458
A133: Tandlæge | C133: 0 | D133: 0 | F133: 1 | G133: 0.7690388574 | I133: 1 | J133: 0.7690388574
A134: Arkitekt | C134: 0 | D134: 0 | F134: 0 | G134: 0 | I134: 0 | J134: 0
A135: Landinspek. | C135: 0 | D135: 0 | F135: 0 | G135: 0 | I135: 0 | J135: 0
A136: Bibliotekar | C136: 0 | D136: 0 | F136: 1 | G136: 0.9998128859 | I136: 1 | J136: 0.9998128859
A137: Musikudd. | C137: 0 | D137: 0 | F137: 0 | G137: 0 | I137: 0 | J137: 0
A138: Teolog | C138: 0 | D138: 0 | F138: 0 | G138: 0 | I138: 0 | J138: 0
A139: Psykolog | C139: 0 | D139: 0 | F139: 1 | G139: 0.4459552174 | I139: 1 | J139: 0.4459552174
A140: Jurist | C140: 1 | D140: 0.9998128859 | F140: 0 | G140: 0 | I140: 1 | J140: 0.9998128859
A141: Økonom | C141: 0 | D141: 0 | F141: 0 | G141: 0 | I141: 0 | J141: 0
A142: Samf. Adm. | C142: 2 | D142: 1.399613298 | F142: 4 | G142: 3.353084264 | I142: 6 | J142: 4.752697561
A143: Cand. Merc. | C143: 1 | D143: 0.9998128859 | F143: 1 | G143: 0.9998128859 | I143: 2 | J143: 1.999625772
A144: HA | C144: 0 | D144: 0 | F144: 1 | G144: 0.9998128859 | I144: 1 | J144: 0.9998128859
A145: HD | C145: 0 | D145: 0 | F145: 0 | G145: 0 | I145: 0 | J145: 0
A146: Komm. og Sprog | C146: 0 | D146: 0 | F146: 1 | G146: 0.9998128859 | I146: 1 | J146: 0.9998128859
A147: Cand. IT. | C147: 1 | D147: 0.9998128859 | F147: 0 | G147: 0 | I147: 1 | J147: 0.9998128859
A148: Bac. Samf. | C148: 0 | D148: 0 | F148: 0 | G148: 0 | I148: 0 | J148: 0
A149: Bac. Hum. | C149: 0 | D149: 0 | F149: 0 | G149: 0 | I149: 0 | J149: 0
A150: Bac. Nat. | C150: 0 | D150: 0 | F150: 0 | G150: 0 | I150: 0 | J150: 0
A151: Andre | C151: 1 | D151: 0.9998128859 | F151: 2 | G151: 1.722696938 | I151: 3 | J151: 2.722509823
A153: Total | C153: 21 | D153: 17.10347408 | F153: 28 | G153: 22.308364 | I153: 49 | J153: 39.41183808
A155: Ingeniører i alt | C155: 3 | D155: 2.030187738 | F155: 1 | G155: 0.9998128859 | I155: 4 | J155: 3.030000624
A156: Magistre i alt | C156: 6 | D156: 4.548119504 | F156: 14 | G156: 10.71103349 | I156: 20 | J156: 15.259153
A157: DJØF'ere i alt | C157: 4 | D157: 3.399239069 | F157: 6 | G157: 5.352710036 | I157: 10 | J157: 8.751949105
A162: Lemvig
C164: Mænd | F164: Kvinder | I164: I alt
C165: Ledigheds- berørte | D165: Gns. brutto- ledighed | F165: Ledigheds- berørte | G165: Gns. brutto- ledighed | I165: Ledigheds- berørte | J165: Gns. brutto- ledighed
A168: Civ. ing. | C168: 3 | D168: 1.916671864 | F168: 0 | G168: 0 | I168: 3 | J168: 1.916671864
A169: Diplom ing. | C169: 0 | D169: 0 | F169: 0 | G169: 0 | I169: 0 | J169: 0
A170: Cand. Scient. Tek. | C170: 1 | D170: 0.5382648288 | F170: 0 | G170: 0 | I170: 1 | J170: 0.5382648288
A171: MA. Hum. | C171: 0 | D171: 0 | F171: 1 | G171: 0.9998128859 | I171: 1 | J171: 0.9998128859
A172: MA. Nat. | C172: 0 | D172: 0 | F172: 0 | G172: 0 | I172: 0 | J172: 0
A173: MA. Ph.d. | C173: 0 | D173: 0 | F173: 0 | G173: 0 | I173: 0 | J173: 0
A174: MA. Samf. | C174: 0 | D174: 0 | F174: 0 | G174: 0 | I174: 0 | J174: 0
A175: Øvrige Mag. | C175: 0 | D175: 0 | F175: 1 | G175: 0.7690388574 | I175: 1 | J175: 0.7690388574
A176: Agronom | C176: 0 | D176: 0 | F176: 0 | G176: 0 | I176: 0 | J176: 0
A177: Landsk. Arkt. | C177: 0 | D177: 0 | F177: 0 | G177: 0 | I177: 0 | J177: 0
A178: Hortonom | C178: 0 | D178: 0 | F178: 0 | G178: 0 | I178: 0 | J178: 0
A179: Forstkand. | C179: 0 | D179: 0 | F179: 0 | G179: 0 | I179: 0 | J179: 0
A180: Jordbrugsakad. | C180: 0 | D180: 0 | F180: 0 | G180: 0 | I180: 0 | J180: 0
A181: Mejeriing. | C181: 0 | D181: 0 | F181: 0 | G181: 0 | I181: 0 | J181: 0
A182: Levn.m.kand. | C182: 0 | D182: 0 | F182: 0 | G182: 0 | I182: 0 | J182: 0
A183: Dyrlæge | C183: 0 | D183: 0 | F183: 0 | G183: 0 | I183: 0 | J183: 0
A184: Farmaceut | C184: 0 | D184: 0 | F184: 0 | G184: 0 | I184: 0 | J184: 0
A185: Læge | C185: 0 | D185: 0 | F185: 0 | G185: 0 | I185: 0 | J185: 0
A186: Tandlæge | C186: 0 | D186: 0 | F186: 0 | G186: 0 | I186: 0 | J186: 0
A187: Arkitekt | C187: 0 | D187: 0 | F187: 0 | G187: 0 | I187: 0 | J187: 0
A188: Landinspek. | C188: 0 | D188: 0 | F188: 0 | G188: 0 | I188: 0 | J188: 0
A189: Bibliotekar | C189: 0 | D189: 0 | F189: 0 | G189: 0 | I189: 0 | J189: 0
A190: Musikudd. | C190: 0 | D190: 0 | F190: 0 | G190: 0 | I190: 0 | J190: 0
A191: Teolog | C191: 0 | D191: 0 | F191: 0 | G191: 0 | I191: 0 | J191: 0
A192: Psykolog | C192: 0 | D192: 0 | F192: 0 | G192: 0 | I192: 0 | J192: 0
A193: Jurist | C193: 0 | D193: 0 | F193: 0 | G193: 0 | I193: 0 | J193: 0
A194: Økonom | C194: 0 | D194: 0 | F194: 0 | G194: 0 | I194: 0 | J194: 0
A195: Samf. Adm. | C195: 0 | D195: 0 | F195: 1 | G195: 0.9998128859 | I195: 1 | J195: 0.9998128859
A196: Cand. Merc. | C196: 0 | D196: 0 | F196: 1 | G196: 0.9998128859 | I196: 1 | J196: 0.9998128859
A197: HA | C197: 0 | D197: 0 | F197: 0 | G197: 0 | I197: 0 | J197: 0
A198: HD | C198: 0 | D198: 0 | F198: 0 | G198: 0 | I198: 0 | J198: 0
A199: Komm. og Sprog | C199: 0 | D199: 0 | F199: 0 | G199: 0 | I199: 0 | J199: 0
A200: Cand. IT. | C200: 0 | D200: 0 | F200: 0 | G200: 0 | I200: 0 | J200: 0
A201: Bac. Samf. | C201: 0 | D201: 0 | F201: 0 | G201: 0 | I201: 0 | J201: 0
A202: Bac. Hum. | C202: 0 | D202: 0 | F202: 0 | G202: 0 | I202: 0 | J202: 0
A203: Bac. Nat. | C203: 0 | D203: 0 | F203: 0 | G203: 0 | I203: 0 | J203: 0
A204: Andre | C204: 1 | D204: 0.9998128859 | F204: 1 | G204: 0.9998128859 | I204: 2 | J204: 1.999625772
A206: Total | C206: 5 | D206: 3.454749579 | F206: 5 | G206: 4.768290401 | I206: 10 | J206: 8.22303998
A208: Ingeniører i alt | C208: 3 | D208: 1.916671864 | F208: 0 | G208: 0 | I208: 3 | J208: 1.916671864
A209: Magistre i alt | C209: 0 | D209: 0 | F209: 2 | G209: 1.768851743 | I209: 2 | J209: 1.768851743
A210: DJØF'ere i alt | C210: 0 | D210: 0 | F210: 2 | G210: 1.999625772 | I210: 2 | J210: 1.999625772
A215: Struer
C217: Mænd | F217: Kvinder | I217: I alt
C218: Ledigheds- berørte | D218: Gns. brutto- ledighed | F218: Ledigheds- berørte | G218: Gns. brutto- ledighed | I218: Ledigheds- berørte | J218: Gns. brutto- ledighed
A221: Civ. ing. | C221: 1 | D221: 0.8613484688 | F221: 0 | G221: 0 | I221: 1 | J221: 0.8613484688
A222: Diplom ing. | C222: 1 | D222: 0.9998128859 | F222: 1 | G222: 0.4596769164 | I222: 2 | J222: 1.459489802
A223: Cand. Scient. Tek. | C223: 0 | D223: 0 | F223: 0 | G223: 0 | I223: 0 | J223: 0
A224: MA. Hum. | C224: 2 | D224: 1.999625772 | F224: 4 | G224: 3.400486497 | I224: 6 | J224: 5.400112268
A225: MA. Nat. | C225: 0 | D225: 0 | F225: 0 | G225: 0 | I225: 0 | J225: 0
A226: MA. Ph.d. | C226: 0 | D226: 0 | F226: 0 | G226: 0 | I226: 0 | J226: 0
A227: MA. Samf. | C227: 0 | D227: 0 | F227: 1 | G227: 0.9998128859 | I227: 1 | J227: 0.9998128859
A228: Øvrige Mag. | C228: 1 | D228: 0.9998128859 | F228: 0 | G228: 0 | I228: 1 | J228: 0.9998128859
A229: Agronom | C229: 0 | D229: 0 | F229: 0 | G229: 0 | I229: 0 | J229: 0
A230: Landsk. Arkt. | C230: 0 | D230: 0 | F230: 0 | G230: 0 | I230: 0 | J230: 0
A231: Hortonom | C231: 0 | D231: 0 | F231: 0 | G231: 0 | I231: 0 | J231: 0
A232: Forstkand. | C232: 0 | D232: 0 | F232: 0 | G232: 0 | I232: 0 | J232: 0
A233: Jordbrugsakad. | C233: 0 | D233: 0 | F233: 0 | G233: 0 | I233: 0 | J233: 0
A234: Mejeriing. | C234: 0 | D234: 0 | F234: 0 | G234: 0 | I234: 0 | J234: 0
A235: Levn.m.kand. | C235: 0 | D235: 0 | F235: 0 | G235: 0 | I235: 0 | J235: 0
A236: Dyrlæge | C236: 0 | D236: 0 | F236: 1 | G236: 0.4060375476 | I236: 1 | J236: 0.4060375476
A237: Farmaceut | C237: 0 | D237: 0 | F237: 0 | G237: 0 | I237: 0 | J237: 0
A238: Læge | C238: 0 | D238: 0 | F238: 0 | G238: 0 | I238: 0 | J238: 0
A239: Tandlæge | C239: 0 | D239: 0 | F239: 0 | G239: 0 | I239: 0 | J239: 0
A240: Arkitekt | C240: 0 | D240: 0 | F240: 0 | G240: 0 | I240: 0 | J240: 0
... 197 more rows

Sheet Tabel 3 VJ
A1: Tabel 3. Ledige i procent af forsikrede
A3: Vestjylland
C5: Mænd | F5: Kvinder | I5: I alt
C6: Ledigheds- berørte | D6: Gns. brutto- ledighed | F6: Ledigheds- berørte | G6: Gns. brutto- ledighed | I6: Ledigheds- berørte | J6: Gns. brutto- ledighed
A9: Civ. ing. | C9: =IF(OR('Tabel 1 VJ'!C7<5,'Tabel 2 VJ'!C9<0.5),"-",IFERROR('Tabel 2 VJ'!C9/'Tabel 1 VJ'!C7*100,"-")) -> 2.297090352 | D9: =IF(OR('Tabel 1 VJ'!C7<5,'Tabel 2 VJ'!D9<0.5),"-",IFERROR('Tabel 2 VJ'!D9/'Tabel 1 VJ'!C7*100,"-")) -> 1.470741481 | F9: =IF(OR('Tabel 1 VJ'!E7<5,'Tabel 2 VJ'!F9<0.5),"-",IFERROR('Tabel 2 VJ'!F9/'Tabel 1 VJ'!E7*100,"-")) -> 1.98019802 | G9: =IF(OR('Tabel 1 VJ'!E7<5,'Tabel 2 VJ'!G9<0.5),"-",IFERROR('Tabel 2 VJ'!G9/'Tabel 1 VJ'!E7*100,"-")) -> 1.979827497 | I9: =IF(OR('Tabel 1 VJ'!G7<5,'Tabel 2 VJ'!I9<0.5),"-",IFERROR('Tabel 2 VJ'!I9/'Tabel 1 VJ'!G7*100,"-")) -> 2.222222222 | J9: =IF(OR('Tabel 1 VJ'!G7<5,'Tabel 2 VJ'!J9<0.5),"-",IFERROR('Tabel 2 VJ'!J9/'Tabel 1 VJ'!G7*100,"-")) -> 1.591016774
A10: Diplom ing. | C10: =IF(OR('Tabel 1 VJ'!C8<5,'Tabel 2 VJ'!C10<0.5),"-",IFERROR('Tabel 2 VJ'!C10/'Tabel 1 VJ'!C8*100,"-")) -> 1.859799714 | D10: =IF(OR('Tabel 1 VJ'!C8<5,'Tabel 2 VJ'!D10<0.5),"-",IFERROR('Tabel 2 VJ'!D10/'Tabel 1 VJ'!C8*100,"-")) -> 1.446988762 | F10: =IF(OR('Tabel 1 VJ'!E8<5,'Tabel 2 VJ'!F10<0.5),"-",IFERROR('Tabel 2 VJ'!F10/'Tabel 1 VJ'!E8*100,"-")) -> 1.346801347 | G10: =IF(OR('Tabel 1 VJ'!E8<5,'Tabel 2 VJ'!G10<0.5),"-",IFERROR('Tabel 2 VJ'!G10/'Tabel 1 VJ'!E8*100,"-")) -> 1.055903008 | I10: =IF(OR('Tabel 1 VJ'!G8<5,'Tabel 2 VJ'!I10<0.5),"-",IFERROR('Tabel 2 VJ'!I10/'Tabel 1 VJ'!G8*100,"-")) -> 1.769911504 | J10: =IF(OR('Tabel 1 VJ'!G8<5,'Tabel 2 VJ'!J10<0.5),"-",IFERROR('Tabel 2 VJ'!J10/'Tabel 1 VJ'!G8*100,"-")) -> 1.378462231
A11: Cand. Scient. Tek. | C11: =IF(OR('Tabel 1 VJ'!C9<5,'Tabel 2 VJ'!C11<0.5),"-",IFERROR('Tabel 2 VJ'!C11/'Tabel 1 VJ'!C9*100,"-")) -> 5.789473684 | D11: =IF(OR('Tabel 1 VJ'!C9<5,'Tabel 2 VJ'!D11<0.5),"-",IFERROR('Tabel 2 VJ'!D11/'Tabel 1 VJ'!C9*100,"-")) -> 4.549498239 | F11: =IF(OR('Tabel 1 VJ'!E9<5,'Tabel 2 VJ'!F11<0.5),"-",IFERROR('Tabel 2 VJ'!F11/'Tabel 1 VJ'!E9*100,"-")) -> 4.666666667 | G11: =IF(OR('Tabel 1 VJ'!E9<5,'Tabel 2 VJ'!G11<0.5),"-",IFERROR('Tabel 2 VJ'!G11/'Tabel 1 VJ'!E9*100,"-")) -> 4.075344602 | I11: =IF(OR('Tabel 1 VJ'!G9<5,'Tabel 2 VJ'!I11<0.5),"-",IFERROR('Tabel 2 VJ'!I11/'Tabel 1 VJ'!G9*100,"-")) -> 5.294117647 | J11: =IF(OR('Tabel 1 VJ'!G9<5,'Tabel 2 VJ'!J11<0.5),"-",IFERROR('Tabel 2 VJ'!J11/'Tabel 1 VJ'!G9*100,"-")) -> 4.340312811
A12: MA. Hum. | C12: =IF(OR('Tabel 1 VJ'!C10<5,'Tabel 2 VJ'!C12<0.5),"-",IFERROR('Tabel 2 VJ'!C12/'Tabel 1 VJ'!C10*100,"-")) -> 8.461538462 | D12: =IF(OR('Tabel 1 VJ'!C10<5,'Tabel 2 VJ'!D12<0.5),"-",IFERROR('Tabel 2 VJ'!D12/'Tabel 1 VJ'!C10*100,"-")) -> 7.854953006 | F12: =IF(OR('Tabel 1 VJ'!E10<5,'Tabel 2 VJ'!F12<0.5),"-",IFERROR('Tabel 2 VJ'!F12/'Tabel 1 VJ'!E10*100,"-")) -> 8.062418726 | G12: =IF(OR('Tabel 1 VJ'!E10<5,'Tabel 2 VJ'!G12<0.5),"-",IFERROR('Tabel 2 VJ'!G12/'Tabel 1 VJ'!E10*100,"-")) -> 6.523119538 | I12: =IF(OR('Tabel 1 VJ'!G10<5,'Tabel 2 VJ'!I12<0.5),"-",IFERROR('Tabel 2 VJ'!I12/'Tabel 1 VJ'!G10*100,"-")) -> 8.196721311 | J12: =IF(OR('Tabel 1 VJ'!G10<5,'Tabel 2 VJ'!J12<0.5),"-",IFERROR('Tabel 2 VJ'!J12/'Tabel 1 VJ'!G10*100,"-")) -> 6.971277478
A13: MA. Nat. | C13: =IF(OR('Tabel 1 VJ'!C11<5,'Tabel 2 VJ'!C13<0.5),"-",IFERROR('Tabel 2 VJ'!C13/'Tabel 1 VJ'!C11*100,"-")) -> 3.137254902 | D13: =IF(OR('Tabel 1 VJ'!C11<5,'Tabel 2 VJ'!D13<0.5),"-",IFERROR('Tabel 2 VJ'!D13/'Tabel 1 VJ'!C11*100,"-")) -> 2.490451679 | F13: =IF(OR('Tabel 1 VJ'!E11<5,'Tabel 2 VJ'!F13<0.5),"-",IFERROR('Tabel 2 VJ'!F13/'Tabel 1 VJ'!E11*100,"-")) -> 2.094240838 | G13: =IF(OR('Tabel 1 VJ'!E11<5,'Tabel 2 VJ'!G13<0.5),"-",IFERROR('Tabel 2 VJ'!G13/'Tabel 1 VJ'!E11*100,"-")) -> 1.474380556 | I13: =IF(OR('Tabel 1 VJ'!G11<5,'Tabel 2 VJ'!I13<0.5),"-",IFERROR('Tabel 2 VJ'!I13/'Tabel 1 VJ'!G11*100,"-")) -> 2.69058296 | J13: =IF(OR('Tabel 1 VJ'!G11<5,'Tabel 2 VJ'!J13<0.5),"-",IFERROR('Tabel 2 VJ'!J13/'Tabel 1 VJ'!G11*100,"-")) -> 2.055318081
A14: MA. Ph.d. | C14: =IF(OR('Tabel 1 VJ'!C12<5,'Tabel 2 VJ'!C14<0.5),"-",IFERROR('Tabel 2 VJ'!C14/'Tabel 1 VJ'!C12*100,"-")) -> - | D14: =IF(OR('Tabel 1 VJ'!C12<5,'Tabel 2 VJ'!D14<0.5),"-",IFERROR('Tabel 2 VJ'!D14/'Tabel 1 VJ'!C12*100,"-")) -> - | F14: =IF(OR('Tabel 1 VJ'!E12<5,'Tabel 2 VJ'!F14<0.5),"-",IFERROR('Tabel 2 VJ'!F14/'Tabel 1 VJ'!E12*100,"-")) -> 4.545454545 | G14: =IF(OR('Tabel 1 VJ'!E12<5,'Tabel 2 VJ'!G14<0.5),"-",IFERROR('Tabel 2 VJ'!G14/'Tabel 1 VJ'!E12*100,"-")) -> 3.220630178 | I14: =IF(OR('Tabel 1 VJ'!G12<5,'Tabel 2 VJ'!I14<0.5),"-",IFERROR('Tabel 2 VJ'!I14/'Tabel 1 VJ'!G12*100,"-")) -> 2.380952381 | J14: =IF(OR('Tabel 1 VJ'!G12<5,'Tabel 2 VJ'!J14<0.5),"-",IFERROR('Tabel 2 VJ'!J14/'Tabel 1 VJ'!G12*100,"-")) -> 1.68699676
A15: MA. Samf. | C15: =IF(OR('Tabel 1 VJ'!C13<5,'Tabel 2 VJ'!C15<0.5),"-",IFERROR('Tabel 2 VJ'!C15/'Tabel 1 VJ'!C13*100,"-")) -> 35.29411765 | D15: =IF(OR('Tabel 1 VJ'!C13<5,'Tabel 2 VJ'!D15<0.5),"-",IFERROR('Tabel 2 VJ'!D15/'Tabel 1 VJ'!C13*100,"-")) -> 28.24321895 | F15: =IF(OR('Tabel 1 VJ'!E13<5,'Tabel 2 VJ'!F15<0.5),"-",IFERROR('Tabel 2 VJ'!F15/'Tabel 1 VJ'!E13*100,"-")) -> 13.04347826 | G15: =IF(OR('Tabel 1 VJ'!E13<5,'Tabel 2 VJ'!G15<0.5),"-",IFERROR('Tabel 2 VJ'!G15/'Tabel 1 VJ'!E13*100,"-")) -> 9.454684496 | I15: =IF(OR('Tabel 1 VJ'!G13<5,'Tabel 2 VJ'!I15<0.5),"-",IFERROR('Tabel 2 VJ'!I15/'Tabel 1 VJ'!G13*100,"-")) -> 19.04761905 | J15: =IF(OR('Tabel 1 VJ'!G13<5,'Tabel 2 VJ'!J15<0.5),"-",IFERROR('Tabel 2 VJ'!J15/'Tabel 1 VJ'!G13*100,"-")) -> 14.52460649
A16: Øvrige Mag. | C16: =IF(OR('Tabel 1 VJ'!C14<5,'Tabel 2 VJ'!C16<0.5),"-",IFERROR('Tabel 2 VJ'!C16/'Tabel 1 VJ'!C14*100,"-")) -> 5.128205128 | D16: =IF(OR('Tabel 1 VJ'!C14<5,'Tabel 2 VJ'!D16<0.5),"-",IFERROR('Tabel 2 VJ'!D16/'Tabel 1 VJ'!C14*100,"-")) -> 5.127245569 | F16: =IF(OR('Tabel 1 VJ'!E14<5,'Tabel 2 VJ'!F16<0.5),"-",IFERROR('Tabel 2 VJ'!F16/'Tabel 1 VJ'!E14*100,"-")) -> 7.142857143 | G16: =IF(OR('Tabel 1 VJ'!E14<5,'Tabel 2 VJ'!G16<0.5),"-",IFERROR('Tabel 2 VJ'!G16/'Tabel 1 VJ'!E14*100,"-")) -> 6.191471162 | I16: =IF(OR('Tabel 1 VJ'!G14<5,'Tabel 2 VJ'!I16<0.5),"-",IFERROR('Tabel 2 VJ'!I16/'Tabel 1 VJ'!G14*100,"-")) -> 6.315789474 | J16: =IF(OR('Tabel 1 VJ'!G14<5,'Tabel 2 VJ'!J16<0.5),"-",IFERROR('Tabel 2 VJ'!J16/'Tabel 1 VJ'!G14*100,"-")) -> 5.75457855
A17: Agronom | C17: =IF(OR('Tabel 1 VJ'!C15<5,'Tabel 2 VJ'!C17<0.5),"-",IFERROR('Tabel 2 VJ'!C17/'Tabel 1 VJ'!C15*100,"-")) -> 2.23880597 | D17: =IF(OR('Tabel 1 VJ'!C15<5,'Tabel 2 VJ'!D17<0.5),"-",IFERROR('Tabel 2 VJ'!D17/'Tabel 1 VJ'!C15*100,"-")) -> 2.203943173 | F17: =IF(OR('Tabel 1 VJ'!E15<5,'Tabel 2 VJ'!F17<0.5),"-",IFERROR('Tabel 2 VJ'!F17/'Tabel 1 VJ'!E15*100,"-")) -> 3.157894737 | G17: =IF(OR('Tabel 1 VJ'!E15<5,'Tabel 2 VJ'!G17<0.5),"-",IFERROR('Tabel 2 VJ'!G17/'Tabel 1 VJ'!E15*100,"-")) -> 2.525711772 | I17: =IF(OR('Tabel 1 VJ'!G15<5,'Tabel 2 VJ'!I17<0.5),"-",IFERROR('Tabel 2 VJ'!I17/'Tabel 1 VJ'!G15*100,"-")) -> 2.620087336 | J17: =IF(OR('Tabel 1 VJ'!G15<5,'Tabel 2 VJ'!J17<0.5),"-",IFERROR('Tabel 2 VJ'!J17/'Tabel 1 VJ'!G15*100,"-")) -> 2.337427963
A18: Landsk. Arkt. | C18: =IF(OR('Tabel 1 VJ'!C16<5,'Tabel 2 VJ'!C18<0.5),"-",IFERROR('Tabel 2 VJ'!C18/'Tabel 1 VJ'!C16*100,"-")) -> - | D18: =IF(OR('Tabel 1 VJ'!C16<5,'Tabel 2 VJ'!D18<0.5),"-",IFERROR('Tabel 2 VJ'!D18/'Tabel 1 VJ'!C16*100,"-")) -> - | F18: =IF(OR('Tabel 1 VJ'!E16<5,'Tabel 2 VJ'!F18<0.5),"-",IFERROR('Tabel 2 VJ'!F18/'Tabel 1 VJ'!E16*100,"-")) -> 20 | G18: =IF(OR('Tabel 1 VJ'!E16<5,'Tabel 2 VJ'!G18<0.5),"-",IFERROR('Tabel 2 VJ'!G18/'Tabel 1 VJ'!E16*100,"-")) -> 17.82573442 | I18: =IF(OR('Tabel 1 VJ'!G16<5,'Tabel 2 VJ'!I18<0.5),"-",IFERROR('Tabel 2 VJ'!I18/'Tabel 1 VJ'!G16*100,"-")) -> 12.5 | J18: =IF(OR('Tabel 1 VJ'!G16<5,'Tabel 2 VJ'!J18<0.5),"-",IFERROR('Tabel 2 VJ'!J18/'Tabel 1 VJ'!G16*100,"-")) -> 11.14108401
A19: Hortonom | C19: =IF(OR('Tabel 1 VJ'!C17<5,'Tabel 2 VJ'!C19<0.5),"-",IFERROR('Tabel 2 VJ'!C19/'Tabel 1 VJ'!C17*100,"-")) -> - | D19: =IF(OR('Tabel 1 VJ'!C17<5,'Tabel 2 VJ'!D19<0.5),"-",IFERROR('Tabel 2 VJ'!D19/'Tabel 1 VJ'!C17*100,"-")) -> - | F19: =IF(OR('Tabel 1 VJ'!E17<5,'Tabel 2 VJ'!F19<0.5),"-",IFERROR('Tabel 2 VJ'!F19/'Tabel 1 VJ'!E17*100,"-")) -> - | G19: =IF(OR('Tabel 1 VJ'!E17<5,'Tabel 2 VJ'!G19<0.5),"-",IFERROR('Tabel 2 VJ'!G19/'Tabel 1 VJ'!E17*100,"-")) -> - | I19: =IF(OR('Tabel 1 VJ'!G17<5,'Tabel 2 VJ'!I19<0.5),"-",IFERROR('Tabel 2 VJ'!I19/'Tabel 1 VJ'!G17*100,"-")) -> - | J19: =IF(OR('Tabel 1 VJ'!G17<5,'Tabel 2 VJ'!J19<0.5),"-",IFERROR('Tabel 2 VJ'!J19/'Tabel 1 VJ'!G17*100,"-")) -> -
A20: Forstkand. | C20: =IF(OR('Tabel 1 VJ'!C18<5,'Tabel 2 VJ'!C20<0.5),"-",IFERROR('Tabel 2 VJ'!C20/'Tabel 1 VJ'!C18*100,"-")) -> 5.555555556 | D20: =IF(OR('Tabel 1 VJ'!C18<5,'Tabel 2 VJ'!D20<0.5),"-",IFERROR('Tabel 2 VJ'!D20/'Tabel 1 VJ'!C18*100,"-")) -> 5.554516033 | F20: =IF(OR('Tabel 1 VJ'!E18<5,'Tabel 2 VJ'!F20<0.5),"-",IFERROR('Tabel 2 VJ'!F20/'Tabel 1 VJ'!E18*100,"-")) -> - | G20: =IF(OR('Tabel 1 VJ'!E18<5,'Tabel 2 VJ'!G20<0.5),"-",IFERROR('Tabel 2 VJ'!G20/'Tabel 1 VJ'!E18*100,"-")) -> - | I20: =IF(OR('Tabel 1 VJ'!G18<5,'Tabel 2 VJ'!I20<0.5),"-",IFERROR('Tabel 2 VJ'!I20/'Tabel 1 VJ'!G18*100,"-")) -> 4.166666667 | J20: =IF(OR('Tabel 1 VJ'!G18<5,'Tabel 2 VJ'!J20<0.5),"-",IFERROR('Tabel 2 VJ'!J20/'Tabel 1 VJ'!G18*100,"-")) -> 4.165887025
A21: Jordbrugsakad. | C21: =IF(OR('Tabel 1 VJ'!C19<5,'Tabel 2 VJ'!C21<0.5),"-",IFERROR('Tabel 2 VJ'!C21/'Tabel 1 VJ'!C19*100,"-")) -> 2.51572327 | D21: =IF(OR('Tabel 1 VJ'!C19<5,'Tabel 2 VJ'!D21<0.5),"-",IFERROR('Tabel 2 VJ'!D21/'Tabel 1 VJ'!C19*100,"-")) -> 2.486224364 | F21: =IF(OR('Tabel 1 VJ'!E19<5,'Tabel 2 VJ'!F21<0.5),"-",IFERROR('Tabel 2 VJ'!F21/'Tabel 1 VJ'!E19*100,"-")) -> 3.571428571 | G21: =IF(OR('Tabel 1 VJ'!E19<5,'Tabel 2 VJ'!G21<0.5),"-",IFERROR('Tabel 2 VJ'!G21/'Tabel 1 VJ'!E19*100,"-")) -> 2.938136522 | I21: =IF(OR('Tabel 1 VJ'!G19<5,'Tabel 2 VJ'!I21<0.5),"-",IFERROR('Tabel 2 VJ'!I21/'Tabel 1 VJ'!G19*100,"-")) -> 2.95202952 | J21: =IF(OR('Tabel 1 VJ'!G19<5,'Tabel 2 VJ'!J21<0.5),"-",IFERROR('Tabel 2 VJ'!J21/'Tabel 1 VJ'!G19*100,"-")) -> 2.672992488
A22: Mejeriing. | C22: =IF(OR('Tabel 1 VJ'!C20<5,'Tabel 2 VJ'!C22<0.5),"-",IFERROR('Tabel 2 VJ'!C22/'Tabel 1 VJ'!C20*100,"-")) -> 8.333333333 | D22: =IF(OR('Tabel 1 VJ'!C20<5,'Tabel 2 VJ'!D22<0.5),"-",IFERROR('Tabel 2 VJ'!D22/'Tabel 1 VJ'!C20*100,"-")) -> 8.331774049 | F22: =IF(OR('Tabel 1 VJ'!E20<5,'Tabel 2 VJ'!F22<0.5),"-",IFERROR('Tabel 2 VJ'!F22/'Tabel 1 VJ'!E20*100,"-")) -> - | G22: =IF(OR('Tabel 1 VJ'!E20<5,'Tabel 2 VJ'!G22<0.5),"-",IFERROR('Tabel 2 VJ'!G22/'Tabel 1 VJ'!E20*100,"-")) -> - | I22: =IF(OR('Tabel 1 VJ'!G20<5,'Tabel 2 VJ'!I22<0.5),"-",IFERROR('Tabel 2 VJ'!I22/'Tabel 1 VJ'!G20*100,"-")) -> 4.166666667 | J22: =IF(OR('Tabel 1 VJ'!G20<5,'Tabel 2 VJ'!J22<0.5),"-",IFERROR('Tabel 2 VJ'!J22/'Tabel 1 VJ'!G20*100,"-")) -> 4.165887025
A23: Levn.m.kand. | C23: =IF(OR('Tabel 1 VJ'!C21<5,'Tabel 2 VJ'!C23<0.5),"-",IFERROR('Tabel 2 VJ'!C23/'Tabel 1 VJ'!C21*100,"-")) -> - | D23: =IF(OR('Tabel 1 VJ'!C21<5,'Tabel 2 VJ'!D23<0.5),"-",IFERROR('Tabel 2 VJ'!D23/'Tabel 1 VJ'!C21*100,"-")) -> - | F23: =IF(OR('Tabel 1 VJ'!E21<5,'Tabel 2 VJ'!F23<0.5),"-",IFERROR('Tabel 2 VJ'!F23/'Tabel 1 VJ'!E21*100,"-")) -> - | G23: =IF(OR('Tabel 1 VJ'!E21<5,'Tabel 2 VJ'!G23<0.5),"-",IFERROR('Tabel 2 VJ'!G23/'Tabel 1 VJ'!E21*100,"-")) -> - | I23: =IF(OR('Tabel 1 VJ'!G21<5,'Tabel 2 VJ'!I23<0.5),"-",IFERROR('Tabel 2 VJ'!I23/'Tabel 1 VJ'!G21*100,"-")) -> - | J23: =IF(OR('Tabel 1 VJ'!G21<5,'Tabel 2 VJ'!J23<0.5),"-",IFERROR('Tabel 2 VJ'!J23/'Tabel 1 VJ'!G21*100,"-")) -> -
A24: Dyrlæge | C24: =IF(OR('Tabel 1 VJ'!C22<5,'Tabel 2 VJ'!C24<0.5),"-",IFERROR('Tabel 2 VJ'!C24/'Tabel 1 VJ'!C22*100,"-")) -> - | D24: =IF(OR('Tabel 1 VJ'!C22<5,'Tabel 2 VJ'!D24<0.5),"-",IFERROR('Tabel 2 VJ'!D24/'Tabel 1 VJ'!C22*100,"-")) -> - | F24: =IF(OR('Tabel 1 VJ'!E22<5,'Tabel 2 VJ'!F24<0.5),"-",IFERROR('Tabel 2 VJ'!F24/'Tabel 1 VJ'!E22*100,"-")) -> 0.8196721311 | G24: =IF(OR('Tabel 1 VJ'!E22<5,'Tabel 2 VJ'!G24<0.5),"-",IFERROR('Tabel 2 VJ'!G24/'Tabel 1 VJ'!E22*100,"-")) -> - | I24: =IF(OR('Tabel 1 VJ'!G22<5,'Tabel 2 VJ'!I24<0.5),"-",IFERROR('Tabel 2 VJ'!I24/'Tabel 1 VJ'!G22*100,"-")) -> 0.6711409396 | J24: =IF(OR('Tabel 1 VJ'!G22<5,'Tabel 2 VJ'!J24<0.5),"-",IFERROR('Tabel 2 VJ'!J24/'Tabel 1 VJ'!G22*100,"-")) -> -
A25: Farmaceut | C25: =IF(OR('Tabel 1 VJ'!C23<5,'Tabel 2 VJ'!C25<0.5),"-",IFERROR('Tabel 2 VJ'!C25/'Tabel 1 VJ'!C23*100,"-")) -> 6.25 | D25: =IF(OR('Tabel 1 VJ'!C23<5,'Tabel 2 VJ'!D25<0.5),"-",IFERROR('Tabel 2 VJ'!D25/'Tabel 1 VJ'!C23*100,"-")) -> - | F25: =IF(OR('Tabel 1 VJ'!E23<5,'Tabel 2 VJ'!F25<0.5),"-",IFERROR('Tabel 2 VJ'!F25/'Tabel 1 VJ'!E23*100,"-")) -> 3.278688525 | G25: =IF(OR('Tabel 1 VJ'!E23<5,'Tabel 2 VJ'!G25<0.5),"-",IFERROR('Tabel 2 VJ'!G25/'Tabel 1 VJ'!E23*100,"-")) -> 3.278075036 | I25: =IF(OR('Tabel 1 VJ'!G23<5,'Tabel 2 VJ'!I25<0.5),"-",IFERROR('Tabel 2 VJ'!I25/'Tabel 1 VJ'!G23*100,"-")) -> 3.896103896 | J25: =IF(OR('Tabel 1 VJ'!G23<5,'Tabel 2 VJ'!J25<0.5),"-",IFERROR('Tabel 2 VJ'!J25/'Tabel 1 VJ'!G23*100,"-")) -> 2.996255288
A26: Læge | C26: =IF(OR('Tabel 1 VJ'!C24<5,'Tabel 2 VJ'!C26<0.5),"-",IFERROR('Tabel 2 VJ'!C26/'Tabel 1 VJ'!C24*100,"-")) -> 0.9803921569 | D26: =IF(OR('Tabel 1 VJ'!C24<5,'Tabel 2 VJ'!D26<0.5),"-",IFERROR('Tabel 2 VJ'!D26/'Tabel 1 VJ'!C24*100,"-")) -> 0.803489861 | F26: =IF(OR('Tabel 1 VJ'!E24<5,'Tabel 2 VJ'!F26<0.5),"-",IFERROR('Tabel 2 VJ'!F26/'Tabel 1 VJ'!E24*100,"-")) -> 1.265822785 | G26: =IF(OR('Tabel 1 VJ'!E24<5,'Tabel 2 VJ'!G26<0.5),"-",IFERROR('Tabel 2 VJ'!G26/'Tabel 1 VJ'!E24*100,"-")) -> 0.8176700955 | I26: =IF(OR('Tabel 1 VJ'!G24<5,'Tabel 2 VJ'!I26<0.5),"-",IFERROR('Tabel 2 VJ'!I26/'Tabel 1 VJ'!G24*100,"-")) -> 1.179941003 | J26: =IF(OR('Tabel 1 VJ'!G24<5,'Tabel 2 VJ'!J26<0.5),"-",IFERROR('Tabel 2 VJ'!J26/'Tabel 1 VJ'!G24*100,"-")) -> 0.8134034763
A27: Tandlæge | C27: =IF(OR('Tabel 1 VJ'!C25<5,'Tabel 2 VJ'!C27<0.5),"-",IFERROR('Tabel 2 VJ'!C27/'Tabel 1 VJ'!C25*100,"-")) -> - | D27: =IF(OR('Tabel 1 VJ'!C25<5,'Tabel 2 VJ'!D27<0.5),"-",IFERROR('Tabel 2 VJ'!D27/'Tabel 1 VJ'!C25*100,"-")) -> - | F27: =IF(OR('Tabel 1 VJ'!E25<5,'Tabel 2 VJ'!F27<0.5),"-",IFERROR('Tabel 2 VJ'!F27/'Tabel 1 VJ'!E25*100,"-")) -> 1.333333333 | G27: =IF(OR('Tabel 1 VJ'!E25<5,'Tabel 2 VJ'!G27<0.5),"-",IFERROR('Tabel 2 VJ'!G27/'Tabel 1 VJ'!E25*100,"-")) -> 1.025385143 | I27: =IF(OR('Tabel 1 VJ'!G25<5,'Tabel 2 VJ'!I27<0.5),"-",IFERROR('Tabel 2 VJ'!I27/'Tabel 1 VJ'!G25*100,"-")) -> 1.136363636 | J27: =IF(OR('Tabel 1 VJ'!G25<5,'Tabel 2 VJ'!J27<0.5),"-",IFERROR('Tabel 2 VJ'!J27/'Tabel 1 VJ'!G25*100,"-")) -> 0.8739077925
A28: Arkitekt | C28: =IF(OR('Tabel 1 VJ'!C26<5,'Tabel 2 VJ'!C28<0.5),"-",IFERROR('Tabel 2 VJ'!C28/'Tabel 1 VJ'!C26*100,"-")) -> 2.564102564 | D28: =IF(OR('Tabel 1 VJ'!C26<5,'Tabel 2 VJ'!D28<0.5),"-",IFERROR('Tabel 2 VJ'!D28/'Tabel 1 VJ'!C26*100,"-")) -> 2.563622784 | F28: =IF(OR('Tabel 1 VJ'!E26<5,'Tabel 2 VJ'!F28<0.5),"-",IFERROR('Tabel 2 VJ'!F28/'Tabel 1 VJ'!E26*100,"-")) -> 4.761904762 | G28: =IF(OR('Tabel 1 VJ'!E26<5,'Tabel 2 VJ'!G28<0.5),"-",IFERROR('Tabel 2 VJ'!G28/'Tabel 1 VJ'!E26*100,"-")) -> 3.933355708 | I28: =IF(OR('Tabel 1 VJ'!G26<5,'Tabel 2 VJ'!I28<0.5),"-",IFERROR('Tabel 2 VJ'!I28/'Tabel 1 VJ'!G26*100,"-")) -> 3.921568627 | J28: =IF(OR('Tabel 1 VJ'!G26<5,'Tabel 2 VJ'!J28<0.5),"-",IFERROR('Tabel 2 VJ'!J28/'Tabel 1 VJ'!G26*100,"-")) -> 3.409634296
A29: Landinspek. | C29: =IF(OR('Tabel 1 VJ'!C27<5,'Tabel 2 VJ'!C29<0.5),"-",IFERROR('Tabel 2 VJ'!C29/'Tabel 1 VJ'!C27*100,"-")) -> 2.777777778 | D29: =IF(OR('Tabel 1 VJ'!C27<5,'Tabel 2 VJ'!D29<0.5),"-",IFERROR('Tabel 2 VJ'!D29/'Tabel 1 VJ'!C27*100,"-")) -> 2.008011255 | F29: =IF(OR('Tabel 1 VJ'!E27<5,'Tabel 2 VJ'!F29<0.5),"-",IFERROR('Tabel 2 VJ'!F29/'Tabel 1 VJ'!E27*100,"-")) -> - | G29: =IF(OR('Tabel 1 VJ'!E27<5,'Tabel 2 VJ'!G29<0.5),"-",IFERROR('Tabel 2 VJ'!G29/'Tabel 1 VJ'!E27*100,"-")) -> - | I29: =IF(OR('Tabel 1 VJ'!G27<5,'Tabel 2 VJ'!I29<0.5),"-",IFERROR('Tabel 2 VJ'!I29/'Tabel 1 VJ'!G27*100,"-")) -> 1.785714286 | J29: =IF(OR('Tabel 1 VJ'!G27<5,'Tabel 2 VJ'!J29<0.5),"-",IFERROR('Tabel 2 VJ'!J29/'Tabel 1 VJ'!G27*100,"-")) -> 1.290864378
A30: Bibliotekar | C30: =IF(OR('Tabel 1 VJ'!C28<5,'Tabel 2 VJ'!C30<0.5),"-",IFERROR('Tabel 2 VJ'!C30/'Tabel 1 VJ'!C28*100,"-")) -> 2.857142857 | D30: =IF(OR('Tabel 1 VJ'!C28<5,'Tabel 2 VJ'!D30<0.5),"-",IFERROR('Tabel 2 VJ'!D30/'Tabel 1 VJ'!C28*100,"-")) -> 1.933512131 | F30: =IF(OR('Tabel 1 VJ'!E28<5,'Tabel 2 VJ'!F30<0.5),"-",IFERROR('Tabel 2 VJ'!F30/'Tabel 1 VJ'!E28*100,"-")) -> 4.310344828 | G30: =IF(OR('Tabel 1 VJ'!E28<5,'Tabel 2 VJ'!G30<0.5),"-",IFERROR('Tabel 2 VJ'!G30/'Tabel 1 VJ'!E28*100,"-")) -> 4.031017922 | I30: =IF(OR('Tabel 1 VJ'!G28<5,'Tabel 2 VJ'!I30<0.5),"-",IFERROR('Tabel 2 VJ'!I30/'Tabel 1 VJ'!G28*100,"-")) -> 3.973509934 | J30: =IF(OR('Tabel 1 VJ'!G28<5,'Tabel 2 VJ'!J30<0.5),"-",IFERROR('Tabel 2 VJ'!J30/'Tabel 1 VJ'!G28*100,"-")) -> 3.544841083
A31: Musikudd. | C31: =IF(OR('Tabel 1 VJ'!C29<5,'Tabel 2 VJ'!C31<0.5),"-",IFERROR('Tabel 2 VJ'!C31/'Tabel 1 VJ'!C29*100,"-")) -> 4.545454545 | D31: =IF(OR('Tabel 1 VJ'!C29<5,'Tabel 2 VJ'!D31<0.5),"-",IFERROR('Tabel 2 VJ'!D31/'Tabel 1 VJ'!C29*100,"-")) -> 4.544604027 | F31: =IF(OR('Tabel 1 VJ'!E29<5,'Tabel 2 VJ'!F31<0.5),"-",IFERROR('Tabel 2 VJ'!F31/'Tabel 1 VJ'!E29*100,"-")) -> - | G31: =IF(OR('Tabel 1 VJ'!E29<5,'Tabel 2 VJ'!G31<0.5),"-",IFERROR('Tabel 2 VJ'!G31/'Tabel 1 VJ'!E29*100,"-")) -> - | I31: =IF(OR('Tabel 1 VJ'!G29<5,'Tabel 2 VJ'!I31<0.5),"-",IFERROR('Tabel 2 VJ'!I31/'Tabel 1 VJ'!G29*100,"-")) -> 1.923076923 | J31: =IF(OR('Tabel 1 VJ'!G29<5,'Tabel 2 VJ'!J31<0.5),"-",IFERROR('Tabel 2 VJ'!J31/'Tabel 1 VJ'!G29*100,"-")) -> 1.922717088
A32: Teolog | C32: =IF(OR('Tabel 1 VJ'!C30<5,'Tabel 2 VJ'!C32<0.5),"-",IFERROR('Tabel 2 VJ'!C32/'Tabel 1 VJ'!C30*100,"-")) -> - | D32: =IF(OR('Tabel 1 VJ'!C30<5,'Tabel 2 VJ'!D32<0.5),"-",IFERROR('Tabel 2 VJ'!D32/'Tabel 1 VJ'!C30*100,"-")) -> - | F32: =IF(OR('Tabel 1 VJ'!E30<5,'Tabel 2 VJ'!F32<0.5),"-",IFERROR('Tabel 2 VJ'!F32/'Tabel 1 VJ'!E30*100,"-")) -> - | G32: =IF(OR('Tabel 1 VJ'!E30<5,'Tabel 2 VJ'!G32<0.5),"-",IFERROR('Tabel 2 VJ'!G32/'Tabel 1 VJ'!E30*100,"-")) -> - | I32: =IF(OR('Tabel 1 VJ'!G30<5,'Tabel 2 VJ'!I32<0.5),"-",IFERROR('Tabel 2 VJ'!I32/'Tabel 1 VJ'!G30*100,"-")) -> - | J32: =IF(OR('Tabel 1 VJ'!G30<5,'Tabel 2 VJ'!J32<0.5),"-",IFERROR('Tabel 2 VJ'!J32/'Tabel 1 VJ'!G30*100,"-")) -> -
A33: Psykolog | C33: =IF(OR('Tabel 1 VJ'!C31<5,'Tabel 2 VJ'!C33<0.5),"-",IFERROR('Tabel 2 VJ'!C33/'Tabel 1 VJ'!C31*100,"-")) -> 2.5 | D33: =IF(OR('Tabel 1 VJ'!C31<5,'Tabel 2 VJ'!D33<0.5),"-",IFERROR('Tabel 2 VJ'!D33/'Tabel 1 VJ'!C31*100,"-")) -> 2.499532215 | F33: =IF(OR('Tabel 1 VJ'!E31<5,'Tabel 2 VJ'!F33<0.5),"-",IFERROR('Tabel 2 VJ'!F33/'Tabel 1 VJ'!E31*100,"-")) -> 4.306220096 | G33: =IF(OR('Tabel 1 VJ'!E31<5,'Tabel 2 VJ'!G33<0.5),"-",IFERROR('Tabel 2 VJ'!G33/'Tabel 1 VJ'!E31*100,"-")) -> 3.727658594 | I33: =IF(OR('Tabel 1 VJ'!G31<5,'Tabel 2 VJ'!I33<0.5),"-",IFERROR('Tabel 2 VJ'!I33/'Tabel 1 VJ'!G31*100,"-")) -> 4.016064257 | J33: =IF(OR('Tabel 1 VJ'!G31<5,'Tabel 2 VJ'!J33<0.5),"-",IFERROR('Tabel 2 VJ'!J33/'Tabel 1 VJ'!G31*100,"-")) -> 3.530369216
A34: Jurist | C34: =IF(OR('Tabel 1 VJ'!C32<5,'Tabel 2 VJ'!C34<0.5),"-",IFERROR('Tabel 2 VJ'!C34/'Tabel 1 VJ'!C32*100,"-")) -> 3.076923077 | D34: =IF(OR('Tabel 1 VJ'!C32<5,'Tabel 2 VJ'!D34<0.5),"-",IFERROR('Tabel 2 VJ'!D34/'Tabel 1 VJ'!C32*100,"-")) -> 3.076347341 | F34: =IF(OR('Tabel 1 VJ'!E32<5,'Tabel 2 VJ'!F34<0.5),"-",IFERROR('Tabel 2 VJ'!F34/'Tabel 1 VJ'!E32*100,"-")) -> - | G34: =IF(OR('Tabel 1 VJ'!E32<5,'Tabel 2 VJ'!G34<0.5),"-",IFERROR('Tabel 2 VJ'!G34/'Tabel 1 VJ'!E32*100,"-")) -> - | I34: =IF(OR('Tabel 1 VJ'!G32<5,'Tabel 2 VJ'!I34<0.5),"-",IFERROR('Tabel 2 VJ'!I34/'Tabel 1 VJ'!G32*100,"-")) -> 1.025641026 | J34: =IF(OR('Tabel 1 VJ'!G32<5,'Tabel 2 VJ'!J34<0.5),"-",IFERROR('Tabel 2 VJ'!J34/'Tabel 1 VJ'!G32*100,"-")) -> 1.025449114
A35: Økonom | C35: =IF(OR('Tabel 1 VJ'!C33<5,'Tabel 2 VJ'!C35<0.5),"-",IFERROR('Tabel 2 VJ'!C35/'Tabel 1 VJ'!C33*100,"-")) -> 2.173913043 | D35: =IF(OR('Tabel 1 VJ'!C33<5,'Tabel 2 VJ'!D35<0.5),"-",IFERROR('Tabel 2 VJ'!D35/'Tabel 1 VJ'!C33*100,"-")) -> 2.173506274 | F35: =IF(OR('Tabel 1 VJ'!E33<5,'Tabel 2 VJ'!F35<0.5),"-",IFERROR('Tabel 2 VJ'!F35/'Tabel 1 VJ'!E33*100,"-")) -> 2.469135802 | G35: =IF(OR('Tabel 1 VJ'!E33<5,'Tabel 2 VJ'!G35<0.5),"-",IFERROR('Tabel 2 VJ'!G35/'Tabel 1 VJ'!E33*100,"-")) -> 2.457123541 | I35: =IF(OR('Tabel 1 VJ'!G33<5,'Tabel 2 VJ'!I35<0.5),"-",IFERROR('Tabel 2 VJ'!I35/'Tabel 1 VJ'!G33*100,"-")) -> 2.312138728 | J35: =IF(OR('Tabel 1 VJ'!G33<5,'Tabel 2 VJ'!J35<0.5),"-",IFERROR('Tabel 2 VJ'!J35/'Tabel 1 VJ'!G33*100,"-")) -> 2.306298173
A36: Samf. Adm. | C36: =IF(OR('Tabel 1 VJ'!C34<5,'Tabel 2 VJ'!C36<0.5),"-",IFERROR('Tabel 2 VJ'!C36/'Tabel 1 VJ'!C34*100,"-")) -> 5.102040816 | D36: =IF(OR('Tabel 1 VJ'!C34<5,'Tabel 2 VJ'!D36<0.5),"-",IFERROR('Tabel 2 VJ'!D36/'Tabel 1 VJ'!C34*100,"-")) -> 4.465280156 | F36: =IF(OR('Tabel 1 VJ'!E34<5,'Tabel 2 VJ'!F36<0.5),"-",IFERROR('Tabel 2 VJ'!F36/'Tabel 1 VJ'!E34*100,"-")) -> 7.380073801 | G36: =IF(OR('Tabel 1 VJ'!E34<5,'Tabel 2 VJ'!G36<0.5),"-",IFERROR('Tabel 2 VJ'!G36/'Tabel 1 VJ'!E34*100,"-")) -> 6.274650784 | I36: =IF(OR('Tabel 1 VJ'!G34<5,'Tabel 2 VJ'!I36<0.5),"-",IFERROR('Tabel 2 VJ'!I36/'Tabel 1 VJ'!G34*100,"-")) -> 6.423982869 | J36: =IF(OR('Tabel 1 VJ'!G34<5,'Tabel 2 VJ'!J36<0.5),"-",IFERROR('Tabel 2 VJ'!J36/'Tabel 1 VJ'!G34*100,"-")) -> 5.515257544
A37: Cand. Merc. | C37: =IF(OR('Tabel 1 VJ'!C35<5,'Tabel 2 VJ'!C37<0.5),"-",IFERROR('Tabel 2 VJ'!C37/'Tabel 1 VJ'!C35*100,"-")) -> 3.836930456 | D37: =IF(OR('Tabel 1 VJ'!C35<5,'Tabel 2 VJ'!D37<0.5),"-",IFERROR('Tabel 2 VJ'!D37/'Tabel 1 VJ'!C35*100,"-")) -> 3.096281785 | F37: =IF(OR('Tabel 1 VJ'!E35<5,'Tabel 2 VJ'!F37<0.5),"-",IFERROR('Tabel 2 VJ'!F37/'Tabel 1 VJ'!E35*100,"-")) -> 5.51558753 | G37: =IF(OR('Tabel 1 VJ'!E35<5,'Tabel 2 VJ'!G37<0.5),"-",IFERROR('Tabel 2 VJ'!G37/'Tabel 1 VJ'!E35*100,"-")) -> 4.78225291 | I37: =IF(OR('Tabel 1 VJ'!G35<5,'Tabel 2 VJ'!I37<0.5),"-",IFERROR('Tabel 2 VJ'!I37/'Tabel 1 VJ'!G35*100,"-")) -> 4.676258993 | J37: =IF(OR('Tabel 1 VJ'!G35<5,'Tabel 2 VJ'!J37<0.5),"-",IFERROR('Tabel 2 VJ'!J37/'Tabel 1 VJ'!G35*100,"-")) -> 3.939267347
A38: HA | C38: =IF(OR('Tabel 1 VJ'!C36<5,'Tabel 2 VJ'!C38<0.5),"-",IFERROR('Tabel 2 VJ'!C38/'Tabel 1 VJ'!C36*100,"-")) -> 3.086419753 | D38: =IF(OR('Tabel 1 VJ'!C36<5,'Tabel 2 VJ'!D38<0.5),"-",IFERROR('Tabel 2 VJ'!D38/'Tabel 1 VJ'!C36*100,"-")) -> 3.030016024 | F38: =IF(OR('Tabel 1 VJ'!E36<5,'Tabel 2 VJ'!F38<0.5),"-",IFERROR('Tabel 2 VJ'!F38/'Tabel 1 VJ'!E36*100,"-")) -> 10.13513514 | G38: =IF(OR('Tabel 1 VJ'!E36<5,'Tabel 2 VJ'!G38<0.5),"-",IFERROR('Tabel 2 VJ'!G38/'Tabel 1 VJ'!E36*100,"-")) -> 9.125604117 | I38: =IF(OR('Tabel 1 VJ'!G36<5,'Tabel 2 VJ'!I38<0.5),"-",IFERROR('Tabel 2 VJ'!I38/'Tabel 1 VJ'!G36*100,"-")) -> 6.451612903 | J38: =IF(OR('Tabel 1 VJ'!G36<5,'Tabel 2 VJ'!J38<0.5),"-",IFERROR('Tabel 2 VJ'!J38/'Tabel 1 VJ'!G36*100,"-")) -> 5.940167759
A39: HD | C39: =IF(OR('Tabel 1 VJ'!C37<5,'Tabel 2 VJ'!C39<0.5),"-",IFERROR('Tabel 2 VJ'!C39/'Tabel 1 VJ'!C37*100,"-")) -> 2.380952381 | D39: =IF(OR('Tabel 1 VJ'!C37<5,'Tabel 2 VJ'!D39<0.5),"-",IFERROR('Tabel 2 VJ'!D39/'Tabel 1 VJ'!C37*100,"-")) -> 2.359221407 | F39: =IF(OR('Tabel 1 VJ'!E37<5,'Tabel 2 VJ'!F39<0.5),"-",IFERROR('Tabel 2 VJ'!F39/'Tabel 1 VJ'!E37*100,"-")) -> 2.777777778 | G39: =IF(OR('Tabel 1 VJ'!E37<5,'Tabel 2 VJ'!G39<0.5),"-",IFERROR('Tabel 2 VJ'!G39/'Tabel 1 VJ'!E37*100,"-")) -> 2.480127792 | I39: =IF(OR('Tabel 1 VJ'!G37<5,'Tabel 2 VJ'!I39<0.5),"-",IFERROR('Tabel 2 VJ'!I39/'Tabel 1 VJ'!G37*100,"-")) -> 2.525252525 | J39: =IF(OR('Tabel 1 VJ'!G37<5,'Tabel 2 VJ'!J39<0.5),"-",IFERROR('Tabel 2 VJ'!J39/'Tabel 1 VJ'!G37*100,"-")) -> 2.403187365
A40: Komm. og Sprog | C40: =IF(OR('Tabel 1 VJ'!C38<5,'Tabel 2 VJ'!C40<0.5),"-",IFERROR('Tabel 2 VJ'!C40/'Tabel 1 VJ'!C38*100,"-")) -> 5.882352941 | D40: =IF(OR('Tabel 1 VJ'!C38<5,'Tabel 2 VJ'!D40<0.5),"-",IFERROR('Tabel 2 VJ'!D40/'Tabel 1 VJ'!C38*100,"-")) -> 5.88125227 | F40: =IF(OR('Tabel 1 VJ'!E38<5,'Tabel 2 VJ'!F40<0.5),"-",IFERROR('Tabel 2 VJ'!F40/'Tabel 1 VJ'!E38*100,"-")) -> 6.926406926 | G40: =IF(OR('Tabel 1 VJ'!E38<5,'Tabel 2 VJ'!G40<0.5),"-",IFERROR('Tabel 2 VJ'!G40/'Tabel 1 VJ'!E38*100,"-")) -> 5.642852958 | I40: =IF(OR('Tabel 1 VJ'!G38<5,'Tabel 2 VJ'!I40<0.5),"-",IFERROR('Tabel 2 VJ'!I40/'Tabel 1 VJ'!G38*100,"-")) -> 6.85483871 | J40: =IF(OR('Tabel 1 VJ'!G38<5,'Tabel 2 VJ'!J40<0.5),"-",IFERROR('Tabel 2 VJ'!J40/'Tabel 1 VJ'!G38*100,"-")) -> 5.659194846
A41: Cand. IT. | C41: =IF(OR('Tabel 1 VJ'!C39<5,'Tabel 2 VJ'!C41<0.5),"-",IFERROR('Tabel 2 VJ'!C41/'Tabel 1 VJ'!C39*100,"-")) -> 16.66666667 | D41: =IF(OR('Tabel 1 VJ'!C39<5,'Tabel 2 VJ'!D41<0.5),"-",IFERROR('Tabel 2 VJ'!D41/'Tabel 1 VJ'!C39*100,"-")) -> 15.89430134 | F41: =IF(OR('Tabel 1 VJ'!E39<5,'Tabel 2 VJ'!F41<0.5),"-",IFERROR('Tabel 2 VJ'!F41/'Tabel 1 VJ'!E39*100,"-")) -> 17.24137931 | G41: =IF(OR('Tabel 1 VJ'!E39<5,'Tabel 2 VJ'!G41<0.5),"-",IFERROR('Tabel 2 VJ'!G41/'Tabel 1 VJ'!E39*100,"-")) -> 13.38403336 | I41: =IF(OR('Tabel 1 VJ'!G39<5,'Tabel 2 VJ'!I41<0.5),"-",IFERROR('Tabel 2 VJ'!I41/'Tabel 1 VJ'!G39*100,"-")) -> 16.94915254 | J41: =IF(OR('Tabel 1 VJ'!G39<5,'Tabel 2 VJ'!J41<0.5),"-",IFERROR('Tabel 2 VJ'!J41/'Tabel 1 VJ'!G39*100,"-")) -> 14.66044081
A42: Bac. Samf. | C42: =IF(OR('Tabel 1 VJ'!C40<5,'Tabel 2 VJ'!C42<0.5),"-",IFERROR('Tabel 2 VJ'!C42/'Tabel 1 VJ'!C40*100,"-")) -> - | D42: =IF(OR('Tabel 1 VJ'!C40<5,'Tabel 2 VJ'!D42<0.5),"-",IFERROR('Tabel 2 VJ'!D42/'Tabel 1 VJ'!C40*100,"-")) -> - | F42: =IF(OR('Tabel 1 VJ'!E40<5,'Tabel 2 VJ'!F42<0.5),"-",IFERROR('Tabel 2 VJ'!F42/'Tabel 1 VJ'!E40*100,"-")) -> - | G42: =IF(OR('Tabel 1 VJ'!E40<5,'Tabel 2 VJ'!G42<0.5),"-",IFERROR('Tabel 2 VJ'!G42/'Tabel 1 VJ'!E40*100,"-")) -> - | I42: =IF(OR('Tabel 1 VJ'!G40<5,'Tabel 2 VJ'!I42<0.5),"-",IFERROR('Tabel 2 VJ'!I42/'Tabel 1 VJ'!G40*100,"-")) -> - | J42: =IF(OR('Tabel 1 VJ'!G40<5,'Tabel 2 VJ'!J42<0.5),"-",IFERROR('Tabel 2 VJ'!J42/'Tabel 1 VJ'!G40*100,"-")) -> -
A43: Bac. Hum. | C43: =IF(OR('Tabel 1 VJ'!C41<5,'Tabel 2 VJ'!C43<0.5),"-",IFERROR('Tabel 2 VJ'!C43/'Tabel 1 VJ'!C41*100,"-")) -> 8.823529412 | D43: =IF(OR('Tabel 1 VJ'!C41<5,'Tabel 2 VJ'!D43<0.5),"-",IFERROR('Tabel 2 VJ'!D43/'Tabel 1 VJ'!C41*100,"-")) -> 8.143131262 | F43: =IF(OR('Tabel 1 VJ'!E41<5,'Tabel 2 VJ'!F43<0.5),"-",IFERROR('Tabel 2 VJ'!F43/'Tabel 1 VJ'!E41*100,"-")) -> 10.41666667 | G43: =IF(OR('Tabel 1 VJ'!E41<5,'Tabel 2 VJ'!G43<0.5),"-",IFERROR('Tabel 2 VJ'!G43/'Tabel 1 VJ'!E41*100,"-")) -> 10.13014824 | I43: =IF(OR('Tabel 1 VJ'!G41<5,'Tabel 2 VJ'!I43<0.5),"-",IFERROR('Tabel 2 VJ'!I43/'Tabel 1 VJ'!G41*100,"-")) -> 9.756097561 | J43: =IF(OR('Tabel 1 VJ'!G41<5,'Tabel 2 VJ'!J43<0.5),"-",IFERROR('Tabel 2 VJ'!J43/'Tabel 1 VJ'!G41*100,"-")) -> 9.306263149
A44: Bac. Nat. | C44: =IF(OR('Tabel 1 VJ'!C42<5,'Tabel 2 VJ'!C44<0.5),"-",IFERROR('Tabel 2 VJ'!C44/'Tabel 1 VJ'!C42*100,"-")) -> - | D44: =IF(OR('Tabel 1 VJ'!C42<5,'Tabel 2 VJ'!D44<0.5),"-",IFERROR('Tabel 2 VJ'!D44/'Tabel 1 VJ'!C42*100,"-")) -> - | F44: =IF(OR('Tabel 1 VJ'!E42<5,'Tabel 2 VJ'!F44<0.5),"-",IFERROR('Tabel 2 VJ'!F44/'Tabel 1 VJ'!E42*100,"-")) -> 3.448275862 | G44: =IF(OR('Tabel 1 VJ'!E42<5,'Tabel 2 VJ'!G44<0.5),"-",IFERROR('Tabel 2 VJ'!G44/'Tabel 1 VJ'!E42*100,"-")) -> 3.447630641 | I44: =IF(OR('Tabel 1 VJ'!G42<5,'Tabel 2 VJ'!I44<0.5),"-",IFERROR('Tabel 2 VJ'!I44/'Tabel 1 VJ'!G42*100,"-")) -> 1.123595506 | J44: =IF(OR('Tabel 1 VJ'!G42<5,'Tabel 2 VJ'!J44<0.5),"-",IFERROR('Tabel 2 VJ'!J44/'Tabel 1 VJ'!G42*100,"-")) -> 1.123385265
A45: Andre | C45: =IF(OR('Tabel 1 VJ'!C43<5,'Tabel 2 VJ'!C45<0.5),"-",IFERROR('Tabel 2 VJ'!C45/'Tabel 1 VJ'!C43*100,"-")) -> 4.178272981 | D45: =IF(OR('Tabel 1 VJ'!C43<5,'Tabel 2 VJ'!D45<0.5),"-",IFERROR('Tabel 2 VJ'!D45/'Tabel 1 VJ'!C43*100,"-")) -> 3.68112634 | F45: =IF(OR('Tabel 1 VJ'!E43<5,'Tabel 2 VJ'!F45<0.5),"-",IFERROR('Tabel 2 VJ'!F45/'Tabel 1 VJ'!E43*100,"-")) -> 5.462184874 | G45: =IF(OR('Tabel 1 VJ'!E43<5,'Tabel 2 VJ'!G45<0.5),"-",IFERROR('Tabel 2 VJ'!G45/'Tabel 1 VJ'!E43*100,"-")) -> 4.088992923 | I45: =IF(OR('Tabel 1 VJ'!G43<5,'Tabel 2 VJ'!I45<0.5),"-",IFERROR('Tabel 2 VJ'!I45/'Tabel 1 VJ'!G43*100,"-")) -> 4.690117253 | J45: =IF(OR('Tabel 1 VJ'!G43<5,'Tabel 2 VJ'!J45<0.5),"-",IFERROR('Tabel 2 VJ'!J45/'Tabel 1 VJ'!G43*100,"-")) -> 3.843726418
A47: Total | C47: =IF(OR('Tabel 1 VJ'!C45<5,'Tabel 2 VJ'!C47<0.5),"-",IFERROR('Tabel 2 VJ'!C47/'Tabel 1 VJ'!C45*100,"-")) -> 3.431562621 | D47: =IF(OR('Tabel 1 VJ'!C45<5,'Tabel 2 VJ'!D47<0.5),"-",IFERROR('Tabel 2 VJ'!D47/'Tabel 1 VJ'!C45*100,"-")) -> 2.908829446 | F47: =IF(OR('Tabel 1 VJ'!E45<5,'Tabel 2 VJ'!F47<0.5),"-",IFERROR('Tabel 2 VJ'!F47/'Tabel 1 VJ'!E45*100,"-")) -> 4.722399489 | G47: =IF(OR('Tabel 1 VJ'!E45<5,'Tabel 2 VJ'!G47<0.5),"-",IFERROR('Tabel 2 VJ'!G47/'Tabel 1 VJ'!E45*100,"-")) -> 3.931903213 | I47: =IF(OR('Tabel 1 VJ'!G45<5,'Tabel 2 VJ'!I47<0.5),"-",IFERROR('Tabel 2 VJ'!I47/'Tabel 1 VJ'!G45*100,"-")) -> 4.047063597 | J47: =IF(OR('Tabel 1 VJ'!G45<5,'Tabel 2 VJ'!J47<0.5),"-",IFERROR('Tabel 2 VJ'!J47/'Tabel 1 VJ'!G45*100,"-")) -> 3.396654761
A49: Ingeniører i alt | C49: =IF(OR('Tabel 1 VJ'!C47<5,'Tabel 2 VJ'!C49<0.5),"-",IFERROR('Tabel 2 VJ'!C49/'Tabel 1 VJ'!C47*100,"-")) -> 1.999024866 | D49: =IF(OR('Tabel 1 VJ'!C47<5,'Tabel 2 VJ'!D49<0.5),"-",IFERROR('Tabel 2 VJ'!D49/'Tabel 1 VJ'!C47*100,"-")) -> 1.454551183 | F49: =IF(OR('Tabel 1 VJ'!E47<5,'Tabel 2 VJ'!F49<0.5),"-",IFERROR('Tabel 2 VJ'!F49/'Tabel 1 VJ'!E47*100,"-")) -> 1.603206413 | G49: =IF(OR('Tabel 1 VJ'!E47<5,'Tabel 2 VJ'!G49<0.5),"-",IFERROR('Tabel 2 VJ'!G49/'Tabel 1 VJ'!E47*100,"-")) -> 1.429916529 | I49: =IF(OR('Tabel 1 VJ'!G47<5,'Tabel 2 VJ'!I49<0.5),"-",IFERROR('Tabel 2 VJ'!I49/'Tabel 1 VJ'!G47*100,"-")) -> 1.921568627 | J49: =IF(OR('Tabel 1 VJ'!G47<5,'Tabel 2 VJ'!J49<0.5),"-",IFERROR('Tabel 2 VJ'!J49/'Tabel 1 VJ'!G47*100,"-")) -> 1.449730519
A50: Magistre i alt | C50: =IF(OR('Tabel 1 VJ'!C48<5,'Tabel 2 VJ'!C50<0.5),"-",IFERROR('Tabel 2 VJ'!C50/'Tabel 1 VJ'!C48*100,"-")) -> 6.796116505 | D50: =IF(OR('Tabel 1 VJ'!C48<5,'Tabel 2 VJ'!D50<0.5),"-",IFERROR('Tabel 2 VJ'!D50/'Tabel 1 VJ'!C48*100,"-")) -> 6.072946116 | F50: =IF(OR('Tabel 1 VJ'!E48<5,'Tabel 2 VJ'!F50<0.5),"-",IFERROR('Tabel 2 VJ'!F50/'Tabel 1 VJ'!E48*100,"-")) -> 7.103321033 | G50: =IF(OR('Tabel 1 VJ'!E48<5,'Tabel 2 VJ'!G50<0.5),"-",IFERROR('Tabel 2 VJ'!G50/'Tabel 1 VJ'!E48*100,"-")) -> 5.67377984 | I50: =IF(OR('Tabel 1 VJ'!G48<5,'Tabel 2 VJ'!I50<0.5),"-",IFERROR('Tabel 2 VJ'!I50/'Tabel 1 VJ'!G48*100,"-")) -> 6.980609418 | J50: =IF(OR('Tabel 1 VJ'!G48<5,'Tabel 2 VJ'!J50<0.5),"-",IFERROR('Tabel 2 VJ'!J50/'Tabel 1 VJ'!G48*100,"-")) -> 5.833225206
A51: DJØF'ere i alt | C51: =IF(OR('Tabel 1 VJ'!C49<5,'Tabel 2 VJ'!C51<0.5),"-",IFERROR('Tabel 2 VJ'!C51/'Tabel 1 VJ'!C49*100,"-")) -> 3.7111334 | D51: =IF(OR('Tabel 1 VJ'!C49<5,'Tabel 2 VJ'!D51<0.5),"-",IFERROR('Tabel 2 VJ'!D51/'Tabel 1 VJ'!C49*100,"-")) -> 3.266895428 | F51: =IF(OR('Tabel 1 VJ'!E49<5,'Tabel 2 VJ'!F51<0.5),"-",IFERROR('Tabel 2 VJ'!F51/'Tabel 1 VJ'!E49*100,"-")) -> 5.097706032 | G51: =IF(OR('Tabel 1 VJ'!E49<5,'Tabel 2 VJ'!G51<0.5),"-",IFERROR('Tabel 2 VJ'!G51/'Tabel 1 VJ'!E49*100,"-")) -> 4.455604284 | I51: =IF(OR('Tabel 1 VJ'!G49<5,'Tabel 2 VJ'!I51<0.5),"-",IFERROR('Tabel 2 VJ'!I51/'Tabel 1 VJ'!G49*100,"-")) -> 4.461821527 | J51: =IF(OR('Tabel 1 VJ'!G49<5,'Tabel 2 VJ'!J51<0.5),"-",IFERROR('Tabel 2 VJ'!J51/'Tabel 1 VJ'!G49*100,"-")) -> 3.910460434
A56: Herning
C58: Mænd | F58: Kvinder | I58: I alt
C59: Ledigheds- berørte | D59: Gns. brutto- ledighed | F59: Ledigheds- berørte | G59: Gns. brutto- ledighed | I59: Ledigheds- berørte | J59: Gns. brutto- ledighed
A62: Civ. ing. | C62: =IF(OR('Tabel 1 VJ'!C60<5,'Tabel 2 VJ'!C62<0.5),"-",IFERROR('Tabel 2 VJ'!C62/'Tabel 1 VJ'!C60*100,"-")) -> 1.898734177 | D62: =IF(OR('Tabel 1 VJ'!C60<5,'Tabel 2 VJ'!D62<0.5),"-",IFERROR('Tabel 2 VJ'!D62/'Tabel 1 VJ'!C60*100,"-")) -> 0.9028056848 | F62: =IF(OR('Tabel 1 VJ'!E60<5,'Tabel 2 VJ'!F62<0.5),"-",IFERROR('Tabel 2 VJ'!F62/'Tabel 1 VJ'!E60*100,"-")) -> 4.444444444 | G62: =IF(OR('Tabel 1 VJ'!E60<5,'Tabel 2 VJ'!G62<0.5),"-",IFERROR('Tabel 2 VJ'!G62/'Tabel 1 VJ'!E60*100,"-")) -> 4.443612826 | I62: =IF(OR('Tabel 1 VJ'!G60<5,'Tabel 2 VJ'!I62<0.5),"-",IFERROR('Tabel 2 VJ'!I62/'Tabel 1 VJ'!G60*100,"-")) -> 2.463054187 | J62: =IF(OR('Tabel 1 VJ'!G60<5,'Tabel 2 VJ'!J62<0.5),"-",IFERROR('Tabel 2 VJ'!J62/'Tabel 1 VJ'!G60*100,"-")) -> 1.687713672
A63: Diplom ing. | C63: =IF(OR('Tabel 1 VJ'!C61<5,'Tabel 2 VJ'!C63<0.5),"-",IFERROR('Tabel 2 VJ'!C63/'Tabel 1 VJ'!C61*100,"-")) -> 2.78551532 | D63: =IF(OR('Tabel 1 VJ'!C61<5,'Tabel 2 VJ'!D63<0.5),"-",IFERROR('Tabel 2 VJ'!D63/'Tabel 1 VJ'!C61*100,"-")) -> 2.024723729 | F63: =IF(OR('Tabel 1 VJ'!E61<5,'Tabel 2 VJ'!F63<0.5),"-",IFERROR('Tabel 2 VJ'!F63/'Tabel 1 VJ'!E61*100,"-")) -> 2.298850575 | G63: =IF(OR('Tabel 1 VJ'!E61<5,'Tabel 2 VJ'!G63<0.5),"-",IFERROR('Tabel 2 VJ'!G63/'Tabel 1 VJ'!E61*100,"-")) -> 1.927059922 | I63: =IF(OR('Tabel 1 VJ'!G61<5,'Tabel 2 VJ'!I63<0.5),"-",IFERROR('Tabel 2 VJ'!I63/'Tabel 1 VJ'!G61*100,"-")) -> 2.69058296 | J63: =IF(OR('Tabel 1 VJ'!G61<5,'Tabel 2 VJ'!J63<0.5),"-",IFERROR('Tabel 2 VJ'!J63/'Tabel 1 VJ'!G61*100,"-")) -> 2.005672717
A64: Cand. Scient. Tek. | C64: =IF(OR('Tabel 1 VJ'!C62<5,'Tabel 2 VJ'!C64<0.5),"-",IFERROR('Tabel 2 VJ'!C64/'Tabel 1 VJ'!C62*100,"-")) -> 12.19512195 | D64: =IF(OR('Tabel 1 VJ'!C62<5,'Tabel 2 VJ'!D64<0.5),"-",IFERROR('Tabel 2 VJ'!D64/'Tabel 1 VJ'!C62*100,"-")) -> 8.477941076 | F64: =IF(OR('Tabel 1 VJ'!E62<5,'Tabel 2 VJ'!F64<0.5),"-",IFERROR('Tabel 2 VJ'!F64/'Tabel 1 VJ'!E62*100,"-")) -> 7.407407407 | G64: =IF(OR('Tabel 1 VJ'!E62<5,'Tabel 2 VJ'!G64<0.5),"-",IFERROR('Tabel 2 VJ'!G64/'Tabel 1 VJ'!E62*100,"-")) -> 5.525640404 | I64: =IF(OR('Tabel 1 VJ'!G62<5,'Tabel 2 VJ'!I64<0.5),"-",IFERROR('Tabel 2 VJ'!I64/'Tabel 1 VJ'!G62*100,"-")) -> 10.29411765 | J64: =IF(OR('Tabel 1 VJ'!G62<5,'Tabel 2 VJ'!J64<0.5),"-",IFERROR('Tabel 2 VJ'!J64/'Tabel 1 VJ'!G62*100,"-")) -> 7.305704044
A65: MA. Hum. | C65: =IF(OR('Tabel 1 VJ'!C63<5,'Tabel 2 VJ'!C65<0.5),"-",IFERROR('Tabel 2 VJ'!C65/'Tabel 1 VJ'!C63*100,"-")) -> 7.692307692 | D65: =IF(OR('Tabel 1 VJ'!C63<5,'Tabel 2 VJ'!D65<0.5),"-",IFERROR('Tabel 2 VJ'!D65/'Tabel 1 VJ'!C63*100,"-")) -> 7.342548302 | F65: =IF(OR('Tabel 1 VJ'!E63<5,'Tabel 2 VJ'!F65<0.5),"-",IFERROR('Tabel 2 VJ'!F65/'Tabel 1 VJ'!E63*100,"-")) -> 9.219858156 | G65: =IF(OR('Tabel 1 VJ'!E63<5,'Tabel 2 VJ'!G65<0.5),"-",IFERROR('Tabel 2 VJ'!G65/'Tabel 1 VJ'!E63*100,"-")) -> 8.2533675 | I65: =IF(OR('Tabel 1 VJ'!G63<5,'Tabel 2 VJ'!I65<0.5),"-",IFERROR('Tabel 2 VJ'!I65/'Tabel 1 VJ'!G63*100,"-")) -> 8.737864078 | J65: =IF(OR('Tabel 1 VJ'!G63<5,'Tabel 2 VJ'!J65<0.5),"-",IFERROR('Tabel 2 VJ'!J65/'Tabel 1 VJ'!G63*100,"-")) -> 7.965973093
A66: MA. Nat. | C66: =IF(OR('Tabel 1 VJ'!C64<5,'Tabel 2 VJ'!C66<0.5),"-",IFERROR('Tabel 2 VJ'!C66/'Tabel 1 VJ'!C64*100,"-")) -> 3.03030303 | D66: =IF(OR('Tabel 1 VJ'!C64<5,'Tabel 2 VJ'!D66<0.5),"-",IFERROR('Tabel 2 VJ'!D66/'Tabel 1 VJ'!C64*100,"-")) -> 2.33042078 | F66: =IF(OR('Tabel 1 VJ'!E64<5,'Tabel 2 VJ'!F66<0.5),"-",IFERROR('Tabel 2 VJ'!F66/'Tabel 1 VJ'!E64*100,"-")) -> 6.666666667 | G66: =IF(OR('Tabel 1 VJ'!E64<5,'Tabel 2 VJ'!G66<0.5),"-",IFERROR('Tabel 2 VJ'!G66/'Tabel 1 VJ'!E64*100,"-")) -> 4.567662529 | I66: =IF(OR('Tabel 1 VJ'!G64<5,'Tabel 2 VJ'!I66<0.5),"-",IFERROR('Tabel 2 VJ'!I66/'Tabel 1 VJ'!G64*100,"-")) -> 4.761904762 | J66: =IF(OR('Tabel 1 VJ'!G64<5,'Tabel 2 VJ'!J66<0.5),"-",IFERROR('Tabel 2 VJ'!J66/'Tabel 1 VJ'!G64*100,"-")) -> 3.395773994
A67: MA. Ph.d. | C67: =IF(OR('Tabel 1 VJ'!C65<5,'Tabel 2 VJ'!C67<0.5),"-",IFERROR('Tabel 2 VJ'!C67/'Tabel 1 VJ'!C65*100,"-")) -> - | D67: =IF(OR('Tabel 1 VJ'!C65<5,'Tabel 2 VJ'!D67<0.5),"-",IFERROR('Tabel 2 VJ'!D67/'Tabel 1 VJ'!C65*100,"-")) -> - | F67: =IF(OR('Tabel 1 VJ'!E65<5,'Tabel 2 VJ'!F67<0.5),"-",IFERROR('Tabel 2 VJ'!F67/'Tabel 1 VJ'!E65*100,"-")) -> - | G67: =IF(OR('Tabel 1 VJ'!E65<5,'Tabel 2 VJ'!G67<0.5),"-",IFERROR('Tabel 2 VJ'!G67/'Tabel 1 VJ'!E65*100,"-")) -> - | I67: =IF(OR('Tabel 1 VJ'!G65<5,'Tabel 2 VJ'!I67<0.5),"-",IFERROR('Tabel 2 VJ'!I67/'Tabel 1 VJ'!G65*100,"-")) -> 16.66666667 | J67: =IF(OR('Tabel 1 VJ'!G65<5,'Tabel 2 VJ'!J67<0.5),"-",IFERROR('Tabel 2 VJ'!J67/'Tabel 1 VJ'!G65*100,"-")) -> 11.80897732
A68: MA. Samf. | C68: =IF(OR('Tabel 1 VJ'!C66<5,'Tabel 2 VJ'!C68<0.5),"-",IFERROR('Tabel 2 VJ'!C68/'Tabel 1 VJ'!C66*100,"-")) -> - | D68: =IF(OR('Tabel 1 VJ'!C66<5,'Tabel 2 VJ'!D68<0.5),"-",IFERROR('Tabel 2 VJ'!D68/'Tabel 1 VJ'!C66*100,"-")) -> - | F68: =IF(OR('Tabel 1 VJ'!E66<5,'Tabel 2 VJ'!F68<0.5),"-",IFERROR('Tabel 2 VJ'!F68/'Tabel 1 VJ'!E66*100,"-")) -> - | G68: =IF(OR('Tabel 1 VJ'!E66<5,'Tabel 2 VJ'!G68<0.5),"-",IFERROR('Tabel 2 VJ'!G68/'Tabel 1 VJ'!E66*100,"-")) -> - | I68: =IF(OR('Tabel 1 VJ'!G66<5,'Tabel 2 VJ'!I68<0.5),"-",IFERROR('Tabel 2 VJ'!I68/'Tabel 1 VJ'!G66*100,"-")) -> 7.142857143 | J68: =IF(OR('Tabel 1 VJ'!G66<5,'Tabel 2 VJ'!J68<0.5),"-",IFERROR('Tabel 2 VJ'!J68/'Tabel 1 VJ'!G66*100,"-")) -> 6.81184343
A69: Øvrige Mag. | C69: =IF(OR('Tabel 1 VJ'!C67<5,'Tabel 2 VJ'!C69<0.5),"-",IFERROR('Tabel 2 VJ'!C69/'Tabel 1 VJ'!C67*100,"-")) -> - | D69: =IF(OR('Tabel 1 VJ'!C67<5,'Tabel 2 VJ'!D69<0.5),"-",IFERROR('Tabel 2 VJ'!D69/'Tabel 1 VJ'!C67*100,"-")) -> - | F69: =IF(OR('Tabel 1 VJ'!E67<5,'Tabel 2 VJ'!F69<0.5),"-",IFERROR('Tabel 2 VJ'!F69/'Tabel 1 VJ'!E67*100,"-")) -> 10 | G69: =IF(OR('Tabel 1 VJ'!E67<5,'Tabel 2 VJ'!G69<0.5),"-",IFERROR('Tabel 2 VJ'!G69/'Tabel 1 VJ'!E67*100,"-")) -> 9.998128859 | I69: =IF(OR('Tabel 1 VJ'!G67<5,'Tabel 2 VJ'!I69<0.5),"-",IFERROR('Tabel 2 VJ'!I69/'Tabel 1 VJ'!G67*100,"-")) -> 8.333333333 | J69: =IF(OR('Tabel 1 VJ'!G67<5,'Tabel 2 VJ'!J69<0.5),"-",IFERROR('Tabel 2 VJ'!J69/'Tabel 1 VJ'!G67*100,"-")) -> 8.331774049
A70: Agronom | C70: =IF(OR('Tabel 1 VJ'!C68<5,'Tabel 2 VJ'!C70<0.5),"-",IFERROR('Tabel 2 VJ'!C70/'Tabel 1 VJ'!C68*100,"-")) -> - | D70: =IF(OR('Tabel 1 VJ'!C68<5,'Tabel 2 VJ'!D70<0.5),"-",IFERROR('Tabel 2 VJ'!D70/'Tabel 1 VJ'!C68*100,"-")) -> - | F70: =IF(OR('Tabel 1 VJ'!E68<5,'Tabel 2 VJ'!F70<0.5),"-",IFERROR('Tabel 2 VJ'!F70/'Tabel 1 VJ'!E68*100,"-")) -> 20 | G70: =IF(OR('Tabel 1 VJ'!E68<5,'Tabel 2 VJ'!G70<0.5),"-",IFERROR('Tabel 2 VJ'!G70/'Tabel 1 VJ'!E68*100,"-")) -> 14.45768103 | I70: =IF(OR('Tabel 1 VJ'!G68<5,'Tabel 2 VJ'!I70<0.5),"-",IFERROR('Tabel 2 VJ'!I70/'Tabel 1 VJ'!G68*100,"-")) -> 7.692307692 | J70: =IF(OR('Tabel 1 VJ'!G68<5,'Tabel 2 VJ'!J70<0.5),"-",IFERROR('Tabel 2 VJ'!J70/'Tabel 1 VJ'!G68*100,"-")) -> 5.560646551
A71: Landsk. Arkt. | C71: =IF(OR('Tabel 1 VJ'!C69<5,'Tabel 2 VJ'!C71<0.5),"-",IFERROR('Tabel 2 VJ'!C71/'Tabel 1 VJ'!C69*100,"-")) -> - | D71: =IF(OR('Tabel 1 VJ'!C69<5,'Tabel 2 VJ'!D71<0.5),"-",IFERROR('Tabel 2 VJ'!D71/'Tabel 1 VJ'!C69*100,"-")) -> - | F71: =IF(OR('Tabel 1 VJ'!E69<5,'Tabel 2 VJ'!F71<0.5),"-",IFERROR('Tabel 2 VJ'!F71/'Tabel 1 VJ'!E69*100,"-")) -> - | G71: =IF(OR('Tabel 1 VJ'!E69<5,'Tabel 2 VJ'!G71<0.5),"-",IFERROR('Tabel 2 VJ'!G71/'Tabel 1 VJ'!E69*100,"-")) -> - | I71: =IF(OR('Tabel 1 VJ'!G69<5,'Tabel 2 VJ'!I71<0.5),"-",IFERROR('Tabel 2 VJ'!I71/'Tabel 1 VJ'!G69*100,"-")) -> - | J71: =IF(OR('Tabel 1 VJ'!G69<5,'Tabel 2 VJ'!J71<0.5),"-",IFERROR('Tabel 2 VJ'!J71/'Tabel 1 VJ'!G69*100,"-")) -> -
A72: Hortonom | C72: =IF(OR('Tabel 1 VJ'!C70<5,'Tabel 2 VJ'!C72<0.5),"-",IFERROR('Tabel 2 VJ'!C72/'Tabel 1 VJ'!C70*100,"-")) -> - | D72: =IF(OR('Tabel 1 VJ'!C70<5,'Tabel 2 VJ'!D72<0.5),"-",IFERROR('Tabel 2 VJ'!D72/'Tabel 1 VJ'!C70*100,"-")) -> - | F72: =IF(OR('Tabel 1 VJ'!E70<5,'Tabel 2 VJ'!F72<0.5),"-",IFERROR('Tabel 2 VJ'!F72/'Tabel 1 VJ'!E70*100,"-")) -> - | G72: =IF(OR('Tabel 1 VJ'!E70<5,'Tabel 2 VJ'!G72<0.5),"-",IFERROR('Tabel 2 VJ'!G72/'Tabel 1 VJ'!E70*100,"-")) -> - | I72: =IF(OR('Tabel 1 VJ'!G70<5,'Tabel 2 VJ'!I72<0.5),"-",IFERROR('Tabel 2 VJ'!I72/'Tabel 1 VJ'!G70*100,"-")) -> - | J72: =IF(OR('Tabel 1 VJ'!G70<5,'Tabel 2 VJ'!J72<0.5),"-",IFERROR('Tabel 2 VJ'!J72/'Tabel 1 VJ'!G70*100,"-")) -> -
A73: Forstkand. | C73: =IF(OR('Tabel 1 VJ'!C71<5,'Tabel 2 VJ'!C73<0.5),"-",IFERROR('Tabel 2 VJ'!C73/'Tabel 1 VJ'!C71*100,"-")) -> - | D73: =IF(OR('Tabel 1 VJ'!C71<5,'Tabel 2 VJ'!D73<0.5),"-",IFERROR('Tabel 2 VJ'!D73/'Tabel 1 VJ'!C71*100,"-")) -> - | F73: =IF(OR('Tabel 1 VJ'!E71<5,'Tabel 2 VJ'!F73<0.5),"-",IFERROR('Tabel 2 VJ'!F73/'Tabel 1 VJ'!E71*100,"-")) -> - | G73: =IF(OR('Tabel 1 VJ'!E71<5,'Tabel 2 VJ'!G73<0.5),"-",IFERROR('Tabel 2 VJ'!G73/'Tabel 1 VJ'!E71*100,"-")) -> - | I73: =IF(OR('Tabel 1 VJ'!G71<5,'Tabel 2 VJ'!I73<0.5),"-",IFERROR('Tabel 2 VJ'!I73/'Tabel 1 VJ'!G71*100,"-")) -> - | J73: =IF(OR('Tabel 1 VJ'!G71<5,'Tabel 2 VJ'!J73<0.5),"-",IFERROR('Tabel 2 VJ'!J73/'Tabel 1 VJ'!G71*100,"-")) -> -
A74: Jordbrugsakad. | C74: =IF(OR('Tabel 1 VJ'!C72<5,'Tabel 2 VJ'!C74<0.5),"-",IFERROR('Tabel 2 VJ'!C74/'Tabel 1 VJ'!C72*100,"-")) -> - | D74: =IF(OR('Tabel 1 VJ'!C72<5,'Tabel 2 VJ'!D74<0.5),"-",IFERROR('Tabel 2 VJ'!D74/'Tabel 1 VJ'!C72*100,"-")) -> - | F74: =IF(OR('Tabel 1 VJ'!E72<5,'Tabel 2 VJ'!F74<0.5),"-",IFERROR('Tabel 2 VJ'!F74/'Tabel 1 VJ'!E72*100,"-")) -> 21.42857143 | G74: =IF(OR('Tabel 1 VJ'!E72<5,'Tabel 2 VJ'!G74<0.5),"-",IFERROR('Tabel 2 VJ'!G74/'Tabel 1 VJ'!E72*100,"-")) -> 16.69324875 | I74: =IF(OR('Tabel 1 VJ'!G72<5,'Tabel 2 VJ'!I74<0.5),"-",IFERROR('Tabel 2 VJ'!I74/'Tabel 1 VJ'!G72*100,"-")) -> 8.571428571 | J74: =IF(OR('Tabel 1 VJ'!G72<5,'Tabel 2 VJ'!J74<0.5),"-",IFERROR('Tabel 2 VJ'!J74/'Tabel 1 VJ'!G72*100,"-")) -> 6.677299498
A75: Mejeriing. | C75: =IF(OR('Tabel 1 VJ'!C73<5,'Tabel 2 VJ'!C75<0.5),"-",IFERROR('Tabel 2 VJ'!C75/'Tabel 1 VJ'!C73*100,"-")) -> - | D75: =IF(OR('Tabel 1 VJ'!C73<5,'Tabel 2 VJ'!D75<0.5),"-",IFERROR('Tabel 2 VJ'!D75/'Tabel 1 VJ'!C73*100,"-")) -> - | F75: =IF(OR('Tabel 1 VJ'!E73<5,'Tabel 2 VJ'!F75<0.5),"-",IFERROR('Tabel 2 VJ'!F75/'Tabel 1 VJ'!E73*100,"-")) -> - | G75: =IF(OR('Tabel 1 VJ'!E73<5,'Tabel 2 VJ'!G75<0.5),"-",IFERROR('Tabel 2 VJ'!G75/'Tabel 1 VJ'!E73*100,"-")) -> - | I75: =IF(OR('Tabel 1 VJ'!G73<5,'Tabel 2 VJ'!I75<0.5),"-",IFERROR('Tabel 2 VJ'!I75/'Tabel 1 VJ'!G73*100,"-")) -> - | J75: =IF(OR('Tabel 1 VJ'!G73<5,'Tabel 2 VJ'!J75<0.5),"-",IFERROR('Tabel 2 VJ'!J75/'Tabel 1 VJ'!G73*100,"-")) -> -
A76: Levn.m.kand. | C76: =IF(OR('Tabel 1 VJ'!C74<5,'Tabel 2 VJ'!C76<0.5),"-",IFERROR('Tabel 2 VJ'!C76/'Tabel 1 VJ'!C74*100,"-")) -> - | D76: =IF(OR('Tabel 1 VJ'!C74<5,'Tabel 2 VJ'!D76<0.5),"-",IFERROR('Tabel 2 VJ'!D76/'Tabel 1 VJ'!C74*100,"-")) -> - | F76: =IF(OR('Tabel 1 VJ'!E74<5,'Tabel 2 VJ'!F76<0.5),"-",IFERROR('Tabel 2 VJ'!F76/'Tabel 1 VJ'!E74*100,"-")) -> - | G76: =IF(OR('Tabel 1 VJ'!E74<5,'Tabel 2 VJ'!G76<0.5),"-",IFERROR('Tabel 2 VJ'!G76/'Tabel 1 VJ'!E74*100,"-")) -> - | I76: =IF(OR('Tabel 1 VJ'!G74<5,'Tabel 2 VJ'!I76<0.5),"-",IFERROR('Tabel 2 VJ'!I76/'Tabel 1 VJ'!G74*100,"-")) -> - | J76: =IF(OR('Tabel 1 VJ'!G74<5,'Tabel 2 VJ'!J76<0.5),"-",IFERROR('Tabel 2 VJ'!J76/'Tabel 1 VJ'!G74*100,"-")) -> -
A77: Dyrlæge | C77: =IF(OR('Tabel 1 VJ'!C75<5,'Tabel 2 VJ'!C77<0.5),"-",IFERROR('Tabel 2 VJ'!C77/'Tabel 1 VJ'!C75*100,"-")) -> - | D77: =IF(OR('Tabel 1 VJ'!C75<5,'Tabel 2 VJ'!D77<0.5),"-",IFERROR('Tabel 2 VJ'!D77/'Tabel 1 VJ'!C75*100,"-")) -> - | F77: =IF(OR('Tabel 1 VJ'!E75<5,'Tabel 2 VJ'!F77<0.5),"-",IFERROR('Tabel 2 VJ'!F77/'Tabel 1 VJ'!E75*100,"-")) -> - | G77: =IF(OR('Tabel 1 VJ'!E75<5,'Tabel 2 VJ'!G77<0.5),"-",IFERROR('Tabel 2 VJ'!G77/'Tabel 1 VJ'!E75*100,"-")) -> - | I77: =IF(OR('Tabel 1 VJ'!G75<5,'Tabel 2 VJ'!I77<0.5),"-",IFERROR('Tabel 2 VJ'!I77/'Tabel 1 VJ'!G75*100,"-")) -> - | J77: =IF(OR('Tabel 1 VJ'!G75<5,'Tabel 2 VJ'!J77<0.5),"-",IFERROR('Tabel 2 VJ'!J77/'Tabel 1 VJ'!G75*100,"-")) -> -
A78: Farmaceut | C78: =IF(OR('Tabel 1 VJ'!C76<5,'Tabel 2 VJ'!C78<0.5),"-",IFERROR('Tabel 2 VJ'!C78/'Tabel 1 VJ'!C76*100,"-")) -> - | D78: =IF(OR('Tabel 1 VJ'!C76<5,'Tabel 2 VJ'!D78<0.5),"-",IFERROR('Tabel 2 VJ'!D78/'Tabel 1 VJ'!C76*100,"-")) -> - | F78: =IF(OR('Tabel 1 VJ'!E76<5,'Tabel 2 VJ'!F78<0.5),"-",IFERROR('Tabel 2 VJ'!F78/'Tabel 1 VJ'!E76*100,"-")) -> 11.11111111 | G78: =IF(OR('Tabel 1 VJ'!E76<5,'Tabel 2 VJ'!G78<0.5),"-",IFERROR('Tabel 2 VJ'!G78/'Tabel 1 VJ'!E76*100,"-")) -> 11.10903207 | I78: =IF(OR('Tabel 1 VJ'!G76<5,'Tabel 2 VJ'!I78<0.5),"-",IFERROR('Tabel 2 VJ'!I78/'Tabel 1 VJ'!G76*100,"-")) -> 9.090909091 | J78: =IF(OR('Tabel 1 VJ'!G76<5,'Tabel 2 VJ'!J78<0.5),"-",IFERROR('Tabel 2 VJ'!J78/'Tabel 1 VJ'!G76*100,"-")) -> 9.089208054
A79: Læge | C79: =IF(OR('Tabel 1 VJ'!C77<5,'Tabel 2 VJ'!C79<0.5),"-",IFERROR('Tabel 2 VJ'!C79/'Tabel 1 VJ'!C77*100,"-")) -> - | D79: =IF(OR('Tabel 1 VJ'!C77<5,'Tabel 2 VJ'!D79<0.5),"-",IFERROR('Tabel 2 VJ'!D79/'Tabel 1 VJ'!C77*100,"-")) -> - | F79: =IF(OR('Tabel 1 VJ'!E77<5,'Tabel 2 VJ'!F79<0.5),"-",IFERROR('Tabel 2 VJ'!F79/'Tabel 1 VJ'!E77*100,"-")) -> 1.754385965 | G79: =IF(OR('Tabel 1 VJ'!E77<5,'Tabel 2 VJ'!G79<0.5),"-",IFERROR('Tabel 2 VJ'!G79/'Tabel 1 VJ'!E77*100,"-")) -> 1.754057695 | I79: =IF(OR('Tabel 1 VJ'!G77<5,'Tabel 2 VJ'!I79<0.5),"-",IFERROR('Tabel 2 VJ'!I79/'Tabel 1 VJ'!G77*100,"-")) -> 1.282051282 | J79: =IF(OR('Tabel 1 VJ'!G77<5,'Tabel 2 VJ'!J79<0.5),"-",IFERROR('Tabel 2 VJ'!J79/'Tabel 1 VJ'!G77*100,"-")) -> 1.281811392
A80: Tandlæge | C80: =IF(OR('Tabel 1 VJ'!C78<5,'Tabel 2 VJ'!C80<0.5),"-",IFERROR('Tabel 2 VJ'!C80/'Tabel 1 VJ'!C78*100,"-")) -> - | D80: =IF(OR('Tabel 1 VJ'!C78<5,'Tabel 2 VJ'!D80<0.5),"-",IFERROR('Tabel 2 VJ'!D80/'Tabel 1 VJ'!C78*100,"-")) -> - | F80: =IF(OR('Tabel 1 VJ'!E78<5,'Tabel 2 VJ'!F80<0.5),"-",IFERROR('Tabel 2 VJ'!F80/'Tabel 1 VJ'!E78*100,"-")) -> - | G80: =IF(OR('Tabel 1 VJ'!E78<5,'Tabel 2 VJ'!G80<0.5),"-",IFERROR('Tabel 2 VJ'!G80/'Tabel 1 VJ'!E78*100,"-")) -> - | I80: =IF(OR('Tabel 1 VJ'!G78<5,'Tabel 2 VJ'!I80<0.5),"-",IFERROR('Tabel 2 VJ'!I80/'Tabel 1 VJ'!G78*100,"-")) -> - | J80: =IF(OR('Tabel 1 VJ'!G78<5,'Tabel 2 VJ'!J80<0.5),"-",IFERROR('Tabel 2 VJ'!J80/'Tabel 1 VJ'!G78*100,"-")) -> -
A81: Arkitekt | C81: =IF(OR('Tabel 1 VJ'!C79<5,'Tabel 2 VJ'!C81<0.5),"-",IFERROR('Tabel 2 VJ'!C81/'Tabel 1 VJ'!C79*100,"-")) -> - | D81: =IF(OR('Tabel 1 VJ'!C79<5,'Tabel 2 VJ'!D81<0.5),"-",IFERROR('Tabel 2 VJ'!D81/'Tabel 1 VJ'!C79*100,"-")) -> - | F81: =IF(OR('Tabel 1 VJ'!E79<5,'Tabel 2 VJ'!F81<0.5),"-",IFERROR('Tabel 2 VJ'!F81/'Tabel 1 VJ'!E79*100,"-")) -> - | G81: =IF(OR('Tabel 1 VJ'!E79<5,'Tabel 2 VJ'!G81<0.5),"-",IFERROR('Tabel 2 VJ'!G81/'Tabel 1 VJ'!E79*100,"-")) -> - | I81: =IF(OR('Tabel 1 VJ'!G79<5,'Tabel 2 VJ'!I81<0.5),"-",IFERROR('Tabel 2 VJ'!I81/'Tabel 1 VJ'!G79*100,"-")) -> - | J81: =IF(OR('Tabel 1 VJ'!G79<5,'Tabel 2 VJ'!J81<0.5),"-",IFERROR('Tabel 2 VJ'!J81/'Tabel 1 VJ'!G79*100,"-")) -> -
A82: Landinspek. | C82: =IF(OR('Tabel 1 VJ'!C80<5,'Tabel 2 VJ'!C82<0.5),"-",IFERROR('Tabel 2 VJ'!C82/'Tabel 1 VJ'!C80*100,"-")) -> - | D82: =IF(OR('Tabel 1 VJ'!C80<5,'Tabel 2 VJ'!D82<0.5),"-",IFERROR('Tabel 2 VJ'!D82/'Tabel 1 VJ'!C80*100,"-")) -> - | F82: =IF(OR('Tabel 1 VJ'!E80<5,'Tabel 2 VJ'!F82<0.5),"-",IFERROR('Tabel 2 VJ'!F82/'Tabel 1 VJ'!E80*100,"-")) -> - | G82: =IF(OR('Tabel 1 VJ'!E80<5,'Tabel 2 VJ'!G82<0.5),"-",IFERROR('Tabel 2 VJ'!G82/'Tabel 1 VJ'!E80*100,"-")) -> - | I82: =IF(OR('Tabel 1 VJ'!G80<5,'Tabel 2 VJ'!I82<0.5),"-",IFERROR('Tabel 2 VJ'!I82/'Tabel 1 VJ'!G80*100,"-")) -> - | J82: =IF(OR('Tabel 1 VJ'!G80<5,'Tabel 2 VJ'!J82<0.5),"-",IFERROR('Tabel 2 VJ'!J82/'Tabel 1 VJ'!G80*100,"-")) -> -
A83: Bibliotekar | C83: =IF(OR('Tabel 1 VJ'!C81<5,'Tabel 2 VJ'!C83<0.5),"-",IFERROR('Tabel 2 VJ'!C83/'Tabel 1 VJ'!C81*100,"-")) -> 8.333333333 | D83: =IF(OR('Tabel 1 VJ'!C81<5,'Tabel 2 VJ'!D83<0.5),"-",IFERROR('Tabel 2 VJ'!D83/'Tabel 1 VJ'!C81*100,"-")) -> 5.639410383 | F83: =IF(OR('Tabel 1 VJ'!E81<5,'Tabel 2 VJ'!F83<0.5),"-",IFERROR('Tabel 2 VJ'!F83/'Tabel 1 VJ'!E81*100,"-")) -> 4.166666667 | G83: =IF(OR('Tabel 1 VJ'!E81<5,'Tabel 2 VJ'!G83<0.5),"-",IFERROR('Tabel 2 VJ'!G83/'Tabel 1 VJ'!E81*100,"-")) -> 2.819705191 | I83: =IF(OR('Tabel 1 VJ'!G81<5,'Tabel 2 VJ'!I83<0.5),"-",IFERROR('Tabel 2 VJ'!I83/'Tabel 1 VJ'!G81*100,"-")) -> 5.555555556 | J83: =IF(OR('Tabel 1 VJ'!G81<5,'Tabel 2 VJ'!J83<0.5),"-",IFERROR('Tabel 2 VJ'!J83/'Tabel 1 VJ'!G81*100,"-")) -> 3.759606922
A84: Musikudd. | C84: =IF(OR('Tabel 1 VJ'!C82<5,'Tabel 2 VJ'!C84<0.5),"-",IFERROR('Tabel 2 VJ'!C84/'Tabel 1 VJ'!C82*100,"-")) -> - | D84: =IF(OR('Tabel 1 VJ'!C82<5,'Tabel 2 VJ'!D84<0.5),"-",IFERROR('Tabel 2 VJ'!D84/'Tabel 1 VJ'!C82*100,"-")) -> - | F84: =IF(OR('Tabel 1 VJ'!E82<5,'Tabel 2 VJ'!F84<0.5),"-",IFERROR('Tabel 2 VJ'!F84/'Tabel 1 VJ'!E82*100,"-")) -> - | G84: =IF(OR('Tabel 1 VJ'!E82<5,'Tabel 2 VJ'!G84<0.5),"-",IFERROR('Tabel 2 VJ'!G84/'Tabel 1 VJ'!E82*100,"-")) -> - | I84: =IF(OR('Tabel 1 VJ'!G82<5,'Tabel 2 VJ'!I84<0.5),"-",IFERROR('Tabel 2 VJ'!I84/'Tabel 1 VJ'!G82*100,"-")) -> - | J84: =IF(OR('Tabel 1 VJ'!G82<5,'Tabel 2 VJ'!J84<0.5),"-",IFERROR('Tabel 2 VJ'!J84/'Tabel 1 VJ'!G82*100,"-")) -> -
A85: Teolog | C85: =IF(OR('Tabel 1 VJ'!C83<5,'Tabel 2 VJ'!C85<0.5),"-",IFERROR('Tabel 2 VJ'!C85/'Tabel 1 VJ'!C83*100,"-")) -> - | D85: =IF(OR('Tabel 1 VJ'!C83<5,'Tabel 2 VJ'!D85<0.5),"-",IFERROR('Tabel 2 VJ'!D85/'Tabel 1 VJ'!C83*100,"-")) -> - | F85: =IF(OR('Tabel 1 VJ'!E83<5,'Tabel 2 VJ'!F85<0.5),"-",IFERROR('Tabel 2 VJ'!F85/'Tabel 1 VJ'!E83*100,"-")) -> - | G85: =IF(OR('Tabel 1 VJ'!E83<5,'Tabel 2 VJ'!G85<0.5),"-",IFERROR('Tabel 2 VJ'!G85/'Tabel 1 VJ'!E83*100,"-")) -> - | I85: =IF(OR('Tabel 1 VJ'!G83<5,'Tabel 2 VJ'!I85<0.5),"-",IFERROR('Tabel 2 VJ'!I85/'Tabel 1 VJ'!G83*100,"-")) -> - | J85: =IF(OR('Tabel 1 VJ'!G83<5,'Tabel 2 VJ'!J85<0.5),"-",IFERROR('Tabel 2 VJ'!J85/'Tabel 1 VJ'!G83*100,"-")) -> -
A86: Psykolog | C86: =IF(OR('Tabel 1 VJ'!C84<5,'Tabel 2 VJ'!C86<0.5),"-",IFERROR('Tabel 2 VJ'!C86/'Tabel 1 VJ'!C84*100,"-")) -> - | D86: =IF(OR('Tabel 1 VJ'!C84<5,'Tabel 2 VJ'!D86<0.5),"-",IFERROR('Tabel 2 VJ'!D86/'Tabel 1 VJ'!C84*100,"-")) -> - | F86: =IF(OR('Tabel 1 VJ'!E84<5,'Tabel 2 VJ'!F86<0.5),"-",IFERROR('Tabel 2 VJ'!F86/'Tabel 1 VJ'!E84*100,"-")) -> 5 | G86: =IF(OR('Tabel 1 VJ'!E84<5,'Tabel 2 VJ'!G86<0.5),"-",IFERROR('Tabel 2 VJ'!G86/'Tabel 1 VJ'!E84*100,"-")) -> 4.99906443 | I86: =IF(OR('Tabel 1 VJ'!G84<5,'Tabel 2 VJ'!I86<0.5),"-",IFERROR('Tabel 2 VJ'!I86/'Tabel 1 VJ'!G84*100,"-")) -> 4.255319149 | J86: =IF(OR('Tabel 1 VJ'!G84<5,'Tabel 2 VJ'!J86<0.5),"-",IFERROR('Tabel 2 VJ'!J86/'Tabel 1 VJ'!G84*100,"-")) -> 4.254522919
A87: Jurist | C87: =IF(OR('Tabel 1 VJ'!C85<5,'Tabel 2 VJ'!C87<0.5),"-",IFERROR('Tabel 2 VJ'!C87/'Tabel 1 VJ'!C85*100,"-")) -> 3.125 | D87: =IF(OR('Tabel 1 VJ'!C85<5,'Tabel 2 VJ'!D87<0.5),"-",IFERROR('Tabel 2 VJ'!D87/'Tabel 1 VJ'!C85*100,"-")) -> 3.124415269 | F87: =IF(OR('Tabel 1 VJ'!E85<5,'Tabel 2 VJ'!F87<0.5),"-",IFERROR('Tabel 2 VJ'!F87/'Tabel 1 VJ'!E85*100,"-")) -> - | G87: =IF(OR('Tabel 1 VJ'!E85<5,'Tabel 2 VJ'!G87<0.5),"-",IFERROR('Tabel 2 VJ'!G87/'Tabel 1 VJ'!E85*100,"-")) -> - | I87: =IF(OR('Tabel 1 VJ'!G85<5,'Tabel 2 VJ'!I87<0.5),"-",IFERROR('Tabel 2 VJ'!I87/'Tabel 1 VJ'!G85*100,"-")) -> 1.086956522 | J87: =IF(OR('Tabel 1 VJ'!G85<5,'Tabel 2 VJ'!J87<0.5),"-",IFERROR('Tabel 2 VJ'!J87/'Tabel 1 VJ'!G85*100,"-")) -> 1.086753137
A88: Økonom | C88: =IF(OR('Tabel 1 VJ'!C86<5,'Tabel 2 VJ'!C88<0.5),"-",IFERROR('Tabel 2 VJ'!C88/'Tabel 1 VJ'!C86*100,"-")) -> - | D88: =IF(OR('Tabel 1 VJ'!C86<5,'Tabel 2 VJ'!D88<0.5),"-",IFERROR('Tabel 2 VJ'!D88/'Tabel 1 VJ'!C86*100,"-")) -> - | F88: =IF(OR('Tabel 1 VJ'!E86<5,'Tabel 2 VJ'!F88<0.5),"-",IFERROR('Tabel 2 VJ'!F88/'Tabel 1 VJ'!E86*100,"-")) -> - | G88: =IF(OR('Tabel 1 VJ'!E86<5,'Tabel 2 VJ'!G88<0.5),"-",IFERROR('Tabel 2 VJ'!G88/'Tabel 1 VJ'!E86*100,"-")) -> - | I88: =IF(OR('Tabel 1 VJ'!G86<5,'Tabel 2 VJ'!I88<0.5),"-",IFERROR('Tabel 2 VJ'!I88/'Tabel 1 VJ'!G86*100,"-")) -> - | J88: =IF(OR('Tabel 1 VJ'!G86<5,'Tabel 2 VJ'!J88<0.5),"-",IFERROR('Tabel 2 VJ'!J88/'Tabel 1 VJ'!G86*100,"-")) -> -
A89: Samf. Adm. | C89: =IF(OR('Tabel 1 VJ'!C87<5,'Tabel 2 VJ'!C89<0.5),"-",IFERROR('Tabel 2 VJ'!C89/'Tabel 1 VJ'!C87*100,"-")) -> 4.651162791 | D89: =IF(OR('Tabel 1 VJ'!C87<5,'Tabel 2 VJ'!D89<0.5),"-",IFERROR('Tabel 2 VJ'!D89/'Tabel 1 VJ'!C87*100,"-")) -> 4.650292493 | F89: =IF(OR('Tabel 1 VJ'!E87<5,'Tabel 2 VJ'!F89<0.5),"-",IFERROR('Tabel 2 VJ'!F89/'Tabel 1 VJ'!E87*100,"-")) -> 11.36363636 | G89: =IF(OR('Tabel 1 VJ'!E87<5,'Tabel 2 VJ'!G89<0.5),"-",IFERROR('Tabel 2 VJ'!G89/'Tabel 1 VJ'!E87*100,"-")) -> 7.114587527 | I89: =IF(OR('Tabel 1 VJ'!G87<5,'Tabel 2 VJ'!I89<0.5),"-",IFERROR('Tabel 2 VJ'!I89/'Tabel 1 VJ'!G87*100,"-")) -> 8.045977011 | J89: =IF(OR('Tabel 1 VJ'!G87<5,'Tabel 2 VJ'!J89<0.5),"-",IFERROR('Tabel 2 VJ'!J89/'Tabel 1 VJ'!G87*100,"-")) -> 5.896602625
A90: Cand. Merc. | C90: =IF(OR('Tabel 1 VJ'!C88<5,'Tabel 2 VJ'!C90<0.5),"-",IFERROR('Tabel 2 VJ'!C90/'Tabel 1 VJ'!C88*100,"-")) -> 4.379562044 | D90: =IF(OR('Tabel 1 VJ'!C88<5,'Tabel 2 VJ'!D90<0.5),"-",IFERROR('Tabel 2 VJ'!D90/'Tabel 1 VJ'!C88*100,"-")) -> 3.288837211 | F90: =IF(OR('Tabel 1 VJ'!E88<5,'Tabel 2 VJ'!F90<0.5),"-",IFERROR('Tabel 2 VJ'!F90/'Tabel 1 VJ'!E88*100,"-")) -> 7.142857143 | G90: =IF(OR('Tabel 1 VJ'!E88<5,'Tabel 2 VJ'!G90<0.5),"-",IFERROR('Tabel 2 VJ'!G90/'Tabel 1 VJ'!E88*100,"-")) -> 6.719771424 | I90: =IF(OR('Tabel 1 VJ'!G88<5,'Tabel 2 VJ'!I90<0.5),"-",IFERROR('Tabel 2 VJ'!I90/'Tabel 1 VJ'!G88*100,"-")) -> 5.703422053 | J90: =IF(OR('Tabel 1 VJ'!G88<5,'Tabel 2 VJ'!J90<0.5),"-",IFERROR('Tabel 2 VJ'!J90/'Tabel 1 VJ'!G88*100,"-")) -> 4.932554743
A91: HA | C91: =IF(OR('Tabel 1 VJ'!C89<5,'Tabel 2 VJ'!C91<0.5),"-",IFERROR('Tabel 2 VJ'!C91/'Tabel 1 VJ'!C89*100,"-")) -> - | D91: =IF(OR('Tabel 1 VJ'!C89<5,'Tabel 2 VJ'!D91<0.5),"-",IFERROR('Tabel 2 VJ'!D91/'Tabel 1 VJ'!C89*100,"-")) -> - | F91: =IF(OR('Tabel 1 VJ'!E89<5,'Tabel 2 VJ'!F91<0.5),"-",IFERROR('Tabel 2 VJ'!F91/'Tabel 1 VJ'!E89*100,"-")) -> 10.71428571 | G91: =IF(OR('Tabel 1 VJ'!E89<5,'Tabel 2 VJ'!G91<0.5),"-",IFERROR('Tabel 2 VJ'!G91/'Tabel 1 VJ'!E89*100,"-")) -> 9.365727829 | I91: =IF(OR('Tabel 1 VJ'!G89<5,'Tabel 2 VJ'!I91<0.5),"-",IFERROR('Tabel 2 VJ'!I91/'Tabel 1 VJ'!G89*100,"-")) -> 4.958677686 | J91: =IF(OR('Tabel 1 VJ'!G89<5,'Tabel 2 VJ'!J91<0.5),"-",IFERROR('Tabel 2 VJ'!J91/'Tabel 1 VJ'!G89*100,"-")) -> 4.334551723
A92: HD | C92: =IF(OR('Tabel 1 VJ'!C90<5,'Tabel 2 VJ'!C92<0.5),"-",IFERROR('Tabel 2 VJ'!C92/'Tabel 1 VJ'!C90*100,"-")) -> - | D92: =IF(OR('Tabel 1 VJ'!C90<5,'Tabel 2 VJ'!D92<0.5),"-",IFERROR('Tabel 2 VJ'!D92/'Tabel 1 VJ'!C90*100,"-")) -> - | F92: =IF(OR('Tabel 1 VJ'!E90<5,'Tabel 2 VJ'!F92<0.5),"-",IFERROR('Tabel 2 VJ'!F92/'Tabel 1 VJ'!E90*100,"-")) -> - | G92: =IF(OR('Tabel 1 VJ'!E90<5,'Tabel 2 VJ'!G92<0.5),"-",IFERROR('Tabel 2 VJ'!G92/'Tabel 1 VJ'!E90*100,"-")) -> - | I92: =IF(OR('Tabel 1 VJ'!G90<5,'Tabel 2 VJ'!I92<0.5),"-",IFERROR('Tabel 2 VJ'!I92/'Tabel 1 VJ'!G90*100,"-")) -> - | J92: =IF(OR('Tabel 1 VJ'!G90<5,'Tabel 2 VJ'!J92<0.5),"-",IFERROR('Tabel 2 VJ'!J92/'Tabel 1 VJ'!G90*100,"-")) -> -
A93: Komm. og Sprog | C93: =IF(OR('Tabel 1 VJ'!C91<5,'Tabel 2 VJ'!C93<0.5),"-",IFERROR('Tabel 2 VJ'!C93/'Tabel 1 VJ'!C91*100,"-")) -> - | D93: =IF(OR('Tabel 1 VJ'!C91<5,'Tabel 2 VJ'!D93<0.5),"-",IFERROR('Tabel 2 VJ'!D93/'Tabel 1 VJ'!C91*100,"-")) -> - | F93: =IF(OR('Tabel 1 VJ'!E91<5,'Tabel 2 VJ'!F93<0.5),"-",IFERROR('Tabel 2 VJ'!F93/'Tabel 1 VJ'!E91*100,"-")) -> 5.882352941 | G93: =IF(OR('Tabel 1 VJ'!E91<5,'Tabel 2 VJ'!G93<0.5),"-",IFERROR('Tabel 2 VJ'!G93/'Tabel 1 VJ'!E91*100,"-")) -> 4.188053317 | I93: =IF(OR('Tabel 1 VJ'!G91<5,'Tabel 2 VJ'!I93<0.5),"-",IFERROR('Tabel 2 VJ'!I93/'Tabel 1 VJ'!G91*100,"-")) -> 5.555555556 | J93: =IF(OR('Tabel 1 VJ'!G91<5,'Tabel 2 VJ'!J93<0.5),"-",IFERROR('Tabel 2 VJ'!J93/'Tabel 1 VJ'!G91*100,"-")) -> 3.955383688
A94: Cand. IT. | C94: =IF(OR('Tabel 1 VJ'!C92<5,'Tabel 2 VJ'!C94<0.5),"-",IFERROR('Tabel 2 VJ'!C94/'Tabel 1 VJ'!C92*100,"-")) -> - | D94: =IF(OR('Tabel 1 VJ'!C92<5,'Tabel 2 VJ'!D94<0.5),"-",IFERROR('Tabel 2 VJ'!D94/'Tabel 1 VJ'!C92*100,"-")) -> - | F94: =IF(OR('Tabel 1 VJ'!E92<5,'Tabel 2 VJ'!F94<0.5),"-",IFERROR('Tabel 2 VJ'!F94/'Tabel 1 VJ'!E92*100,"-")) -> 16.66666667 | G94: =IF(OR('Tabel 1 VJ'!E92<5,'Tabel 2 VJ'!G94<0.5),"-",IFERROR('Tabel 2 VJ'!G94/'Tabel 1 VJ'!E92*100,"-")) -> 15.26019252 | I94: =IF(OR('Tabel 1 VJ'!G92<5,'Tabel 2 VJ'!I94<0.5),"-",IFERROR('Tabel 2 VJ'!I94/'Tabel 1 VJ'!G92*100,"-")) -> 9.090909091 | J94: =IF(OR('Tabel 1 VJ'!G92<5,'Tabel 2 VJ'!J94<0.5),"-",IFERROR('Tabel 2 VJ'!J94/'Tabel 1 VJ'!G92*100,"-")) -> 8.323741374
A95: Bac. Samf. | C95: =IF(OR('Tabel 1 VJ'!C93<5,'Tabel 2 VJ'!C95<0.5),"-",IFERROR('Tabel 2 VJ'!C95/'Tabel 1 VJ'!C93*100,"-")) -> - | D95: =IF(OR('Tabel 1 VJ'!C93<5,'Tabel 2 VJ'!D95<0.5),"-",IFERROR('Tabel 2 VJ'!D95/'Tabel 1 VJ'!C93*100,"-")) -> - | F95: =IF(OR('Tabel 1 VJ'!E93<5,'Tabel 2 VJ'!F95<0.5),"-",IFERROR('Tabel 2 VJ'!F95/'Tabel 1 VJ'!E93*100,"-")) -> - | G95: =IF(OR('Tabel 1 VJ'!E93<5,'Tabel 2 VJ'!G95<0.5),"-",IFERROR('Tabel 2 VJ'!G95/'Tabel 1 VJ'!E93*100,"-")) -> - | I95: =IF(OR('Tabel 1 VJ'!G93<5,'Tabel 2 VJ'!I95<0.5),"-",IFERROR('Tabel 2 VJ'!I95/'Tabel 1 VJ'!G93*100,"-")) -> - | J95: =IF(OR('Tabel 1 VJ'!G93<5,'Tabel 2 VJ'!J95<0.5),"-",IFERROR('Tabel 2 VJ'!J95/'Tabel 1 VJ'!G93*100,"-")) -> -
A96: Bac. Hum. | C96: =IF(OR('Tabel 1 VJ'!C94<5,'Tabel 2 VJ'!C96<0.5),"-",IFERROR('Tabel 2 VJ'!C96/'Tabel 1 VJ'!C94*100,"-")) -> 18.18181818 | D96: =IF(OR('Tabel 1 VJ'!C94<5,'Tabel 2 VJ'!D96<0.5),"-",IFERROR('Tabel 2 VJ'!D96/'Tabel 1 VJ'!C94*100,"-")) -> 18.17841611 | F96: =IF(OR('Tabel 1 VJ'!E94<5,'Tabel 2 VJ'!F96<0.5),"-",IFERROR('Tabel 2 VJ'!F96/'Tabel 1 VJ'!E94*100,"-")) -> - | G96: =IF(OR('Tabel 1 VJ'!E94<5,'Tabel 2 VJ'!G96<0.5),"-",IFERROR('Tabel 2 VJ'!G96/'Tabel 1 VJ'!E94*100,"-")) -> - | I96: =IF(OR('Tabel 1 VJ'!G94<5,'Tabel 2 VJ'!I96<0.5),"-",IFERROR('Tabel 2 VJ'!I96/'Tabel 1 VJ'!G94*100,"-")) -> 12.5 | J96: =IF(OR('Tabel 1 VJ'!G94<5,'Tabel 2 VJ'!J96<0.5),"-",IFERROR('Tabel 2 VJ'!J96/'Tabel 1 VJ'!G94*100,"-")) -> 12.49766107
A97: Bac. Nat. | C97: =IF(OR('Tabel 1 VJ'!C95<5,'Tabel 2 VJ'!C97<0.5),"-",IFERROR('Tabel 2 VJ'!C97/'Tabel 1 VJ'!C95*100,"-")) -> - | D97: =IF(OR('Tabel 1 VJ'!C95<5,'Tabel 2 VJ'!D97<0.5),"-",IFERROR('Tabel 2 VJ'!D97/'Tabel 1 VJ'!C95*100,"-")) -> - | F97: =IF(OR('Tabel 1 VJ'!E95<5,'Tabel 2 VJ'!F97<0.5),"-",IFERROR('Tabel 2 VJ'!F97/'Tabel 1 VJ'!E95*100,"-")) -> - | G97: =IF(OR('Tabel 1 VJ'!E95<5,'Tabel 2 VJ'!G97<0.5),"-",IFERROR('Tabel 2 VJ'!G97/'Tabel 1 VJ'!E95*100,"-")) -> - | I97: =IF(OR('Tabel 1 VJ'!G95<5,'Tabel 2 VJ'!I97<0.5),"-",IFERROR('Tabel 2 VJ'!I97/'Tabel 1 VJ'!G95*100,"-")) -> - | J97: =IF(OR('Tabel 1 VJ'!G95<5,'Tabel 2 VJ'!J97<0.5),"-",IFERROR('Tabel 2 VJ'!J97/'Tabel 1 VJ'!G95*100,"-")) -> -
A98: Andre | C98: =IF(OR('Tabel 1 VJ'!C96<5,'Tabel 2 VJ'!C98<0.5),"-",IFERROR('Tabel 2 VJ'!C98/'Tabel 1 VJ'!C96*100,"-")) -> 4.761904762 | D98: =IF(OR('Tabel 1 VJ'!C96<5,'Tabel 2 VJ'!D98<0.5),"-",IFERROR('Tabel 2 VJ'!D98/'Tabel 1 VJ'!C96*100,"-")) -> 3.607440606 | F98: =IF(OR('Tabel 1 VJ'!E96<5,'Tabel 2 VJ'!F98<0.5),"-",IFERROR('Tabel 2 VJ'!F98/'Tabel 1 VJ'!E96*100,"-")) -> 3.225806452 | G98: =IF(OR('Tabel 1 VJ'!E96<5,'Tabel 2 VJ'!G98<0.5),"-",IFERROR('Tabel 2 VJ'!G98/'Tabel 1 VJ'!E96*100,"-")) -> 2.02706917 | I98: =IF(OR('Tabel 1 VJ'!G96<5,'Tabel 2 VJ'!I98<0.5),"-",IFERROR('Tabel 2 VJ'!I98/'Tabel 1 VJ'!G96*100,"-")) -> 4.191616766 | J98: =IF(OR('Tabel 1 VJ'!G96<5,'Tabel 2 VJ'!J98<0.5),"-",IFERROR('Tabel 2 VJ'!J98/'Tabel 1 VJ'!G96*100,"-")) -> 3.020715881
A100: Total | C100: =IF(OR('Tabel 1 VJ'!C98<5,'Tabel 2 VJ'!C100<0.5),"-",IFERROR('Tabel 2 VJ'!C100/'Tabel 1 VJ'!C98*100,"-")) -> 3.384367446 | D100: =IF(OR('Tabel 1 VJ'!C98<5,'Tabel 2 VJ'!D100<0.5),"-",IFERROR('Tabel 2 VJ'!D100/'Tabel 1 VJ'!C98*100,"-")) -> 2.629799648 | F100: =IF(OR('Tabel 1 VJ'!E98<5,'Tabel 2 VJ'!F100<0.5),"-",IFERROR('Tabel 2 VJ'!F100/'Tabel 1 VJ'!E98*100,"-")) -> 5.656759348 | G100: =IF(OR('Tabel 1 VJ'!E98<5,'Tabel 2 VJ'!G100<0.5),"-",IFERROR('Tabel 2 VJ'!G100/'Tabel 1 VJ'!E98*100,"-")) -> 4.770781069 | I100: =IF(OR('Tabel 1 VJ'!G98<5,'Tabel 2 VJ'!I100<0.5),"-",IFERROR('Tabel 2 VJ'!I100/'Tabel 1 VJ'!G98*100,"-")) -> 4.42206655 | J100: =IF(OR('Tabel 1 VJ'!G98<5,'Tabel 2 VJ'!J100<0.5),"-",IFERROR('Tabel 2 VJ'!J100/'Tabel 1 VJ'!G98*100,"-")) -> 3.6074895
A102: Ingeniører i alt | C102: =IF(OR('Tabel 1 VJ'!C100<5,'Tabel 2 VJ'!C102<0.5),"-",IFERROR('Tabel 2 VJ'!C102/'Tabel 1 VJ'!C100*100,"-")) -> 2.51450677 | D102: =IF(OR('Tabel 1 VJ'!C100<5,'Tabel 2 VJ'!D102<0.5),"-",IFERROR('Tabel 2 VJ'!D102/'Tabel 1 VJ'!C100*100,"-")) -> 1.681855158 | F102: =IF(OR('Tabel 1 VJ'!E100<5,'Tabel 2 VJ'!F102<0.5),"-",IFERROR('Tabel 2 VJ'!F102/'Tabel 1 VJ'!E100*100,"-")) -> 3.03030303 | G102: =IF(OR('Tabel 1 VJ'!E100<5,'Tabel 2 VJ'!G102<0.5),"-",IFERROR('Tabel 2 VJ'!G102/'Tabel 1 VJ'!E100*100,"-")) -> 2.784975685 | I102: =IF(OR('Tabel 1 VJ'!G100<5,'Tabel 2 VJ'!I102<0.5),"-",IFERROR('Tabel 2 VJ'!I102/'Tabel 1 VJ'!G100*100,"-")) -> 2.619414484 | J102: =IF(OR('Tabel 1 VJ'!G100<5,'Tabel 2 VJ'!J102<0.5),"-",IFERROR('Tabel 2 VJ'!J102/'Tabel 1 VJ'!G100*100,"-")) -> 1.906218655
A103: Magistre i alt | C103: =IF(OR('Tabel 1 VJ'!C101<5,'Tabel 2 VJ'!C103<0.5),"-",IFERROR('Tabel 2 VJ'!C103/'Tabel 1 VJ'!C101*100,"-")) -> 6.603773585 | D103: =IF(OR('Tabel 1 VJ'!C101<5,'Tabel 2 VJ'!D103<0.5),"-",IFERROR('Tabel 2 VJ'!D103/'Tabel 1 VJ'!C101*100,"-")) -> 6.127691824 | F103: =IF(OR('Tabel 1 VJ'!E101<5,'Tabel 2 VJ'!F103<0.5),"-",IFERROR('Tabel 2 VJ'!F103/'Tabel 1 VJ'!E101*100,"-")) -> 8.717948718 | G103: =IF(OR('Tabel 1 VJ'!E101<5,'Tabel 2 VJ'!G103<0.5),"-",IFERROR('Tabel 2 VJ'!G103/'Tabel 1 VJ'!E101*100,"-")) -> 7.546614595 | I103: =IF(OR('Tabel 1 VJ'!G101<5,'Tabel 2 VJ'!I103<0.5),"-",IFERROR('Tabel 2 VJ'!I103/'Tabel 1 VJ'!G101*100,"-")) -> 7.973421927 | J103: =IF(OR('Tabel 1 VJ'!G101<5,'Tabel 2 VJ'!J103<0.5),"-",IFERROR('Tabel 2 VJ'!J103/'Tabel 1 VJ'!G101*100,"-")) -> 7.046927506
A104: DJØF'ere i alt | C104: =IF(OR('Tabel 1 VJ'!C102<5,'Tabel 2 VJ'!C104<0.5),"-",IFERROR('Tabel 2 VJ'!C104/'Tabel 1 VJ'!C102*100,"-")) -> 3.010033445 | D104: =IF(OR('Tabel 1 VJ'!C102<5,'Tabel 2 VJ'!D104<0.5),"-",IFERROR('Tabel 2 VJ'!D104/'Tabel 1 VJ'!C102*100,"-")) -> 2.510082153 | F104: =IF(OR('Tabel 1 VJ'!E102<5,'Tabel 2 VJ'!F104<0.5),"-",IFERROR('Tabel 2 VJ'!F104/'Tabel 1 VJ'!E102*100,"-")) -> 6.622516556 | G104: =IF(OR('Tabel 1 VJ'!E102<5,'Tabel 2 VJ'!G104<0.5),"-",IFERROR('Tabel 2 VJ'!G104/'Tabel 1 VJ'!E102*100,"-")) -> 5.576866917 | I104: =IF(OR('Tabel 1 VJ'!G102<5,'Tabel 2 VJ'!I104<0.5),"-",IFERROR('Tabel 2 VJ'!I104/'Tabel 1 VJ'!G102*100,"-")) -> 4.825291181 | J104: =IF(OR('Tabel 1 VJ'!G102<5,'Tabel 2 VJ'!J104<0.5),"-",IFERROR('Tabel 2 VJ'!J104/'Tabel 1 VJ'!G102*100,"-")) -> 4.05112874
A109: Holstebro
C111: Mænd | F111: Kvinder | I111: I alt
C112: Ledigheds- berørte | D112: Gns. brutto- ledighed | F112: Ledigheds- berørte | G112: Gns. brutto- ledighed | I112: Ledigheds- berørte | J112: Gns. brutto- ledighed
A115: Civ. ing. | C115: =IF(OR('Tabel 1 VJ'!C113<5,'Tabel 2 VJ'!C115<0.5),"-",IFERROR('Tabel 2 VJ'!C115/'Tabel 1 VJ'!C113*100,"-")) -> 1.265822785 | D115: =IF(OR('Tabel 1 VJ'!C113<5,'Tabel 2 VJ'!D115<0.5),"-",IFERROR('Tabel 2 VJ'!D115/'Tabel 1 VJ'!C113*100,"-")) -> - | F115: =IF(OR('Tabel 1 VJ'!E113<5,'Tabel 2 VJ'!F115<0.5),"-",IFERROR('Tabel 2 VJ'!F115/'Tabel 1 VJ'!E113*100,"-")) -> 4.761904762 | G115: =IF(OR('Tabel 1 VJ'!E113<5,'Tabel 2 VJ'!G115<0.5),"-",IFERROR('Tabel 2 VJ'!G115/'Tabel 1 VJ'!E113*100,"-")) -> 4.761013742 | I115: =IF(OR('Tabel 1 VJ'!G113<5,'Tabel 2 VJ'!I115<0.5),"-",IFERROR('Tabel 2 VJ'!I115/'Tabel 1 VJ'!G113*100,"-")) -> 2 | J115: =IF(OR('Tabel 1 VJ'!G113<5,'Tabel 2 VJ'!J115<0.5),"-",IFERROR('Tabel 2 VJ'!J115/'Tabel 1 VJ'!G113*100,"-")) -> 1.445768103
A116: Diplom ing. | C116: =IF(OR('Tabel 1 VJ'!C114<5,'Tabel 2 VJ'!C116<0.5),"-",IFERROR('Tabel 2 VJ'!C116/'Tabel 1 VJ'!C114*100,"-")) -> 1.081081081 | D116: =IF(OR('Tabel 1 VJ'!C114<5,'Tabel 2 VJ'!D116<0.5),"-",IFERROR('Tabel 2 VJ'!D116/'Tabel 1 VJ'!C114*100,"-")) -> 0.8563419029 | F116: =IF(OR('Tabel 1 VJ'!E114<5,'Tabel 2 VJ'!F116<0.5),"-",IFERROR('Tabel 2 VJ'!F116/'Tabel 1 VJ'!E114*100,"-")) -> - | G116: =IF(OR('Tabel 1 VJ'!E114<5,'Tabel 2 VJ'!G116<0.5),"-",IFERROR('Tabel 2 VJ'!G116/'Tabel 1 VJ'!E114*100,"-")) -> - | I116: =IF(OR('Tabel 1 VJ'!G114<5,'Tabel 2 VJ'!I116<0.5),"-",IFERROR('Tabel 2 VJ'!I116/'Tabel 1 VJ'!G114*100,"-")) -> 0.9049773756 | J116: =IF(OR('Tabel 1 VJ'!G114<5,'Tabel 2 VJ'!J116<0.5),"-",IFERROR('Tabel 2 VJ'!J116/'Tabel 1 VJ'!G114*100,"-")) -> 0.7168472943
A117: Cand. Scient. Tek. | C117: =IF(OR('Tabel 1 VJ'!C115<5,'Tabel 2 VJ'!C117<0.5),"-",IFERROR('Tabel 2 VJ'!C117/'Tabel 1 VJ'!C115*100,"-")) -> 8.333333333 | D117: =IF(OR('Tabel 1 VJ'!C115<5,'Tabel 2 VJ'!D117<0.5),"-",IFERROR('Tabel 2 VJ'!D117/'Tabel 1 VJ'!C115*100,"-")) -> 8.331774049 | F117: =IF(OR('Tabel 1 VJ'!E115<5,'Tabel 2 VJ'!F117<0.5),"-",IFERROR('Tabel 2 VJ'!F117/'Tabel 1 VJ'!E115*100,"-")) -> - | G117: =IF(OR('Tabel 1 VJ'!E115<5,'Tabel 2 VJ'!G117<0.5),"-",IFERROR('Tabel 2 VJ'!G117/'Tabel 1 VJ'!E115*100,"-")) -> - | I117: =IF(OR('Tabel 1 VJ'!G115<5,'Tabel 2 VJ'!I117<0.5),"-",IFERROR('Tabel 2 VJ'!I117/'Tabel 1 VJ'!G115*100,"-")) -> 5.405405405 | J117: =IF(OR('Tabel 1 VJ'!G115<5,'Tabel 2 VJ'!J117<0.5),"-",IFERROR('Tabel 2 VJ'!J117/'Tabel 1 VJ'!G115*100,"-")) -> 5.404393978
A118: MA. Hum. | C118: =IF(OR('Tabel 1 VJ'!C116<5,'Tabel 2 VJ'!C118<0.5),"-",IFERROR('Tabel 2 VJ'!C118/'Tabel 1 VJ'!C116*100,"-")) -> 5.555555556 | D118: =IF(OR('Tabel 1 VJ'!C116<5,'Tabel 2 VJ'!D118<0.5),"-",IFERROR('Tabel 2 VJ'!D118/'Tabel 1 VJ'!C116*100,"-")) -> 4.632805949 | F118: =IF(OR('Tabel 1 VJ'!E116<5,'Tabel 2 VJ'!F118<0.5),"-",IFERROR('Tabel 2 VJ'!F118/'Tabel 1 VJ'!E116*100,"-")) -> 8 | G118: =IF(OR('Tabel 1 VJ'!E116<5,'Tabel 2 VJ'!G118<0.5),"-",IFERROR('Tabel 2 VJ'!G118/'Tabel 1 VJ'!E116*100,"-")) -> 6.430736606 | I118: =IF(OR('Tabel 1 VJ'!G116<5,'Tabel 2 VJ'!I118<0.5),"-",IFERROR('Tabel 2 VJ'!I118/'Tabel 1 VJ'!G116*100,"-")) -> 7.262569832 | J118: =IF(OR('Tabel 1 VJ'!G116<5,'Tabel 2 VJ'!J118<0.5),"-",IFERROR('Tabel 2 VJ'!J118/'Tabel 1 VJ'!G116*100,"-")) -> 5.888344117
A119: MA. Nat. | C119: =IF(OR('Tabel 1 VJ'!C117<5,'Tabel 2 VJ'!C119<0.5),"-",IFERROR('Tabel 2 VJ'!C119/'Tabel 1 VJ'!C117*100,"-")) -> 5.882352941 | D119: =IF(OR('Tabel 1 VJ'!C117<5,'Tabel 2 VJ'!D119<0.5),"-",IFERROR('Tabel 2 VJ'!D119/'Tabel 1 VJ'!C117*100,"-")) -> 3.88536878 | F119: =IF(OR('Tabel 1 VJ'!E117<5,'Tabel 2 VJ'!F119<0.5),"-",IFERROR('Tabel 2 VJ'!F119/'Tabel 1 VJ'!E117*100,"-")) -> 5.555555556 | G119: =IF(OR('Tabel 1 VJ'!E117<5,'Tabel 2 VJ'!G119<0.5),"-",IFERROR('Tabel 2 VJ'!G119/'Tabel 1 VJ'!E117*100,"-")) -> 5.554516033 | I119: =IF(OR('Tabel 1 VJ'!G117<5,'Tabel 2 VJ'!I119<0.5),"-",IFERROR('Tabel 2 VJ'!I119/'Tabel 1 VJ'!G117*100,"-")) -> 5.769230769 | J119: =IF(OR('Tabel 1 VJ'!G117<5,'Tabel 2 VJ'!J119<0.5),"-",IFERROR('Tabel 2 VJ'!J119/'Tabel 1 VJ'!G117*100,"-")) -> 4.463150521
A120: MA. Ph.d. | C120: =IF(OR('Tabel 1 VJ'!C118<5,'Tabel 2 VJ'!C120<0.5),"-",IFERROR('Tabel 2 VJ'!C120/'Tabel 1 VJ'!C118*100,"-")) -> - | D120: =IF(OR('Tabel 1 VJ'!C118<5,'Tabel 2 VJ'!D120<0.5),"-",IFERROR('Tabel 2 VJ'!D120/'Tabel 1 VJ'!C118*100,"-")) -> - | F120: =IF(OR('Tabel 1 VJ'!E118<5,'Tabel 2 VJ'!F120<0.5),"-",IFERROR('Tabel 2 VJ'!F120/'Tabel 1 VJ'!E118*100,"-")) -> - | G120: =IF(OR('Tabel 1 VJ'!E118<5,'Tabel 2 VJ'!G120<0.5),"-",IFERROR('Tabel 2 VJ'!G120/'Tabel 1 VJ'!E118*100,"-")) -> - | I120: =IF(OR('Tabel 1 VJ'!G118<5,'Tabel 2 VJ'!I120<0.5),"-",IFERROR('Tabel 2 VJ'!I120/'Tabel 1 VJ'!G118*100,"-")) -> - | J120: =IF(OR('Tabel 1 VJ'!G118<5,'Tabel 2 VJ'!J120<0.5),"-",IFERROR('Tabel 2 VJ'!J120/'Tabel 1 VJ'!G118*100,"-")) -> -
A121: MA. Samf. | C121: =IF(OR('Tabel 1 VJ'!C119<5,'Tabel 2 VJ'!C121<0.5),"-",IFERROR('Tabel 2 VJ'!C121/'Tabel 1 VJ'!C119*100,"-")) -> - | D121: =IF(OR('Tabel 1 VJ'!C119<5,'Tabel 2 VJ'!D121<0.5),"-",IFERROR('Tabel 2 VJ'!D121/'Tabel 1 VJ'!C119*100,"-")) -> - | F121: =IF(OR('Tabel 1 VJ'!E119<5,'Tabel 2 VJ'!F121<0.5),"-",IFERROR('Tabel 2 VJ'!F121/'Tabel 1 VJ'!E119*100,"-")) -> 30 | G121: =IF(OR('Tabel 1 VJ'!E119<5,'Tabel 2 VJ'!G121<0.5),"-",IFERROR('Tabel 2 VJ'!G121/'Tabel 1 VJ'!E119*100,"-")) -> 16.7279985 | I121: =IF(OR('Tabel 1 VJ'!G119<5,'Tabel 2 VJ'!I121<0.5),"-",IFERROR('Tabel 2 VJ'!I121/'Tabel 1 VJ'!G119*100,"-")) -> 33.33333333 | J121: =IF(OR('Tabel 1 VJ'!G119<5,'Tabel 2 VJ'!J121<0.5),"-",IFERROR('Tabel 2 VJ'!J121/'Tabel 1 VJ'!G119*100,"-")) -> 19.98482297
A122: Øvrige Mag. | C122: =IF(OR('Tabel 1 VJ'!C120<5,'Tabel 2 VJ'!C122<0.5),"-",IFERROR('Tabel 2 VJ'!C122/'Tabel 1 VJ'!C120*100,"-")) -> - | D122: =IF(OR('Tabel 1 VJ'!C120<5,'Tabel 2 VJ'!D122<0.5),"-",IFERROR('Tabel 2 VJ'!D122/'Tabel 1 VJ'!C120*100,"-")) -> - | F122: =IF(OR('Tabel 1 VJ'!E120<5,'Tabel 2 VJ'!F122<0.5),"-",IFERROR('Tabel 2 VJ'!F122/'Tabel 1 VJ'!E120*100,"-")) -> - | G122: =IF(OR('Tabel 1 VJ'!E120<5,'Tabel 2 VJ'!G122<0.5),"-",IFERROR('Tabel 2 VJ'!G122/'Tabel 1 VJ'!E120*100,"-")) -> - | I122: =IF(OR('Tabel 1 VJ'!G120<5,'Tabel 2 VJ'!I122<0.5),"-",IFERROR('Tabel 2 VJ'!I122/'Tabel 1 VJ'!G120*100,"-")) -> - | J122: =IF(OR('Tabel 1 VJ'!G120<5,'Tabel 2 VJ'!J122<0.5),"-",IFERROR('Tabel 2 VJ'!J122/'Tabel 1 VJ'!G120*100,"-")) -> -
A123: Agronom | C123: =IF(OR('Tabel 1 VJ'!C121<5,'Tabel 2 VJ'!C123<0.5),"-",IFERROR('Tabel 2 VJ'!C123/'Tabel 1 VJ'!C121*100,"-")) -> - | D123: =IF(OR('Tabel 1 VJ'!C121<5,'Tabel 2 VJ'!D123<0.5),"-",IFERROR('Tabel 2 VJ'!D123/'Tabel 1 VJ'!C121*100,"-")) -> - | F123: =IF(OR('Tabel 1 VJ'!E121<5,'Tabel 2 VJ'!F123<0.5),"-",IFERROR('Tabel 2 VJ'!F123/'Tabel 1 VJ'!E121*100,"-")) -> - | G123: =IF(OR('Tabel 1 VJ'!E121<5,'Tabel 2 VJ'!G123<0.5),"-",IFERROR('Tabel 2 VJ'!G123/'Tabel 1 VJ'!E121*100,"-")) -> - | I123: =IF(OR('Tabel 1 VJ'!G121<5,'Tabel 2 VJ'!I123<0.5),"-",IFERROR('Tabel 2 VJ'!I123/'Tabel 1 VJ'!G121*100,"-")) -> - | J123: =IF(OR('Tabel 1 VJ'!G121<5,'Tabel 2 VJ'!J123<0.5),"-",IFERROR('Tabel 2 VJ'!J123/'Tabel 1 VJ'!G121*100,"-")) -> -
A124: Landsk. Arkt. | C124: =IF(OR('Tabel 1 VJ'!C122<5,'Tabel 2 VJ'!C124<0.5),"-",IFERROR('Tabel 2 VJ'!C124/'Tabel 1 VJ'!C122*100,"-")) -> - | D124: =IF(OR('Tabel 1 VJ'!C122<5,'Tabel 2 VJ'!D124<0.5),"-",IFERROR('Tabel 2 VJ'!D124/'Tabel 1 VJ'!C122*100,"-")) -> - | F124: =IF(OR('Tabel 1 VJ'!E122<5,'Tabel 2 VJ'!F124<0.5),"-",IFERROR('Tabel 2 VJ'!F124/'Tabel 1 VJ'!E122*100,"-")) -> - | G124: =IF(OR('Tabel 1 VJ'!E122<5,'Tabel 2 VJ'!G124<0.5),"-",IFERROR('Tabel 2 VJ'!G124/'Tabel 1 VJ'!E122*100,"-")) -> - | I124: =IF(OR('Tabel 1 VJ'!G122<5,'Tabel 2 VJ'!I124<0.5),"-",IFERROR('Tabel 2 VJ'!I124/'Tabel 1 VJ'!G122*100,"-")) -> - | J124: =IF(OR('Tabel 1 VJ'!G122<5,'Tabel 2 VJ'!J124<0.5),"-",IFERROR('Tabel 2 VJ'!J124/'Tabel 1 VJ'!G122*100,"-")) -> -
A125: Hortonom | C125: =IF(OR('Tabel 1 VJ'!C123<5,'Tabel 2 VJ'!C125<0.5),"-",IFERROR('Tabel 2 VJ'!C125/'Tabel 1 VJ'!C123*100,"-")) -> - | D125: =IF(OR('Tabel 1 VJ'!C123<5,'Tabel 2 VJ'!D125<0.5),"-",IFERROR('Tabel 2 VJ'!D125/'Tabel 1 VJ'!C123*100,"-")) -> - | F125: =IF(OR('Tabel 1 VJ'!E123<5,'Tabel 2 VJ'!F125<0.5),"-",IFERROR('Tabel 2 VJ'!F125/'Tabel 1 VJ'!E123*100,"-")) -> - | G125: =IF(OR('Tabel 1 VJ'!E123<5,'Tabel 2 VJ'!G125<0.5),"-",IFERROR('Tabel 2 VJ'!G125/'Tabel 1 VJ'!E123*100,"-")) -> - | I125: =IF(OR('Tabel 1 VJ'!G123<5,'Tabel 2 VJ'!I125<0.5),"-",IFERROR('Tabel 2 VJ'!I125/'Tabel 1 VJ'!G123*100,"-")) -> - | J125: =IF(OR('Tabel 1 VJ'!G123<5,'Tabel 2 VJ'!J125<0.5),"-",IFERROR('Tabel 2 VJ'!J125/'Tabel 1 VJ'!G123*100,"-")) -> -
A126: Forstkand. | C126: =IF(OR('Tabel 1 VJ'!C124<5,'Tabel 2 VJ'!C126<0.5),"-",IFERROR('Tabel 2 VJ'!C126/'Tabel 1 VJ'!C124*100,"-")) -> - | D126: =IF(OR('Tabel 1 VJ'!C124<5,'Tabel 2 VJ'!D126<0.5),"-",IFERROR('Tabel 2 VJ'!D126/'Tabel 1 VJ'!C124*100,"-")) -> - | F126: =IF(OR('Tabel 1 VJ'!E124<5,'Tabel 2 VJ'!F126<0.5),"-",IFERROR('Tabel 2 VJ'!F126/'Tabel 1 VJ'!E124*100,"-")) -> - | G126: =IF(OR('Tabel 1 VJ'!E124<5,'Tabel 2 VJ'!G126<0.5),"-",IFERROR('Tabel 2 VJ'!G126/'Tabel 1 VJ'!E124*100,"-")) -> - | I126: =IF(OR('Tabel 1 VJ'!G124<5,'Tabel 2 VJ'!I126<0.5),"-",IFERROR('Tabel 2 VJ'!I126/'Tabel 1 VJ'!G124*100,"-")) -> - | J126: =IF(OR('Tabel 1 VJ'!G124<5,'Tabel 2 VJ'!J126<0.5),"-",IFERROR('Tabel 2 VJ'!J126/'Tabel 1 VJ'!G124*100,"-")) -> -
A127: Jordbrugsakad. | C127: =IF(OR('Tabel 1 VJ'!C125<5,'Tabel 2 VJ'!C127<0.5),"-",IFERROR('Tabel 2 VJ'!C127/'Tabel 1 VJ'!C125*100,"-")) -> 5 | D127: =IF(OR('Tabel 1 VJ'!C125<5,'Tabel 2 VJ'!D127<0.5),"-",IFERROR('Tabel 2 VJ'!D127/'Tabel 1 VJ'!C125*100,"-")) -> 4.99906443 | F127: =IF(OR('Tabel 1 VJ'!E125<5,'Tabel 2 VJ'!F127<0.5),"-",IFERROR('Tabel 2 VJ'!F127/'Tabel 1 VJ'!E125*100,"-")) -> - | G127: =IF(OR('Tabel 1 VJ'!E125<5,'Tabel 2 VJ'!G127<0.5),"-",IFERROR('Tabel 2 VJ'!G127/'Tabel 1 VJ'!E125*100,"-")) -> - | I127: =IF(OR('Tabel 1 VJ'!G125<5,'Tabel 2 VJ'!I127<0.5),"-",IFERROR('Tabel 2 VJ'!I127/'Tabel 1 VJ'!G125*100,"-")) -> 3.333333333 | J127: =IF(OR('Tabel 1 VJ'!G125<5,'Tabel 2 VJ'!J127<0.5),"-",IFERROR('Tabel 2 VJ'!J127/'Tabel 1 VJ'!G125*100,"-")) -> 3.33270962
A128: Mejeriing. | C128: =IF(OR('Tabel 1 VJ'!C126<5,'Tabel 2 VJ'!C128<0.5),"-",IFERROR('Tabel 2 VJ'!C128/'Tabel 1 VJ'!C126*100,"-")) -> - | D128: =IF(OR('Tabel 1 VJ'!C126<5,'Tabel 2 VJ'!D128<0.5),"-",IFERROR('Tabel 2 VJ'!D128/'Tabel 1 VJ'!C126*100,"-")) -> - | F128: =IF(OR('Tabel 1 VJ'!E126<5,'Tabel 2 VJ'!F128<0.5),"-",IFERROR('Tabel 2 VJ'!F128/'Tabel 1 VJ'!E126*100,"-")) -> - | G128: =IF(OR('Tabel 1 VJ'!E126<5,'Tabel 2 VJ'!G128<0.5),"-",IFERROR('Tabel 2 VJ'!G128/'Tabel 1 VJ'!E126*100,"-")) -> - | I128: =IF(OR('Tabel 1 VJ'!G126<5,'Tabel 2 VJ'!I128<0.5),"-",IFERROR('Tabel 2 VJ'!I128/'Tabel 1 VJ'!G126*100,"-")) -> - | J128: =IF(OR('Tabel 1 VJ'!G126<5,'Tabel 2 VJ'!J128<0.5),"-",IFERROR('Tabel 2 VJ'!J128/'Tabel 1 VJ'!G126*100,"-")) -> -
A129: Levn.m.kand. | C129: =IF(OR('Tabel 1 VJ'!C127<5,'Tabel 2 VJ'!C129<0.5),"-",IFERROR('Tabel 2 VJ'!C129/'Tabel 1 VJ'!C127*100,"-")) -> - | D129: =IF(OR('Tabel 1 VJ'!C127<5,'Tabel 2 VJ'!D129<0.5),"-",IFERROR('Tabel 2 VJ'!D129/'Tabel 1 VJ'!C127*100,"-")) -> - | F129: =IF(OR('Tabel 1 VJ'!E127<5,'Tabel 2 VJ'!F129<0.5),"-",IFERROR('Tabel 2 VJ'!F129/'Tabel 1 VJ'!E127*100,"-")) -> - | G129: =IF(OR('Tabel 1 VJ'!E127<5,'Tabel 2 VJ'!G129<0.5),"-",IFERROR('Tabel 2 VJ'!G129/'Tabel 1 VJ'!E127*100,"-")) -> - | I129: =IF(OR('Tabel 1 VJ'!G127<5,'Tabel 2 VJ'!I129<0.5),"-",IFERROR('Tabel 2 VJ'!I129/'Tabel 1 VJ'!G127*100,"-")) -> - | J129: =IF(OR('Tabel 1 VJ'!G127<5,'Tabel 2 VJ'!J129<0.5),"-",IFERROR('Tabel 2 VJ'!J129/'Tabel 1 VJ'!G127*100,"-")) -> -
A130: Dyrlæge | C130: =IF(OR('Tabel 1 VJ'!C128<5,'Tabel 2 VJ'!C130<0.5),"-",IFERROR('Tabel 2 VJ'!C130/'Tabel 1 VJ'!C128*100,"-")) -> - | D130: =IF(OR('Tabel 1 VJ'!C128<5,'Tabel 2 VJ'!D130<0.5),"-",IFERROR('Tabel 2 VJ'!D130/'Tabel 1 VJ'!C128*100,"-")) -> - | F130: =IF(OR('Tabel 1 VJ'!E128<5,'Tabel 2 VJ'!F130<0.5),"-",IFERROR('Tabel 2 VJ'!F130/'Tabel 1 VJ'!E128*100,"-")) -> - | G130: =IF(OR('Tabel 1 VJ'!E128<5,'Tabel 2 VJ'!G130<0.5),"-",IFERROR('Tabel 2 VJ'!G130/'Tabel 1 VJ'!E128*100,"-")) -> - | I130: =IF(OR('Tabel 1 VJ'!G128<5,'Tabel 2 VJ'!I130<0.5),"-",IFERROR('Tabel 2 VJ'!I130/'Tabel 1 VJ'!G128*100,"-")) -> - | J130: =IF(OR('Tabel 1 VJ'!G128<5,'Tabel 2 VJ'!J130<0.5),"-",IFERROR('Tabel 2 VJ'!J130/'Tabel 1 VJ'!G128*100,"-")) -> -
A131: Farmaceut | C131: =IF(OR('Tabel 1 VJ'!C129<5,'Tabel 2 VJ'!C131<0.5),"-",IFERROR('Tabel 2 VJ'!C131/'Tabel 1 VJ'!C129*100,"-")) -> - | D131: =IF(OR('Tabel 1 VJ'!C129<5,'Tabel 2 VJ'!D131<0.5),"-",IFERROR('Tabel 2 VJ'!D131/'Tabel 1 VJ'!C129*100,"-")) -> - | F131: =IF(OR('Tabel 1 VJ'!E129<5,'Tabel 2 VJ'!F131<0.5),"-",IFERROR('Tabel 2 VJ'!F131/'Tabel 1 VJ'!E129*100,"-")) -> - | G131: =IF(OR('Tabel 1 VJ'!E129<5,'Tabel 2 VJ'!G131<0.5),"-",IFERROR('Tabel 2 VJ'!G131/'Tabel 1 VJ'!E129*100,"-")) -> - | I131: =IF(OR('Tabel 1 VJ'!G129<5,'Tabel 2 VJ'!I131<0.5),"-",IFERROR('Tabel 2 VJ'!I131/'Tabel 1 VJ'!G129*100,"-")) -> 10 | J131: =IF(OR('Tabel 1 VJ'!G129<5,'Tabel 2 VJ'!J131<0.5),"-",IFERROR('Tabel 2 VJ'!J131/'Tabel 1 VJ'!G129*100,"-")) -> -
A132: Læge | C132: =IF(OR('Tabel 1 VJ'!C130<5,'Tabel 2 VJ'!C132<0.5),"-",IFERROR('Tabel 2 VJ'!C132/'Tabel 1 VJ'!C130*100,"-")) -> 3.571428571 | D132: =IF(OR('Tabel 1 VJ'!C130<5,'Tabel 2 VJ'!D132<0.5),"-",IFERROR('Tabel 2 VJ'!D132/'Tabel 1 VJ'!C130*100,"-")) -> 2.926998779 | F132: =IF(OR('Tabel 1 VJ'!E130<5,'Tabel 2 VJ'!F132<0.5),"-",IFERROR('Tabel 2 VJ'!F132/'Tabel 1 VJ'!E130*100,"-")) -> 2.083333333 | G132: =IF(OR('Tabel 1 VJ'!E130<5,'Tabel 2 VJ'!G132<0.5),"-",IFERROR('Tabel 2 VJ'!G132/'Tabel 1 VJ'!E130*100,"-")) -> - | I132: =IF(OR('Tabel 1 VJ'!G130<5,'Tabel 2 VJ'!I132<0.5),"-",IFERROR('Tabel 2 VJ'!I132/'Tabel 1 VJ'!G130*100,"-")) -> 2.631578947 | J132: =IF(OR('Tabel 1 VJ'!G130<5,'Tabel 2 VJ'!J132<0.5),"-",IFERROR('Tabel 2 VJ'!J132/'Tabel 1 VJ'!G130*100,"-")) -> 1.48296113
A133: Tandlæge | C133: =IF(OR('Tabel 1 VJ'!C131<5,'Tabel 2 VJ'!C133<0.5),"-",IFERROR('Tabel 2 VJ'!C133/'Tabel 1 VJ'!C131*100,"-")) -> - | D133: =IF(OR('Tabel 1 VJ'!C131<5,'Tabel 2 VJ'!D133<0.5),"-",IFERROR('Tabel 2 VJ'!D133/'Tabel 1 VJ'!C131*100,"-")) -> - | F133: =IF(OR('Tabel 1 VJ'!E131<5,'Tabel 2 VJ'!F133<0.5),"-",IFERROR('Tabel 2 VJ'!F133/'Tabel 1 VJ'!E131*100,"-")) -> 6.666666667 | G133: =IF(OR('Tabel 1 VJ'!E131<5,'Tabel 2 VJ'!G133<0.5),"-",IFERROR('Tabel 2 VJ'!G133/'Tabel 1 VJ'!E131*100,"-")) -> 5.126925716 | I133: =IF(OR('Tabel 1 VJ'!G131<5,'Tabel 2 VJ'!I133<0.5),"-",IFERROR('Tabel 2 VJ'!I133/'Tabel 1 VJ'!G131*100,"-")) -> 5.555555556 | J133: =IF(OR('Tabel 1 VJ'!G131<5,'Tabel 2 VJ'!J133<0.5),"-",IFERROR('Tabel 2 VJ'!J133/'Tabel 1 VJ'!G131*100,"-")) -> 4.272438096
A134: Arkitekt | C134: =IF(OR('Tabel 1 VJ'!C132<5,'Tabel 2 VJ'!C134<0.5),"-",IFERROR('Tabel 2 VJ'!C134/'Tabel 1 VJ'!C132*100,"-")) -> - | D134: =IF(OR('Tabel 1 VJ'!C132<5,'Tabel 2 VJ'!D134<0.5),"-",IFERROR('Tabel 2 VJ'!D134/'Tabel 1 VJ'!C132*100,"-")) -> - | F134: =IF(OR('Tabel 1 VJ'!E132<5,'Tabel 2 VJ'!F134<0.5),"-",IFERROR('Tabel 2 VJ'!F134/'Tabel 1 VJ'!E132*100,"-")) -> - | G134: =IF(OR('Tabel 1 VJ'!E132<5,'Tabel 2 VJ'!G134<0.5),"-",IFERROR('Tabel 2 VJ'!G134/'Tabel 1 VJ'!E132*100,"-")) -> - | I134: =IF(OR('Tabel 1 VJ'!G132<5,'Tabel 2 VJ'!I134<0.5),"-",IFERROR('Tabel 2 VJ'!I134/'Tabel 1 VJ'!G132*100,"-")) -> - | J134: =IF(OR('Tabel 1 VJ'!G132<5,'Tabel 2 VJ'!J134<0.5),"-",IFERROR('Tabel 2 VJ'!J134/'Tabel 1 VJ'!G132*100,"-")) -> -
A135: Landinspek. | C135: =IF(OR('Tabel 1 VJ'!C133<5,'Tabel 2 VJ'!C135<0.5),"-",IFERROR('Tabel 2 VJ'!C135/'Tabel 1 VJ'!C133*100,"-")) -> - | D135: =IF(OR('Tabel 1 VJ'!C133<5,'Tabel 2 VJ'!D135<0.5),"-",IFERROR('Tabel 2 VJ'!D135/'Tabel 1 VJ'!C133*100,"-")) -> - | F135: =IF(OR('Tabel 1 VJ'!E133<5,'Tabel 2 VJ'!F135<0.5),"-",IFERROR('Tabel 2 VJ'!F135/'Tabel 1 VJ'!E133*100,"-")) -> - | G135: =IF(OR('Tabel 1 VJ'!E133<5,'Tabel 2 VJ'!G135<0.5),"-",IFERROR('Tabel 2 VJ'!G135/'Tabel 1 VJ'!E133*100,"-")) -> - | I135: =IF(OR('Tabel 1 VJ'!G133<5,'Tabel 2 VJ'!I135<0.5),"-",IFERROR('Tabel 2 VJ'!I135/'Tabel 1 VJ'!G133*100,"-")) -> - | J135: =IF(OR('Tabel 1 VJ'!G133<5,'Tabel 2 VJ'!J135<0.5),"-",IFERROR('Tabel 2 VJ'!J135/'Tabel 1 VJ'!G133*100,"-")) -> -
A136: Bibliotekar | C136: =IF(OR('Tabel 1 VJ'!C134<5,'Tabel 2 VJ'!C136<0.5),"-",IFERROR('Tabel 2 VJ'!C136/'Tabel 1 VJ'!C134*100,"-")) -> - | D136: =IF(OR('Tabel 1 VJ'!C134<5,'Tabel 2 VJ'!D136<0.5),"-",IFERROR('Tabel 2 VJ'!D136/'Tabel 1 VJ'!C134*100,"-")) -> - | F136: =IF(OR('Tabel 1 VJ'!E134<5,'Tabel 2 VJ'!F136<0.5),"-",IFERROR('Tabel 2 VJ'!F136/'Tabel 1 VJ'!E134*100,"-")) -> 4.545454545 | G136: =IF(OR('Tabel 1 VJ'!E134<5,'Tabel 2 VJ'!G136<0.5),"-",IFERROR('Tabel 2 VJ'!G136/'Tabel 1 VJ'!E134*100,"-")) -> 4.544604027 | I136: =IF(OR('Tabel 1 VJ'!G134<5,'Tabel 2 VJ'!I136<0.5),"-",IFERROR('Tabel 2 VJ'!I136/'Tabel 1 VJ'!G134*100,"-")) -> 4 | J136: =IF(OR('Tabel 1 VJ'!G134<5,'Tabel 2 VJ'!J136<0.5),"-",IFERROR('Tabel 2 VJ'!J136/'Tabel 1 VJ'!G134*100,"-")) -> 3.999251544
A137: Musikudd. | C137: =IF(OR('Tabel 1 VJ'!C135<5,'Tabel 2 VJ'!C137<0.5),"-",IFERROR('Tabel 2 VJ'!C137/'Tabel 1 VJ'!C135*100,"-")) -> - | D137: =IF(OR('Tabel 1 VJ'!C135<5,'Tabel 2 VJ'!D137<0.5),"-",IFERROR('Tabel 2 VJ'!D137/'Tabel 1 VJ'!C135*100,"-")) -> - | F137: =IF(OR('Tabel 1 VJ'!E135<5,'Tabel 2 VJ'!F137<0.5),"-",IFERROR('Tabel 2 VJ'!F137/'Tabel 1 VJ'!E135*100,"-")) -> - | G137: =IF(OR('Tabel 1 VJ'!E135<5,'Tabel 2 VJ'!G137<0.5),"-",IFERROR('Tabel 2 VJ'!G137/'Tabel 1 VJ'!E135*100,"-")) -> - | I137: =IF(OR('Tabel 1 VJ'!G135<5,'Tabel 2 VJ'!I137<0.5),"-",IFERROR('Tabel 2 VJ'!I137/'Tabel 1 VJ'!G135*100,"-")) -> - | J137: =IF(OR('Tabel 1 VJ'!G135<5,'Tabel 2 VJ'!J137<0.5),"-",IFERROR('Tabel 2 VJ'!J137/'Tabel 1 VJ'!G135*100,"-")) -> -
A138: Teolog | C138: =IF(OR('Tabel 1 VJ'!C136<5,'Tabel 2 VJ'!C138<0.5),"-",IFERROR('Tabel 2 VJ'!C138/'Tabel 1 VJ'!C136*100,"-")) -> - | D138: =IF(OR('Tabel 1 VJ'!C136<5,'Tabel 2 VJ'!D138<0.5),"-",IFERROR('Tabel 2 VJ'!D138/'Tabel 1 VJ'!C136*100,"-")) -> - | F138: =IF(OR('Tabel 1 VJ'!E136<5,'Tabel 2 VJ'!F138<0.5),"-",IFERROR('Tabel 2 VJ'!F138/'Tabel 1 VJ'!E136*100,"-")) -> - | G138: =IF(OR('Tabel 1 VJ'!E136<5,'Tabel 2 VJ'!G138<0.5),"-",IFERROR('Tabel 2 VJ'!G138/'Tabel 1 VJ'!E136*100,"-")) -> - | I138: =IF(OR('Tabel 1 VJ'!G136<5,'Tabel 2 VJ'!I138<0.5),"-",IFERROR('Tabel 2 VJ'!I138/'Tabel 1 VJ'!G136*100,"-")) -> - | J138: =IF(OR('Tabel 1 VJ'!G136<5,'Tabel 2 VJ'!J138<0.5),"-",IFERROR('Tabel 2 VJ'!J138/'Tabel 1 VJ'!G136*100,"-")) -> -
A139: Psykolog | C139: =IF(OR('Tabel 1 VJ'!C137<5,'Tabel 2 VJ'!C139<0.5),"-",IFERROR('Tabel 2 VJ'!C139/'Tabel 1 VJ'!C137*100,"-")) -> - | D139: =IF(OR('Tabel 1 VJ'!C137<5,'Tabel 2 VJ'!D139<0.5),"-",IFERROR('Tabel 2 VJ'!D139/'Tabel 1 VJ'!C137*100,"-")) -> - | F139: =IF(OR('Tabel 1 VJ'!E137<5,'Tabel 2 VJ'!F139<0.5),"-",IFERROR('Tabel 2 VJ'!F139/'Tabel 1 VJ'!E137*100,"-")) -> 2.702702703 | G139: =IF(OR('Tabel 1 VJ'!E137<5,'Tabel 2 VJ'!G139<0.5),"-",IFERROR('Tabel 2 VJ'!G139/'Tabel 1 VJ'!E137*100,"-")) -> - | I139: =IF(OR('Tabel 1 VJ'!G137<5,'Tabel 2 VJ'!I139<0.5),"-",IFERROR('Tabel 2 VJ'!I139/'Tabel 1 VJ'!G137*100,"-")) -> 2.272727273 | J139: =IF(OR('Tabel 1 VJ'!G137<5,'Tabel 2 VJ'!J139<0.5),"-",IFERROR('Tabel 2 VJ'!J139/'Tabel 1 VJ'!G137*100,"-")) -> -
A140: Jurist | C140: =IF(OR('Tabel 1 VJ'!C138<5,'Tabel 2 VJ'!C140<0.5),"-",IFERROR('Tabel 2 VJ'!C140/'Tabel 1 VJ'!C138*100,"-")) -> 4.166666667 | D140: =IF(OR('Tabel 1 VJ'!C138<5,'Tabel 2 VJ'!D140<0.5),"-",IFERROR('Tabel 2 VJ'!D140/'Tabel 1 VJ'!C138*100,"-")) -> 4.165887025 | F140: =IF(OR('Tabel 1 VJ'!E138<5,'Tabel 2 VJ'!F140<0.5),"-",IFERROR('Tabel 2 VJ'!F140/'Tabel 1 VJ'!E138*100,"-")) -> - | G140: =IF(OR('Tabel 1 VJ'!E138<5,'Tabel 2 VJ'!G140<0.5),"-",IFERROR('Tabel 2 VJ'!G140/'Tabel 1 VJ'!E138*100,"-")) -> - | I140: =IF(OR('Tabel 1 VJ'!G138<5,'Tabel 2 VJ'!I140<0.5),"-",IFERROR('Tabel 2 VJ'!I140/'Tabel 1 VJ'!G138*100,"-")) -> 1.886792453 | J140: =IF(OR('Tabel 1 VJ'!G138<5,'Tabel 2 VJ'!J140<0.5),"-",IFERROR('Tabel 2 VJ'!J140/'Tabel 1 VJ'!G138*100,"-")) -> 1.886439407
A141: Økonom | C141: =IF(OR('Tabel 1 VJ'!C139<5,'Tabel 2 VJ'!C141<0.5),"-",IFERROR('Tabel 2 VJ'!C141/'Tabel 1 VJ'!C139*100,"-")) -> - | D141: =IF(OR('Tabel 1 VJ'!C139<5,'Tabel 2 VJ'!D141<0.5),"-",IFERROR('Tabel 2 VJ'!D141/'Tabel 1 VJ'!C139*100,"-")) -> - | F141: =IF(OR('Tabel 1 VJ'!E139<5,'Tabel 2 VJ'!F141<0.5),"-",IFERROR('Tabel 2 VJ'!F141/'Tabel 1 VJ'!E139*100,"-")) -> - | G141: =IF(OR('Tabel 1 VJ'!E139<5,'Tabel 2 VJ'!G141<0.5),"-",IFERROR('Tabel 2 VJ'!G141/'Tabel 1 VJ'!E139*100,"-")) -> - | I141: =IF(OR('Tabel 1 VJ'!G139<5,'Tabel 2 VJ'!I141<0.5),"-",IFERROR('Tabel 2 VJ'!I141/'Tabel 1 VJ'!G139*100,"-")) -> - | J141: =IF(OR('Tabel 1 VJ'!G139<5,'Tabel 2 VJ'!J141<0.5),"-",IFERROR('Tabel 2 VJ'!J141/'Tabel 1 VJ'!G139*100,"-")) -> -
A142: Samf. Adm. | C142: =IF(OR('Tabel 1 VJ'!C140<5,'Tabel 2 VJ'!C142<0.5),"-",IFERROR('Tabel 2 VJ'!C142/'Tabel 1 VJ'!C140*100,"-")) -> 8.695652174 | D142: =IF(OR('Tabel 1 VJ'!C140<5,'Tabel 2 VJ'!D142<0.5),"-",IFERROR('Tabel 2 VJ'!D142/'Tabel 1 VJ'!C140*100,"-")) -> 6.085275207 | F142: =IF(OR('Tabel 1 VJ'!E140<5,'Tabel 2 VJ'!F142<0.5),"-",IFERROR('Tabel 2 VJ'!F142/'Tabel 1 VJ'!E140*100,"-")) -> 9.756097561 | G142: =IF(OR('Tabel 1 VJ'!E140<5,'Tabel 2 VJ'!G142<0.5),"-",IFERROR('Tabel 2 VJ'!G142/'Tabel 1 VJ'!E140*100,"-")) -> 8.178254302 | I142: =IF(OR('Tabel 1 VJ'!G140<5,'Tabel 2 VJ'!I142<0.5),"-",IFERROR('Tabel 2 VJ'!I142/'Tabel 1 VJ'!G140*100,"-")) -> 9.375 | J142: =IF(OR('Tabel 1 VJ'!G140<5,'Tabel 2 VJ'!J142<0.5),"-",IFERROR('Tabel 2 VJ'!J142/'Tabel 1 VJ'!G140*100,"-")) -> 7.426089939
A143: Cand. Merc. | C143: =IF(OR('Tabel 1 VJ'!C141<5,'Tabel 2 VJ'!C143<0.5),"-",IFERROR('Tabel 2 VJ'!C143/'Tabel 1 VJ'!C141*100,"-")) -> 1.470588235 | D143: =IF(OR('Tabel 1 VJ'!C141<5,'Tabel 2 VJ'!D143<0.5),"-",IFERROR('Tabel 2 VJ'!D143/'Tabel 1 VJ'!C141*100,"-")) -> 1.470313068 | F143: =IF(OR('Tabel 1 VJ'!E141<5,'Tabel 2 VJ'!F143<0.5),"-",IFERROR('Tabel 2 VJ'!F143/'Tabel 1 VJ'!E141*100,"-")) -> 2.127659574 | G143: =IF(OR('Tabel 1 VJ'!E141<5,'Tabel 2 VJ'!G143<0.5),"-",IFERROR('Tabel 2 VJ'!G143/'Tabel 1 VJ'!E141*100,"-")) -> 2.127261459 | I143: =IF(OR('Tabel 1 VJ'!G141<5,'Tabel 2 VJ'!I143<0.5),"-",IFERROR('Tabel 2 VJ'!I143/'Tabel 1 VJ'!G141*100,"-")) -> 1.739130435 | J143: =IF(OR('Tabel 1 VJ'!G141<5,'Tabel 2 VJ'!J143<0.5),"-",IFERROR('Tabel 2 VJ'!J143/'Tabel 1 VJ'!G141*100,"-")) -> 1.738805019
A144: HA | C144: =IF(OR('Tabel 1 VJ'!C142<5,'Tabel 2 VJ'!C144<0.5),"-",IFERROR('Tabel 2 VJ'!C144/'Tabel 1 VJ'!C142*100,"-")) -> - | D144: =IF(OR('Tabel 1 VJ'!C142<5,'Tabel 2 VJ'!D144<0.5),"-",IFERROR('Tabel 2 VJ'!D144/'Tabel 1 VJ'!C142*100,"-")) -> - | F144: =IF(OR('Tabel 1 VJ'!E142<5,'Tabel 2 VJ'!F144<0.5),"-",IFERROR('Tabel 2 VJ'!F144/'Tabel 1 VJ'!E142*100,"-")) -> 5.263157895 | G144: =IF(OR('Tabel 1 VJ'!E142<5,'Tabel 2 VJ'!G144<0.5),"-",IFERROR('Tabel 2 VJ'!G144/'Tabel 1 VJ'!E142*100,"-")) -> 5.262173084 | I144: =IF(OR('Tabel 1 VJ'!G142<5,'Tabel 2 VJ'!I144<0.5),"-",IFERROR('Tabel 2 VJ'!I144/'Tabel 1 VJ'!G142*100,"-")) -> 2.941176471 | J144: =IF(OR('Tabel 1 VJ'!G142<5,'Tabel 2 VJ'!J144<0.5),"-",IFERROR('Tabel 2 VJ'!J144/'Tabel 1 VJ'!G142*100,"-")) -> 2.940626135
A145: HD | C145: =IF(OR('Tabel 1 VJ'!C143<5,'Tabel 2 VJ'!C145<0.5),"-",IFERROR('Tabel 2 VJ'!C145/'Tabel 1 VJ'!C143*100,"-")) -> - | D145: =IF(OR('Tabel 1 VJ'!C143<5,'Tabel 2 VJ'!D145<0.5),"-",IFERROR('Tabel 2 VJ'!D145/'Tabel 1 VJ'!C143*100,"-")) -> - | F145: =IF(OR('Tabel 1 VJ'!E143<5,'Tabel 2 VJ'!F145<0.5),"-",IFERROR('Tabel 2 VJ'!F145/'Tabel 1 VJ'!E143*100,"-")) -> - | G145: =IF(OR('Tabel 1 VJ'!E143<5,'Tabel 2 VJ'!G145<0.5),"-",IFERROR('Tabel 2 VJ'!G145/'Tabel 1 VJ'!E143*100,"-")) -> - | I145: =IF(OR('Tabel 1 VJ'!G143<5,'Tabel 2 VJ'!I145<0.5),"-",IFERROR('Tabel 2 VJ'!I145/'Tabel 1 VJ'!G143*100,"-")) -> - | J145: =IF(OR('Tabel 1 VJ'!G143<5,'Tabel 2 VJ'!J145<0.5),"-",IFERROR('Tabel 2 VJ'!J145/'Tabel 1 VJ'!G143*100,"-")) -> -
A146: Komm. og Sprog | C146: =IF(OR('Tabel 1 VJ'!C144<5,'Tabel 2 VJ'!C146<0.5),"-",IFERROR('Tabel 2 VJ'!C146/'Tabel 1 VJ'!C144*100,"-")) -> - | D146: =IF(OR('Tabel 1 VJ'!C144<5,'Tabel 2 VJ'!D146<0.5),"-",IFERROR('Tabel 2 VJ'!D146/'Tabel 1 VJ'!C144*100,"-")) -> - | F146: =IF(OR('Tabel 1 VJ'!E144<5,'Tabel 2 VJ'!F146<0.5),"-",IFERROR('Tabel 2 VJ'!F146/'Tabel 1 VJ'!E144*100,"-")) -> 4.545454545 | G146: =IF(OR('Tabel 1 VJ'!E144<5,'Tabel 2 VJ'!G146<0.5),"-",IFERROR('Tabel 2 VJ'!G146/'Tabel 1 VJ'!E144*100,"-")) -> 4.544604027 | I146: =IF(OR('Tabel 1 VJ'!G144<5,'Tabel 2 VJ'!I146<0.5),"-",IFERROR('Tabel 2 VJ'!I146/'Tabel 1 VJ'!G144*100,"-")) -> 4.166666667 | J146: =IF(OR('Tabel 1 VJ'!G144<5,'Tabel 2 VJ'!J146<0.5),"-",IFERROR('Tabel 2 VJ'!J146/'Tabel 1 VJ'!G144*100,"-")) -> 4.165887025
A147: Cand. IT. | C147: =IF(OR('Tabel 1 VJ'!C145<5,'Tabel 2 VJ'!C147<0.5),"-",IFERROR('Tabel 2 VJ'!C147/'Tabel 1 VJ'!C145*100,"-")) -> - | D147: =IF(OR('Tabel 1 VJ'!C145<5,'Tabel 2 VJ'!D147<0.5),"-",IFERROR('Tabel 2 VJ'!D147/'Tabel 1 VJ'!C145*100,"-")) -> - | F147: =IF(OR('Tabel 1 VJ'!E145<5,'Tabel 2 VJ'!F147<0.5),"-",IFERROR('Tabel 2 VJ'!F147/'Tabel 1 VJ'!E145*100,"-")) -> - | G147: =IF(OR('Tabel 1 VJ'!E145<5,'Tabel 2 VJ'!G147<0.5),"-",IFERROR('Tabel 2 VJ'!G147/'Tabel 1 VJ'!E145*100,"-")) -> - | I147: =IF(OR('Tabel 1 VJ'!G145<5,'Tabel 2 VJ'!I147<0.5),"-",IFERROR('Tabel 2 VJ'!I147/'Tabel 1 VJ'!G145*100,"-")) -> 20 | J147: =IF(OR('Tabel 1 VJ'!G145<5,'Tabel 2 VJ'!J147<0.5),"-",IFERROR('Tabel 2 VJ'!J147/'Tabel 1 VJ'!G145*100,"-")) -> 19.99625772
A148: Bac. Samf. | C148: =IF(OR('Tabel 1 VJ'!C146<5,'Tabel 2 VJ'!C148<0.5),"-",IFERROR('Tabel 2 VJ'!C148/'Tabel 1 VJ'!C146*100,"-")) -> - | D148: =IF(OR('Tabel 1 VJ'!C146<5,'Tabel 2 VJ'!D148<0.5),"-",IFERROR('Tabel 2 VJ'!D148/'Tabel 1 VJ'!C146*100,"-")) -> - | F148: =IF(OR('Tabel 1 VJ'!E146<5,'Tabel 2 VJ'!F148<0.5),"-",IFERROR('Tabel 2 VJ'!F148/'Tabel 1 VJ'!E146*100,"-")) -> - | G148: =IF(OR('Tabel 1 VJ'!E146<5,'Tabel 2 VJ'!G148<0.5),"-",IFERROR('Tabel 2 VJ'!G148/'Tabel 1 VJ'!E146*100,"-")) -> - | I148: =IF(OR('Tabel 1 VJ'!G146<5,'Tabel 2 VJ'!I148<0.5),"-",IFERROR('Tabel 2 VJ'!I148/'Tabel 1 VJ'!G146*100,"-")) -> - | J148: =IF(OR('Tabel 1 VJ'!G146<5,'Tabel 2 VJ'!J148<0.5),"-",IFERROR('Tabel 2 VJ'!J148/'Tabel 1 VJ'!G146*100,"-")) -> -
A149: Bac. Hum. | C149: =IF(OR('Tabel 1 VJ'!C147<5,'Tabel 2 VJ'!C149<0.5),"-",IFERROR('Tabel 2 VJ'!C149/'Tabel 1 VJ'!C147*100,"-")) -> - | D149: =IF(OR('Tabel 1 VJ'!C147<5,'Tabel 2 VJ'!D149<0.5),"-",IFERROR('Tabel 2 VJ'!D149/'Tabel 1 VJ'!C147*100,"-")) -> - | F149: =IF(OR('Tabel 1 VJ'!E147<5,'Tabel 2 VJ'!F149<0.5),"-",IFERROR('Tabel 2 VJ'!F149/'Tabel 1 VJ'!E147*100,"-")) -> - | G149: =IF(OR('Tabel 1 VJ'!E147<5,'Tabel 2 VJ'!G149<0.5),"-",IFERROR('Tabel 2 VJ'!G149/'Tabel 1 VJ'!E147*100,"-")) -> - | I149: =IF(OR('Tabel 1 VJ'!G147<5,'Tabel 2 VJ'!I149<0.5),"-",IFERROR('Tabel 2 VJ'!I149/'Tabel 1 VJ'!G147*100,"-")) -> - | J149: =IF(OR('Tabel 1 VJ'!G147<5,'Tabel 2 VJ'!J149<0.5),"-",IFERROR('Tabel 2 VJ'!J149/'Tabel 1 VJ'!G147*100,"-")) -> -
A150: Bac. Nat. | C150: =IF(OR('Tabel 1 VJ'!C148<5,'Tabel 2 VJ'!C150<0.5),"-",IFERROR('Tabel 2 VJ'!C150/'Tabel 1 VJ'!C148*100,"-")) -> - | D150: =IF(OR('Tabel 1 VJ'!C148<5,'Tabel 2 VJ'!D150<0.5),"-",IFERROR('Tabel 2 VJ'!D150/'Tabel 1 VJ'!C148*100,"-")) -> - | F150: =IF(OR('Tabel 1 VJ'!E148<5,'Tabel 2 VJ'!F150<0.5),"-",IFERROR('Tabel 2 VJ'!F150/'Tabel 1 VJ'!E148*100,"-")) -> - | G150: =IF(OR('Tabel 1 VJ'!E148<5,'Tabel 2 VJ'!G150<0.5),"-",IFERROR('Tabel 2 VJ'!G150/'Tabel 1 VJ'!E148*100,"-")) -> - | I150: =IF(OR('Tabel 1 VJ'!G148<5,'Tabel 2 VJ'!I150<0.5),"-",IFERROR('Tabel 2 VJ'!I150/'Tabel 1 VJ'!G148*100,"-")) -> - | J150: =IF(OR('Tabel 1 VJ'!G148<5,'Tabel 2 VJ'!J150<0.5),"-",IFERROR('Tabel 2 VJ'!J150/'Tabel 1 VJ'!G148*100,"-")) -> -
A151: Andre | C151: =IF(OR('Tabel 1 VJ'!C149<5,'Tabel 2 VJ'!C151<0.5),"-",IFERROR('Tabel 2 VJ'!C151/'Tabel 1 VJ'!C149*100,"-")) -> 2.631578947 | D151: =IF(OR('Tabel 1 VJ'!C149<5,'Tabel 2 VJ'!D151<0.5),"-",IFERROR('Tabel 2 VJ'!D151/'Tabel 1 VJ'!C149*100,"-")) -> 2.631086542 | F151: =IF(OR('Tabel 1 VJ'!E149<5,'Tabel 2 VJ'!F151<0.5),"-",IFERROR('Tabel 2 VJ'!F151/'Tabel 1 VJ'!E149*100,"-")) -> 5.555555556 | G151: =IF(OR('Tabel 1 VJ'!E149<5,'Tabel 2 VJ'!G151<0.5),"-",IFERROR('Tabel 2 VJ'!G151/'Tabel 1 VJ'!E149*100,"-")) -> 4.785269271 | I151: =IF(OR('Tabel 1 VJ'!G149<5,'Tabel 2 VJ'!I151<0.5),"-",IFERROR('Tabel 2 VJ'!I151/'Tabel 1 VJ'!G149*100,"-")) -> 4.054054054 | J151: =IF(OR('Tabel 1 VJ'!G149<5,'Tabel 2 VJ'!J151<0.5),"-",IFERROR('Tabel 2 VJ'!J151/'Tabel 1 VJ'!G149*100,"-")) -> 3.679067329
A153: Total | C153: =IF(OR('Tabel 1 VJ'!C151<5,'Tabel 2 VJ'!C153<0.5),"-",IFERROR('Tabel 2 VJ'!C153/'Tabel 1 VJ'!C151*100,"-")) -> 3.017241379 | D153: =IF(OR('Tabel 1 VJ'!C151<5,'Tabel 2 VJ'!D153<0.5),"-",IFERROR('Tabel 2 VJ'!D153/'Tabel 1 VJ'!C151*100,"-")) -> 2.457395702 | F153: =IF(OR('Tabel 1 VJ'!E151<5,'Tabel 2 VJ'!F153<0.5),"-",IFERROR('Tabel 2 VJ'!F153/'Tabel 1 VJ'!E151*100,"-")) -> 4.388714734 | G153: =IF(OR('Tabel 1 VJ'!E151<5,'Tabel 2 VJ'!G153<0.5),"-",IFERROR('Tabel 2 VJ'!G153/'Tabel 1 VJ'!E151*100,"-")) -> 3.496608777 | I153: =IF(OR('Tabel 1 VJ'!G151<5,'Tabel 2 VJ'!I153<0.5),"-",IFERROR('Tabel 2 VJ'!I153/'Tabel 1 VJ'!G151*100,"-")) -> 3.673163418 | J153: =IF(OR('Tabel 1 VJ'!G151<5,'Tabel 2 VJ'!J153<0.5),"-",IFERROR('Tabel 2 VJ'!J153/'Tabel 1 VJ'!G151*100,"-")) -> 2.954410651
A155: Ingeniører i alt | C155: =IF(OR('Tabel 1 VJ'!C153<5,'Tabel 2 VJ'!C155<0.5),"-",IFERROR('Tabel 2 VJ'!C155/'Tabel 1 VJ'!C153*100,"-")) -> 1.136363636 | D155: =IF(OR('Tabel 1 VJ'!C153<5,'Tabel 2 VJ'!D155<0.5),"-",IFERROR('Tabel 2 VJ'!D155/'Tabel 1 VJ'!C153*100,"-")) -> 0.7690105067 | F155: =IF(OR('Tabel 1 VJ'!E153<5,'Tabel 2 VJ'!F155<0.5),"-",IFERROR('Tabel 2 VJ'!F155/'Tabel 1 VJ'!E153*100,"-")) -> 1.754385965 | G155: =IF(OR('Tabel 1 VJ'!E153<5,'Tabel 2 VJ'!G155<0.5),"-",IFERROR('Tabel 2 VJ'!G155/'Tabel 1 VJ'!E153*100,"-")) -> 1.754057695 | I155: =IF(OR('Tabel 1 VJ'!G153<5,'Tabel 2 VJ'!I155<0.5),"-",IFERROR('Tabel 2 VJ'!I155/'Tabel 1 VJ'!G153*100,"-")) -> 1.246105919 | J155: =IF(OR('Tabel 1 VJ'!G153<5,'Tabel 2 VJ'!J155<0.5),"-",IFERROR('Tabel 2 VJ'!J155/'Tabel 1 VJ'!G153*100,"-")) -> 0.9439254279
A156: Magistre i alt | C156: =IF(OR('Tabel 1 VJ'!C154<5,'Tabel 2 VJ'!C156<0.5),"-",IFERROR('Tabel 2 VJ'!C156/'Tabel 1 VJ'!C154*100,"-")) -> 5.940594059 | D156: =IF(OR('Tabel 1 VJ'!C154<5,'Tabel 2 VJ'!D156<0.5),"-",IFERROR('Tabel 2 VJ'!D156/'Tabel 1 VJ'!C154*100,"-")) -> 4.503088617 | F156: =IF(OR('Tabel 1 VJ'!E154<5,'Tabel 2 VJ'!F156<0.5),"-",IFERROR('Tabel 2 VJ'!F156/'Tabel 1 VJ'!E154*100,"-")) -> 8.588957055 | G156: =IF(OR('Tabel 1 VJ'!E154<5,'Tabel 2 VJ'!G156<0.5),"-",IFERROR('Tabel 2 VJ'!G156/'Tabel 1 VJ'!E154*100,"-")) -> 6.571186192 | I156: =IF(OR('Tabel 1 VJ'!G154<5,'Tabel 2 VJ'!I156<0.5),"-",IFERROR('Tabel 2 VJ'!I156/'Tabel 1 VJ'!G154*100,"-")) -> 7.575757576 | J156: =IF(OR('Tabel 1 VJ'!G154<5,'Tabel 2 VJ'!J156<0.5),"-",IFERROR('Tabel 2 VJ'!J156/'Tabel 1 VJ'!G154*100,"-")) -> 5.779982196
A157: DJØF'ere i alt | C157: =IF(OR('Tabel 1 VJ'!C155<5,'Tabel 2 VJ'!C157<0.5),"-",IFERROR('Tabel 2 VJ'!C157/'Tabel 1 VJ'!C155*100,"-")) -> 2.857142857 | D157: =IF(OR('Tabel 1 VJ'!C155<5,'Tabel 2 VJ'!D157<0.5),"-",IFERROR('Tabel 2 VJ'!D157/'Tabel 1 VJ'!C155*100,"-")) -> 2.428027907 | F157: =IF(OR('Tabel 1 VJ'!E155<5,'Tabel 2 VJ'!F157<0.5),"-",IFERROR('Tabel 2 VJ'!F157/'Tabel 1 VJ'!E155*100,"-")) -> 4.054054054 | G157: =IF(OR('Tabel 1 VJ'!E155<5,'Tabel 2 VJ'!G157<0.5),"-",IFERROR('Tabel 2 VJ'!G157/'Tabel 1 VJ'!E155*100,"-")) -> 3.61669597 | I157: =IF(OR('Tabel 1 VJ'!G155<5,'Tabel 2 VJ'!I157<0.5),"-",IFERROR('Tabel 2 VJ'!I157/'Tabel 1 VJ'!G155*100,"-")) -> 3.472222222 | J157: =IF(OR('Tabel 1 VJ'!G155<5,'Tabel 2 VJ'!J157<0.5),"-",IFERROR('Tabel 2 VJ'!J157/'Tabel 1 VJ'!G155*100,"-")) -> 3.038871217
A162: Lemvig
C164: Mænd | F164: Kvinder | I164: I alt
C165: Ledigheds- berørte | D165: Gns. brutto- ledighed | F165: Ledigheds- berørte | G165: Gns. brutto- ledighed | I165: Ledigheds- berørte | J165: Gns. brutto- ledighed
A168: Civ. ing. | C168: =IF(OR('Tabel 1 VJ'!C166<5,'Tabel 2 VJ'!C168<0.5),"-",IFERROR('Tabel 2 VJ'!C168/'Tabel 1 VJ'!C166*100,"-")) -> 12.5 | D168: =IF(OR('Tabel 1 VJ'!C166<5,'Tabel 2 VJ'!D168<0.5),"-",IFERROR('Tabel 2 VJ'!D168/'Tabel 1 VJ'!C166*100,"-")) -> 7.986132768 | F168: =IF(OR('Tabel 1 VJ'!E166<5,'Tabel 2 VJ'!F168<0.5),"-",IFERROR('Tabel 2 VJ'!F168/'Tabel 1 VJ'!E166*100,"-")) -> - | G168: =IF(OR('Tabel 1 VJ'!E166<5,'Tabel 2 VJ'!G168<0.5),"-",IFERROR('Tabel 2 VJ'!G168/'Tabel 1 VJ'!E166*100,"-")) -> - | I168: =IF(OR('Tabel 1 VJ'!G166<5,'Tabel 2 VJ'!I168<0.5),"-",IFERROR('Tabel 2 VJ'!I168/'Tabel 1 VJ'!G166*100,"-")) -> 9.375 | J168: =IF(OR('Tabel 1 VJ'!G166<5,'Tabel 2 VJ'!J168<0.5),"-",IFERROR('Tabel 2 VJ'!J168/'Tabel 1 VJ'!G166*100,"-")) -> 5.989599576
A169: Diplom ing. | C169: =IF(OR('Tabel 1 VJ'!C167<5,'Tabel 2 VJ'!C169<0.5),"-",IFERROR('Tabel 2 VJ'!C169/'Tabel 1 VJ'!C167*100,"-")) -> - | D169: =IF(OR('Tabel 1 VJ'!C167<5,'Tabel 2 VJ'!D169<0.5),"-",IFERROR('Tabel 2 VJ'!D169/'Tabel 1 VJ'!C167*100,"-")) -> - | F169: =IF(OR('Tabel 1 VJ'!E167<5,'Tabel 2 VJ'!F169<0.5),"-",IFERROR('Tabel 2 VJ'!F169/'Tabel 1 VJ'!E167*100,"-")) -> - | G169: =IF(OR('Tabel 1 VJ'!E167<5,'Tabel 2 VJ'!G169<0.5),"-",IFERROR('Tabel 2 VJ'!G169/'Tabel 1 VJ'!E167*100,"-")) -> - | I169: =IF(OR('Tabel 1 VJ'!G167<5,'Tabel 2 VJ'!I169<0.5),"-",IFERROR('Tabel 2 VJ'!I169/'Tabel 1 VJ'!G167*100,"-")) -> - | J169: =IF(OR('Tabel 1 VJ'!G167<5,'Tabel 2 VJ'!J169<0.5),"-",IFERROR('Tabel 2 VJ'!J169/'Tabel 1 VJ'!G167*100,"-")) -> -
A170: Cand. Scient. Tek. | C170: =IF(OR('Tabel 1 VJ'!C168<5,'Tabel 2 VJ'!C170<0.5),"-",IFERROR('Tabel 2 VJ'!C170/'Tabel 1 VJ'!C168*100,"-")) -> 10 | D170: =IF(OR('Tabel 1 VJ'!C168<5,'Tabel 2 VJ'!D170<0.5),"-",IFERROR('Tabel 2 VJ'!D170/'Tabel 1 VJ'!C168*100,"-")) -> 5.382648288 | F170: =IF(OR('Tabel 1 VJ'!E168<5,'Tabel 2 VJ'!F170<0.5),"-",IFERROR('Tabel 2 VJ'!F170/'Tabel 1 VJ'!E168*100,"-")) -> - | G170: =IF(OR('Tabel 1 VJ'!E168<5,'Tabel 2 VJ'!G170<0.5),"-",IFERROR('Tabel 2 VJ'!G170/'Tabel 1 VJ'!E168*100,"-")) -> - | I170: =IF(OR('Tabel 1 VJ'!G168<5,'Tabel 2 VJ'!I170<0.5),"-",IFERROR('Tabel 2 VJ'!I170/'Tabel 1 VJ'!G168*100,"-")) -> 4.347826087 | J170: =IF(OR('Tabel 1 VJ'!G168<5,'Tabel 2 VJ'!J170<0.5),"-",IFERROR('Tabel 2 VJ'!J170/'Tabel 1 VJ'!G168*100,"-")) -> 2.340281864
A171: MA. Hum. | C171: =IF(OR('Tabel 1 VJ'!C169<5,'Tabel 2 VJ'!C171<0.5),"-",IFERROR('Tabel 2 VJ'!C171/'Tabel 1 VJ'!C169*100,"-")) -> - | D171: =IF(OR('Tabel 1 VJ'!C169<5,'Tabel 2 VJ'!D171<0.5),"-",IFERROR('Tabel 2 VJ'!D171/'Tabel 1 VJ'!C169*100,"-")) -> - | F171: =IF(OR('Tabel 1 VJ'!E169<5,'Tabel 2 VJ'!F171<0.5),"-",IFERROR('Tabel 2 VJ'!F171/'Tabel 1 VJ'!E169*100,"-")) -> 3.571428571 | G171: =IF(OR('Tabel 1 VJ'!E169<5,'Tabel 2 VJ'!G171<0.5),"-",IFERROR('Tabel 2 VJ'!G171/'Tabel 1 VJ'!E169*100,"-")) -> 3.570760307 | I171: =IF(OR('Tabel 1 VJ'!G169<5,'Tabel 2 VJ'!I171<0.5),"-",IFERROR('Tabel 2 VJ'!I171/'Tabel 1 VJ'!G169*100,"-")) -> 2.272727273 | J171: =IF(OR('Tabel 1 VJ'!G169<5,'Tabel 2 VJ'!J171<0.5),"-",IFERROR('Tabel 2 VJ'!J171/'Tabel 1 VJ'!G169*100,"-")) -> 2.272302013
A172: MA. Nat. | C172: =IF(OR('Tabel 1 VJ'!C170<5,'Tabel 2 VJ'!C172<0.5),"-",IFERROR('Tabel 2 VJ'!C172/'Tabel 1 VJ'!C170*100,"-")) -> - | D172: =IF(OR('Tabel 1 VJ'!C170<5,'Tabel 2 VJ'!D172<0.5),"-",IFERROR('Tabel 2 VJ'!D172/'Tabel 1 VJ'!C170*100,"-")) -> - | F172: =IF(OR('Tabel 1 VJ'!E170<5,'Tabel 2 VJ'!F172<0.5),"-",IFERROR('Tabel 2 VJ'!F172/'Tabel 1 VJ'!E170*100,"-")) -> - | G172: =IF(OR('Tabel 1 VJ'!E170<5,'Tabel 2 VJ'!G172<0.5),"-",IFERROR('Tabel 2 VJ'!G172/'Tabel 1 VJ'!E170*100,"-")) -> - | I172: =IF(OR('Tabel 1 VJ'!G170<5,'Tabel 2 VJ'!I172<0.5),"-",IFERROR('Tabel 2 VJ'!I172/'Tabel 1 VJ'!G170*100,"-")) -> - | J172: =IF(OR('Tabel 1 VJ'!G170<5,'Tabel 2 VJ'!J172<0.5),"-",IFERROR('Tabel 2 VJ'!J172/'Tabel 1 VJ'!G170*100,"-")) -> -
A173: MA. Ph.d. | C173: =IF(OR('Tabel 1 VJ'!C171<5,'Tabel 2 VJ'!C173<0.5),"-",IFERROR('Tabel 2 VJ'!C173/'Tabel 1 VJ'!C171*100,"-")) -> - | D173: =IF(OR('Tabel 1 VJ'!C171<5,'Tabel 2 VJ'!D173<0.5),"-",IFERROR('Tabel 2 VJ'!D173/'Tabel 1 VJ'!C171*100,"-")) -> - | F173: =IF(OR('Tabel 1 VJ'!E171<5,'Tabel 2 VJ'!F173<0.5),"-",IFERROR('Tabel 2 VJ'!F173/'Tabel 1 VJ'!E171*100,"-")) -> - | G173: =IF(OR('Tabel 1 VJ'!E171<5,'Tabel 2 VJ'!G173<0.5),"-",IFERROR('Tabel 2 VJ'!G173/'Tabel 1 VJ'!E171*100,"-")) -> - | I173: =IF(OR('Tabel 1 VJ'!G171<5,'Tabel 2 VJ'!I173<0.5),"-",IFERROR('Tabel 2 VJ'!I173/'Tabel 1 VJ'!G171*100,"-")) -> - | J173: =IF(OR('Tabel 1 VJ'!G171<5,'Tabel 2 VJ'!J173<0.5),"-",IFERROR('Tabel 2 VJ'!J173/'Tabel 1 VJ'!G171*100,"-")) -> -
A174: MA. Samf. | C174: =IF(OR('Tabel 1 VJ'!C172<5,'Tabel 2 VJ'!C174<0.5),"-",IFERROR('Tabel 2 VJ'!C174/'Tabel 1 VJ'!C172*100,"-")) -> - | D174: =IF(OR('Tabel 1 VJ'!C172<5,'Tabel 2 VJ'!D174<0.5),"-",IFERROR('Tabel 2 VJ'!D174/'Tabel 1 VJ'!C172*100,"-")) -> - | F174: =IF(OR('Tabel 1 VJ'!E172<5,'Tabel 2 VJ'!F174<0.5),"-",IFERROR('Tabel 2 VJ'!F174/'Tabel 1 VJ'!E172*100,"-")) -> - | G174: =IF(OR('Tabel 1 VJ'!E172<5,'Tabel 2 VJ'!G174<0.5),"-",IFERROR('Tabel 2 VJ'!G174/'Tabel 1 VJ'!E172*100,"-")) -> - | I174: =IF(OR('Tabel 1 VJ'!G172<5,'Tabel 2 VJ'!I174<0.5),"-",IFERROR('Tabel 2 VJ'!I174/'Tabel 1 VJ'!G172*100,"-")) -> - | J174: =IF(OR('Tabel 1 VJ'!G172<5,'Tabel 2 VJ'!J174<0.5),"-",IFERROR('Tabel 2 VJ'!J174/'Tabel 1 VJ'!G172*100,"-")) -> -
A175: Øvrige Mag. | C175: =IF(OR('Tabel 1 VJ'!C173<5,'Tabel 2 VJ'!C175<0.5),"-",IFERROR('Tabel 2 VJ'!C175/'Tabel 1 VJ'!C173*100,"-")) -> - | D175: =IF(OR('Tabel 1 VJ'!C173<5,'Tabel 2 VJ'!D175<0.5),"-",IFERROR('Tabel 2 VJ'!D175/'Tabel 1 VJ'!C173*100,"-")) -> - | F175: =IF(OR('Tabel 1 VJ'!E173<5,'Tabel 2 VJ'!F175<0.5),"-",IFERROR('Tabel 2 VJ'!F175/'Tabel 1 VJ'!E173*100,"-")) -> 11.11111111 | G175: =IF(OR('Tabel 1 VJ'!E173<5,'Tabel 2 VJ'!G175<0.5),"-",IFERROR('Tabel 2 VJ'!G175/'Tabel 1 VJ'!E173*100,"-")) -> 8.544876193 | I175: =IF(OR('Tabel 1 VJ'!G173<5,'Tabel 2 VJ'!I175<0.5),"-",IFERROR('Tabel 2 VJ'!I175/'Tabel 1 VJ'!G173*100,"-")) -> 9.090909091 | J175: =IF(OR('Tabel 1 VJ'!G173<5,'Tabel 2 VJ'!J175<0.5),"-",IFERROR('Tabel 2 VJ'!J175/'Tabel 1 VJ'!G173*100,"-")) -> 6.99126234
A176: Agronom | C176: =IF(OR('Tabel 1 VJ'!C174<5,'Tabel 2 VJ'!C176<0.5),"-",IFERROR('Tabel 2 VJ'!C176/'Tabel 1 VJ'!C174*100,"-")) -> - | D176: =IF(OR('Tabel 1 VJ'!C174<5,'Tabel 2 VJ'!D176<0.5),"-",IFERROR('Tabel 2 VJ'!D176/'Tabel 1 VJ'!C174*100,"-")) -> - | F176: =IF(OR('Tabel 1 VJ'!E174<5,'Tabel 2 VJ'!F176<0.5),"-",IFERROR('Tabel 2 VJ'!F176/'Tabel 1 VJ'!E174*100,"-")) -> - | G176: =IF(OR('Tabel 1 VJ'!E174<5,'Tabel 2 VJ'!G176<0.5),"-",IFERROR('Tabel 2 VJ'!G176/'Tabel 1 VJ'!E174*100,"-")) -> - | I176: =IF(OR('Tabel 1 VJ'!G174<5,'Tabel 2 VJ'!I176<0.5),"-",IFERROR('Tabel 2 VJ'!I176/'Tabel 1 VJ'!G174*100,"-")) -> - | J176: =IF(OR('Tabel 1 VJ'!G174<5,'Tabel 2 VJ'!J176<0.5),"-",IFERROR('Tabel 2 VJ'!J176/'Tabel 1 VJ'!G174*100,"-")) -> -
A177: Landsk. Arkt. | C177: =IF(OR('Tabel 1 VJ'!C175<5,'Tabel 2 VJ'!C177<0.5),"-",IFERROR('Tabel 2 VJ'!C177/'Tabel 1 VJ'!C175*100,"-")) -> - | D177: =IF(OR('Tabel 1 VJ'!C175<5,'Tabel 2 VJ'!D177<0.5),"-",IFERROR('Tabel 2 VJ'!D177/'Tabel 1 VJ'!C175*100,"-")) -> - | F177: =IF(OR('Tabel 1 VJ'!E175<5,'Tabel 2 VJ'!F177<0.5),"-",IFERROR('Tabel 2 VJ'!F177/'Tabel 1 VJ'!E175*100,"-")) -> - | G177: =IF(OR('Tabel 1 VJ'!E175<5,'Tabel 2 VJ'!G177<0.5),"-",IFERROR('Tabel 2 VJ'!G177/'Tabel 1 VJ'!E175*100,"-")) -> - | I177: =IF(OR('Tabel 1 VJ'!G175<5,'Tabel 2 VJ'!I177<0.5),"-",IFERROR('Tabel 2 VJ'!I177/'Tabel 1 VJ'!G175*100,"-")) -> - | J177: =IF(OR('Tabel 1 VJ'!G175<5,'Tabel 2 VJ'!J177<0.5),"-",IFERROR('Tabel 2 VJ'!J177/'Tabel 1 VJ'!G175*100,"-")) -> -
A178: Hortonom | C178: =IF(OR('Tabel 1 VJ'!C176<5,'Tabel 2 VJ'!C178<0.5),"-",IFERROR('Tabel 2 VJ'!C178/'Tabel 1 VJ'!C176*100,"-")) -> - | D178: =IF(OR('Tabel 1 VJ'!C176<5,'Tabel 2 VJ'!D178<0.5),"-",IFERROR('Tabel 2 VJ'!D178/'Tabel 1 VJ'!C176*100,"-")) -> - | F178: =IF(OR('Tabel 1 VJ'!E176<5,'Tabel 2 VJ'!F178<0.5),"-",IFERROR('Tabel 2 VJ'!F178/'Tabel 1 VJ'!E176*100,"-")) -> - | G178: =IF(OR('Tabel 1 VJ'!E176<5,'Tabel 2 VJ'!G178<0.5),"-",IFERROR('Tabel 2 VJ'!G178/'Tabel 1 VJ'!E176*100,"-")) -> - | I178: =IF(OR('Tabel 1 VJ'!G176<5,'Tabel 2 VJ'!I178<0.5),"-",IFERROR('Tabel 2 VJ'!I178/'Tabel 1 VJ'!G176*100,"-")) -> - | J178: =IF(OR('Tabel 1 VJ'!G176<5,'Tabel 2 VJ'!J178<0.5),"-",IFERROR('Tabel 2 VJ'!J178/'Tabel 1 VJ'!G176*100,"-")) -> -
A179: Forstkand. | C179: =IF(OR('Tabel 1 VJ'!C177<5,'Tabel 2 VJ'!C179<0.5),"-",IFERROR('Tabel 2 VJ'!C179/'Tabel 1 VJ'!C177*100,"-")) -> - | D179: =IF(OR('Tabel 1 VJ'!C177<5,'Tabel 2 VJ'!D179<0.5),"-",IFERROR('Tabel 2 VJ'!D179/'Tabel 1 VJ'!C177*100,"-")) -> - | F179: =IF(OR('Tabel 1 VJ'!E177<5,'Tabel 2 VJ'!F179<0.5),"-",IFERROR('Tabel 2 VJ'!F179/'Tabel 1 VJ'!E177*100,"-")) -> - | G179: =IF(OR('Tabel 1 VJ'!E177<5,'Tabel 2 VJ'!G179<0.5),"-",IFERROR('Tabel 2 VJ'!G179/'Tabel 1 VJ'!E177*100,"-")) -> - | I179: =IF(OR('Tabel 1 VJ'!G177<5,'Tabel 2 VJ'!I179<0.5),"-",IFERROR('Tabel 2 VJ'!I179/'Tabel 1 VJ'!G177*100,"-")) -> - | J179: =IF(OR('Tabel 1 VJ'!G177<5,'Tabel 2 VJ'!J179<0.5),"-",IFERROR('Tabel 2 VJ'!J179/'Tabel 1 VJ'!G177*100,"-")) -> -
A180: Jordbrugsakad. | C180: =IF(OR('Tabel 1 VJ'!C178<5,'Tabel 2 VJ'!C180<0.5),"-",IFERROR('Tabel 2 VJ'!C180/'Tabel 1 VJ'!C178*100,"-")) -> - | D180: =IF(OR('Tabel 1 VJ'!C178<5,'Tabel 2 VJ'!D180<0.5),"-",IFERROR('Tabel 2 VJ'!D180/'Tabel 1 VJ'!C178*100,"-")) -> - | F180: =IF(OR('Tabel 1 VJ'!E178<5,'Tabel 2 VJ'!F180<0.5),"-",IFERROR('Tabel 2 VJ'!F180/'Tabel 1 VJ'!E178*100,"-")) -> - | G180: =IF(OR('Tabel 1 VJ'!E178<5,'Tabel 2 VJ'!G180<0.5),"-",IFERROR('Tabel 2 VJ'!G180/'Tabel 1 VJ'!E178*100,"-")) -> - | I180: =IF(OR('Tabel 1 VJ'!G178<5,'Tabel 2 VJ'!I180<0.5),"-",IFERROR('Tabel 2 VJ'!I180/'Tabel 1 VJ'!G178*100,"-")) -> - | J180: =IF(OR('Tabel 1 VJ'!G178<5,'Tabel 2 VJ'!J180<0.5),"-",IFERROR('Tabel 2 VJ'!J180/'Tabel 1 VJ'!G178*100,"-")) -> -
A181: Mejeriing. | C181: =IF(OR('Tabel 1 VJ'!C179<5,'Tabel 2 VJ'!C181<0.5),"-",IFERROR('Tabel 2 VJ'!C181/'Tabel 1 VJ'!C179*100,"-")) -> - | D181: =IF(OR('Tabel 1 VJ'!C179<5,'Tabel 2 VJ'!D181<0.5),"-",IFERROR('Tabel 2 VJ'!D181/'Tabel 1 VJ'!C179*100,"-")) -> - | F181: =IF(OR('Tabel 1 VJ'!E179<5,'Tabel 2 VJ'!F181<0.5),"-",IFERROR('Tabel 2 VJ'!F181/'Tabel 1 VJ'!E179*100,"-")) -> - | G181: =IF(OR('Tabel 1 VJ'!E179<5,'Tabel 2 VJ'!G181<0.5),"-",IFERROR('Tabel 2 VJ'!G181/'Tabel 1 VJ'!E179*100,"-")) -> - | I181: =IF(OR('Tabel 1 VJ'!G179<5,'Tabel 2 VJ'!I181<0.5),"-",IFERROR('Tabel 2 VJ'!I181/'Tabel 1 VJ'!G179*100,"-")) -> - | J181: =IF(OR('Tabel 1 VJ'!G179<5,'Tabel 2 VJ'!J181<0.5),"-",IFERROR('Tabel 2 VJ'!J181/'Tabel 1 VJ'!G179*100,"-")) -> -
A182: Levn.m.kand. | C182: =IF(OR('Tabel 1 VJ'!C180<5,'Tabel 2 VJ'!C182<0.5),"-",IFERROR('Tabel 2 VJ'!C182/'Tabel 1 VJ'!C180*100,"-")) -> - | D182: =IF(OR('Tabel 1 VJ'!C180<5,'Tabel 2 VJ'!D182<0.5),"-",IFERROR('Tabel 2 VJ'!D182/'Tabel 1 VJ'!C180*100,"-")) -> - | F182: =IF(OR('Tabel 1 VJ'!E180<5,'Tabel 2 VJ'!F182<0.5),"-",IFERROR('Tabel 2 VJ'!F182/'Tabel 1 VJ'!E180*100,"-")) -> - | G182: =IF(OR('Tabel 1 VJ'!E180<5,'Tabel 2 VJ'!G182<0.5),"-",IFERROR('Tabel 2 VJ'!G182/'Tabel 1 VJ'!E180*100,"-")) -> - | I182: =IF(OR('Tabel 1 VJ'!G180<5,'Tabel 2 VJ'!I182<0.5),"-",IFERROR('Tabel 2 VJ'!I182/'Tabel 1 VJ'!G180*100,"-")) -> - | J182: =IF(OR('Tabel 1 VJ'!G180<5,'Tabel 2 VJ'!J182<0.5),"-",IFERROR('Tabel 2 VJ'!J182/'Tabel 1 VJ'!G180*100,"-")) -> -
A183: Dyrlæge | C183: =IF(OR('Tabel 1 VJ'!C181<5,'Tabel 2 VJ'!C183<0.5),"-",IFERROR('Tabel 2 VJ'!C183/'Tabel 1 VJ'!C181*100,"-")) -> - | D183: =IF(OR('Tabel 1 VJ'!C181<5,'Tabel 2 VJ'!D183<0.5),"-",IFERROR('Tabel 2 VJ'!D183/'Tabel 1 VJ'!C181*100,"-")) -> - | F183: =IF(OR('Tabel 1 VJ'!E181<5,'Tabel 2 VJ'!F183<0.5),"-",IFERROR('Tabel 2 VJ'!F183/'Tabel 1 VJ'!E181*100,"-")) -> - | G183: =IF(OR('Tabel 1 VJ'!E181<5,'Tabel 2 VJ'!G183<0.5),"-",IFERROR('Tabel 2 VJ'!G183/'Tabel 1 VJ'!E181*100,"-")) -> - | I183: =IF(OR('Tabel 1 VJ'!G181<5,'Tabel 2 VJ'!I183<0.5),"-",IFERROR('Tabel 2 VJ'!I183/'Tabel 1 VJ'!G181*100,"-")) -> - | J183: =IF(OR('Tabel 1 VJ'!G181<5,'Tabel 2 VJ'!J183<0.5),"-",IFERROR('Tabel 2 VJ'!J183/'Tabel 1 VJ'!G181*100,"-")) -> -
A184: Farmaceut | C184: =IF(OR('Tabel 1 VJ'!C182<5,'Tabel 2 VJ'!C184<0.5),"-",IFERROR('Tabel 2 VJ'!C184/'Tabel 1 VJ'!C182*100,"-")) -> - | D184: =IF(OR('Tabel 1 VJ'!C182<5,'Tabel 2 VJ'!D184<0.5),"-",IFERROR('Tabel 2 VJ'!D184/'Tabel 1 VJ'!C182*100,"-")) -> - | F184: =IF(OR('Tabel 1 VJ'!E182<5,'Tabel 2 VJ'!F184<0.5),"-",IFERROR('Tabel 2 VJ'!F184/'Tabel 1 VJ'!E182*100,"-")) -> - | G184: =IF(OR('Tabel 1 VJ'!E182<5,'Tabel 2 VJ'!G184<0.5),"-",IFERROR('Tabel 2 VJ'!G184/'Tabel 1 VJ'!E182*100,"-")) -> - | I184: =IF(OR('Tabel 1 VJ'!G182<5,'Tabel 2 VJ'!I184<0.5),"-",IFERROR('Tabel 2 VJ'!I184/'Tabel 1 VJ'!G182*100,"-")) -> - | J184: =IF(OR('Tabel 1 VJ'!G182<5,'Tabel 2 VJ'!J184<0.5),"-",IFERROR('Tabel 2 VJ'!J184/'Tabel 1 VJ'!G182*100,"-")) -> -
A185: Læge | C185: =IF(OR('Tabel 1 VJ'!C183<5,'Tabel 2 VJ'!C185<0.5),"-",IFERROR('Tabel 2 VJ'!C185/'Tabel 1 VJ'!C183*100,"-")) -> - | D185: =IF(OR('Tabel 1 VJ'!C183<5,'Tabel 2 VJ'!D185<0.5),"-",IFERROR('Tabel 2 VJ'!D185/'Tabel 1 VJ'!C183*100,"-")) -> - | F185: =IF(OR('Tabel 1 VJ'!E183<5,'Tabel 2 VJ'!F185<0.5),"-",IFERROR('Tabel 2 VJ'!F185/'Tabel 1 VJ'!E183*100,"-")) -> - | G185: =IF(OR('Tabel 1 VJ'!E183<5,'Tabel 2 VJ'!G185<0.5),"-",IFERROR('Tabel 2 VJ'!G185/'Tabel 1 VJ'!E183*100,"-")) -> - | I185: =IF(OR('Tabel 1 VJ'!G183<5,'Tabel 2 VJ'!I185<0.5),"-",IFERROR('Tabel 2 VJ'!I185/'Tabel 1 VJ'!G183*100,"-")) -> - | J185: =IF(OR('Tabel 1 VJ'!G183<5,'Tabel 2 VJ'!J185<0.5),"-",IFERROR('Tabel 2 VJ'!J185/'Tabel 1 VJ'!G183*100,"-")) -> -
A186: Tandlæge | C186: =IF(OR('Tabel 1 VJ'!C184<5,'Tabel 2 VJ'!C186<0.5),"-",IFERROR('Tabel 2 VJ'!C186/'Tabel 1 VJ'!C184*100,"-")) -> - | D186: =IF(OR('Tabel 1 VJ'!C184<5,'Tabel 2 VJ'!D186<0.5),"-",IFERROR('Tabel 2 VJ'!D186/'Tabel 1 VJ'!C184*100,"-")) -> - | F186: =IF(OR('Tabel 1 VJ'!E184<5,'Tabel 2 VJ'!F186<0.5),"-",IFERROR('Tabel 2 VJ'!F186/'Tabel 1 VJ'!E184*100,"-")) -> - | G186: =IF(OR('Tabel 1 VJ'!E184<5,'Tabel 2 VJ'!G186<0.5),"-",IFERROR('Tabel 2 VJ'!G186/'Tabel 1 VJ'!E184*100,"-")) -> - | I186: =IF(OR('Tabel 1 VJ'!G184<5,'Tabel 2 VJ'!I186<0.5),"-",IFERROR('Tabel 2 VJ'!I186/'Tabel 1 VJ'!G184*100,"-")) -> - | J186: =IF(OR('Tabel 1 VJ'!G184<5,'Tabel 2 VJ'!J186<0.5),"-",IFERROR('Tabel 2 VJ'!J186/'Tabel 1 VJ'!G184*100,"-")) -> -
A187: Arkitekt | C187: =IF(OR('Tabel 1 VJ'!C185<5,'Tabel 2 VJ'!C187<0.5),"-",IFERROR('Tabel 2 VJ'!C187/'Tabel 1 VJ'!C185*100,"-")) -> - | D187: =IF(OR('Tabel 1 VJ'!C185<5,'Tabel 2 VJ'!D187<0.5),"-",IFERROR('Tabel 2 VJ'!D187/'Tabel 1 VJ'!C185*100,"-")) -> - | F187: =IF(OR('Tabel 1 VJ'!E185<5,'Tabel 2 VJ'!F187<0.5),"-",IFERROR('Tabel 2 VJ'!F187/'Tabel 1 VJ'!E185*100,"-")) -> - | G187: =IF(OR('Tabel 1 VJ'!E185<5,'Tabel 2 VJ'!G187<0.5),"-",IFERROR('Tabel 2 VJ'!G187/'Tabel 1 VJ'!E185*100,"-")) -> - | I187: =IF(OR('Tabel 1 VJ'!G185<5,'Tabel 2 VJ'!I187<0.5),"-",IFERROR('Tabel 2 VJ'!I187/'Tabel 1 VJ'!G185*100,"-")) -> - | J187: =IF(OR('Tabel 1 VJ'!G185<5,'Tabel 2 VJ'!J187<0.5),"-",IFERROR('Tabel 2 VJ'!J187/'Tabel 1 VJ'!G185*100,"-")) -> -
A188: Landinspek. | C188: =IF(OR('Tabel 1 VJ'!C186<5,'Tabel 2 VJ'!C188<0.5),"-",IFERROR('Tabel 2 VJ'!C188/'Tabel 1 VJ'!C186*100,"-")) -> - | D188: =IF(OR('Tabel 1 VJ'!C186<5,'Tabel 2 VJ'!D188<0.5),"-",IFERROR('Tabel 2 VJ'!D188/'Tabel 1 VJ'!C186*100,"-")) -> - | F188: =IF(OR('Tabel 1 VJ'!E186<5,'Tabel 2 VJ'!F188<0.5),"-",IFERROR('Tabel 2 VJ'!F188/'Tabel 1 VJ'!E186*100,"-")) -> - | G188: =IF(OR('Tabel 1 VJ'!E186<5,'Tabel 2 VJ'!G188<0.5),"-",IFERROR('Tabel 2 VJ'!G188/'Tabel 1 VJ'!E186*100,"-")) -> - | I188: =IF(OR('Tabel 1 VJ'!G186<5,'Tabel 2 VJ'!I188<0.5),"-",IFERROR('Tabel 2 VJ'!I188/'Tabel 1 VJ'!G186*100,"-")) -> - | J188: =IF(OR('Tabel 1 VJ'!G186<5,'Tabel 2 VJ'!J188<0.5),"-",IFERROR('Tabel 2 VJ'!J188/'Tabel 1 VJ'!G186*100,"-")) -> -
A189: Bibliotekar | C189: =IF(OR('Tabel 1 VJ'!C187<5,'Tabel 2 VJ'!C189<0.5),"-",IFERROR('Tabel 2 VJ'!C189/'Tabel 1 VJ'!C187*100,"-")) -> - | D189: =IF(OR('Tabel 1 VJ'!C187<5,'Tabel 2 VJ'!D189<0.5),"-",IFERROR('Tabel 2 VJ'!D189/'Tabel 1 VJ'!C187*100,"-")) -> - | F189: =IF(OR('Tabel 1 VJ'!E187<5,'Tabel 2 VJ'!F189<0.5),"-",IFERROR('Tabel 2 VJ'!F189/'Tabel 1 VJ'!E187*100,"-")) -> - | G189: =IF(OR('Tabel 1 VJ'!E187<5,'Tabel 2 VJ'!G189<0.5),"-",IFERROR('Tabel 2 VJ'!G189/'Tabel 1 VJ'!E187*100,"-")) -> - | I189: =IF(OR('Tabel 1 VJ'!G187<5,'Tabel 2 VJ'!I189<0.5),"-",IFERROR('Tabel 2 VJ'!I189/'Tabel 1 VJ'!G187*100,"-")) -> - | J189: =IF(OR('Tabel 1 VJ'!G187<5,'Tabel 2 VJ'!J189<0.5),"-",IFERROR('Tabel 2 VJ'!J189/'Tabel 1 VJ'!G187*100,"-")) -> -
A190: Musikudd. | C190: =IF(OR('Tabel 1 VJ'!C188<5,'Tabel 2 VJ'!C190<0.5),"-",IFERROR('Tabel 2 VJ'!C190/'Tabel 1 VJ'!C188*100,"-")) -> - | D190: =IF(OR('Tabel 1 VJ'!C188<5,'Tabel 2 VJ'!D190<0.5),"-",IFERROR('Tabel 2 VJ'!D190/'Tabel 1 VJ'!C188*100,"-")) -> - | F190: =IF(OR('Tabel 1 VJ'!E188<5,'Tabel 2 VJ'!F190<0.5),"-",IFERROR('Tabel 2 VJ'!F190/'Tabel 1 VJ'!E188*100,"-")) -> - | G190: =IF(OR('Tabel 1 VJ'!E188<5,'Tabel 2 VJ'!G190<0.5),"-",IFERROR('Tabel 2 VJ'!G190/'Tabel 1 VJ'!E188*100,"-")) -> - | I190: =IF(OR('Tabel 1 VJ'!G188<5,'Tabel 2 VJ'!I190<0.5),"-",IFERROR('Tabel 2 VJ'!I190/'Tabel 1 VJ'!G188*100,"-")) -> - | J190: =IF(OR('Tabel 1 VJ'!G188<5,'Tabel 2 VJ'!J190<0.5),"-",IFERROR('Tabel 2 VJ'!J190/'Tabel 1 VJ'!G188*100,"-")) -> -
A191: Teolog | C191: =IF(OR('Tabel 1 VJ'!C189<5,'Tabel 2 VJ'!C191<0.5),"-",IFERROR('Tabel 2 VJ'!C191/'Tabel 1 VJ'!C189*100,"-")) -> - | D191: =IF(OR('Tabel 1 VJ'!C189<5,'Tabel 2 VJ'!D191<0.5),"-",IFERROR('Tabel 2 VJ'!D191/'Tabel 1 VJ'!C189*100,"-")) -> - | F191: =IF(OR('Tabel 1 VJ'!E189<5,'Tabel 2 VJ'!F191<0.5),"-",IFERROR('Tabel 2 VJ'!F191/'Tabel 1 VJ'!E189*100,"-")) -> - | G191: =IF(OR('Tabel 1 VJ'!E189<5,'Tabel 2 VJ'!G191<0.5),"-",IFERROR('Tabel 2 VJ'!G191/'Tabel 1 VJ'!E189*100,"-")) -> - | I191: =IF(OR('Tabel 1 VJ'!G189<5,'Tabel 2 VJ'!I191<0.5),"-",IFERROR('Tabel 2 VJ'!I191/'Tabel 1 VJ'!G189*100,"-")) -> - | J191: =IF(OR('Tabel 1 VJ'!G189<5,'Tabel 2 VJ'!J191<0.5),"-",IFERROR('Tabel 2 VJ'!J191/'Tabel 1 VJ'!G189*100,"-")) -> -
A192: Psykolog | C192: =IF(OR('Tabel 1 VJ'!C190<5,'Tabel 2 VJ'!C192<0.5),"-",IFERROR('Tabel 2 VJ'!C192/'Tabel 1 VJ'!C190*100,"-")) -> - | D192: =IF(OR('Tabel 1 VJ'!C190<5,'Tabel 2 VJ'!D192<0.5),"-",IFERROR('Tabel 2 VJ'!D192/'Tabel 1 VJ'!C190*100,"-")) -> - | F192: =IF(OR('Tabel 1 VJ'!E190<5,'Tabel 2 VJ'!F192<0.5),"-",IFERROR('Tabel 2 VJ'!F192/'Tabel 1 VJ'!E190*100,"-")) -> - | G192: =IF(OR('Tabel 1 VJ'!E190<5,'Tabel 2 VJ'!G192<0.5),"-",IFERROR('Tabel 2 VJ'!G192/'Tabel 1 VJ'!E190*100,"-")) -> - | I192: =IF(OR('Tabel 1 VJ'!G190<5,'Tabel 2 VJ'!I192<0.5),"-",IFERROR('Tabel 2 VJ'!I192/'Tabel 1 VJ'!G190*100,"-")) -> - | J192: =IF(OR('Tabel 1 VJ'!G190<5,'Tabel 2 VJ'!J192<0.5),"-",IFERROR('Tabel 2 VJ'!J192/'Tabel 1 VJ'!G190*100,"-")) -> -
A193: Jurist | C193: =IF(OR('Tabel 1 VJ'!C191<5,'Tabel 2 VJ'!C193<0.5),"-",IFERROR('Tabel 2 VJ'!C193/'Tabel 1 VJ'!C191*100,"-")) -> - | D193: =IF(OR('Tabel 1 VJ'!C191<5,'Tabel 2 VJ'!D193<0.5),"-",IFERROR('Tabel 2 VJ'!D193/'Tabel 1 VJ'!C191*100,"-")) -> - | F193: =IF(OR('Tabel 1 VJ'!E191<5,'Tabel 2 VJ'!F193<0.5),"-",IFERROR('Tabel 2 VJ'!F193/'Tabel 1 VJ'!E191*100,"-")) -> - | G193: =IF(OR('Tabel 1 VJ'!E191<5,'Tabel 2 VJ'!G193<0.5),"-",IFERROR('Tabel 2 VJ'!G193/'Tabel 1 VJ'!E191*100,"-")) -> - | I193: =IF(OR('Tabel 1 VJ'!G191<5,'Tabel 2 VJ'!I193<0.5),"-",IFERROR('Tabel 2 VJ'!I193/'Tabel 1 VJ'!G191*100,"-")) -> - | J193: =IF(OR('Tabel 1 VJ'!G191<5,'Tabel 2 VJ'!J193<0.5),"-",IFERROR('Tabel 2 VJ'!J193/'Tabel 1 VJ'!G191*100,"-")) -> -
A194: Økonom | C194: =IF(OR('Tabel 1 VJ'!C192<5,'Tabel 2 VJ'!C194<0.5),"-",IFERROR('Tabel 2 VJ'!C194/'Tabel 1 VJ'!C192*100,"-")) -> - | D194: =IF(OR('Tabel 1 VJ'!C192<5,'Tabel 2 VJ'!D194<0.5),"-",IFERROR('Tabel 2 VJ'!D194/'Tabel 1 VJ'!C192*100,"-")) -> - | F194: =IF(OR('Tabel 1 VJ'!E192<5,'Tabel 2 VJ'!F194<0.5),"-",IFERROR('Tabel 2 VJ'!F194/'Tabel 1 VJ'!E192*100,"-")) -> - | G194: =IF(OR('Tabel 1 VJ'!E192<5,'Tabel 2 VJ'!G194<0.5),"-",IFERROR('Tabel 2 VJ'!G194/'Tabel 1 VJ'!E192*100,"-")) -> - | I194: =IF(OR('Tabel 1 VJ'!G192<5,'Tabel 2 VJ'!I194<0.5),"-",IFERROR('Tabel 2 VJ'!I194/'Tabel 1 VJ'!G192*100,"-")) -> - | J194: =IF(OR('Tabel 1 VJ'!G192<5,'Tabel 2 VJ'!J194<0.5),"-",IFERROR('Tabel 2 VJ'!J194/'Tabel 1 VJ'!G192*100,"-")) -> -
A195: Samf. Adm. | C195: =IF(OR('Tabel 1 VJ'!C193<5,'Tabel 2 VJ'!C195<0.5),"-",IFERROR('Tabel 2 VJ'!C195/'Tabel 1 VJ'!C193*100,"-")) -> - | D195: =IF(OR('Tabel 1 VJ'!C193<5,'Tabel 2 VJ'!D195<0.5),"-",IFERROR('Tabel 2 VJ'!D195/'Tabel 1 VJ'!C193*100,"-")) -> - | F195: =IF(OR('Tabel 1 VJ'!E193<5,'Tabel 2 VJ'!F195<0.5),"-",IFERROR('Tabel 2 VJ'!F195/'Tabel 1 VJ'!E193*100,"-")) -> 11.11111111 | G195: =IF(OR('Tabel 1 VJ'!E193<5,'Tabel 2 VJ'!G195<0.5),"-",IFERROR('Tabel 2 VJ'!G195/'Tabel 1 VJ'!E193*100,"-")) -> 11.10903207 | I195: =IF(OR('Tabel 1 VJ'!G193<5,'Tabel 2 VJ'!I195<0.5),"-",IFERROR('Tabel 2 VJ'!I195/'Tabel 1 VJ'!G193*100,"-")) -> 5.882352941 | J195: =IF(OR('Tabel 1 VJ'!G193<5,'Tabel 2 VJ'!J195<0.5),"-",IFERROR('Tabel 2 VJ'!J195/'Tabel 1 VJ'!G193*100,"-")) -> 5.88125227
A196: Cand. Merc. | C196: =IF(OR('Tabel 1 VJ'!C194<5,'Tabel 2 VJ'!C196<0.5),"-",IFERROR('Tabel 2 VJ'!C196/'Tabel 1 VJ'!C194*100,"-")) -> - | D196: =IF(OR('Tabel 1 VJ'!C194<5,'Tabel 2 VJ'!D196<0.5),"-",IFERROR('Tabel 2 VJ'!D196/'Tabel 1 VJ'!C194*100,"-")) -> - | F196: =IF(OR('Tabel 1 VJ'!E194<5,'Tabel 2 VJ'!F196<0.5),"-",IFERROR('Tabel 2 VJ'!F196/'Tabel 1 VJ'!E194*100,"-")) -> 12.5 | G196: =IF(OR('Tabel 1 VJ'!E194<5,'Tabel 2 VJ'!G196<0.5),"-",IFERROR('Tabel 2 VJ'!G196/'Tabel 1 VJ'!E194*100,"-")) -> 12.49766107 | I196: =IF(OR('Tabel 1 VJ'!G194<5,'Tabel 2 VJ'!I196<0.5),"-",IFERROR('Tabel 2 VJ'!I196/'Tabel 1 VJ'!G194*100,"-")) -> 5.882352941 | J196: =IF(OR('Tabel 1 VJ'!G194<5,'Tabel 2 VJ'!J196<0.5),"-",IFERROR('Tabel 2 VJ'!J196/'Tabel 1 VJ'!G194*100,"-")) -> 5.88125227
A197: HA | C197: =IF(OR('Tabel 1 VJ'!C195<5,'Tabel 2 VJ'!C197<0.5),"-",IFERROR('Tabel 2 VJ'!C197/'Tabel 1 VJ'!C195*100,"-")) -> - | D197: =IF(OR('Tabel 1 VJ'!C195<5,'Tabel 2 VJ'!D197<0.5),"-",IFERROR('Tabel 2 VJ'!D197/'Tabel 1 VJ'!C195*100,"-")) -> - | F197: =IF(OR('Tabel 1 VJ'!E195<5,'Tabel 2 VJ'!F197<0.5),"-",IFERROR('Tabel 2 VJ'!F197/'Tabel 1 VJ'!E195*100,"-")) -> - | G197: =IF(OR('Tabel 1 VJ'!E195<5,'Tabel 2 VJ'!G197<0.5),"-",IFERROR('Tabel 2 VJ'!G197/'Tabel 1 VJ'!E195*100,"-")) -> - | I197: =IF(OR('Tabel 1 VJ'!G195<5,'Tabel 2 VJ'!I197<0.5),"-",IFERROR('Tabel 2 VJ'!I197/'Tabel 1 VJ'!G195*100,"-")) -> - | J197: =IF(OR('Tabel 1 VJ'!G195<5,'Tabel 2 VJ'!J197<0.5),"-",IFERROR('Tabel 2 VJ'!J197/'Tabel 1 VJ'!G195*100,"-")) -> -
A198: HD | C198: =IF(OR('Tabel 1 VJ'!C196<5,'Tabel 2 VJ'!C198<0.5),"-",IFERROR('Tabel 2 VJ'!C198/'Tabel 1 VJ'!C196*100,"-")) -> - | D198: =IF(OR('Tabel 1 VJ'!C196<5,'Tabel 2 VJ'!D198<0.5),"-",IFERROR('Tabel 2 VJ'!D198/'Tabel 1 VJ'!C196*100,"-")) -> - | F198: =IF(OR('Tabel 1 VJ'!E196<5,'Tabel 2 VJ'!F198<0.5),"-",IFERROR('Tabel 2 VJ'!F198/'Tabel 1 VJ'!E196*100,"-")) -> - | G198: =IF(OR('Tabel 1 VJ'!E196<5,'Tabel 2 VJ'!G198<0.5),"-",IFERROR('Tabel 2 VJ'!G198/'Tabel 1 VJ'!E196*100,"-")) -> - | I198: =IF(OR('Tabel 1 VJ'!G196<5,'Tabel 2 VJ'!I198<0.5),"-",IFERROR('Tabel 2 VJ'!I198/'Tabel 1 VJ'!G196*100,"-")) -> - | J198: =IF(OR('Tabel 1 VJ'!G196<5,'Tabel 2 VJ'!J198<0.5),"-",IFERROR('Tabel 2 VJ'!J198/'Tabel 1 VJ'!G196*100,"-")) -> -
A199: Komm. og Sprog | C199: =IF(OR('Tabel 1 VJ'!C197<5,'Tabel 2 VJ'!C199<0.5),"-",IFERROR('Tabel 2 VJ'!C199/'Tabel 1 VJ'!C197*100,"-")) -> - | D199: =IF(OR('Tabel 1 VJ'!C197<5,'Tabel 2 VJ'!D199<0.5),"-",IFERROR('Tabel 2 VJ'!D199/'Tabel 1 VJ'!C197*100,"-")) -> - | F199: =IF(OR('Tabel 1 VJ'!E197<5,'Tabel 2 VJ'!F199<0.5),"-",IFERROR('Tabel 2 VJ'!F199/'Tabel 1 VJ'!E197*100,"-")) -> - | G199: =IF(OR('Tabel 1 VJ'!E197<5,'Tabel 2 VJ'!G199<0.5),"-",IFERROR('Tabel 2 VJ'!G199/'Tabel 1 VJ'!E197*100,"-")) -> - | I199: =IF(OR('Tabel 1 VJ'!G197<5,'Tabel 2 VJ'!I199<0.5),"-",IFERROR('Tabel 2 VJ'!I199/'Tabel 1 VJ'!G197*100,"-")) -> - | J199: =IF(OR('Tabel 1 VJ'!G197<5,'Tabel 2 VJ'!J199<0.5),"-",IFERROR('Tabel 2 VJ'!J199/'Tabel 1 VJ'!G197*100,"-")) -> -
A200: Cand. IT. | C200: =IF(OR('Tabel 1 VJ'!C198<5,'Tabel 2 VJ'!C200<0.5),"-",IFERROR('Tabel 2 VJ'!C200/'Tabel 1 VJ'!C198*100,"-")) -> - | D200: =IF(OR('Tabel 1 VJ'!C198<5,'Tabel 2 VJ'!D200<0.5),"-",IFERROR('Tabel 2 VJ'!D200/'Tabel 1 VJ'!C198*100,"-")) -> - | F200: =IF(OR('Tabel 1 VJ'!E198<5,'Tabel 2 VJ'!F200<0.5),"-",IFERROR('Tabel 2 VJ'!F200/'Tabel 1 VJ'!E198*100,"-")) -> - | G200: =IF(OR('Tabel 1 VJ'!E198<5,'Tabel 2 VJ'!G200<0.5),"-",IFERROR('Tabel 2 VJ'!G200/'Tabel 1 VJ'!E198*100,"-")) -> - | I200: =IF(OR('Tabel 1 VJ'!G198<5,'Tabel 2 VJ'!I200<0.5),"-",IFERROR('Tabel 2 VJ'!I200/'Tabel 1 VJ'!G198*100,"-")) -> - | J200: =IF(OR('Tabel 1 VJ'!G198<5,'Tabel 2 VJ'!J200<0.5),"-",IFERROR('Tabel 2 VJ'!J200/'Tabel 1 VJ'!G198*100,"-")) -> -
A201: Bac. Samf. | C201: =IF(OR('Tabel 1 VJ'!C199<5,'Tabel 2 VJ'!C201<0.5),"-",IFERROR('Tabel 2 VJ'!C201/'Tabel 1 VJ'!C199*100,"-")) -> - | D201: =IF(OR('Tabel 1 VJ'!C199<5,'Tabel 2 VJ'!D201<0.5),"-",IFERROR('Tabel 2 VJ'!D201/'Tabel 1 VJ'!C199*100,"-")) -> - | F201: =IF(OR('Tabel 1 VJ'!E199<5,'Tabel 2 VJ'!F201<0.5),"-",IFERROR('Tabel 2 VJ'!F201/'Tabel 1 VJ'!E199*100,"-")) -> - | G201: =IF(OR('Tabel 1 VJ'!E199<5,'Tabel 2 VJ'!G201<0.5),"-",IFERROR('Tabel 2 VJ'!G201/'Tabel 1 VJ'!E199*100,"-")) -> - | I201: =IF(OR('Tabel 1 VJ'!G199<5,'Tabel 2 VJ'!I201<0.5),"-",IFERROR('Tabel 2 VJ'!I201/'Tabel 1 VJ'!G199*100,"-")) -> - | J201: =IF(OR('Tabel 1 VJ'!G199<5,'Tabel 2 VJ'!J201<0.5),"-",IFERROR('Tabel 2 VJ'!J201/'Tabel 1 VJ'!G199*100,"-")) -> -
A202: Bac. Hum. | C202: =IF(OR('Tabel 1 VJ'!C200<5,'Tabel 2 VJ'!C202<0.5),"-",IFERROR('Tabel 2 VJ'!C202/'Tabel 1 VJ'!C200*100,"-")) -> - | D202: =IF(OR('Tabel 1 VJ'!C200<5,'Tabel 2 VJ'!D202<0.5),"-",IFERROR('Tabel 2 VJ'!D202/'Tabel 1 VJ'!C200*100,"-")) -> - | F202: =IF(OR('Tabel 1 VJ'!E200<5,'Tabel 2 VJ'!F202<0.5),"-",IFERROR('Tabel 2 VJ'!F202/'Tabel 1 VJ'!E200*100,"-")) -> - | G202: =IF(OR('Tabel 1 VJ'!E200<5,'Tabel 2 VJ'!G202<0.5),"-",IFERROR('Tabel 2 VJ'!G202/'Tabel 1 VJ'!E200*100,"-")) -> - | I202: =IF(OR('Tabel 1 VJ'!G200<5,'Tabel 2 VJ'!I202<0.5),"-",IFERROR('Tabel 2 VJ'!I202/'Tabel 1 VJ'!G200*100,"-")) -> - | J202: =IF(OR('Tabel 1 VJ'!G200<5,'Tabel 2 VJ'!J202<0.5),"-",IFERROR('Tabel 2 VJ'!J202/'Tabel 1 VJ'!G200*100,"-")) -> -
A203: Bac. Nat. | C203: =IF(OR('Tabel 1 VJ'!C201<5,'Tabel 2 VJ'!C203<0.5),"-",IFERROR('Tabel 2 VJ'!C203/'Tabel 1 VJ'!C201*100,"-")) -> - | D203: =IF(OR('Tabel 1 VJ'!C201<5,'Tabel 2 VJ'!D203<0.5),"-",IFERROR('Tabel 2 VJ'!D203/'Tabel 1 VJ'!C201*100,"-")) -> - | F203: =IF(OR('Tabel 1 VJ'!E201<5,'Tabel 2 VJ'!F203<0.5),"-",IFERROR('Tabel 2 VJ'!F203/'Tabel 1 VJ'!E201*100,"-")) -> - | G203: =IF(OR('Tabel 1 VJ'!E201<5,'Tabel 2 VJ'!G203<0.5),"-",IFERROR('Tabel 2 VJ'!G203/'Tabel 1 VJ'!E201*100,"-")) -> - | I203: =IF(OR('Tabel 1 VJ'!G201<5,'Tabel 2 VJ'!I203<0.5),"-",IFERROR('Tabel 2 VJ'!I203/'Tabel 1 VJ'!G201*100,"-")) -> - | J203: =IF(OR('Tabel 1 VJ'!G201<5,'Tabel 2 VJ'!J203<0.5),"-",IFERROR('Tabel 2 VJ'!J203/'Tabel 1 VJ'!G201*100,"-")) -> -
A204: Andre | C204: =IF(OR('Tabel 1 VJ'!C202<5,'Tabel 2 VJ'!C204<0.5),"-",IFERROR('Tabel 2 VJ'!C204/'Tabel 1 VJ'!C202*100,"-")) -> 7.692307692 | D204: =IF(OR('Tabel 1 VJ'!C202<5,'Tabel 2 VJ'!D204<0.5),"-",IFERROR('Tabel 2 VJ'!D204/'Tabel 1 VJ'!C202*100,"-")) -> 7.690868353 | F204: =IF(OR('Tabel 1 VJ'!E202<5,'Tabel 2 VJ'!F204<0.5),"-",IFERROR('Tabel 2 VJ'!F204/'Tabel 1 VJ'!E202*100,"-")) -> 20 | G204: =IF(OR('Tabel 1 VJ'!E202<5,'Tabel 2 VJ'!G204<0.5),"-",IFERROR('Tabel 2 VJ'!G204/'Tabel 1 VJ'!E202*100,"-")) -> 19.99625772 | I204: =IF(OR('Tabel 1 VJ'!G202<5,'Tabel 2 VJ'!I204<0.5),"-",IFERROR('Tabel 2 VJ'!I204/'Tabel 1 VJ'!G202*100,"-")) -> 11.11111111 | J204: =IF(OR('Tabel 1 VJ'!G202<5,'Tabel 2 VJ'!J204<0.5),"-",IFERROR('Tabel 2 VJ'!J204/'Tabel 1 VJ'!G202*100,"-")) -> 11.10903207
A206: Total | C206: =IF(OR('Tabel 1 VJ'!C204<5,'Tabel 2 VJ'!C206<0.5),"-",IFERROR('Tabel 2 VJ'!C206/'Tabel 1 VJ'!C204*100,"-")) -> 2.994011976 | D206: =IF(OR('Tabel 1 VJ'!C204<5,'Tabel 2 VJ'!D206<0.5),"-",IFERROR('Tabel 2 VJ'!D206/'Tabel 1 VJ'!C204*100,"-")) -> 2.068712323 | F206: =IF(OR('Tabel 1 VJ'!E204<5,'Tabel 2 VJ'!F206<0.5),"-",IFERROR('Tabel 2 VJ'!F206/'Tabel 1 VJ'!E204*100,"-")) -> 3.086419753 | G206: =IF(OR('Tabel 1 VJ'!E204<5,'Tabel 2 VJ'!G206<0.5),"-",IFERROR('Tabel 2 VJ'!G206/'Tabel 1 VJ'!E204*100,"-")) -> 2.943389136 | I206: =IF(OR('Tabel 1 VJ'!G204<5,'Tabel 2 VJ'!I206<0.5),"-",IFERROR('Tabel 2 VJ'!I206/'Tabel 1 VJ'!G204*100,"-")) -> 3.039513678 | J206: =IF(OR('Tabel 1 VJ'!G204<5,'Tabel 2 VJ'!J206<0.5),"-",IFERROR('Tabel 2 VJ'!J206/'Tabel 1 VJ'!G204*100,"-")) -> 2.499404249
A208: Ingeniører i alt | C208: =IF(OR('Tabel 1 VJ'!C206<5,'Tabel 2 VJ'!C208<0.5),"-",IFERROR('Tabel 2 VJ'!C208/'Tabel 1 VJ'!C206*100,"-")) -> 5.660377358 | D208: =IF(OR('Tabel 1 VJ'!C206<5,'Tabel 2 VJ'!D208<0.5),"-",IFERROR('Tabel 2 VJ'!D208/'Tabel 1 VJ'!C206*100,"-")) -> 3.616362008 | F208: =IF(OR('Tabel 1 VJ'!E206<5,'Tabel 2 VJ'!F208<0.5),"-",IFERROR('Tabel 2 VJ'!F208/'Tabel 1 VJ'!E206*100,"-")) -> - | G208: =IF(OR('Tabel 1 VJ'!E206<5,'Tabel 2 VJ'!G208<0.5),"-",IFERROR('Tabel 2 VJ'!G208/'Tabel 1 VJ'!E206*100,"-")) -> - | I208: =IF(OR('Tabel 1 VJ'!G206<5,'Tabel 2 VJ'!I208<0.5),"-",IFERROR('Tabel 2 VJ'!I208/'Tabel 1 VJ'!G206*100,"-")) -> 4.285714286 | J208: =IF(OR('Tabel 1 VJ'!G206<5,'Tabel 2 VJ'!J208<0.5),"-",IFERROR('Tabel 2 VJ'!J208/'Tabel 1 VJ'!G206*100,"-")) -> 2.738102663
A209: Magistre i alt | C209: =IF(OR('Tabel 1 VJ'!C207<5,'Tabel 2 VJ'!C209<0.5),"-",IFERROR('Tabel 2 VJ'!C209/'Tabel 1 VJ'!C207*100,"-")) -> - | D209: =IF(OR('Tabel 1 VJ'!C207<5,'Tabel 2 VJ'!D209<0.5),"-",IFERROR('Tabel 2 VJ'!D209/'Tabel 1 VJ'!C207*100,"-")) -> - | F209: =IF(OR('Tabel 1 VJ'!E207<5,'Tabel 2 VJ'!F209<0.5),"-",IFERROR('Tabel 2 VJ'!F209/'Tabel 1 VJ'!E207*100,"-")) -> 3.389830508 | G209: =IF(OR('Tabel 1 VJ'!E207<5,'Tabel 2 VJ'!G209<0.5),"-",IFERROR('Tabel 2 VJ'!G209/'Tabel 1 VJ'!E207*100,"-")) -> 2.998053802 | I209: =IF(OR('Tabel 1 VJ'!G207<5,'Tabel 2 VJ'!I209<0.5),"-",IFERROR('Tabel 2 VJ'!I209/'Tabel 1 VJ'!G207*100,"-")) -> 2.127659574 | J209: =IF(OR('Tabel 1 VJ'!G207<5,'Tabel 2 VJ'!J209<0.5),"-",IFERROR('Tabel 2 VJ'!J209/'Tabel 1 VJ'!G207*100,"-")) -> 1.881757174
A210: DJØF'ere i alt | C210: =IF(OR('Tabel 1 VJ'!C208<5,'Tabel 2 VJ'!C210<0.5),"-",IFERROR('Tabel 2 VJ'!C210/'Tabel 1 VJ'!C208*100,"-")) -> - | D210: =IF(OR('Tabel 1 VJ'!C208<5,'Tabel 2 VJ'!D210<0.5),"-",IFERROR('Tabel 2 VJ'!D210/'Tabel 1 VJ'!C208*100,"-")) -> - | F210: =IF(OR('Tabel 1 VJ'!E208<5,'Tabel 2 VJ'!F210<0.5),"-",IFERROR('Tabel 2 VJ'!F210/'Tabel 1 VJ'!E208*100,"-")) -> 8.695652174 | G210: =IF(OR('Tabel 1 VJ'!E208<5,'Tabel 2 VJ'!G210<0.5),"-",IFERROR('Tabel 2 VJ'!G210/'Tabel 1 VJ'!E208*100,"-")) -> 8.694025095 | I210: =IF(OR('Tabel 1 VJ'!G208<5,'Tabel 2 VJ'!I210<0.5),"-",IFERROR('Tabel 2 VJ'!I210/'Tabel 1 VJ'!G208*100,"-")) -> 4.545454545 | J210: =IF(OR('Tabel 1 VJ'!G208<5,'Tabel 2 VJ'!J210<0.5),"-",IFERROR('Tabel 2 VJ'!J210/'Tabel 1 VJ'!G208*100,"-")) -> 4.544604027
A215: Struer
C217: Mænd | F217: Kvinder | I217: I alt
C218: Ledigheds- berørte | D218: Gns. brutto- ledighed | F218: Ledigheds- berørte | G218: Gns. brutto- ledighed | I218: Ledigheds- berørte | J218: Gns. brutto- ledighed
A221: Civ. ing. | C221: =IF(OR('Tabel 1 VJ'!C219<5,'Tabel 2 VJ'!C221<0.5),"-",IFERROR('Tabel 2 VJ'!C221/'Tabel 1 VJ'!C219*100,"-")) -> 2.564102564 | D221: =IF(OR('Tabel 1 VJ'!C219<5,'Tabel 2 VJ'!D221<0.5),"-",IFERROR('Tabel 2 VJ'!D221/'Tabel 1 VJ'!C219*100,"-")) -> 2.208585817 | F221: =IF(OR('Tabel 1 VJ'!E219<5,'Tabel 2 VJ'!F221<0.5),"-",IFERROR('Tabel 2 VJ'!F221/'Tabel 1 VJ'!E219*100,"-")) -> - | G221: =IF(OR('Tabel 1 VJ'!E219<5,'Tabel 2 VJ'!G221<0.5),"-",IFERROR('Tabel 2 VJ'!G221/'Tabel 1 VJ'!E219*100,"-")) -> - | I221: =IF(OR('Tabel 1 VJ'!G219<5,'Tabel 2 VJ'!I221<0.5),"-",IFERROR('Tabel 2 VJ'!I221/'Tabel 1 VJ'!G219*100,"-")) -> 2.040816327 | J221: =IF(OR('Tabel 1 VJ'!G219<5,'Tabel 2 VJ'!J221<0.5),"-",IFERROR('Tabel 2 VJ'!J221/'Tabel 1 VJ'!G219*100,"-")) -> 1.757854018
A222: Diplom ing. | C222: =IF(OR('Tabel 1 VJ'!C220<5,'Tabel 2 VJ'!C222<0.5),"-",IFERROR('Tabel 2 VJ'!C222/'Tabel 1 VJ'!C220*100,"-")) -> 0.8695652174 | D222: =IF(OR('Tabel 1 VJ'!C220<5,'Tabel 2 VJ'!D222<0.5),"-",IFERROR('Tabel 2 VJ'!D222/'Tabel 1 VJ'!C220*100,"-")) -> 0.8694025095 | F222: =IF(OR('Tabel 1 VJ'!E220<5,'Tabel 2 VJ'!F222<0.5),"-",IFERROR('Tabel 2 VJ'!F222/'Tabel 1 VJ'!E220*100,"-")) -> 7.142857143 | G222: =IF(OR('Tabel 1 VJ'!E220<5,'Tabel 2 VJ'!G222<0.5),"-",IFERROR('Tabel 2 VJ'!G222/'Tabel 1 VJ'!E220*100,"-")) -> - | I222: =IF(OR('Tabel 1 VJ'!G220<5,'Tabel 2 VJ'!I222<0.5),"-",IFERROR('Tabel 2 VJ'!I222/'Tabel 1 VJ'!G220*100,"-")) -> 1.550387597 | J222: =IF(OR('Tabel 1 VJ'!G220<5,'Tabel 2 VJ'!J222<0.5),"-",IFERROR('Tabel 2 VJ'!J222/'Tabel 1 VJ'!G220*100,"-")) -> 1.131387444
A223: Cand. Scient. Tek. | C223: =IF(OR('Tabel 1 VJ'!C221<5,'Tabel 2 VJ'!C223<0.5),"-",IFERROR('Tabel 2 VJ'!C223/'Tabel 1 VJ'!C221*100,"-")) -> - | D223: =IF(OR('Tabel 1 VJ'!C221<5,'Tabel 2 VJ'!D223<0.5),"-",IFERROR('Tabel 2 VJ'!D223/'Tabel 1 VJ'!C221*100,"-")) -> - | F223: =IF(OR('Tabel 1 VJ'!E221<5,'Tabel 2 VJ'!F223<0.5),"-",IFERROR('Tabel 2 VJ'!F223/'Tabel 1 VJ'!E221*100,"-")) -> - | G223: =IF(OR('Tabel 1 VJ'!E221<5,'Tabel 2 VJ'!G223<0.5),"-",IFERROR('Tabel 2 VJ'!G223/'Tabel 1 VJ'!E221*100,"-")) -> - | I223: =IF(OR('Tabel 1 VJ'!G221<5,'Tabel 2 VJ'!I223<0.5),"-",IFERROR('Tabel 2 VJ'!I223/'Tabel 1 VJ'!G221*100,"-")) -> - | J223: =IF(OR('Tabel 1 VJ'!G221<5,'Tabel 2 VJ'!J223<0.5),"-",IFERROR('Tabel 2 VJ'!J223/'Tabel 1 VJ'!G221*100,"-")) -> -
A224: MA. Hum. | C224: =IF(OR('Tabel 1 VJ'!C222<5,'Tabel 2 VJ'!C224<0.5),"-",IFERROR('Tabel 2 VJ'!C224/'Tabel 1 VJ'!C222*100,"-")) -> 10.52631579 | D224: =IF(OR('Tabel 1 VJ'!C222<5,'Tabel 2 VJ'!D224<0.5),"-",IFERROR('Tabel 2 VJ'!D224/'Tabel 1 VJ'!C222*100,"-")) -> 10.52434617 | F224: =IF(OR('Tabel 1 VJ'!E222<5,'Tabel 2 VJ'!F224<0.5),"-",IFERROR('Tabel 2 VJ'!F224/'Tabel 1 VJ'!E222*100,"-")) -> 10.81081081 | G224: =IF(OR('Tabel 1 VJ'!E222<5,'Tabel 2 VJ'!G224<0.5),"-",IFERROR('Tabel 2 VJ'!G224/'Tabel 1 VJ'!E222*100,"-")) -> 9.190504045 | I224: =IF(OR('Tabel 1 VJ'!G222<5,'Tabel 2 VJ'!I224<0.5),"-",IFERROR('Tabel 2 VJ'!I224/'Tabel 1 VJ'!G222*100,"-")) -> 10.71428571 | J224: =IF(OR('Tabel 1 VJ'!G222<5,'Tabel 2 VJ'!J224<0.5),"-",IFERROR('Tabel 2 VJ'!J224/'Tabel 1 VJ'!G222*100,"-")) -> 9.643057622
A225: MA. Nat. | C225: =IF(OR('Tabel 1 VJ'!C223<5,'Tabel 2 VJ'!C225<0.5),"-",IFERROR('Tabel 2 VJ'!C225/'Tabel 1 VJ'!C223*100,"-")) -> - | D225: =IF(OR('Tabel 1 VJ'!C223<5,'Tabel 2 VJ'!D225<0.5),"-",IFERROR('Tabel 2 VJ'!D225/'Tabel 1 VJ'!C223*100,"-")) -> - | F225: =IF(OR('Tabel 1 VJ'!E223<5,'Tabel 2 VJ'!F225<0.5),"-",IFERROR('Tabel 2 VJ'!F225/'Tabel 1 VJ'!E223*100,"-")) -> - | G225: =IF(OR('Tabel 1 VJ'!E223<5,'Tabel 2 VJ'!G225<0.5),"-",IFERROR('Tabel 2 VJ'!G225/'Tabel 1 VJ'!E223*100,"-")) -> - | I225: =IF(OR('Tabel 1 VJ'!G223<5,'Tabel 2 VJ'!I225<0.5),"-",IFERROR('Tabel 2 VJ'!I225/'Tabel 1 VJ'!G223*100,"-")) -> - | J225: =IF(OR('Tabel 1 VJ'!G223<5,'Tabel 2 VJ'!J225<0.5),"-",IFERROR('Tabel 2 VJ'!J225/'Tabel 1 VJ'!G223*100,"-")) -> -
A226: MA. Ph.d. | C226: =IF(OR('Tabel 1 VJ'!C224<5,'Tabel 2 VJ'!C226<0.5),"-",IFERROR('Tabel 2 VJ'!C226/'Tabel 1 VJ'!C224*100,"-")) -> - | D226: =IF(OR('Tabel 1 VJ'!C224<5,'Tabel 2 VJ'!D226<0.5),"-",IFERROR('Tabel 2 VJ'!D226/'Tabel 1 VJ'!C224*100,"-")) -> - | F226: =IF(OR('Tabel 1 VJ'!E224<5,'Tabel 2 VJ'!F226<0.5),"-",IFERROR('Tabel 2 VJ'!F226/'Tabel 1 VJ'!E224*100,"-")) -> - | G226: =IF(OR('Tabel 1 VJ'!E224<5,'Tabel 2 VJ'!G226<0.5),"-",IFERROR('Tabel 2 VJ'!G226/'Tabel 1 VJ'!E224*100,"-")) -> - | I226: =IF(OR('Tabel 1 VJ'!G224<5,'Tabel 2 VJ'!I226<0.5),"-",IFERROR('Tabel 2 VJ'!I226/'Tabel 1 VJ'!G224*100,"-")) -> - | J226: =IF(OR('Tabel 1 VJ'!G224<5,'Tabel 2 VJ'!J226<0.5),"-",IFERROR('Tabel 2 VJ'!J226/'Tabel 1 VJ'!G224*100,"-")) -> -
A227: MA. Samf. | C227: =IF(OR('Tabel 1 VJ'!C225<5,'Tabel 2 VJ'!C227<0.5),"-",IFERROR('Tabel 2 VJ'!C227/'Tabel 1 VJ'!C225*100,"-")) -> - | D227: =IF(OR('Tabel 1 VJ'!C225<5,'Tabel 2 VJ'!D227<0.5),"-",IFERROR('Tabel 2 VJ'!D227/'Tabel 1 VJ'!C225*100,"-")) -> - | F227: =IF(OR('Tabel 1 VJ'!E225<5,'Tabel 2 VJ'!F227<0.5),"-",IFERROR('Tabel 2 VJ'!F227/'Tabel 1 VJ'!E225*100,"-")) -> 20 | G227: =IF(OR('Tabel 1 VJ'!E225<5,'Tabel 2 VJ'!G227<0.5),"-",IFERROR('Tabel 2 VJ'!G227/'Tabel 1 VJ'!E225*100,"-")) -> 19.99625772 | I227: =IF(OR('Tabel 1 VJ'!G225<5,'Tabel 2 VJ'!I227<0.5),"-",IFERROR('Tabel 2 VJ'!I227/'Tabel 1 VJ'!G225*100,"-")) -> 16.66666667 | J227: =IF(OR('Tabel 1 VJ'!G225<5,'Tabel 2 VJ'!J227<0.5),"-",IFERROR('Tabel 2 VJ'!J227/'Tabel 1 VJ'!G225*100,"-")) -> 16.6635481
A228: Øvrige Mag. | C228: =IF(OR('Tabel 1 VJ'!C226<5,'Tabel 2 VJ'!C228<0.5),"-",IFERROR('Tabel 2 VJ'!C228/'Tabel 1 VJ'!C226*100,"-")) -> 14.28571429 | D228: =IF(OR('Tabel 1 VJ'!C226<5,'Tabel 2 VJ'!D228<0.5),"-",IFERROR('Tabel 2 VJ'!D228/'Tabel 1 VJ'!C226*100,"-")) -> 14.28304123 | F228: =IF(OR('Tabel 1 VJ'!E226<5,'Tabel 2 VJ'!F228<0.5),"-",IFERROR('Tabel 2 VJ'!F228/'Tabel 1 VJ'!E226*100,"-")) -> - | G228: =IF(OR('Tabel 1 VJ'!E226<5,'Tabel 2 VJ'!G228<0.5),"-",IFERROR('Tabel 2 VJ'!G228/'Tabel 1 VJ'!E226*100,"-")) -> - | I228: =IF(OR('Tabel 1 VJ'!G226<5,'Tabel 2 VJ'!I228<0.5),"-",IFERROR('Tabel 2 VJ'!I228/'Tabel 1 VJ'!G226*100,"-")) -> 10 | J228: =IF(OR('Tabel 1 VJ'!G226<5,'Tabel 2 VJ'!J228<0.5),"-",IFERROR('Tabel 2 VJ'!J228/'Tabel 1 VJ'!G226*100,"-")) -> 9.998128859
A229: Agronom | C229: =IF(OR('Tabel 1 VJ'!C227<5,'Tabel 2 VJ'!C229<0.5),"-",IFERROR('Tabel 2 VJ'!C229/'Tabel 1 VJ'!C227*100,"-")) -> - | D229: =IF(OR('Tabel 1 VJ'!C227<5,'Tabel 2 VJ'!D229<0.5),"-",IFERROR('Tabel 2 VJ'!D229/'Tabel 1 VJ'!C227*100,"-")) -> - | F229: =IF(OR('Tabel 1 VJ'!E227<5,'Tabel 2 VJ'!F229<0.5),"-",IFERROR('Tabel 2 VJ'!F229/'Tabel 1 VJ'!E227*100,"-")) -> - | G229: =IF(OR('Tabel 1 VJ'!E227<5,'Tabel 2 VJ'!G229<0.5),"-",IFERROR('Tabel 2 VJ'!G229/'Tabel 1 VJ'!E227*100,"-")) -> - | I229: =IF(OR('Tabel 1 VJ'!G227<5,'Tabel 2 VJ'!I229<0.5),"-",IFERROR('Tabel 2 VJ'!I229/'Tabel 1 VJ'!G227*100,"-")) -> - | J229: =IF(OR('Tabel 1 VJ'!G227<5,'Tabel 2 VJ'!J229<0.5),"-",IFERROR('Tabel 2 VJ'!J229/'Tabel 1 VJ'!G227*100,"-")) -> -
A230: Landsk. Arkt. | C230: =IF(OR('Tabel 1 VJ'!C228<5,'Tabel 2 VJ'!C230<0.5),"-",IFERROR('Tabel 2 VJ'!C230/'Tabel 1 VJ'!C228*100,"-")) -> - | D230: =IF(OR('Tabel 1 VJ'!C228<5,'Tabel 2 VJ'!D230<0.5),"-",IFERROR('Tabel 2 VJ'!D230/'Tabel 1 VJ'!C228*100,"-")) -> - | F230: =IF(OR('Tabel 1 VJ'!E228<5,'Tabel 2 VJ'!F230<0.5),"-",IFERROR('Tabel 2 VJ'!F230/'Tabel 1 VJ'!E228*100,"-")) -> - | G230: =IF(OR('Tabel 1 VJ'!E228<5,'Tabel 2 VJ'!G230<0.5),"-",IFERROR('Tabel 2 VJ'!G230/'Tabel 1 VJ'!E228*100,"-")) -> - | I230: =IF(OR('Tabel 1 VJ'!G228<5,'Tabel 2 VJ'!I230<0.5),"-",IFERROR('Tabel 2 VJ'!I230/'Tabel 1 VJ'!G228*100,"-")) -> - | J230: =IF(OR('Tabel 1 VJ'!G228<5,'Tabel 2 VJ'!J230<0.5),"-",IFERROR('Tabel 2 VJ'!J230/'Tabel 1 VJ'!G228*100,"-")) -> -
A231: Hortonom | C231: =IF(OR('Tabel 1 VJ'!C229<5,'Tabel 2 VJ'!C231<0.5),"-",IFERROR('Tabel 2 VJ'!C231/'Tabel 1 VJ'!C229*100,"-")) -> - | D231: =IF(OR('Tabel 1 VJ'!C229<5,'Tabel 2 VJ'!D231<0.5),"-",IFERROR('Tabel 2 VJ'!D231/'Tabel 1 VJ'!C229*100,"-")) -> - | F231: =IF(OR('Tabel 1 VJ'!E229<5,'Tabel 2 VJ'!F231<0.5),"-",IFERROR('Tabel 2 VJ'!F231/'Tabel 1 VJ'!E229*100,"-")) -> - | G231: =IF(OR('Tabel 1 VJ'!E229<5,'Tabel 2 VJ'!G231<0.5),"-",IFERROR('Tabel 2 VJ'!G231/'Tabel 1 VJ'!E229*100,"-")) -> - | I231: =IF(OR('Tabel 1 VJ'!G229<5,'Tabel 2 VJ'!I231<0.5),"-",IFERROR('Tabel 2 VJ'!I231/'Tabel 1 VJ'!G229*100,"-")) -> - | J231: =IF(OR('Tabel 1 VJ'!G229<5,'Tabel 2 VJ'!J231<0.5),"-",IFERROR('Tabel 2 VJ'!J231/'Tabel 1 VJ'!G229*100,"-")) -> -
A232: Forstkand. | C232: =IF(OR('Tabel 1 VJ'!C230<5,'Tabel 2 VJ'!C232<0.5),"-",IFERROR('Tabel 2 VJ'!C232/'Tabel 1 VJ'!C230*100,"-")) -> - | D232: =IF(OR('Tabel 1 VJ'!C230<5,'Tabel 2 VJ'!D232<0.5),"-",IFERROR('Tabel 2 VJ'!D232/'Tabel 1 VJ'!C230*100,"-")) -> - | F232: =IF(OR('Tabel 1 VJ'!E230<5,'Tabel 2 VJ'!F232<0.5),"-",IFERROR('Tabel 2 VJ'!F232/'Tabel 1 VJ'!E230*100,"-")) -> - | G232: =IF(OR('Tabel 1 VJ'!E230<5,'Tabel 2 VJ'!G232<0.5),"-",IFERROR('Tabel 2 VJ'!G232/'Tabel 1 VJ'!E230*100,"-")) -> - | I232: =IF(OR('Tabel 1 VJ'!G230<5,'Tabel 2 VJ'!I232<0.5),"-",IFERROR('Tabel 2 VJ'!I232/'Tabel 1 VJ'!G230*100,"-")) -> - | J232: =IF(OR('Tabel 1 VJ'!G230<5,'Tabel 2 VJ'!J232<0.5),"-",IFERROR('Tabel 2 VJ'!J232/'Tabel 1 VJ'!G230*100,"-")) -> -
A233: Jordbrugsakad. | C233: =IF(OR('Tabel 1 VJ'!C231<5,'Tabel 2 VJ'!C233<0.5),"-",IFERROR('Tabel 2 VJ'!C233/'Tabel 1 VJ'!C231*100,"-")) -> - | D233: =IF(OR('Tabel 1 VJ'!C231<5,'Tabel 2 VJ'!D233<0.5),"-",IFERROR('Tabel 2 VJ'!D233/'Tabel 1 VJ'!C231*100,"-")) -> - | F233: =IF(OR('Tabel 1 VJ'!E231<5,'Tabel 2 VJ'!F233<0.5),"-",IFERROR('Tabel 2 VJ'!F233/'Tabel 1 VJ'!E231*100,"-")) -> - | G233: =IF(OR('Tabel 1 VJ'!E231<5,'Tabel 2 VJ'!G233<0.5),"-",IFERROR('Tabel 2 VJ'!G233/'Tabel 1 VJ'!E231*100,"-")) -> - | I233: =IF(OR('Tabel 1 VJ'!G231<5,'Tabel 2 VJ'!I233<0.5),"-",IFERROR('Tabel 2 VJ'!I233/'Tabel 1 VJ'!G231*100,"-")) -> - | J233: =IF(OR('Tabel 1 VJ'!G231<5,'Tabel 2 VJ'!J233<0.5),"-",IFERROR('Tabel 2 VJ'!J233/'Tabel 1 VJ'!G231*100,"-")) -> -
A234: Mejeriing. | C234: =IF(OR('Tabel 1 VJ'!C232<5,'Tabel 2 VJ'!C234<0.5),"-",IFERROR('Tabel 2 VJ'!C234/'Tabel 1 VJ'!C232*100,"-")) -> - | D234: =IF(OR('Tabel 1 VJ'!C232<5,'Tabel 2 VJ'!D234<0.5),"-",IFERROR('Tabel 2 VJ'!D234/'Tabel 1 VJ'!C232*100,"-")) -> - | F234: =IF(OR('Tabel 1 VJ'!E232<5,'Tabel 2 VJ'!F234<0.5),"-",IFERROR('Tabel 2 VJ'!F234/'Tabel 1 VJ'!E232*100,"-")) -> - | G234: =IF(OR('Tabel 1 VJ'!E232<5,'Tabel 2 VJ'!G234<0.5),"-",IFERROR('Tabel 2 VJ'!G234/'Tabel 1 VJ'!E232*100,"-")) -> - | I234: =IF(OR('Tabel 1 VJ'!G232<5,'Tabel 2 VJ'!I234<0.5),"-",IFERROR('Tabel 2 VJ'!I234/'Tabel 1 VJ'!G232*100,"-")) -> - | J234: =IF(OR('Tabel 1 VJ'!G232<5,'Tabel 2 VJ'!J234<0.5),"-",IFERROR('Tabel 2 VJ'!J234/'Tabel 1 VJ'!G232*100,"-")) -> -
A235: Levn.m.kand. | C235: =IF(OR('Tabel 1 VJ'!C233<5,'Tabel 2 VJ'!C235<0.5),"-",IFERROR('Tabel 2 VJ'!C235/'Tabel 1 VJ'!C233*100,"-")) -> - | D235: =IF(OR('Tabel 1 VJ'!C233<5,'Tabel 2 VJ'!D235<0.5),"-",IFERROR('Tabel 2 VJ'!D235/'Tabel 1 VJ'!C233*100,"-")) -> - | F235: =IF(OR('Tabel 1 VJ'!E233<5,'Tabel 2 VJ'!F235<0.5),"-",IFERROR('Tabel 2 VJ'!F235/'Tabel 1 VJ'!E233*100,"-")) -> - | G235: =IF(OR('Tabel 1 VJ'!E233<5,'Tabel 2 VJ'!G235<0.5),"-",IFERROR('Tabel 2 VJ'!G235/'Tabel 1 VJ'!E233*100,"-")) -> - | I235: =IF(OR('Tabel 1 VJ'!G233<5,'Tabel 2 VJ'!I235<0.5),"-",IFERROR('Tabel 2 VJ'!I235/'Tabel 1 VJ'!G233*100,"-")) -> - | J235: =IF(OR('Tabel 1 VJ'!G233<5,'Tabel 2 VJ'!J235<0.5),"-",IFERROR('Tabel 2 VJ'!J235/'Tabel 1 VJ'!G233*100,"-")) -> -
A236: Dyrlæge | C236: =IF(OR('Tabel 1 VJ'!C234<5,'Tabel 2 VJ'!C236<0.5),"-",IFERROR('Tabel 2 VJ'!C236/'Tabel 1 VJ'!C234*100,"-")) -> - | D236: =IF(OR('Tabel 1 VJ'!C234<5,'Tabel 2 VJ'!D236<0.5),"-",IFERROR('Tabel 2 VJ'!D236/'Tabel 1 VJ'!C234*100,"-")) -> - | F236: =IF(OR('Tabel 1 VJ'!E234<5,'Tabel 2 VJ'!F236<0.5),"-",IFERROR('Tabel 2 VJ'!F236/'Tabel 1 VJ'!E234*100,"-")) -> 16.66666667 | G236: =IF(OR('Tabel 1 VJ'!E234<5,'Tabel 2 VJ'!G236<0.5),"-",IFERROR('Tabel 2 VJ'!G236/'Tabel 1 VJ'!E234*100,"-")) -> - | I236: =IF(OR('Tabel 1 VJ'!G234<5,'Tabel 2 VJ'!I236<0.5),"-",IFERROR('Tabel 2 VJ'!I236/'Tabel 1 VJ'!G234*100,"-")) -> 16.66666667 | J236: =IF(OR('Tabel 1 VJ'!G234<5,'Tabel 2 VJ'!J236<0.5),"-",IFERROR('Tabel 2 VJ'!J236/'Tabel 1 VJ'!G234*100,"-")) -> -
A237: Farmaceut | C237: =IF(OR('Tabel 1 VJ'!C235<5,'Tabel 2 VJ'!C237<0.5),"-",IFERROR('Tabel 2 VJ'!C237/'Tabel 1 VJ'!C235*100,"-")) -> - | D237: =IF(OR('Tabel 1 VJ'!C235<5,'Tabel 2 VJ'!D237<0.5),"-",IFERROR('Tabel 2 VJ'!D237/'Tabel 1 VJ'!C235*100,"-")) -> - | F237: =IF(OR('Tabel 1 VJ'!E235<5,'Tabel 2 VJ'!F237<0.5),"-",IFERROR('Tabel 2 VJ'!F237/'Tabel 1 VJ'!E235*100,"-")) -> - | G237: =IF(OR('Tabel 1 VJ'!E235<5,'Tabel 2 VJ'!G237<0.5),"-",IFERROR('Tabel 2 VJ'!G237/'Tabel 1 VJ'!E235*100,"-")) -> - | I237: =IF(OR('Tabel 1 VJ'!G235<5,'Tabel 2 VJ'!I237<0.5),"-",IFERROR('Tabel 2 VJ'!I237/'Tabel 1 VJ'!G235*100,"-")) -> - | J237: =IF(OR('Tabel 1 VJ'!G235<5,'Tabel 2 VJ'!J237<0.5),"-",IFERROR('Tabel 2 VJ'!J237/'Tabel 1 VJ'!G235*100,"-")) -> -
A238: Læge | C238: =IF(OR('Tabel 1 VJ'!C236<5,'Tabel 2 VJ'!C238<0.5),"-",IFERROR('Tabel 2 VJ'!C238/'Tabel 1 VJ'!C236*100,"-")) -> - | D238: =IF(OR('Tabel 1 VJ'!C236<5,'Tabel 2 VJ'!D238<0.5),"-",IFERROR('Tabel 2 VJ'!D238/'Tabel 1 VJ'!C236*100,"-")) -> - | F238: =IF(OR('Tabel 1 VJ'!E236<5,'Tabel 2 VJ'!F238<0.5),"-",IFERROR('Tabel 2 VJ'!F238/'Tabel 1 VJ'!E236*100,"-")) -> - | G238: =IF(OR('Tabel 1 VJ'!E236<5,'Tabel 2 VJ'!G238<0.5),"-",IFERROR('Tabel 2 VJ'!G238/'Tabel 1 VJ'!E236*100,"-")) -> - | I238: =IF(OR('Tabel 1 VJ'!G236<5,'Tabel 2 VJ'!I238<0.5),"-",IFERROR('Tabel 2 VJ'!I238/'Tabel 1 VJ'!G236*100,"-")) -> - | J238: =IF(OR('Tabel 1 VJ'!G236<5,'Tabel 2 VJ'!J238<0.5),"-",IFERROR('Tabel 2 VJ'!J238/'Tabel 1 VJ'!G236*100,"-")) -> -
A239: Tandlæge | C239: =IF(OR('Tabel 1 VJ'!C237<5,'Tabel 2 VJ'!C239<0.5),"-",IFERROR('Tabel 2 VJ'!C239/'Tabel 1 VJ'!C237*100,"-")) -> - | D239: =IF(OR('Tabel 1 VJ'!C237<5,'Tabel 2 VJ'!D239<0.5),"-",IFERROR('Tabel 2 VJ'!D239/'Tabel 1 VJ'!C237*100,"-")) -> - | F239: =IF(OR('Tabel 1 VJ'!E237<5,'Tabel 2 VJ'!F239<0.5),"-",IFERROR('Tabel 2 VJ'!F239/'Tabel 1 VJ'!E237*100,"-")) -> - | G239: =IF(OR('Tabel 1 VJ'!E237<5,'Tabel 2 VJ'!G239<0.5),"-",IFERROR('Tabel 2 VJ'!G239/'Tabel 1 VJ'!E237*100,"-")) -> - | I239: =IF(OR('Tabel 1 VJ'!G237<5,'Tabel 2 VJ'!I239<0.5),"-",IFERROR('Tabel 2 VJ'!I239/'Tabel 1 VJ'!G237*100,"-")) -> - | J239: =IF(OR('Tabel 1 VJ'!G237<5,'Tabel 2 VJ'!J239<0.5),"-",IFERROR('Tabel 2 VJ'!J239/'Tabel 1 VJ'!G237*100,"-")) -> -
A240: Arkitekt | C240: =IF(OR('Tabel 1 VJ'!C238<5,'Tabel 2 VJ'!C240<0.5),"-",IFERROR('Tabel 2 VJ'!C240/'Tabel 1 VJ'!C238*100,"-")) -> - | D240: =IF(OR('Tabel 1 VJ'!C238<5,'Tabel 2 VJ'!D240<0.5),"-",IFERROR('Tabel 2 VJ'!D240/'Tabel 1 VJ'!C238*100,"-")) -> - | F240: =IF(OR('Tabel 1 VJ'!E238<5,'Tabel 2 VJ'!F240<0.5),"-",IFERROR('Tabel 2 VJ'!F240/'Tabel 1 VJ'!E238*100,"-")) -> - | G240: =IF(OR('Tabel 1 VJ'!E238<5,'Tabel 2 VJ'!G240<0.5),"-",IFERROR('Tabel 2 VJ'!G240/'Tabel 1 VJ'!E238*100,"-")) -> - | I240: =IF(OR('Tabel 1 VJ'!G238<5,'Tabel 2 VJ'!I240<0.5),"-",IFERROR('Tabel 2 VJ'!I240/'Tabel 1 VJ'!G238*100,"-")) -> - | J240: =IF(OR('Tabel 1 VJ'!G238<5,'Tabel 2 VJ'!J240<0.5),"-",IFERROR('Tabel 2 VJ'!J240/'Tabel 1 VJ'!G238*100,"-")) -> -
... 197 more rows

Sheet Tabel 4F VJ
A1: Tabel 4. Antal forsikrede - aldersfordelt
A3: Vestjylland
C5: Under 30 år | D5: 30 - 39 år | E5: 40 - 49 år | F5: 50 - 59 år | G5: Over 60 år | I5: I alt
A7: Civ. ing. | C7: 113 | D7: 282 | E7: 258 | F7: 177 | G7: 25 | I7: 855
A8: Diplom ing. | C8: 88 | D8: 283 | E8: 565 | F8: 623 | G8: 136 | I8: 1695
A9: Cand. Scient. Tek. | C9: 85 | D9: 155 | E9: 71 | F9: 26 | G9: 3 | I9: 340
A10: MA. Hum. | C10: 119 | D10: 379 | E10: 411 | F10: 156 | G10: 94 | I10: 1159
A11: MA. Nat. | C11: 20 | D11: 92 | E11: 141 | F11: 142 | G11: 51 | I11: 446
A12: MA. Ph.d. | C12: 1 | D12: 15 | E12: 13 | F12: 11 | G12: 2 | I12: 42
A13: MA. Samf. | C13: 19 | D13: 35 | E13: 7 | F13: 2 | G13: 0 | I13: 63
A14: Øvrige Mag. | C14: 6 | D14: 16 | E14: 30 | F14: 34 | G14: 9 | I14: 95
A15: Agronom | C15: 4 | D15: 19 | E15: 65 | F15: 100 | G15: 41 | I15: 229
A16: Landsk. Arkt. | C16: 0 | D16: 1 | E16: 3 | F16: 3 | G16: 1 | I16: 8
A17: Hortonom | C17: 0 | D17: 0 | E17: 2 | F17: 4 | G17: 4 | I17: 10
A18: Forstkand. | C18: 0 | D18: 3 | E18: 13 | F18: 4 | G18: 4 | I18: 24
A19: Jordbrugsakad. | C19: 4 | D19: 23 | E19: 83 | F19: 111 | G19: 50 | I19: 271
A20: Mejeriing. | C20: 1 | D20: 4 | E20: 5 | F20: 10 | G20: 4 | I20: 24
A21: Levn.m.kand. | C21: 0 | D21: 3 | E21: 1 | F21: 0 | G21: 0 | I21: 4
A22: Dyrlæge | C22: 11 | D22: 45 | E22: 42 | F22: 35 | G22: 16 | I22: 149
A23: Farmaceut | C23: 9 | D23: 24 | E23: 23 | F23: 17 | G23: 4 | I23: 77
A24: Læge | C24: 60 | D24: 135 | E24: 81 | F24: 42 | G24: 21 | I24: 339
A25: Tandlæge | C25: 12 | D25: 30 | E25: 22 | F25: 13 | G25: 11 | I25: 88
A26: Arkitekt | C26: 2 | D26: 24 | E26: 36 | F26: 23 | G26: 17 | I26: 102
A27: Landinspek. | C27: 3 | D27: 16 | E27: 19 | F27: 12 | G27: 6 | I27: 56
A28: Bibliotekar | C28: 2 | D28: 19 | E28: 53 | F28: 44 | G28: 33 | I28: 151
A29: Musikudd. | C29: 2 | D29: 4 | E29: 11 | F29: 25 | G29: 10 | I29: 52
A30: Teolog | C30: 2 | D30: 26 | E30: 32 | F30: 45 | G30: 19 | I30: 124
A31: Psykolog | C31: 37 | D31: 98 | E31: 60 | F31: 33 | G31: 21 | I31: 249
A32: Jurist | C32: 67 | D32: 117 | E32: 120 | F32: 73 | G32: 13 | I32: 390
A33: Økonom | C33: 28 | D33: 49 | E33: 39 | F33: 52 | G33: 5 | I33: 173
A34: Samf. Adm. | C34: 59 | D34: 180 | E34: 131 | F34: 86 | G34: 11 | I34: 467
A35: Cand. Merc. | C35: 149 | D35: 301 | E35: 208 | F35: 153 | G35: 23 | I35: 834
A36: HA | C36: 41 | D36: 49 | E36: 82 | F36: 119 | G36: 19 | I36: 310
A37: HD | C37: 14 | D37: 25 | E37: 51 | F37: 72 | G37: 36 | I37: 198
A38: Komm. og Sprog | C38: 17 | D38: 54 | E38: 81 | F38: 60 | G38: 36 | I38: 248
A39: Cand. IT. | C39: 14 | D39: 36 | E39: 9 | F39: 0 | G39: 0 | I39: 59
A40: Bac. Samf. | C40: 4 | D40: 11 | E40: 11 | F40: 4 | G40: 1 | I40: 31
A41: Bac. Hum. | C41: 11 | D41: 26 | E41: 26 | F41: 16 | G41: 3 | I41: 82
A42: Bac. Nat. | C42: 8 | D42: 48 | E42: 21 | F42: 11 | G42: 1 | I42: 89
A43: Andre | C43: 80 | D43: 179 | E43: 156 | F43: 118 | G43: 64 | I43: 597
A45: Total | C45: 1088 | D45: 2783 | E45: 2899 | F45: 2345 | G45: 744 | I45: 9859
A47: Ingeniører i alt | C47: 201 | D47: 565 | E47: 823 | F47: 800 | G47: 161 | I47: 2550
A48: Magistre i alt | C48: 165 | D48: 537 | E48: 602 | F48: 345 | G48: 156 | I48: 1805
A49: DJØF'ere i alt | C49: 344 | D49: 696 | E49: 580 | F49: 483 | G49: 71 | I49: 2174
A56: Herning
C58: Under 30 år | D58: 30 - 39 år | E58: 40 - 49 år | F58: 50 - 59 år | G58: Over 60 år | I58: I alt
A60: Civ. ing. | C60: 41 | D60: 103 | E60: 44 | F60: 14 | G60: 1 | I60: 203
A61: Diplom ing. | C61: 31 | D61: 100 | E61: 151 | F61: 140 | G61: 24 | I61: 446
A62: Cand. Scient. Tek. | C62: 20 | D62: 35 | E62: 9 | F62: 4 | G62: 0 | I62: 68
A63: MA. Hum. | C63: 34 | D63: 93 | E63: 57 | F63: 10 | G63: 12 | I63: 206
A64: MA. Nat. | C64: 3 | D64: 15 | E64: 24 | F64: 15 | G64: 6 | I64: 63
A65: MA. Ph.d. | C65: 0 | D65: 3 | E65: 3 | F65: 0 | G65: 0 | I65: 6
A66: MA. Samf. | C66: 4 | D66: 8 | E66: 2 | F66: 0 | G66: 0 | I66: 14
A67: Øvrige Mag. | C67: 0 | D67: 5 | E67: 1 | F67: 5 | G67: 1 | I67: 12
A68: Agronom | C68: 1 | D68: 4 | E68: 7 | F68: 10 | G68: 4 | I68: 26
A69: Landsk. Arkt. | C69: 0 | D69: 0 | E69: 1 | F69: 2 | G69: 1 | I69: 4
A70: Hortonom | C70: 0 | D70: 0 | E70: 1 | F70: 0 | G70: 0 | I70: 1
A71: Forstkand. | C71: 0 | D71: 1 | E71: 3 | F71: 0 | G71: 0 | I71: 4
A72: Jordbrugsakad. | C72: 1 | D72: 5 | E72: 12 | F72: 12 | G72: 5 | I72: 35
A73: Mejeriing. | C73: 0 | D73: 3 | E73: 0 | F73: 4 | G73: 1 | I73: 8
A74: Levn.m.kand. | C74: 0 | D74: 2 | E74: 0 | F74: 0 | G74: 0 | I74: 2
A75: Dyrlæge | C75: 1 | D75: 9 | E75: 10 | F75: 9 | G75: 3 | I75: 32
A76: Farmaceut | C76: 4 | D76: 8 | E76: 5 | F76: 5 | G76: 0 | I76: 22
A77: Læge | C77: 18 | D77: 32 | E77: 21 | F77: 5 | G77: 2 | I77: 78
A78: Tandlæge | C78: 4 | D78: 7 | E78: 3 | F78: 2 | G78: 1 | I78: 17
A79: Arkitekt | C79: 0 | D79: 3 | E79: 5 | F79: 3 | G79: 1 | I79: 12
A80: Landinspek. | C80: 0 | D80: 3 | E80: 2 | F80: 1 | G80: 0 | I80: 6
A81: Bibliotekar | C81: 0 | D81: 3 | E81: 12 | F81: 11 | G81: 10 | I81: 36
A82: Musikudd. | C82: 1 | D82: 3 | E82: 2 | F82: 4 | G82: 1 | I82: 11
A83: Teolog | C83: 0 | D83: 6 | E83: 3 | F83: 3 | G83: 3 | I83: 15
A84: Psykolog | C84: 5 | D84: 25 | E84: 11 | F84: 5 | G84: 1 | I84: 47
A85: Jurist | C85: 22 | D85: 31 | E85: 26 | F85: 12 | G85: 1 | I85: 92
A86: Økonom | C86: 4 | D86: 12 | E86: 7 | F86: 15 | G86: 0 | I86: 38
A87: Samf. Adm. | C87: 16 | D87: 45 | E87: 10 | F87: 14 | G87: 2 | I87: 87
A88: Cand. Merc. | C88: 59 | D88: 98 | E88: 64 | F88: 37 | G88: 5 | I88: 263
A89: HA | C89: 15 | D89: 15 | E89: 41 | F89: 46 | G89: 4 | I89: 121
A90: HD | C90: 3 | D90: 8 | E90: 7 | F90: 20 | G90: 10 | I90: 48
A91: Komm. og Sprog | C91: 7 | D91: 15 | E91: 31 | F91: 16 | G91: 3 | I91: 72
A92: Cand. IT. | C92: 3 | D92: 8 | E92: 0 | F92: 0 | G92: 0 | I92: 11
A93: Bac. Samf. | C93: 1 | D93: 3 | E93: 1 | F93: 0 | G93: 0 | I93: 5
A94: Bac. Hum. | C94: 3 | D94: 3 | E94: 7 | F94: 3 | G94: 0 | I94: 16
A95: Bac. Nat. | C95: 2 | D95: 16 | E95: 4 | F95: 2 | G95: 1 | I95: 25
A96: Andre | C96: 16 | D96: 76 | E96: 39 | F96: 25 | G96: 11 | I96: 167
A98: Total | C98: 318 | D98: 801 | E98: 614 | F98: 442 | G98: 109 | I98: 2284
A100: Ingeniører i alt | C100: 72 | D100: 203 | E100: 195 | F100: 154 | G100: 25 | I100: 649
A101: Magistre i alt | C101: 41 | D101: 124 | E101: 87 | F101: 30 | G101: 19 | I101: 301
A102: DJØF'ere i alt | C102: 116 | D102: 201 | E102: 148 | F102: 124 | G102: 12 | I102: 601
A109: Holstebro
C111: Under 30 år | D111: 30 - 39 år | E111: 40 - 49 år | F111: 50 - 59 år | G111: Over 60 år | I111: I alt
A113: Civ. ing. | C113: 16 | D113: 32 | E113: 26 | F113: 24 | G113: 2 | I113: 100
A114: Diplom ing. | C114: 7 | D114: 22 | E114: 96 | F114: 79 | G114: 17 | I114: 221
A115: Cand. Scient. Tek. | C115: 7 | D115: 19 | E115: 7 | F115: 4 | G115: 0 | I115: 37
A116: MA. Hum. | C116: 16 | D116: 64 | E116: 57 | F116: 27 | G116: 15 | I116: 179
A117: MA. Nat. | C117: 6 | D117: 10 | E117: 17 | F117: 12 | G117: 7 | I117: 52
A118: MA. Ph.d. | C118: 0 | D118: 1 | E118: 0 | F118: 0 | G118: 0 | I118: 1
A119: MA. Samf. | C119: 3 | D119: 9 | E119: 0 | F119: 0 | G119: 0 | I119: 12
A120: Øvrige Mag. | C120: 3 | D120: 2 | E120: 6 | F120: 8 | G120: 1 | I120: 20
A121: Agronom | C121: 0 | D121: 1 | E121: 4 | F121: 14 | G121: 3 | I121: 22
A122: Landsk. Arkt. | C122: 0 | D122: 0 | E122: 0 | F122: 0 | G122: 0 | I122: 0
A123: Hortonom | C123: 0 | D123: 0 | E123: 1 | F123: 1 | G123: 2 | I123: 4
A124: Forstkand. | C124: 0 | D124: 1 | E124: 1 | F124: 1 | G124: 1 | I124: 4
A125: Jordbrugsakad. | C125: 0 | D125: 2 | E125: 6 | F125: 16 | G125: 6 | I125: 30
A126: Mejeriing. | C126: 1 | D126: 0 | E126: 0 | F126: 1 | G126: 1 | I126: 3
A127: Levn.m.kand. | C127: 0 | D127: 1 | E127: 0 | F127: 0 | G127: 0 | I127: 1
A128: Dyrlæge | C128: 5 | D128: 5 | E128: 5 | F128: 6 | G128: 1 | I128: 22
A129: Farmaceut | C129: 0 | D129: 3 | E129: 3 | F129: 3 | G129: 1 | I129: 10
A130: Læge | C130: 18 | D130: 30 | E130: 13 | F130: 9 | G130: 6 | I130: 76
A131: Tandlæge | C131: 1 | D131: 8 | E131: 5 | F131: 3 | G131: 1 | I131: 18
A132: Arkitekt | C132: 0 | D132: 1 | E132: 2 | F132: 7 | G132: 3 | I132: 13
A133: Landinspek. | C133: 2 | D133: 2 | E133: 1 | F133: 1 | G133: 0 | I133: 6
A134: Bibliotekar | C134: 0 | D134: 6 | E134: 9 | F134: 4 | G134: 6 | I134: 25
A135: Musikudd. | C135: 0 | D135: 0 | E135: 1 | F135: 8 | G135: 0 | I135: 9
A136: Teolog | C136: 0 | D136: 7 | E136: 5 | F136: 5 | G136: 1 | I136: 18
A137: Psykolog | C137: 6 | D137: 25 | E137: 5 | F137: 6 | G137: 2 | I137: 44
A138: Jurist | C138: 7 | D138: 17 | E138: 16 | F138: 11 | G138: 2 | I138: 53
A139: Økonom | C139: 5 | D139: 8 | E139: 3 | F139: 6 | G139: 0 | I139: 22
A140: Samf. Adm. | C140: 8 | D140: 30 | E140: 16 | F140: 10 | G140: 0 | I140: 64
A141: Cand. Merc. | C141: 18 | D141: 49 | E141: 29 | F141: 17 | G141: 2 | I141: 115
A142: HA | C142: 5 | D142: 5 | E142: 7 | F142: 14 | G142: 3 | I142: 34
A143: HD | C143: 2 | D143: 4 | E143: 7 | F143: 10 | G143: 4 | I143: 27
A144: Komm. og Sprog | C144: 2 | D144: 9 | E144: 3 | F144: 5 | G144: 5 | I144: 24
A145: Cand. IT. | C145: 1 | D145: 2 | E145: 2 | F145: 0 | G145: 0 | I145: 5
A146: Bac. Samf. | C146: 0 | D146: 1 | E146: 1 | F146: 0 | G146: 1 | I146: 3
A147: Bac. Hum. | C147: 1 | D147: 5 | E147: 1 | F147: 0 | G147: 1 | I147: 8
A148: Bac. Nat. | C148: 0 | D148: 6 | E148: 1 | F148: 1 | G148: 0 | I148: 8
A149: Andre | C149: 13 | D149: 17 | E149: 19 | F149: 18 | G149: 7 | I149: 74
A151: Total | C151: 153 | D151: 402 | E151: 369 | F151: 315 | G151: 95 | I151: 1334
A153: Ingeniører i alt | C153: 23 | D153: 54 | E153: 122 | F153: 103 | G153: 19 | I153: 321
A154: Magistre i alt | C154: 28 | D154: 86 | E154: 80 | F154: 47 | G154: 23 | I154: 264
A155: DJØF'ere i alt | C155: 43 | D155: 109 | E155: 71 | F155: 58 | G155: 7 | I155: 288
A162: Lemvig
C164: Under 30 år | D164: 30 - 39 år | E164: 40 - 49 år | F164: 50 - 59 år | G164: Over 60 år | I164: I alt
A166: Civ. ing. | C166: 1 | D166: 7 | E166: 8 | F166: 14 | G166: 2 | I166: 32
A167: Diplom ing. | C167: 2 | D167: 5 | E167: 8 | F167: 19 | G167: 4 | I167: 38
A168: Cand. Scient. Tek. | C168: 5 | D168: 10 | E168: 8 | F168: 0 | G168: 0 | I168: 23
A169: MA. Hum. | C169: 2 | D169: 11 | E169: 17 | F169: 9 | G169: 5 | I169: 44
A170: MA. Nat. | C170: 1 | D170: 7 | E170: 10 | F170: 12 | G170: 3 | I170: 33
A171: MA. Ph.d. | C171: 0 | D171: 1 | E171: 2 | F171: 1 | G171: 0 | I171: 4
A172: MA. Samf. | C172: 0 | D172: 2 | E172: 0 | F172: 0 | G172: 0 | I172: 2
A173: Øvrige Mag. | C173: 0 | D173: 0 | E173: 6 | F173: 5 | G173: 0 | I173: 11
A174: Agronom | C174: 1 | D174: 1 | E174: 1 | F174: 7 | G174: 4 | I174: 14
A175: Landsk. Arkt. | C175: 0 | D175: 0 | E175: 0 | F175: 0 | G175: 0 | I175: 0
A176: Hortonom | C176: 0 | D176: 0 | E176: 0 | F176: 0 | G176: 0 | I176: 0
A177: Forstkand. | C177: 0 | D177: 0 | E177: 0 | F177: 1 | G177: 1 | I177: 2
A178: Jordbrugsakad. | C178: 1 | D178: 1 | E178: 1 | F178: 8 | G178: 5 | I178: 16
A179: Mejeriing. | C179: 0 | D179: 0 | E179: 0 | F179: 0 | G179: 0 | I179: 0
A180: Levn.m.kand. | C180: 0 | D180: 0 | E180: 0 | F180: 0 | G180: 0 | I180: 0
A181: Dyrlæge | C181: 0 | D181: 0 | E181: 1 | F181: 3 | G181: 1 | I181: 5
A182: Farmaceut | C182: 0 | D182: 0 | E182: 1 | F182: 2 | G182: 0 | I182: 3
A183: Læge | C183: 1 | D183: 1 | E183: 1 | F183: 0 | G183: 0 | I183: 3
A184: Tandlæge | C184: 0 | D184: 0 | E184: 0 | F184: 1 | G184: 0 | I184: 1
A185: Arkitekt | C185: 0 | D185: 2 | E185: 2 | F185: 1 | G185: 1 | I185: 6
A186: Landinspek. | C186: 0 | D186: 1 | E186: 2 | F186: 2 | G186: 0 | I186: 5
A187: Bibliotekar | C187: 0 | D187: 0 | E187: 3 | F187: 4 | G187: 3 | I187: 10
A188: Musikudd. | C188: 0 | D188: 0 | E188: 0 | F188: 0 | G188: 0 | I188: 0
A189: Teolog | C189: 0 | D189: 1 | E189: 1 | F189: 5 | G189: 2 | I189: 9
A190: Psykolog | C190: 0 | D190: 2 | E190: 0 | F190: 0 | G190: 3 | I190: 5
A191: Jurist | C191: 0 | D191: 1 | E191: 3 | F191: 1 | G191: 1 | I191: 6
A192: Økonom | C192: 0 | D192: 0 | E192: 0 | F192: 0 | G192: 0 | I192: 0
A193: Samf. Adm. | C193: 3 | D193: 6 | E193: 5 | F193: 3 | G193: 0 | I193: 17
A194: Cand. Merc. | C194: 1 | D194: 6 | E194: 2 | F194: 8 | G194: 0 | I194: 17
A195: HA | C195: 1 | D195: 1 | E195: 0 | F195: 1 | G195: 1 | I195: 4
A196: HD | C196: 0 | D196: 0 | E196: 5 | F196: 1 | G196: 1 | I196: 7
A197: Komm. og Sprog | C197: 0 | D197: 1 | E197: 0 | F197: 1 | G197: 1 | I197: 3
A198: Cand. IT. | C198: 0 | D198: 2 | E198: 0 | F198: 0 | G198: 0 | I198: 2
A199: Bac. Samf. | C199: 0 | D199: 0 | E199: 0 | F199: 1 | G199: 0 | I199: 1
A200: Bac. Hum. | C200: 1 | D200: 0 | E200: 0 | F200: 1 | G200: 0 | I200: 2
A201: Bac. Nat. | C201: 1 | D201: 1 | E201: 0 | F201: 0 | G201: 0 | I201: 2
A202: Andre | C202: 3 | D202: 1 | E202: 3 | F202: 7 | G202: 4 | I202: 18
A204: Total | C204: 23 | D204: 70 | E204: 89 | F204: 110 | G204: 37 | I204: 329
A206: Ingeniører i alt | C206: 3 | D206: 12 | E206: 16 | F206: 33 | G206: 6 | I206: 70
A207: Magistre i alt | C207: 3 | D207: 21 | E207: 35 | F207: 27 | G207: 8 | I207: 94
A208: DJØF'ere i alt | C208: 5 | D208: 14 | E208: 10 | F208: 13 | G208: 2 | I208: 44
A215: Struer
C217: Under 30 år | D217: 30 - 39 år | E217: 40 - 49 år | F217: 50 - 59 år | G217: Over 60 år | I217: I alt
A219: Civ. ing. | C219: 4 | D219: 9 | E219: 14 | F219: 19 | G219: 3 | I219: 49
A220: Diplom ing. | C220: 2 | D220: 13 | E220: 35 | F220: 65 | G220: 14 | I220: 129
A221: Cand. Scient. Tek. | C221: 4 | D221: 8 | E221: 1 | F221: 3 | G221: 0 | I221: 16
A222: MA. Hum. | C222: 3 | D222: 16 | E222: 22 | F222: 10 | G222: 5 | I222: 56
A223: MA. Nat. | C223: 0 | D223: 2 | E223: 7 | F223: 6 | G223: 1 | I223: 16
A224: MA. Ph.d. | C224: 0 | D224: 1 | E224: 1 | F224: 0 | G224: 0 | I224: 2
A225: MA. Samf. | C225: 1 | D225: 3 | E225: 2 | F225: 0 | G225: 0 | I225: 6
A226: Øvrige Mag. | C226: 0 | D226: 1 | E226: 4 | F226: 1 | G226: 4 | I226: 10
A227: Agronom | C227: 1 | D227: 1 | E227: 1 | F227: 2 | G227: 1 | I227: 6
A228: Landsk. Arkt. | C228: 0 | D228: 0 | E228: 0 | F228: 0 | G228: 0 | I228: 0
A229: Hortonom | C229: 0 | D229: 0 | E229: 0 | F229: 0 | G229: 0 | I229: 0
A230: Forstkand. | C230: 0 | D230: 0 | E230: 0 | F230: 1 | G230: 0 | I230: 1
A231: Jordbrugsakad. | C231: 1 | D231: 1 | E231: 1 | F231: 3 | G231: 1 | I231: 7
A232: Mejeriing. | C232: 0 | D232: 0 | E232: 0 | F232: 0 | G232: 1 | I232: 1
A233: Levn.m.kand. | C233: 0 | D233: 0 | E233: 0 | F233: 0 | G233: 0 | I233: 0
A234: Dyrlæge | C234: 1 | D234: 4 | E234: 1 | F234: 0 | G234: 0 | I234: 6
A235: Farmaceut | C235: 0 | D235: 1 | E235: 1 | F235: 1 | G235: 1 | I235: 4
A236: Læge | C236: 0 | D236: 0 | E236: 1 | F236: 0 | G236: 1 | I236: 2
A237: Tandlæge | C237: 0 | D237: 1 | E237: 0 | F237: 0 | G237: 0 | I237: 1
A238: Arkitekt | C238: 0 | D238: 0 | E238: 3 | F238: 2 | G238: 0 | I238: 5
A239: Landinspek. | C239: 0 | D239: 0 | E239: 1 | F239: 0 | G239: 0 | I239: 1
A240: Bibliotekar | C240: 0 | D240: 0 | E240: 2 | F240: 3 | G240: 2 | I240: 7
A241: Musikudd. | C241: 1 | D241: 0 | E241: 0 | F241: 0 | G241: 2 | I241: 3
A242: Teolog | C242: 0 | D242: 2 | E242: 2 | F242: 1 | G242: 0 | I242: 5
A243: Psykolog | C243: 2 | D243: 2 | E243: 3 | F243: 2 | G243: 1 | I243: 10
... 188 more rows

Sheet Tabel 4 VJ
A1: Tabel 4. Ledighedsberørte - aldersfordelt
A3: Vestjylland
C5: Under 30 år | D5: 30 - 39 år | E5: 40 - 49 år | F5: 50 - 59 år | G5: Over 60 år | I5: I alt
A7: Civ. ing. | C7: 9 | D7: 5 | E7: 1 | F7: 4 | G7: 0 | I7: 19
A8: Diplom ing. | C8: 8 | D8: 5 | E8: 2 | F8: 8 | G8: 7 | I8: 30
A9: Cand. Scient. Tek | C9: 9 | D9: 3 | E9: 5 | F9: 1 | G9: 0 | I9: 18
A10: MA. Hum. | C10: 24 | D10: 40 | E10: 22 | F10: 4 | G10: 5 | I10: 95
A11: MA. Nat. | C11: 2 | D11: 7 | E11: 0 | F11: 1 | G11: 2 | I11: 12
A12: MA. Ph.d. | C12: 0 | D12: 1 | E12: 0 | F12: 0 | G12: 0 | I12: 1
A13: MA. Samf. | C13: 5 | D13: 6 | E13: 1 | F13: 0 | G13: 0 | I13: 12
A14: Øvrige Mag. | C14: 1 | D14: 1 | E14: 2 | F14: 1 | G14: 1 | I14: 6
A15: Agronom | C15: 1 | D15: 2 | E15: 1 | F15: 0 | G15: 2 | I15: 6
A16: Landsk. Arkt. | C16: 0 | D16: 0 | E16: 0 | F16: 0 | G16: 1 | I16: 1
A17: Hortonom | C17: 0 | D17: 0 | E17: 0 | F17: 0 | G17: 0 | I17: 0
A18: Forstkand. | C18: 0 | D18: 1 | E18: 0 | F18: 0 | G18: 0 | I18: 1
A19: Jordbrugsakad. | C19: 1 | D19: 3 | E19: 1 | F19: 0 | G19: 3 | I19: 8
A20: Mejeriing. | C20: 0 | D20: 0 | E20: 0 | F20: 0 | G20: 1 | I20: 1
A21: Levn.m.kand. | C21: 0 | D21: 0 | E21: 0 | F21: 0 | G21: 0 | I21: 0
A22: Dyrlæge | C22: 1 | D22: 0 | E22: 0 | F22: 0 | G22: 0 | I22: 1
A23: Farmaceut | C23: 1 | D23: 1 | E23: 0 | F23: 1 | G23: 0 | I23: 3
A24: Læge | C24: 2 | D24: 1 | E24: 0 | F24: 1 | G24: 0 | I24: 4
A25: Tandlæge | C25: 0 | D25: 0 | E25: 1 | F25: 0 | G25: 0 | I25: 1
A26: Arkitekt | C26: 1 | D26: 1 | E26: 2 | F26: 0 | G26: 0 | I26: 4
A27: Landinspek. | C27: 0 | D27: 1 | E27: 0 | F27: 0 | G27: 0 | I27: 1
A28: Bibliotekar | C28: 0 | D28: 2 | E28: 2 | F28: 2 | G28: 0 | I28: 6
A29: Musikudd. | C29: 0 | D29: 0 | E29: 0 | F29: 1 | G29: 0 | I29: 1
A30: Teolog | C30: 0 | D30: 0 | E30: 0 | F30: 0 | G30: 0 | I30: 0
A31: Psykolog | C31: 8 | D31: 2 | E31: 0 | F31: 0 | G31: 0 | I31: 10
A32: Jurist | C32: 1 | D32: 1 | E32: 2 | F32: 0 | G32: 0 | I32: 4
A33: Økonom | C33: 1 | D33: 0 | E33: 1 | F33: 2 | G33: 0 | I33: 4
A34: Samf. Adm. | C34: 14 | D34: 10 | E34: 2 | F34: 3 | G34: 1 | I34: 30
A35: Cand. Merc. | C35: 18 | D35: 7 | E35: 7 | F35: 6 | G35: 1 | I35: 39
A36: HA | C36: 12 | D36: 3 | E36: 0 | F36: 4 | G36: 1 | I36: 20
A37: HD | C37: 1 | D37: 2 | E37: 0 | F37: 2 | G37: 0 | I37: 5
A38: Komm. og Sprog | C38: 5 | D38: 2 | E38: 0 | F38: 5 | G38: 5 | I38: 17
A39: Cand. IT. | C39: 5 | D39: 5 | E39: 0 | F39: 0 | G39: 0 | I39: 10
A40: Bac. Samf. | C40: 0 | D40: 0 | E40: 0 | F40: 0 | G40: 0 | I40: 0
A41: Bac. Hum. | C41: 4 | D41: 2 | E41: 1 | F41: 1 | G41: 0 | I41: 8
A42: Bac. Nat. | C42: 0 | D42: 1 | E42: 0 | F42: 0 | G42: 0 | I42: 1
A43: Andre | C43: 8 | D43: 9 | E43: 7 | F43: 3 | G43: 1 | I43: 28
A45: Total | C45: 141 | D45: 121 | E45: 59 | F45: 50 | G45: 28 | I45: 399
A47: Ingeniører i alt | C47: 17 | D47: 10 | E47: 3 | F47: 12 | G47: 7 | I47: 49
A48: Magistre i alt | C48: 32 | D48: 55 | E48: 25 | F48: 6 | G48: 8 | I48: 126
A49: DJØF'ere i alt | C49: 46 | D49: 21 | E49: 12 | F49: 15 | G49: 3 | I49: 97
A56: Herning
C58: Under 30 år | D58: 30 - 39 år | E58: 40 - 49 år | F58: 50 - 59 år | G58: Over 60 år | I58: I alt
A60: Civ. ing. | C60: 2 | D60: 3 | E60: 0 | F60: 0 | G60: 0 | I60: 5
A61: Diplom ing. | C61: 5 | D61: 3 | E61: 0 | F61: 0 | G61: 4 | I61: 12
A62: Cand. Scient. Tek | C62: 4 | D62: 2 | E62: 1 | F62: 0 | G62: 0 | I62: 7
A63: MA. Hum. | C63: 5 | D63: 10 | E63: 2 | F63: 0 | G63: 1 | I63: 18
A64: MA. Nat. | C64: 0 | D64: 3 | E64: 0 | F64: 0 | G64: 0 | I64: 3
A65: MA. Ph.d. | C65: 0 | D65: 1 | E65: 0 | F65: 0 | G65: 0 | I65: 1
A66: MA. Samf. | C66: 0 | D66: 0 | E66: 1 | F66: 0 | G66: 0 | I66: 1
A67: Øvrige Mag. | C67: 0 | D67: 1 | E67: 0 | F67: 0 | G67: 0 | I67: 1
A68: Agronom | C68: 1 | D68: 1 | E68: 0 | F68: 0 | G68: 0 | I68: 2
A69: Landsk. Arkt. | C69: 0 | D69: 0 | E69: 0 | F69: 0 | G69: 1 | I69: 1
A70: Hortonom | C70: 0 | D70: 0 | E70: 0 | F70: 0 | G70: 0 | I70: 0
A71: Forstkand. | C71: 0 | D71: 0 | E71: 0 | F71: 0 | G71: 0 | I71: 0
A72: Jordbrugsakad. | C72: 1 | D72: 1 | E72: 0 | F72: 0 | G72: 1 | I72: 3
A73: Mejeriing. | C73: 0 | D73: 0 | E73: 0 | F73: 0 | G73: 0 | I73: 0
A74: Levn.m.kand. | C74: 0 | D74: 0 | E74: 0 | F74: 0 | G74: 0 | I74: 0
A75: Dyrlæge | C75: 0 | D75: 0 | E75: 0 | F75: 0 | G75: 0 | I75: 0
A76: Farmaceut | C76: 1 | D76: 1 | E76: 0 | F76: 0 | G76: 0 | I76: 2
A77: Læge | C77: 0 | D77: 1 | E77: 0 | F77: 0 | G77: 0 | I77: 1
A78: Tandlæge | C78: 0 | D78: 0 | E78: 0 | F78: 0 | G78: 0 | I78: 0
A79: Arkitekt | C79: 0 | D79: 0 | E79: 0 | F79: 0 | G79: 0 | I79: 0
A80: Landinspek. | C80: 0 | D80: 0 | E80: 0 | F80: 0 | G80: 0 | I80: 0
A81: Bibliotekar | C81: 0 | D81: 0 | E81: 1 | F81: 1 | G81: 0 | I81: 2
A82: Musikudd. | C82: 0 | D82: 0 | E82: 0 | F82: 0 | G82: 0 | I82: 0
A83: Teolog | C83: 0 | D83: 0 | E83: 0 | F83: 0 | G83: 0 | I83: 0
A84: Psykolog | C84: 2 | D84: 0 | E84: 0 | F84: 0 | G84: 0 | I84: 2
A85: Jurist | C85: 1 | D85: 0 | E85: 0 | F85: 0 | G85: 0 | I85: 1
A86: Økonom | C86: 0 | D86: 0 | E86: 0 | F86: 0 | G86: 0 | I86: 0
A87: Samf. Adm. | C87: 3 | D87: 4 | E87: 0 | F87: 0 | G87: 0 | I87: 7
A88: Cand. Merc. | C88: 8 | D88: 2 | E88: 3 | F88: 1 | G88: 1 | I88: 15
A89: HA | C89: 5 | D89: 0 | E89: 0 | F89: 1 | G89: 0 | I89: 6
A90: HD | C90: 0 | D90: 0 | E90: 0 | F90: 0 | G90: 0 | I90: 0
A91: Komm. og Sprog | C91: 2 | D91: 0 | E91: 0 | F91: 1 | G91: 1 | I91: 4
A92: Cand. IT. | C92: 0 | D92: 1 | E92: 0 | F92: 0 | G92: 0 | I92: 1
A93: Bac. Samf. | C93: 0 | D93: 0 | E93: 0 | F93: 0 | G93: 0 | I93: 0
A94: Bac. Hum. | C94: 1 | D94: 0 | E94: 0 | F94: 1 | G94: 0 | I94: 2
A95: Bac. Nat. | C95: 0 | D95: 0 | E95: 0 | F95: 0 | G95: 0 | I95: 0
A96: Andre | C96: 2 | D96: 2 | E96: 3 | F96: 0 | G96: 0 | I96: 7
A98: Total | C98: 42 | D98: 35 | E98: 11 | F98: 5 | G98: 8 | I98: 101
A100: Ingeniører i alt | C100: 7 | D100: 6 | E100: 0 | F100: 0 | G100: 4 | I100: 17
A101: Magistre i alt | C101: 5 | D101: 15 | E101: 3 | F101: 0 | G101: 1 | I101: 24
A102: DJØF'ere i alt | C102: 17 | D102: 6 | E102: 3 | F102: 2 | G102: 1 | I102: 29
A109: Holstebro
C111: Under 30 år | D111: 30 - 39 år | E111: 40 - 49 år | F111: 50 - 59 år | G111: Over 60 år | I111: I alt
A113: Civ. ing. | C113: 2 | D113: 0 | E113: 0 | F113: 0 | G113: 0 | I113: 2
A114: Diplom ing. | C114: 0 | D114: 1 | E114: 0 | F114: 1 | G114: 0 | I114: 2
A115: Cand. Scient. Tek | C115: 1 | D115: 0 | E115: 0 | F115: 1 | G115: 0 | I115: 2
A116: MA. Hum. | C116: 3 | D116: 6 | E116: 3 | F116: 0 | G116: 1 | I116: 13
A117: MA. Nat. | C117: 2 | D117: 0 | E117: 0 | F117: 0 | G117: 1 | I117: 3
A118: MA. Ph.d. | C118: 0 | D118: 0 | E118: 0 | F118: 0 | G118: 0 | I118: 0
A119: MA. Samf. | C119: 2 | D119: 2 | E119: 0 | F119: 0 | G119: 0 | I119: 4
A120: Øvrige Mag. | C120: 0 | D120: 0 | E120: 0 | F120: 0 | G120: 0 | I120: 0
A121: Agronom | C121: 0 | D121: 0 | E121: 0 | F121: 0 | G121: 0 | I121: 0
A122: Landsk. Arkt. | C122: 0 | D122: 0 | E122: 0 | F122: 0 | G122: 0 | I122: 0
A123: Hortonom | C123: 0 | D123: 0 | E123: 0 | F123: 0 | G123: 0 | I123: 0
A124: Forstkand. | C124: 0 | D124: 1 | E124: 0 | F124: 0 | G124: 0 | I124: 1
A125: Jordbrugsakad. | C125: 0 | D125: 1 | E125: 0 | F125: 0 | G125: 0 | I125: 1
A126: Mejeriing. | C126: 0 | D126: 0 | E126: 0 | F126: 0 | G126: 1 | I126: 1
A127: Levn.m.kand. | C127: 0 | D127: 0 | E127: 0 | F127: 0 | G127: 0 | I127: 0
A128: Dyrlæge | C128: 0 | D128: 0 | E128: 0 | F128: 0 | G128: 0 | I128: 0
A129: Farmaceut | C129: 0 | D129: 0 | E129: 0 | F129: 1 | G129: 0 | I129: 1
A130: Læge | C130: 1 | D130: 0 | E130: 0 | F130: 1 | G130: 0 | I130: 2
A131: Tandlæge | C131: 0 | D131: 0 | E131: 1 | F131: 0 | G131: 0 | I131: 1
A132: Arkitekt | C132: 0 | D132: 0 | E132: 0 | F132: 0 | G132: 0 | I132: 0
A133: Landinspek. | C133: 0 | D133: 0 | E133: 0 | F133: 0 | G133: 0 | I133: 0
A134: Bibliotekar | C134: 0 | D134: 1 | E134: 0 | F134: 0 | G134: 0 | I134: 1
A135: Musikudd. | C135: 0 | D135: 0 | E135: 0 | F135: 0 | G135: 0 | I135: 0
A136: Teolog | C136: 0 | D136: 0 | E136: 0 | F136: 0 | G136: 0 | I136: 0
A137: Psykolog | C137: 1 | D137: 0 | E137: 0 | F137: 0 | G137: 0 | I137: 1
A138: Jurist | C138: 0 | D138: 1 | E138: 0 | F138: 0 | G138: 0 | I138: 1
A139: Økonom | C139: 0 | D139: 0 | E139: 0 | F139: 0 | G139: 0 | I139: 0
A140: Samf. Adm. | C140: 3 | D140: 2 | E140: 0 | F140: 1 | G140: 0 | I140: 6
A141: Cand. Merc. | C141: 1 | D141: 0 | E141: 1 | F141: 0 | G141: 0 | I141: 2
A142: HA | C142: 1 | D142: 0 | E142: 0 | F142: 0 | G142: 0 | I142: 1
A143: HD | C143: 0 | D143: 0 | E143: 0 | F143: 0 | G143: 0 | I143: 0
A144: Komm. og Sprog | C144: 0 | D144: 1 | E144: 0 | F144: 0 | G144: 0 | I144: 1
A145: Cand. IT. | C145: 1 | D145: 0 | E145: 0 | F145: 0 | G145: 0 | I145: 1
A146: Bac. Samf. | C146: 0 | D146: 0 | E146: 0 | F146: 0 | G146: 0 | I146: 0
A147: Bac. Hum. | C147: 0 | D147: 0 | E147: 0 | F147: 0 | G147: 0 | I147: 0
A148: Bac. Nat. | C148: 0 | D148: 0 | E148: 0 | F148: 0 | G148: 0 | I148: 0
A149: Andre | C149: 1 | D149: 2 | E149: 0 | F149: 0 | G149: 0 | I149: 3
A151: Total | C151: 19 | D151: 17 | E151: 5 | F151: 5 | G151: 3 | I151: 49
A153: Ingeniører i alt | C153: 2 | D153: 1 | E153: 0 | F153: 1 | G153: 0 | I153: 4
A154: Magistre i alt | C154: 7 | D154: 8 | E154: 3 | F154: 0 | G154: 2 | I154: 20
A155: DJØF'ere i alt | C155: 5 | D155: 3 | E155: 1 | F155: 1 | G155: 0 | I155: 10
A162: Lemvig
C164: Under 30 år | D164: 30 - 39 år | E164: 40 - 49 år | F164: 50 - 59 år | G164: Over 60 år | I164: I alt
A166: Civ. ing. | C166: 1 | D166: 0 | E166: 0 | F166: 2 | G166: 0 | I166: 3
A167: Diplom ing. | C167: 0 | D167: 0 | E167: 0 | F167: 0 | G167: 0 | I167: 0
A168: Cand. Scient. Tek | C168: 1 | D168: 0 | E168: 0 | F168: 0 | G168: 0 | I168: 1
A169: MA. Hum. | C169: 0 | D169: 0 | E169: 1 | F169: 0 | G169: 0 | I169: 1
A170: MA. Nat. | C170: 0 | D170: 0 | E170: 0 | F170: 0 | G170: 0 | I170: 0
A171: MA. Ph.d. | C171: 0 | D171: 0 | E171: 0 | F171: 0 | G171: 0 | I171: 0
A172: MA. Samf. | C172: 0 | D172: 0 | E172: 0 | F172: 0 | G172: 0 | I172: 0
A173: Øvrige Mag. | C173: 0 | D173: 0 | E173: 1 | F173: 0 | G173: 0 | I173: 1
A174: Agronom | C174: 0 | D174: 0 | E174: 0 | F174: 0 | G174: 0 | I174: 0
A175: Landsk. Arkt. | C175: 0 | D175: 0 | E175: 0 | F175: 0 | G175: 0 | I175: 0
A176: Hortonom | C176: 0 | D176: 0 | E176: 0 | F176: 0 | G176: 0 | I176: 0
A177: Forstkand. | C177: 0 | D177: 0 | E177: 0 | F177: 0 | G177: 0 | I177: 0
A178: Jordbrugsakad. | C178: 0 | D178: 0 | E178: 0 | F178: 0 | G178: 0 | I178: 0
A179: Mejeriing. | C179: 0 | D179: 0 | E179: 0 | F179: 0 | G179: 0 | I179: 0
A180: Levn.m.kand. | C180: 0 | D180: 0 | E180: 0 | F180: 0 | G180: 0 | I180: 0
A181: Dyrlæge | C181: 0 | D181: 0 | E181: 0 | F181: 0 | G181: 0 | I181: 0
A182: Farmaceut | C182: 0 | D182: 0 | E182: 0 | F182: 0 | G182: 0 | I182: 0
A183: Læge | C183: 0 | D183: 0 | E183: 0 | F183: 0 | G183: 0 | I183: 0
A184: Tandlæge | C184: 0 | D184: 0 | E184: 0 | F184: 0 | G184: 0 | I184: 0
A185: Arkitekt | C185: 0 | D185: 0 | E185: 0 | F185: 0 | G185: 0 | I185: 0
A186: Landinspek. | C186: 0 | D186: 0 | E186: 0 | F186: 0 | G186: 0 | I186: 0
A187: Bibliotekar | C187: 0 | D187: 0 | E187: 0 | F187: 0 | G187: 0 | I187: 0
A188: Musikudd. | C188: 0 | D188: 0 | E188: 0 | F188: 0 | G188: 0 | I188: 0
A189: Teolog | C189: 0 | D189: 0 | E189: 0 | F189: 0 | G189: 0 | I189: 0
A190: Psykolog | C190: 0 | D190: 0 | E190: 0 | F190: 0 | G190: 0 | I190: 0
A191: Jurist | C191: 0 | D191: 0 | E191: 0 | F191: 0 | G191: 0 | I191: 0
A192: Økonom | C192: 0 | D192: 0 | E192: 0 | F192: 0 | G192: 0 | I192: 0
A193: Samf. Adm. | C193: 0 | D193: 0 | E193: 1 | F193: 0 | G193: 0 | I193: 1
A194: Cand. Merc. | C194: 0 | D194: 1 | E194: 0 | F194: 0 | G194: 0 | I194: 1
A195: HA | C195: 0 | D195: 0 | E195: 0 | F195: 0 | G195: 0 | I195: 0
A196: HD | C196: 0 | D196: 0 | E196: 0 | F196: 0 | G196: 0 | I196: 0
A197: Komm. og Sprog | C197: 0 | D197: 0 | E197: 0 | F197: 0 | G197: 0 | I197: 0
A198: Cand. IT. | C198: 0 | D198: 0 | E198: 0 | F198: 0 | G198: 0 | I198: 0
A199: Bac. Samf. | C199: 0 | D199: 0 | E199: 0 | F199: 0 | G199: 0 | I199: 0
A200: Bac. Hum. | C200: 0 | D200: 0 | E200: 0 | F200: 0 | G200: 0 | I200: 0
A201: Bac. Nat. | C201: 0 | D201: 0 | E201: 0 | F201: 0 | G201: 0 | I201: 0
A202: Andre | C202: 0 | D202: 1 | E202: 0 | F202: 1 | G202: 0 | I202: 2
A204: Total | C204: 2 | D204: 2 | E204: 3 | F204: 3 | G204: 0 | I204: 10
A206: Ingeniører i alt | C206: 1 | D206: 0 | E206: 0 | F206: 2 | G206: 0 | I206: 3
A207: Magistre i alt | C207: 0 | D207: 0 | E207: 2 | F207: 0 | G207: 0 | I207: 2
A208: DJØF'ere i alt | C208: 0 | D208: 1 | E208: 1 | F208: 0 | G208: 0 | I208: 2
A215: Struer
C217: Under 30 år | D217: 30 - 39 år | E217: 40 - 49 år | F217: 50 - 59 år | G217: Over 60 år | I217: I alt
A219: Civ. ing. | C219: 1 | D219: 0 | E219: 0 | F219: 0 | G219: 0 | I219: 1
A220: Diplom ing. | C220: 0 | D220: 0 | E220: 0 | F220: 2 | G220: 0 | I220: 2
A221: Cand. Scient. Tek | C221: 0 | D221: 0 | E221: 0 | F221: 0 | G221: 0 | I221: 0
A222: MA. Hum. | C222: 0 | D222: 2 | E222: 3 | F222: 1 | G222: 0 | I222: 6
A223: MA. Nat. | C223: 0 | D223: 0 | E223: 0 | F223: 0 | G223: 0 | I223: 0
A224: MA. Ph.d. | C224: 0 | D224: 0 | E224: 0 | F224: 0 | G224: 0 | I224: 0
A225: MA. Samf. | C225: 0 | D225: 1 | E225: 0 | F225: 0 | G225: 0 | I225: 1
A226: Øvrige Mag. | C226: 0 | D226: 0 | E226: 0 | F226: 0 | G226: 1 | I226: 1
A227: Agronom | C227: 0 | D227: 0 | E227: 0 | F227: 0 | G227: 0 | I227: 0
A228: Landsk. Arkt. | C228: 0 | D228: 0 | E228: 0 | F228: 0 | G228: 0 | I228: 0
A229: Hortonom | C229: 0 | D229: 0 | E229: 0 | F229: 0 | G229: 0 | I229: 0
A230: Forstkand. | C230: 0 | D230: 0 | E230: 0 | F230: 0 | G230: 0 | I230: 0
A231: Jordbrugsakad. | C231: 0 | D231: 0 | E231: 0 | F231: 0 | G231: 0 | I231: 0
A232: Mejeriing. | C232: 0 | D232: 0 | E232: 0 | F232: 0 | G232: 0 | I232: 0
A233: Levn.m.kand. | C233: 0 | D233: 0 | E233: 0 | F233: 0 | G233: 0 | I233: 0
A234: Dyrlæge | C234: 1 | D234: 0 | E234: 0 | F234: 0 | G234: 0 | I234: 1
A235: Farmaceut | C235: 0 | D235: 0 | E235: 0 | F235: 0 | G235: 0 | I235: 0
A236: Læge | C236: 0 | D236: 0 | E236: 0 | F236: 0 | G236: 0 | I236: 0
A237: Tandlæge | C237: 0 | D237: 0 | E237: 0 | F237: 0 | G237: 0 | I237: 0
A238: Arkitekt | C238: 0 | D238: 0 | E238: 0 | F238: 0 | G238: 0 | I238: 0
A239: Landinspek. | C239: 0 | D239: 0 | E239: 0 | F239: 0 | G239: 0 | I239: 0
A240: Bibliotekar | C240: 0 | D240: 0 | E240: 0 | F240: 0 | G240: 0 | I240: 0
A241: Musikudd. | C241: 0 | D241: 0 | E241: 0 | F241: 0 | G241: 0 | I241: 0
A242: Teolog | C242: 0 | D242: 0 | E242: 0 | F242: 0 | G242: 0 | I242: 0
A243: Psykolog | C243: 1 | D243: 0 | E243: 0 | F243: 0 | G243: 0 | I243: 1
... 188 more rows

Sheet Tabel 4(Br) VJ
A1: Tabel 4. Ledighedsberørte - aldersfordelt
A3: Vestjylland
C5: Under 30 år | D5: 30 - 39 år | E5: 40 - 49 år | F5: 50 - 59 år | G5: Over 60 år | I5: I alt
A7: Civ. ing. | C7: 6.302002121 | D7: 2.641427057 | E7: 0.9998128859 | F7: 3.65995135 | G7: 0 | I7: 13.60319341
A8: Diplom ing. | C8: 5.608432608 | D8: 3.281357201 | E8: 1.937254413 | F8: 7.181438284 | G8: 5.356452317 | I8: 23.36493482
A9: Cand. Scient. Tek | C9: 7.604939812 | D9: 2.030187738 | E9: 4.122123121 | F9: 0.9998128859 | G9: 0 | I9: 14.75706356
A10: MA. Hum. | C10: 21.27986029 | D10: 33.01440778 | E10: 18.23364311 | F10: 3.676167904 | G10: 4.593026882 | I10: 80.79710597
A11: MA. Nat. | C11: 1.321025385 | D11: 4.938564211 | E11: 0 | F11: 0.9998128859 | G11: 1.90731616 | I11: 9.166718643
A12: MA. Ph.d. | C12: 0 | D12: 0.7085386391 | E12: 0 | F12: 0 | G12: 0 | I12: 0.7085386391
A13: MA. Samf. | C13: 4.503212125 | D13: 3.693631884 | E13: 0.9536580802 | F13: 0 | G13: 0 | I13: 9.150502089
A14: Øvrige Mag. | C14: 0.8813073037 | D14: 0.9998128859 | E14: 1.768851743 | F14: 0.8170648038 | G14: 0.9998128859 | I14: 5.466849623
A15: Agronom | C15: 0.7690388574 | D15: 1.676542132 | E15: 0.9536580802 | F15: 0 | G15: 1.953470966 | I15: 5.352710036
A16: Landsk. Arkt. | C16: 0 | D16: 0 | E16: 0 | F16: 0 | G16: 0.8912867211 | I16: 0.8912867211
A17: Hortonom | C17: 0 | D17: 0 | E17: 0 | F17: 0 | G17: 0 | I17: 0
A18: Forstkand. | C18: 0 | D18: 0.9998128859 | E18: 0 | F18: 0 | G18: 0 | I18: 0.9998128859
A19: Jordbrugsakad. | C19: 0.7690388574 | D19: 2.676355018 | E19: 0.9536580802 | F19: 0 | G19: 2.844757687 | I19: 7.243809643
A20: Mejeriing. | C20: 0 | D20: 0 | E20: 0 | F20: 0 | G20: 0.9998128859 | I20: 0.9998128859
A21: Levn.m.kand. | C21: 0 | D21: 0 | E21: 0 | F21: 0 | G21: 0 | I21: 0
A22: Dyrlæge | C22: 0.4060375476 | D22: 0 | E22: 0 | F22: 0 | G22: 0 | I22: 0.4060375476
A23: Farmaceut | C23: 0.9998128859 | D23: 0.9998128859 | E23: 0 | F23: 0.3074908002 | G23: 0 | I23: 2.307116572
A24: Læge | C24: 1.450134098 | D24: 0.9998128859 | E24: 0 | F24: 0.3074908002 | G24: 0 | I24: 2.757437785
A25: Tandlæge | C25: 0 | D25: 0 | E25: 0.7690388574 | F25: 0 | G25: 0 | I25: 0.7690388574
A26: Arkitekt | C26: 0.9998128859 | D26: 0.6630075469 | E26: 1.815006549 | F26: 0 | G26: 0 | I26: 3.477826982
A27: Landinspek. | C27: 0 | D27: 0.7228840516 | E27: 0 | F27: 0 | G27: 0 | I27: 0.7228840516
A28: Bibliotekar | C28: 0 | D28: 1.999625772 | E28: 1.676542132 | F28: 1.676542132 | G28: 0 | I28: 5.352710036
A29: Musikudd. | C29: 0 | D29: 0 | E29: 0 | F29: 0.9998128859 | G29: 0 | I29: 0.9998128859
A30: Teolog | C30: 0 | D30: 0 | E30: 0 | F30: 0 | G30: 0 | I30: 0
A31: Psykolog | C31: 7.344851244 | D31: 1.445768103 | E31: 0 | F31: 0 | G31: 0 | I31: 8.790619348
A32: Jurist | C32: 0.9998128859 | D32: 0.9998128859 | E32: 1.999625772 | F32: 0 | G32: 0 | I32: 3.999251544
A33: Økonom | C33: 0.9998128859 | D33: 0 | E33: 0.9904571821 | F33: 1.999625772 | G33: 0 | I33: 3.98989584
A34: Samf. Adm. | C34: 13.90507079 | D34: 6.636936319 | E34: 1.445768103 | F34: 2.768664629 | G34: 0.9998128859 | I34: 25.75625273
A35: Cand. Merc. | C35: 15.23358074 | D35: 5.509262147 | E35: 6.721761367 | F35: 4.435227344 | G35: 0.9536580802 | I35: 32.85348968
A36: HA | C36: 10.41601697 | D36: 2.999438658 | E36: 0 | F36: 3.999251544 | G36: 0.9998128859 | I36: 18.41452005
A37: HD | C37: 0.9998128859 | D37: 1.758872326 | E37: 0 | F37: 1.999625772 | G37: 0 | I37: 4.758310984
A38: Komm. og Sprog | C38: 4.836275182 | D38: 1.861161355 | E38: 0 | F38: 4.348531154 | G38: 2.988835527 | I38: 14.03480322
A39: Cand. IT. | C39: 4.732738726 | D39: 3.91692135 | E39: 0 | F39: 0 | G39: 0 | I39: 8.649660076
A40: Bac. Samf. | C40: 0 | D40: 0 | E40: 0 | F40: 0 | G40: 0 | I40: 0
A41: Bac. Hum. | C41: 3.631884239 | D41: 1.999625772 | E41: 0.9998128859 | F41: 0.9998128859 | G41: 0 | I41: 7.631135782
A42: Bac. Nat. | C42: 0 | D42: 0.9998128859 | E42: 0 | F42: 0 | G42: 0 | I42: 0.9998128859
A43: Andre | C43: 6.114888043 | D43: 7.648599763 | E43: 6.38183746 | F43: 2.032682592 | G43: 0.7690388574 | I43: 22.94704672
A45: Total | C45: 121.3403605 | D45: 95.14563712 | E45: 51.76885174 | F45: 43.20900642 | G45: 23.41233705 | I45: 334.8761929
A47: Ingeniører i alt | C47: 11.91043473 | D47: 5.922784257 | E47: 2.937067299 | F47: 10.84138963 | G47: 5.356452317 | I47: 36.96812824
A48: Magistre i alt | C48: 27.9854051 | D48: 43.3549554 | E48: 20.95615293 | F48: 5.493045593 | G48: 7.500155928 | I48: 105.289715
A49: DJØF'ere i alt | C49: 41.55429427 | D49: 16.14545001 | E49: 11.15761242 | F49: 13.20276929 | G49: 2.953283852 | I49: 85.01340984
A56: Herning
C58: Under 30 år | D58: 30 - 39 år | E58: 40 - 49 år | F58: 50 - 59 år | G58: Over 60 år | I58: I alt
A60: Civ. ing. | C60: 1.999625772 | D60: 1.426432982 | E60: 0 | F60: 0 | G60: 0 | I60: 3.426058754
A61: Diplom ing. | C61: 3.716709287 | D61: 2.429364436 | E61: 0 | F61: 0 | G61: 2.799226595 | I61: 8.945300318
A62: Cand. Scient. Tek | C62: 3.168465041 | D62: 1.307303686 | E62: 0.4921100231 | F62: 0 | G62: 0 | I62: 4.96787875
A63: MA. Hum. | C63: 4.814445207 | D63: 8.827418449 | E63: 1.943491549 | F63: 0 | G63: 0.8245493669 | I63: 16.40990457
A64: MA. Nat. | C64: 0 | D64: 2.139337616 | E64: 0 | F64: 0 | G64: 0 | I64: 2.139337616
A65: MA. Ph.d. | C65: 0 | D65: 0.7085386391 | E65: 0 | F65: 0 | G65: 0 | I65: 0.7085386391
A66: MA. Samf. | C66: 0 | D66: 0 | E66: 0.9536580802 | F66: 0 | G66: 0 | I66: 0.9536580802
A67: Øvrige Mag. | C67: 0 | D67: 0.9998128859 | E67: 0 | F67: 0 | G67: 0 | I67: 0.9998128859
A68: Agronom | C68: 0.7690388574 | D68: 0.6767292459 | E68: 0 | F68: 0 | G68: 0 | I68: 1.445768103
A69: Landsk. Arkt. | C69: 0 | D69: 0 | E69: 0 | F69: 0 | G69: 0.8912867211 | I69: 0.8912867211
A70: Hortonom | C70: 0 | D70: 0 | E70: 0 | F70: 0 | G70: 0 | I70: 0
A71: Forstkand. | C71: 0 | D71: 0 | E71: 0 | F71: 0 | G71: 0 | I71: 0
A72: Jordbrugsakad. | C72: 0.7690388574 | D72: 0.6767292459 | E72: 0 | F72: 0 | G72: 0.8912867211 | I72: 2.337054824
A73: Mejeriing. | C73: 0 | D73: 0 | E73: 0 | F73: 0 | G73: 0 | I73: 0
A74: Levn.m.kand. | C74: 0 | D74: 0 | E74: 0 | F74: 0 | G74: 0 | I74: 0
A75: Dyrlæge | C75: 0 | D75: 0 | E75: 0 | F75: 0 | G75: 0 | I75: 0
A76: Farmaceut | C76: 0.9998128859 | D76: 0.9998128859 | E76: 0 | F76: 0 | G76: 0 | I76: 1.999625772
A77: Læge | C77: 0 | D77: 0.9998128859 | E77: 0 | F77: 0 | G77: 0 | I77: 0.9998128859
A78: Tandlæge | C78: 0 | D78: 0 | E78: 0 | F78: 0 | G78: 0 | I78: 0
A79: Arkitekt | C79: 0 | D79: 0 | E79: 0 | F79: 0 | G79: 0 | I79: 0
A80: Landinspek. | C80: 0 | D80: 0 | E80: 0 | F80: 0 | G80: 0 | I80: 0
A81: Bibliotekar | C81: 0 | D81: 0 | E81: 0.6767292459 | F81: 0.6767292459 | G81: 0 | I81: 1.353458492
A82: Musikudd. | C82: 0 | D82: 0 | E82: 0 | F82: 0 | G82: 0 | I82: 0
A83: Teolog | C83: 0 | D83: 0 | E83: 0 | F83: 0 | G83: 0 | I83: 0
A84: Psykolog | C84: 1.999625772 | D84: 0 | E84: 0 | F84: 0 | G84: 0 | I84: 1.999625772
A85: Jurist | C85: 0.9998128859 | D85: 0 | E85: 0 | F85: 0 | G85: 0 | I85: 0.9998128859
A86: Økonom | C86: 0 | D86: 0 | E86: 0 | F86: 0 | G86: 0 | I86: 0
A87: Samf. Adm. | C87: 2.999438658 | D87: 2.130605626 | E87: 0 | F87: 0 | G87: 0 | I87: 5.130044284
A88: Cand. Merc. | C88: 6.158547995 | D88: 1.861161355 | E88: 2.999438658 | F88: 0.9998128859 | G88: 0.9536580802 | I88: 12.97261897
A89: HA | C89: 4.244994698 | D89: 0 | E89: 0 | F89: 0.9998128859 | G89: 0 | I89: 5.244807584
A90: HD | C90: 0 | D90: 0 | E90: 0 | F90: 0 | G90: 0 | I90: 0
A91: Komm. og Sprog | C91: 1.836836525 | D91: 0 | E91: 0 | F91: 0.7035489303 | G91: 0.3074908002 | I91: 2.847876255
A92: Cand. IT. | C92: 0 | D92: 0.9156115512 | E92: 0 | F92: 0 | G92: 0 | I92: 0.9156115512
A93: Bac. Samf. | C93: 0 | D93: 0 | E93: 0 | F93: 0 | G93: 0 | I93: 0
A94: Bac. Hum. | C94: 0.9998128859 | D94: 0 | E94: 0 | F94: 0.9998128859 | G94: 0 | I94: 1.999625772
A95: Bac. Nat. | C95: 0 | D95: 0 | E95: 0 | F95: 0 | G95: 0 | I95: 0
A96: Andre | C96: 1.056570823 | D96: 1.480696064 | E96: 2.507328635 | F96: 0 | G96: 0 | I96: 5.044595522
A98: Total | C98: 35.76373729 | D98: 26.90263831 | E98: 9.57275619 | F98: 4.379716834 | G98: 5.776211564 | I98: 82.39506019
A100: Ingeniører i alt | C100: 5.716335059 | D100: 3.855797418 | E100: 0 | F100: 0 | G100: 2.799226595 | I100: 12.37135907
A101: Magistre i alt | C101: 4.814445207 | D101: 12.67510759 | E101: 2.897149629 | F101: 0 | G101: 0.8245493669 | I101: 21.21125179
A102: DJØF'ere i alt | C102: 14.40279424 | D102: 3.991766981 | E102: 2.999438658 | F102: 1.999625772 | G102: 0.9536580802 | I102: 24.34728373
A109: Holstebro
C111: Under 30 år | D111: 30 - 39 år | E111: 40 - 49 år | F111: 50 - 59 år | G111: Over 60 år | I111: I alt
A113: Civ. ing. | C113: 1.445768103 | D113: 0 | E113: 0 | F113: 0 | G113: 0 | I113: 1.445768103
A114: Diplom ing. | C114: 0 | D114: 0.5844196345 | E114: 0 | F114: 0.9998128859 | G114: 0 | I114: 1.58423252
A115: Cand. Scient. Tek | C115: 0.9998128859 | D115: 0 | E115: 0 | F115: 0.9998128859 | G115: 0 | I115: 1.999625772
A116: MA. Hum. | C116: 1.975300942 | D116: 5.156863968 | E116: 2.408158174 | F116: 0 | G116: 0.9998128859 | I116: 10.54013597
A117: MA. Nat. | C117: 1.321025385 | D117: 0 | E117: 0 | F117: 0 | G117: 0.9998128859 | I117: 2.320838271
A118: MA. Ph.d. | C118: 0 | D118: 0 | E118: 0 | F118: 0 | G118: 0 | I118: 0
A119: MA. Samf. | C119: 1.503773467 | D119: 0.8944052891 | E119: 0 | F119: 0 | G119: 0 | I119: 2.398178756
A120: Øvrige Mag. | C120: 0 | D120: 0 | E120: 0 | F120: 0 | G120: 0 | I120: 0
A121: Agronom | C121: 0 | D121: 0 | E121: 0 | F121: 0 | G121: 0 | I121: 0
A122: Landsk. Arkt. | C122: 0 | D122: 0 | E122: 0 | F122: 0 | G122: 0 | I122: 0
A123: Hortonom | C123: 0 | D123: 0 | E123: 0 | F123: 0 | G123: 0 | I123: 0
A124: Forstkand. | C124: 0 | D124: 0.9998128859 | E124: 0 | F124: 0 | G124: 0 | I124: 0.9998128859
A125: Jordbrugsakad. | C125: 0 | D125: 0.9998128859 | E125: 0 | F125: 0 | G125: 0 | I125: 0.9998128859
A126: Mejeriing. | C126: 0 | D126: 0 | E126: 0 | F126: 0 | G126: 0.9998128859 | I126: 0.9998128859
A127: Levn.m.kand. | C127: 0 | D127: 0 | E127: 0 | F127: 0 | G127: 0 | I127: 0
A128: Dyrlæge | C128: 0 | D128: 0 | E128: 0 | F128: 0 | G128: 0 | I128: 0
A129: Farmaceut | C129: 0 | D129: 0 | E129: 0 | F129: 0.3074908002 | G129: 0 | I129: 0.3074908002
A130: Læge | C130: 0.8195596582 | D130: 0 | E130: 0 | F130: 0.3074908002 | G130: 0 | I130: 1.127050458
A131: Tandlæge | C131: 0 | D131: 0 | E131: 0.7690388574 | F131: 0 | G131: 0 | I131: 0.7690388574
A132: Arkitekt | C132: 0 | D132: 0 | E132: 0 | F132: 0 | G132: 0 | I132: 0
A133: Landinspek. | C133: 0 | D133: 0 | E133: 0 | F133: 0 | G133: 0 | I133: 0
A134: Bibliotekar | C134: 0 | D134: 0.9998128859 | E134: 0 | F134: 0 | G134: 0 | I134: 0.9998128859
A135: Musikudd. | C135: 0 | D135: 0 | E135: 0 | F135: 0 | G135: 0 | I135: 0
A136: Teolog | C136: 0 | D136: 0 | E136: 0 | F136: 0 | G136: 0 | I136: 0
A137: Psykolog | C137: 0.4459552174 | D137: 0 | E137: 0 | F137: 0 | G137: 0 | I137: 0.4459552174
A138: Jurist | C138: 0 | D138: 0.9998128859 | E138: 0 | F138: 0 | G138: 0 | I138: 0.9998128859
A139: Økonom | C139: 0 | D139: 0 | E139: 0 | F139: 0 | G139: 0 | I139: 0
A140: Samf. Adm. | C140: 2.999438658 | D140: 0.7534460176 | E140: 0 | F140: 0.9998128859 | G140: 0 | I140: 4.752697561
A141: Cand. Merc. | C141: 0.9998128859 | D141: 0 | E141: 0.9998128859 | F141: 0 | G141: 0 | I141: 1.999625772
A142: HA | C142: 0.9998128859 | D142: 0 | E142: 0 | F142: 0 | G142: 0 | I142: 0.9998128859
A143: HD | C143: 0 | D143: 0 | E143: 0 | F143: 0 | G143: 0 | I143: 0
A144: Komm. og Sprog | C144: 0 | D144: 0.9998128859 | E144: 0 | F144: 0 | G144: 0 | I144: 0.9998128859
A145: Cand. IT. | C145: 0.9998128859 | D145: 0 | E145: 0 | F145: 0 | G145: 0 | I145: 0.9998128859
A146: Bac. Samf. | C146: 0 | D146: 0 | E146: 0 | F146: 0 | G146: 0 | I146: 0
A147: Bac. Hum. | C147: 0 | D147: 0 | E147: 0 | F147: 0 | G147: 0 | I147: 0
A148: Bac. Nat. | C148: 0 | D148: 0 | E148: 0 | F148: 0 | G148: 0 | I148: 0
A149: Andre | C149: 0.9998128859 | D149: 1.722696938 | E149: 0 | F149: 0 | G149: 0 | I149: 2.722509823
A151: Total | C151: 15.50988586 | D151: 13.11108339 | E151: 4.177009917 | F151: 3.614420258 | G151: 2.999438658 | I151: 39.41183808
A153: Ingeniører i alt | C153: 1.445768103 | D153: 0.5844196345 | E153: 0 | F153: 0.9998128859 | G153: 0 | I153: 3.030000624
A154: Magistre i alt | C154: 4.800099794 | D154: 6.051269257 | E154: 2.408158174 | F154: 0 | G154: 1.999625772 | I154: 15.259153
A155: DJØF'ere i alt | C155: 4.99906443 | D155: 1.753258904 | E155: 0.9998128859 | F155: 0.9998128859 | G155: 0 | I155: 8.751949105
A162: Lemvig
C164: Under 30 år | D164: 30 - 39 år | E164: 40 - 49 år | F164: 50 - 59 år | G164: Over 60 år | I164: I alt
A166: Civ. ing. | C166: 0.2563462858 | D166: 0 | E166: 0 | F166: 1.660325578 | G166: 0 | I166: 1.916671864
A167: Diplom ing. | C167: 0 | D167: 0 | E167: 0 | F167: 0 | G167: 0 | I167: 0
A168: Cand. Scient. Tek | C168: 0.5382648288 | D168: 0 | E168: 0 | F168: 0 | G168: 0 | I168: 0.5382648288
A169: MA. Hum. | C169: 0 | D169: 0 | E169: 0.9998128859 | F169: 0 | G169: 0 | I169: 0.9998128859
A170: MA. Nat. | C170: 0 | D170: 0 | E170: 0 | F170: 0 | G170: 0 | I170: 0
A171: MA. Ph.d. | C171: 0 | D171: 0 | E171: 0 | F171: 0 | G171: 0 | I171: 0
A172: MA. Samf. | C172: 0 | D172: 0 | E172: 0 | F172: 0 | G172: 0 | I172: 0
A173: Øvrige Mag. | C173: 0 | D173: 0 | E173: 0.7690388574 | F173: 0 | G173: 0 | I173: 0.7690388574
A174: Agronom | C174: 0 | D174: 0 | E174: 0 | F174: 0 | G174: 0 | I174: 0
A175: Landsk. Arkt. | C175: 0 | D175: 0 | E175: 0 | F175: 0 | G175: 0 | I175: 0
A176: Hortonom | C176: 0 | D176: 0 | E176: 0 | F176: 0 | G176: 0 | I176: 0
A177: Forstkand. | C177: 0 | D177: 0 | E177: 0 | F177: 0 | G177: 0 | I177: 0
A178: Jordbrugsakad. | C178: 0 | D178: 0 | E178: 0 | F178: 0 | G178: 0 | I178: 0
A179: Mejeriing. | C179: 0 | D179: 0 | E179: 0 | F179: 0 | G179: 0 | I179: 0
A180: Levn.m.kand. | C180: 0 | D180: 0 | E180: 0 | F180: 0 | G180: 0 | I180: 0
A181: Dyrlæge | C181: 0 | D181: 0 | E181: 0 | F181: 0 | G181: 0 | I181: 0
A182: Farmaceut | C182: 0 | D182: 0 | E182: 0 | F182: 0 | G182: 0 | I182: 0
A183: Læge | C183: 0 | D183: 0 | E183: 0 | F183: 0 | G183: 0 | I183: 0
A184: Tandlæge | C184: 0 | D184: 0 | E184: 0 | F184: 0 | G184: 0 | I184: 0
A185: Arkitekt | C185: 0 | D185: 0 | E185: 0 | F185: 0 | G185: 0 | I185: 0
A186: Landinspek. | C186: 0 | D186: 0 | E186: 0 | F186: 0 | G186: 0 | I186: 0
A187: Bibliotekar | C187: 0 | D187: 0 | E187: 0 | F187: 0 | G187: 0 | I187: 0
A188: Musikudd. | C188: 0 | D188: 0 | E188: 0 | F188: 0 | G188: 0 | I188: 0
A189: Teolog | C189: 0 | D189: 0 | E189: 0 | F189: 0 | G189: 0 | I189: 0
A190: Psykolog | C190: 0 | D190: 0 | E190: 0 | F190: 0 | G190: 0 | I190: 0
A191: Jurist | C191: 0 | D191: 0 | E191: 0 | F191: 0 | G191: 0 | I191: 0
A192: Økonom | C192: 0 | D192: 0 | E192: 0 | F192: 0 | G192: 0 | I192: 0
A193: Samf. Adm. | C193: 0 | D193: 0 | E193: 0.9998128859 | F193: 0 | G193: 0 | I193: 0.9998128859
A194: Cand. Merc. | C194: 0 | D194: 0.9998128859 | E194: 0 | F194: 0 | G194: 0 | I194: 0.9998128859
A195: HA | C195: 0 | D195: 0 | E195: 0 | F195: 0 | G195: 0 | I195: 0
A196: HD | C196: 0 | D196: 0 | E196: 0 | F196: 0 | G196: 0 | I196: 0
A197: Komm. og Sprog | C197: 0 | D197: 0 | E197: 0 | F197: 0 | G197: 0 | I197: 0
A198: Cand. IT. | C198: 0 | D198: 0 | E198: 0 | F198: 0 | G198: 0 | I198: 0
A199: Bac. Samf. | C199: 0 | D199: 0 | E199: 0 | F199: 0 | G199: 0 | I199: 0
A200: Bac. Hum. | C200: 0 | D200: 0 | E200: 0 | F200: 0 | G200: 0 | I200: 0
A201: Bac. Nat. | C201: 0 | D201: 0 | E201: 0 | F201: 0 | G201: 0 | I201: 0
A202: Andre | C202: 0 | D202: 0.9998128859 | E202: 0 | F202: 0.9998128859 | G202: 0 | I202: 1.999625772
A204: Total | C204: 0.7946111146 | D204: 1.999625772 | E204: 2.768664629 | F204: 2.660138464 | G204: 0 | I204: 8.22303998
A206: Ingeniører i alt | C206: 0.2563462858 | D206: 0 | E206: 0 | F206: 1.660325578 | G206: 0 | I206: 1.916671864
A207: Magistre i alt | C207: 0 | D207: 0 | E207: 1.768851743 | F207: 0 | G207: 0 | I207: 1.768851743
A208: DJØF'ere i alt | C208: 0 | D208: 0.9998128859 | E208: 0.9998128859 | F208: 0 | G208: 0 | I208: 1.999625772
A215: Struer
C217: Under 30 år | D217: 30 - 39 år | E217: 40 - 49 år | F217: 50 - 59 år | G217: Over 60 år | I217: I alt
A219: Civ. ing. | C219: 0.8613484688 | D219: 0 | E219: 0 | F219: 0 | G219: 0 | I219: 0.8613484688
A220: Diplom ing. | C220: 0 | D220: 0 | E220: 0 | F220: 1.459489802 | G220: 0 | I220: 1.459489802
A221: Cand. Scient. Tek | C221: 0 | D221: 0 | E221: 0 | F221: 0 | G221: 0 | I221: 0
A222: MA. Hum. | C222: 0 | D222: 1.861161355 | E222: 2.539138028 | F222: 0.9998128859 | G222: 0 | I222: 5.400112268
A223: MA. Nat. | C223: 0 | D223: 0 | E223: 0 | F223: 0 | G223: 0 | I223: 0
A224: MA. Ph.d. | C224: 0 | D224: 0 | E224: 0 | F224: 0 | G224: 0 | I224: 0
A225: MA. Samf. | C225: 0 | D225: 0.9998128859 | E225: 0 | F225: 0 | G225: 0 | I225: 0.9998128859
A226: Øvrige Mag. | C226: 0 | D226: 0 | E226: 0 | F226: 0 | G226: 0.9998128859 | I226: 0.9998128859
A227: Agronom | C227: 0 | D227: 0 | E227: 0 | F227: 0 | G227: 0 | I227: 0
A228: Landsk. Arkt. | C228: 0 | D228: 0 | E228: 0 | F228: 0 | G228: 0 | I228: 0
A229: Hortonom | C229: 0 | D229: 0 | E229: 0 | F229: 0 | G229: 0 | I229: 0
A230: Forstkand. | C230: 0 | D230: 0 | E230: 0 | F230: 0 | G230: 0 | I230: 0
A231: Jordbrugsakad. | C231: 0 | D231: 0 | E231: 0 | F231: 0 | G231: 0 | I231: 0
A232: Mejeriing. | C232: 0 | D232: 0 | E232: 0 | F232: 0 | G232: 0 | I232: 0
A233: Levn.m.kand. | C233: 0 | D233: 0 | E233: 0 | F233: 0 | G233: 0 | I233: 0
A234: Dyrlæge | C234: 0.4060375476 | D234: 0 | E234: 0 | F234: 0 | G234: 0 | I234: 0.4060375476
A235: Farmaceut | C235: 0 | D235: 0 | E235: 0 | F235: 0 | G235: 0 | I235: 0
A236: Læge | C236: 0 | D236: 0 | E236: 0 | F236: 0 | G236: 0 | I236: 0
A237: Tandlæge | C237: 0 | D237: 0 | E237: 0 | F237: 0 | G237: 0 | I237: 0
A238: Arkitekt | C238: 0 | D238: 0 | E238: 0 | F238: 0 | G238: 0 | I238: 0
A239: Landinspek. | C239: 0 | D239: 0 | E239: 0 | F239: 0 | G239: 0 | I239: 0
A240: Bibliotekar | C240: 0 | D240: 0 | E240: 0 | F240: 0 | G240: 0 | I240: 0
A241: Musikudd. | C241: 0 | D241: 0 | E241: 0 | F241: 0 | G241: 0 | I241: 0
A242: Teolog | C242: 0 | D242: 0 | E242: 0 | F242: 0 | G242: 0 | I242: 0
A243: Psykolog | C243: 0.9998128859 | D243: 0 | E243: 0 | F243: 0 | G243: 0 | I243: 0.9998128859
... 188 more rows

Sheet Tabel 4P VJ
A1: Tabel 4. Ledighedsberørte - aldersfordelt
A3: Vestjylland
C5: Under 30 år | D5: 30 - 39 år | E5: 40 - 49 år | F5: 50 - 59 år | G5: Over 60 år | I5: I alt
A7: Civ. ing. | C7: =IF(OR('Tabel 4F VJ'!C7<5,'Tabel 4 VJ'!C7<0.5),"-",IFERROR('Tabel 4 VJ'!C7/'Tabel 4F VJ'!C7*100,"-")) -> 7.96460177 | D7: =IF(OR('Tabel 4F VJ'!D7<5,'Tabel 4 VJ'!D7<0.5),"-",IFERROR('Tabel 4 VJ'!D7/'Tabel 4F VJ'!D7*100,"-")) -> 1.773049645 | E7: =IF(OR('Tabel 4F VJ'!E7<5,'Tabel 4 VJ'!E7<0.5),"-",IFERROR('Tabel 4 VJ'!E7/'Tabel 4F VJ'!E7*100,"-")) -> 0.3875968992 | F7: =IF(OR('Tabel 4F VJ'!F7<5,'Tabel 4 VJ'!F7<0.5),"-",IFERROR('Tabel 4 VJ'!F7/'Tabel 4F VJ'!F7*100,"-")) -> 2.259887006 | G7: =IF(OR('Tabel 4F VJ'!G7<5,'Tabel 4 VJ'!G7<0.5),"-",IFERROR('Tabel 4 VJ'!G7/'Tabel 4F VJ'!G7*100,"-")) -> - | I7: =IF(OR('Tabel 4F VJ'!I7<5,'Tabel 4 VJ'!I7<0.5),"-",IFERROR('Tabel 4 VJ'!I7/'Tabel 4F VJ'!I7*100,"-")) -> 2.222222222
A8: Diplom ing. | C8: =IF(OR('Tabel 4F VJ'!C8<5,'Tabel 4 VJ'!C8<0.5),"-",IFERROR('Tabel 4 VJ'!C8/'Tabel 4F VJ'!C8*100,"-")) -> 9.090909091 | D8: =IF(OR('Tabel 4F VJ'!D8<5,'Tabel 4 VJ'!D8<0.5),"-",IFERROR('Tabel 4 VJ'!D8/'Tabel 4F VJ'!D8*100,"-")) -> 1.766784452 | E8: =IF(OR('Tabel 4F VJ'!E8<5,'Tabel 4 VJ'!E8<0.5),"-",IFERROR('Tabel 4 VJ'!E8/'Tabel 4F VJ'!E8*100,"-")) -> 0.3539823009 | F8: =IF(OR('Tabel 4F VJ'!F8<5,'Tabel 4 VJ'!F8<0.5),"-",IFERROR('Tabel 4 VJ'!F8/'Tabel 4F VJ'!F8*100,"-")) -> 1.284109149 | G8: =IF(OR('Tabel 4F VJ'!G8<5,'Tabel 4 VJ'!G8<0.5),"-",IFERROR('Tabel 4 VJ'!G8/'Tabel 4F VJ'!G8*100,"-")) -> 5.147058824 | I8: =IF(OR('Tabel 4F VJ'!I8<5,'Tabel 4 VJ'!I8<0.5),"-",IFERROR('Tabel 4 VJ'!I8/'Tabel 4F VJ'!I8*100,"-")) -> 1.769911504
A9: Cand. Scient. Tek | C9: =IF(OR('Tabel 4F VJ'!C9<5,'Tabel 4 VJ'!C9<0.5),"-",IFERROR('Tabel 4 VJ'!C9/'Tabel 4F VJ'!C9*100,"-")) -> 10.58823529 | D9: =IF(OR('Tabel 4F VJ'!D9<5,'Tabel 4 VJ'!D9<0.5),"-",IFERROR('Tabel 4 VJ'!D9/'Tabel 4F VJ'!D9*100,"-")) -> 1.935483871 | E9: =IF(OR('Tabel 4F VJ'!E9<5,'Tabel 4 VJ'!E9<0.5),"-",IFERROR('Tabel 4 VJ'!E9/'Tabel 4F VJ'!E9*100,"-")) -> 7.042253521 | F9: =IF(OR('Tabel 4F VJ'!F9<5,'Tabel 4 VJ'!F9<0.5),"-",IFERROR('Tabel 4 VJ'!F9/'Tabel 4F VJ'!F9*100,"-")) -> 3.846153846 | G9: =IF(OR('Tabel 4F VJ'!G9<5,'Tabel 4 VJ'!G9<0.5),"-",IFERROR('Tabel 4 VJ'!G9/'Tabel 4F VJ'!G9*100,"-")) -> - | I9: =IF(OR('Tabel 4F VJ'!I9<5,'Tabel 4 VJ'!I9<0.5),"-",IFERROR('Tabel 4 VJ'!I9/'Tabel 4F VJ'!I9*100,"-")) -> 5.294117647
A10: MA. Hum. | C10: =IF(OR('Tabel 4F VJ'!C10<5,'Tabel 4 VJ'!C10<0.5),"-",IFERROR('Tabel 4 VJ'!C10/'Tabel 4F VJ'!C10*100,"-")) -> 20.16806723 | D10: =IF(OR('Tabel 4F VJ'!D10<5,'Tabel 4 VJ'!D10<0.5),"-",IFERROR('Tabel 4 VJ'!D10/'Tabel 4F VJ'!D10*100,"-")) -> 10.55408971 | E10: =IF(OR('Tabel 4F VJ'!E10<5,'Tabel 4 VJ'!E10<0.5),"-",IFERROR('Tabel 4 VJ'!E10/'Tabel 4F VJ'!E10*100,"-")) -> 5.352798054 | F10: =IF(OR('Tabel 4F VJ'!F10<5,'Tabel 4 VJ'!F10<0.5),"-",IFERROR('Tabel 4 VJ'!F10/'Tabel 4F VJ'!F10*100,"-")) -> 2.564102564 | G10: =IF(OR('Tabel 4F VJ'!G10<5,'Tabel 4 VJ'!G10<0.5),"-",IFERROR('Tabel 4 VJ'!G10/'Tabel 4F VJ'!G10*100,"-")) -> 5.319148936 | I10: =IF(OR('Tabel 4F VJ'!I10<5,'Tabel 4 VJ'!I10<0.5),"-",IFERROR('Tabel 4 VJ'!I10/'Tabel 4F VJ'!I10*100,"-")) -> 8.196721311
A11: MA. Nat. | C11: =IF(OR('Tabel 4F VJ'!C11<5,'Tabel 4 VJ'!C11<0.5),"-",IFERROR('Tabel 4 VJ'!C11/'Tabel 4F VJ'!C11*100,"-")) -> 10 | D11: =IF(OR('Tabel 4F VJ'!D11<5,'Tabel 4 VJ'!D11<0.5),"-",IFERROR('Tabel 4 VJ'!D11/'Tabel 4F VJ'!D11*100,"-")) -> 7.608695652 | E11: =IF(OR('Tabel 4F VJ'!E11<5,'Tabel 4 VJ'!E11<0.5),"-",IFERROR('Tabel 4 VJ'!E11/'Tabel 4F VJ'!E11*100,"-")) -> - | F11: =IF(OR('Tabel 4F VJ'!F11<5,'Tabel 4 VJ'!F11<0.5),"-",IFERROR('Tabel 4 VJ'!F11/'Tabel 4F VJ'!F11*100,"-")) -> 0.7042253521 | G11: =IF(OR('Tabel 4F VJ'!G11<5,'Tabel 4 VJ'!G11<0.5),"-",IFERROR('Tabel 4 VJ'!G11/'Tabel 4F VJ'!G11*100,"-")) -> 3.921568627 | I11: =IF(OR('Tabel 4F VJ'!I11<5,'Tabel 4 VJ'!I11<0.5),"-",IFERROR('Tabel 4 VJ'!I11/'Tabel 4F VJ'!I11*100,"-")) -> 2.69058296
A12: MA. Ph.d. | C12: =IF(OR('Tabel 4F VJ'!C12<5,'Tabel 4 VJ'!C12<0.5),"-",IFERROR('Tabel 4 VJ'!C12/'Tabel 4F VJ'!C12*100,"-")) -> - | D12: =IF(OR('Tabel 4F VJ'!D12<5,'Tabel 4 VJ'!D12<0.5),"-",IFERROR('Tabel 4 VJ'!D12/'Tabel 4F VJ'!D12*100,"-")) -> 6.666666667 | E12: =IF(OR('Tabel 4F VJ'!E12<5,'Tabel 4 VJ'!E12<0.5),"-",IFERROR('Tabel 4 VJ'!E12/'Tabel 4F VJ'!E12*100,"-")) -> - | F12: =IF(OR('Tabel 4F VJ'!F12<5,'Tabel 4 VJ'!F12<0.5),"-",IFERROR('Tabel 4 VJ'!F12/'Tabel 4F VJ'!F12*100,"-")) -> - | G12: =IF(OR('Tabel 4F VJ'!G12<5,'Tabel 4 VJ'!G12<0.5),"-",IFERROR('Tabel 4 VJ'!G12/'Tabel 4F VJ'!G12*100,"-")) -> - | I12: =IF(OR('Tabel 4F VJ'!I12<5,'Tabel 4 VJ'!I12<0.5),"-",IFERROR('Tabel 4 VJ'!I12/'Tabel 4F VJ'!I12*100,"-")) -> 2.380952381
A13: MA. Samf. | C13: =IF(OR('Tabel 4F VJ'!C13<5,'Tabel 4 VJ'!C13<0.5),"-",IFERROR('Tabel 4 VJ'!C13/'Tabel 4F VJ'!C13*100,"-")) -> 26.31578947 | D13: =IF(OR('Tabel 4F VJ'!D13<5,'Tabel 4 VJ'!D13<0.5),"-",IFERROR('Tabel 4 VJ'!D13/'Tabel 4F VJ'!D13*100,"-")) -> 17.14285714 | E13: =IF(OR('Tabel 4F VJ'!E13<5,'Tabel 4 VJ'!E13<0.5),"-",IFERROR('Tabel 4 VJ'!E13/'Tabel 4F VJ'!E13*100,"-")) -> 14.28571429 | F13: =IF(OR('Tabel 4F VJ'!F13<5,'Tabel 4 VJ'!F13<0.5),"-",IFERROR('Tabel 4 VJ'!F13/'Tabel 4F VJ'!F13*100,"-")) -> - | G13: =IF(OR('Tabel 4F VJ'!G13<5,'Tabel 4 VJ'!G13<0.5),"-",IFERROR('Tabel 4 VJ'!G13/'Tabel 4F VJ'!G13*100,"-")) -> - | I13: =IF(OR('Tabel 4F VJ'!I13<5,'Tabel 4 VJ'!I13<0.5),"-",IFERROR('Tabel 4 VJ'!I13/'Tabel 4F VJ'!I13*100,"-")) -> 19.04761905
A14: Øvrige Mag. | C14: =IF(OR('Tabel 4F VJ'!C14<5,'Tabel 4 VJ'!C14<0.5),"-",IFERROR('Tabel 4 VJ'!C14/'Tabel 4F VJ'!C14*100,"-")) -> 16.66666667 | D14: =IF(OR('Tabel 4F VJ'!D14<5,'Tabel 4 VJ'!D14<0.5),"-",IFERROR('Tabel 4 VJ'!D14/'Tabel 4F VJ'!D14*100,"-")) -> 6.25 | E14: =IF(OR('Tabel 4F VJ'!E14<5,'Tabel 4 VJ'!E14<0.5),"-",IFERROR('Tabel 4 VJ'!E14/'Tabel 4F VJ'!E14*100,"-")) -> 6.666666667 | F14: =IF(OR('Tabel 4F VJ'!F14<5,'Tabel 4 VJ'!F14<0.5),"-",IFERROR('Tabel 4 VJ'!F14/'Tabel 4F VJ'!F14*100,"-")) -> 2.941176471 | G14: =IF(OR('Tabel 4F VJ'!G14<5,'Tabel 4 VJ'!G14<0.5),"-",IFERROR('Tabel 4 VJ'!G14/'Tabel 4F VJ'!G14*100,"-")) -> 11.11111111 | I14: =IF(OR('Tabel 4F VJ'!I14<5,'Tabel 4 VJ'!I14<0.5),"-",IFERROR('Tabel 4 VJ'!I14/'Tabel 4F VJ'!I14*100,"-")) -> 6.315789474
A15: Agronom | C15: =IF(OR('Tabel 4F VJ'!C15<5,'Tabel 4 VJ'!C15<0.5),"-",IFERROR('Tabel 4 VJ'!C15/'Tabel 4F VJ'!C15*100,"-")) -> - | D15: =IF(OR('Tabel 4F VJ'!D15<5,'Tabel 4 VJ'!D15<0.5),"-",IFERROR('Tabel 4 VJ'!D15/'Tabel 4F VJ'!D15*100,"-")) -> 10.52631579 | E15: =IF(OR('Tabel 4F VJ'!E15<5,'Tabel 4 VJ'!E15<0.5),"-",IFERROR('Tabel 4 VJ'!E15/'Tabel 4F VJ'!E15*100,"-")) -> 1.538461538 | F15: =IF(OR('Tabel 4F VJ'!F15<5,'Tabel 4 VJ'!F15<0.5),"-",IFERROR('Tabel 4 VJ'!F15/'Tabel 4F VJ'!F15*100,"-")) -> - | G15: =IF(OR('Tabel 4F VJ'!G15<5,'Tabel 4 VJ'!G15<0.5),"-",IFERROR('Tabel 4 VJ'!G15/'Tabel 4F VJ'!G15*100,"-")) -> 4.87804878 | I15: =IF(OR('Tabel 4F VJ'!I15<5,'Tabel 4 VJ'!I15<0.5),"-",IFERROR('Tabel 4 VJ'!I15/'Tabel 4F VJ'!I15*100,"-")) -> 2.620087336
A16: Landsk. Arkt. | C16: =IF(OR('Tabel 4F VJ'!C16<5,'Tabel 4 VJ'!C16<0.5),"-",IFERROR('Tabel 4 VJ'!C16/'Tabel 4F VJ'!C16*100,"-")) -> - | D16: =IF(OR('Tabel 4F VJ'!D16<5,'Tabel 4 VJ'!D16<0.5),"-",IFERROR('Tabel 4 VJ'!D16/'Tabel 4F VJ'!D16*100,"-")) -> - | E16: =IF(OR('Tabel 4F VJ'!E16<5,'Tabel 4 VJ'!E16<0.5),"-",IFERROR('Tabel 4 VJ'!E16/'Tabel 4F VJ'!E16*100,"-")) -> - | F16: =IF(OR('Tabel 4F VJ'!F16<5,'Tabel 4 VJ'!F16<0.5),"-",IFERROR('Tabel 4 VJ'!F16/'Tabel 4F VJ'!F16*100,"-")) -> - | G16: =IF(OR('Tabel 4F VJ'!G16<5,'Tabel 4 VJ'!G16<0.5),"-",IFERROR('Tabel 4 VJ'!G16/'Tabel 4F VJ'!G16*100,"-")) -> - | I16: =IF(OR('Tabel 4F VJ'!I16<5,'Tabel 4 VJ'!I16<0.5),"-",IFERROR('Tabel 4 VJ'!I16/'Tabel 4F VJ'!I16*100,"-")) -> 12.5
A17: Hortonom | C17: =IF(OR('Tabel 4F VJ'!C17<5,'Tabel 4 VJ'!C17<0.5),"-",IFERROR('Tabel 4 VJ'!C17/'Tabel 4F VJ'!C17*100,"-")) -> - | D17: =IF(OR('Tabel 4F VJ'!D17<5,'Tabel 4 VJ'!D17<0.5),"-",IFERROR('Tabel 4 VJ'!D17/'Tabel 4F VJ'!D17*100,"-")) -> - | E17: =IF(OR('Tabel 4F VJ'!E17<5,'Tabel 4 VJ'!E17<0.5),"-",IFERROR('Tabel 4 VJ'!E17/'Tabel 4F VJ'!E17*100,"-")) -> - | F17: =IF(OR('Tabel 4F VJ'!F17<5,'Tabel 4 VJ'!F17<0.5),"-",IFERROR('Tabel 4 VJ'!F17/'Tabel 4F VJ'!F17*100,"-")) -> - | G17: =IF(OR('Tabel 4F VJ'!G17<5,'Tabel 4 VJ'!G17<0.5),"-",IFERROR('Tabel 4 VJ'!G17/'Tabel 4F VJ'!G17*100,"-")) -> - | I17: =IF(OR('Tabel 4F VJ'!I17<5,'Tabel 4 VJ'!I17<0.5),"-",IFERROR('Tabel 4 VJ'!I17/'Tabel 4F VJ'!I17*100,"-")) -> -
A18: Forstkand. | C18: =IF(OR('Tabel 4F VJ'!C18<5,'Tabel 4 VJ'!C18<0.5),"-",IFERROR('Tabel 4 VJ'!C18/'Tabel 4F VJ'!C18*100,"-")) -> - | D18: =IF(OR('Tabel 4F VJ'!D18<5,'Tabel 4 VJ'!D18<0.5),"-",IFERROR('Tabel 4 VJ'!D18/'Tabel 4F VJ'!D18*100,"-")) -> - | E18: =IF(OR('Tabel 4F VJ'!E18<5,'Tabel 4 VJ'!E18<0.5),"-",IFERROR('Tabel 4 VJ'!E18/'Tabel 4F VJ'!E18*100,"-")) -> - | F18: =IF(OR('Tabel 4F VJ'!F18<5,'Tabel 4 VJ'!F18<0.5),"-",IFERROR('Tabel 4 VJ'!F18/'Tabel 4F VJ'!F18*100,"-")) -> - | G18: =IF(OR('Tabel 4F VJ'!G18<5,'Tabel 4 VJ'!G18<0.5),"-",IFERROR('Tabel 4 VJ'!G18/'Tabel 4F VJ'!G18*100,"-")) -> - | I18: =IF(OR('Tabel 4F VJ'!I18<5,'Tabel 4 VJ'!I18<0.5),"-",IFERROR('Tabel 4 VJ'!I18/'Tabel 4F VJ'!I18*100,"-")) -> 4.166666667
A19: Jordbrugsakad. | C19: =IF(OR('Tabel 4F VJ'!C19<5,'Tabel 4 VJ'!C19<0.5),"-",IFERROR('Tabel 4 VJ'!C19/'Tabel 4F VJ'!C19*100,"-")) -> - | D19: =IF(OR('Tabel 4F VJ'!D19<5,'Tabel 4 VJ'!D19<0.5),"-",IFERROR('Tabel 4 VJ'!D19/'Tabel 4F VJ'!D19*100,"-")) -> 13.04347826 | E19: =IF(OR('Tabel 4F VJ'!E19<5,'Tabel 4 VJ'!E19<0.5),"-",IFERROR('Tabel 4 VJ'!E19/'Tabel 4F VJ'!E19*100,"-")) -> 1.204819277 | F19: =IF(OR('Tabel 4F VJ'!F19<5,'Tabel 4 VJ'!F19<0.5),"-",IFERROR('Tabel 4 VJ'!F19/'Tabel 4F VJ'!F19*100,"-")) -> - | G19: =IF(OR('Tabel 4F VJ'!G19<5,'Tabel 4 VJ'!G19<0.5),"-",IFERROR('Tabel 4 VJ'!G19/'Tabel 4F VJ'!G19*100,"-")) -> 6 | I19: =IF(OR('Tabel 4F VJ'!I19<5,'Tabel 4 VJ'!I19<0.5),"-",IFERROR('Tabel 4 VJ'!I19/'Tabel 4F VJ'!I19*100,"-")) -> 2.95202952
A20: Mejeriing. | C20: =IF(OR('Tabel 4F VJ'!C20<5,'Tabel 4 VJ'!C20<0.5),"-",IFERROR('Tabel 4 VJ'!C20/'Tabel 4F VJ'!C20*100,"-")) -> - | D20: =IF(OR('Tabel 4F VJ'!D20<5,'Tabel 4 VJ'!D20<0.5),"-",IFERROR('Tabel 4 VJ'!D20/'Tabel 4F VJ'!D20*100,"-")) -> - | E20: =IF(OR('Tabel 4F VJ'!E20<5,'Tabel 4 VJ'!E20<0.5),"-",IFERROR('Tabel 4 VJ'!E20/'Tabel 4F VJ'!E20*100,"-")) -> - | F20: =IF(OR('Tabel 4F VJ'!F20<5,'Tabel 4 VJ'!F20<0.5),"-",IFERROR('Tabel 4 VJ'!F20/'Tabel 4F VJ'!F20*100,"-")) -> - | G20: =IF(OR('Tabel 4F VJ'!G20<5,'Tabel 4 VJ'!G20<0.5),"-",IFERROR('Tabel 4 VJ'!G20/'Tabel 4F VJ'!G20*100,"-")) -> - | I20: =IF(OR('Tabel 4F VJ'!I20<5,'Tabel 4 VJ'!I20<0.5),"-",IFERROR('Tabel 4 VJ'!I20/'Tabel 4F VJ'!I20*100,"-")) -> 4.166666667
A21: Levn.m.kand. | C21: =IF(OR('Tabel 4F VJ'!C21<5,'Tabel 4 VJ'!C21<0.5),"-",IFERROR('Tabel 4 VJ'!C21/'Tabel 4F VJ'!C21*100,"-")) -> - | D21: =IF(OR('Tabel 4F VJ'!D21<5,'Tabel 4 VJ'!D21<0.5),"-",IFERROR('Tabel 4 VJ'!D21/'Tabel 4F VJ'!D21*100,"-")) -> - | E21: =IF(OR('Tabel 4F VJ'!E21<5,'Tabel 4 VJ'!E21<0.5),"-",IFERROR('Tabel 4 VJ'!E21/'Tabel 4F VJ'!E21*100,"-")) -> - | F21: =IF(OR('Tabel 4F VJ'!F21<5,'Tabel 4 VJ'!F21<0.5),"-",IFERROR('Tabel 4 VJ'!F21/'Tabel 4F VJ'!F21*100,"-")) -> - | G21: =IF(OR('Tabel 4F VJ'!G21<5,'Tabel 4 VJ'!G21<0.5),"-",IFERROR('Tabel 4 VJ'!G21/'Tabel 4F VJ'!G21*100,"-")) -> - | I21: =IF(OR('Tabel 4F VJ'!I21<5,'Tabel 4 VJ'!I21<0.5),"-",IFERROR('Tabel 4 VJ'!I21/'Tabel 4F VJ'!I21*100,"-")) -> -
A22: Dyrlæge | C22: =IF(OR('Tabel 4F VJ'!C22<5,'Tabel 4 VJ'!C22<0.5),"-",IFERROR('Tabel 4 VJ'!C22/'Tabel 4F VJ'!C22*100,"-")) -> 9.090909091 | D22: =IF(OR('Tabel 4F VJ'!D22<5,'Tabel 4 VJ'!D22<0.5),"-",IFERROR('Tabel 4 VJ'!D22/'Tabel 4F VJ'!D22*100,"-")) -> - | E22: =IF(OR('Tabel 4F VJ'!E22<5,'Tabel 4 VJ'!E22<0.5),"-",IFERROR('Tabel 4 VJ'!E22/'Tabel 4F VJ'!E22*100,"-")) -> - | F22: =IF(OR('Tabel 4F VJ'!F22<5,'Tabel 4 VJ'!F22<0.5),"-",IFERROR('Tabel 4 VJ'!F22/'Tabel 4F VJ'!F22*100,"-")) -> - | G22: =IF(OR('Tabel 4F VJ'!G22<5,'Tabel 4 VJ'!G22<0.5),"-",IFERROR('Tabel 4 VJ'!G22/'Tabel 4F VJ'!G22*100,"-")) -> - | I22: =IF(OR('Tabel 4F VJ'!I22<5,'Tabel 4 VJ'!I22<0.5),"-",IFERROR('Tabel 4 VJ'!I22/'Tabel 4F VJ'!I22*100,"-")) -> 0.6711409396
A23: Farmaceut | C23: =IF(OR('Tabel 4F VJ'!C23<5,'Tabel 4 VJ'!C23<0.5),"-",IFERROR('Tabel 4 VJ'!C23/'Tabel 4F VJ'!C23*100,"-")) -> 11.11111111 | D23: =IF(OR('Tabel 4F VJ'!D23<5,'Tabel 4 VJ'!D23<0.5),"-",IFERROR('Tabel 4 VJ'!D23/'Tabel 4F VJ'!D23*100,"-")) -> 4.166666667 | E23: =IF(OR('Tabel 4F VJ'!E23<5,'Tabel 4 VJ'!E23<0.5),"-",IFERROR('Tabel 4 VJ'!E23/'Tabel 4F VJ'!E23*100,"-")) -> - | F23: =IF(OR('Tabel 4F VJ'!F23<5,'Tabel 4 VJ'!F23<0.5),"-",IFERROR('Tabel 4 VJ'!F23/'Tabel 4F VJ'!F23*100,"-")) -> 5.882352941 | G23: =IF(OR('Tabel 4F VJ'!G23<5,'Tabel 4 VJ'!G23<0.5),"-",IFERROR('Tabel 4 VJ'!G23/'Tabel 4F VJ'!G23*100,"-")) -> - | I23: =IF(OR('Tabel 4F VJ'!I23<5,'Tabel 4 VJ'!I23<0.5),"-",IFERROR('Tabel 4 VJ'!I23/'Tabel 4F VJ'!I23*100,"-")) -> 3.896103896
A24: Læge | C24: =IF(OR('Tabel 4F VJ'!C24<5,'Tabel 4 VJ'!C24<0.5),"-",IFERROR('Tabel 4 VJ'!C24/'Tabel 4F VJ'!C24*100,"-")) -> 3.333333333 | D24: =IF(OR('Tabel 4F VJ'!D24<5,'Tabel 4 VJ'!D24<0.5),"-",IFERROR('Tabel 4 VJ'!D24/'Tabel 4F VJ'!D24*100,"-")) -> 0.7407407407 | E24: =IF(OR('Tabel 4F VJ'!E24<5,'Tabel 4 VJ'!E24<0.5),"-",IFERROR('Tabel 4 VJ'!E24/'Tabel 4F VJ'!E24*100,"-")) -> - | F24: =IF(OR('Tabel 4F VJ'!F24<5,'Tabel 4 VJ'!F24<0.5),"-",IFERROR('Tabel 4 VJ'!F24/'Tabel 4F VJ'!F24*100,"-")) -> 2.380952381 | G24: =IF(OR('Tabel 4F VJ'!G24<5,'Tabel 4 VJ'!G24<0.5),"-",IFERROR('Tabel 4 VJ'!G24/'Tabel 4F VJ'!G24*100,"-")) -> - | I24: =IF(OR('Tabel 4F VJ'!I24<5,'Tabel 4 VJ'!I24<0.5),"-",IFERROR('Tabel 4 VJ'!I24/'Tabel 4F VJ'!I24*100,"-")) -> 1.179941003
A25: Tandlæge | C25: =IF(OR('Tabel 4F VJ'!C25<5,'Tabel 4 VJ'!C25<0.5),"-",IFERROR('Tabel 4 VJ'!C25/'Tabel 4F VJ'!C25*100,"-")) -> - | D25: =IF(OR('Tabel 4F VJ'!D25<5,'Tabel 4 VJ'!D25<0.5),"-",IFERROR('Tabel 4 VJ'!D25/'Tabel 4F VJ'!D25*100,"-")) -> - | E25: =IF(OR('Tabel 4F VJ'!E25<5,'Tabel 4 VJ'!E25<0.5),"-",IFERROR('Tabel 4 VJ'!E25/'Tabel 4F VJ'!E25*100,"-")) -> 4.545454545 | F25: =IF(OR('Tabel 4F VJ'!F25<5,'Tabel 4 VJ'!F25<0.5),"-",IFERROR('Tabel 4 VJ'!F25/'Tabel 4F VJ'!F25*100,"-")) -> - | G25: =IF(OR('Tabel 4F VJ'!G25<5,'Tabel 4 VJ'!G25<0.5),"-",IFERROR('Tabel 4 VJ'!G25/'Tabel 4F VJ'!G25*100,"-")) -> - | I25: =IF(OR('Tabel 4F VJ'!I25<5,'Tabel 4 VJ'!I25<0.5),"-",IFERROR('Tabel 4 VJ'!I25/'Tabel 4F VJ'!I25*100,"-")) -> 1.136363636
A26: Arkitekt | C26: =IF(OR('Tabel 4F VJ'!C26<5,'Tabel 4 VJ'!C26<0.5),"-",IFERROR('Tabel 4 VJ'!C26/'Tabel 4F VJ'!C26*100,"-")) -> - | D26: =IF(OR('Tabel 4F VJ'!D26<5,'Tabel 4 VJ'!D26<0.5),"-",IFERROR('Tabel 4 VJ'!D26/'Tabel 4F VJ'!D26*100,"-")) -> 4.166666667 | E26: =IF(OR('Tabel 4F VJ'!E26<5,'Tabel 4 VJ'!E26<0.5),"-",IFERROR('Tabel 4 VJ'!E26/'Tabel 4F VJ'!E26*100,"-")) -> 5.555555556 | F26: =IF(OR('Tabel 4F VJ'!F26<5,'Tabel 4 VJ'!F26<0.5),"-",IFERROR('Tabel 4 VJ'!F26/'Tabel 4F VJ'!F26*100,"-")) -> - | G26: =IF(OR('Tabel 4F VJ'!G26<5,'Tabel 4 VJ'!G26<0.5),"-",IFERROR('Tabel 4 VJ'!G26/'Tabel 4F VJ'!G26*100,"-")) -> - | I26: =IF(OR('Tabel 4F VJ'!I26<5,'Tabel 4 VJ'!I26<0.5),"-",IFERROR('Tabel 4 VJ'!I26/'Tabel 4F VJ'!I26*100,"-")) -> 3.921568627
A27: Landinspek. | C27: =IF(OR('Tabel 4F VJ'!C27<5,'Tabel 4 VJ'!C27<0.5),"-",IFERROR('Tabel 4 VJ'!C27/'Tabel 4F VJ'!C27*100,"-")) -> - | D27: =IF(OR('Tabel 4F VJ'!D27<5,'Tabel 4 VJ'!D27<0.5),"-",IFERROR('Tabel 4 VJ'!D27/'Tabel 4F VJ'!D27*100,"-")) -> 6.25 | E27: =IF(OR('Tabel 4F VJ'!E27<5,'Tabel 4 VJ'!E27<0.5),"-",IFERROR('Tabel 4 VJ'!E27/'Tabel 4F VJ'!E27*100,"-")) -> - | F27: =IF(OR('Tabel 4F VJ'!F27<5,'Tabel 4 VJ'!F27<0.5),"-",IFERROR('Tabel 4 VJ'!F27/'Tabel 4F VJ'!F27*100,"-")) -> - | G27: =IF(OR('Tabel 4F VJ'!G27<5,'Tabel 4 VJ'!G27<0.5),"-",IFERROR('Tabel 4 VJ'!G27/'Tabel 4F VJ'!G27*100,"-")) -> - | I27: =IF(OR('Tabel 4F VJ'!I27<5,'Tabel 4 VJ'!I27<0.5),"-",IFERROR('Tabel 4 VJ'!I27/'Tabel 4F VJ'!I27*100,"-")) -> 1.785714286
A28: Bibliotekar | C28: =IF(OR('Tabel 4F VJ'!C28<5,'Tabel 4 VJ'!C28<0.5),"-",IFERROR('Tabel 4 VJ'!C28/'Tabel 4F VJ'!C28*100,"-")) -> - | D28: =IF(OR('Tabel 4F VJ'!D28<5,'Tabel 4 VJ'!D28<0.5),"-",IFERROR('Tabel 4 VJ'!D28/'Tabel 4F VJ'!D28*100,"-")) -> 10.52631579 | E28: =IF(OR('Tabel 4F VJ'!E28<5,'Tabel 4 VJ'!E28<0.5),"-",IFERROR('Tabel 4 VJ'!E28/'Tabel 4F VJ'!E28*100,"-")) -> 3.773584906 | F28: =IF(OR('Tabel 4F VJ'!F28<5,'Tabel 4 VJ'!F28<0.5),"-",IFERROR('Tabel 4 VJ'!F28/'Tabel 4F VJ'!F28*100,"-")) -> 4.545454545 | G28: =IF(OR('Tabel 4F VJ'!G28<5,'Tabel 4 VJ'!G28<0.5),"-",IFERROR('Tabel 4 VJ'!G28/'Tabel 4F VJ'!G28*100,"-")) -> - | I28: =IF(OR('Tabel 4F VJ'!I28<5,'Tabel 4 VJ'!I28<0.5),"-",IFERROR('Tabel 4 VJ'!I28/'Tabel 4F VJ'!I28*100,"-")) -> 3.973509934
A29: Musikudd. | C29: =IF(OR('Tabel 4F VJ'!C29<5,'Tabel 4 VJ'!C29<0.5),"-",IFERROR('Tabel 4 VJ'!C29/'Tabel 4F VJ'!C29*100,"-")) -> - | D29: =IF(OR('Tabel 4F VJ'!D29<5,'Tabel 4 VJ'!D29<0.5),"-",IFERROR('Tabel 4 VJ'!D29/'Tabel 4F VJ'!D29*100,"-")) -> - | E29: =IF(OR('Tabel 4F VJ'!E29<5,'Tabel 4 VJ'!E29<0.5),"-",IFERROR('Tabel 4 VJ'!E29/'Tabel 4F VJ'!E29*100,"-")) -> - | F29: =IF(OR('Tabel 4F VJ'!F29<5,'Tabel 4 VJ'!F29<0.5),"-",IFERROR('Tabel 4 VJ'!F29/'Tabel 4F VJ'!F29*100,"-")) -> 4 | G29: =IF(OR('Tabel 4F VJ'!G29<5,'Tabel 4 VJ'!G29<0.5),"-",IFERROR('Tabel 4 VJ'!G29/'Tabel 4F VJ'!G29*100,"-")) -> - | I29: =IF(OR('Tabel 4F VJ'!I29<5,'Tabel 4 VJ'!I29<0.5),"-",IFERROR('Tabel 4 VJ'!I29/'Tabel 4F VJ'!I29*100,"-")) -> 1.923076923
A30: Teolog | C30: =IF(OR('Tabel 4F VJ'!C30<5,'Tabel 4 VJ'!C30<0.5),"-",IFERROR('Tabel 4 VJ'!C30/'Tabel 4F VJ'!C30*100,"-")) -> - | D30: =IF(OR('Tabel 4F VJ'!D30<5,'Tabel 4 VJ'!D30<0.5),"-",IFERROR('Tabel 4 VJ'!D30/'Tabel 4F VJ'!D30*100,"-")) -> - | E30: =IF(OR('Tabel 4F VJ'!E30<5,'Tabel 4 VJ'!E30<0.5),"-",IFERROR('Tabel 4 VJ'!E30/'Tabel 4F VJ'!E30*100,"-")) -> - | F30: =IF(OR('Tabel 4F VJ'!F30<5,'Tabel 4 VJ'!F30<0.5),"-",IFERROR('Tabel 4 VJ'!F30/'Tabel 4F VJ'!F30*100,"-")) -> - | G30: =IF(OR('Tabel 4F VJ'!G30<5,'Tabel 4 VJ'!G30<0.5),"-",IFERROR('Tabel 4 VJ'!G30/'Tabel 4F VJ'!G30*100,"-")) -> - | I30: =IF(OR('Tabel 4F VJ'!I30<5,'Tabel 4 VJ'!I30<0.5),"-",IFERROR('Tabel 4 VJ'!I30/'Tabel 4F VJ'!I30*100,"-")) -> -
A31: Psykolog | C31: =IF(OR('Tabel 4F VJ'!C31<5,'Tabel 4 VJ'!C31<0.5),"-",IFERROR('Tabel 4 VJ'!C31/'Tabel 4F VJ'!C31*100,"-")) -> 21.62162162 | D31: =IF(OR('Tabel 4F VJ'!D31<5,'Tabel 4 VJ'!D31<0.5),"-",IFERROR('Tabel 4 VJ'!D31/'Tabel 4F VJ'!D31*100,"-")) -> 2.040816327 | E31: =IF(OR('Tabel 4F VJ'!E31<5,'Tabel 4 VJ'!E31<0.5),"-",IFERROR('Tabel 4 VJ'!E31/'Tabel 4F VJ'!E31*100,"-")) -> - | F31: =IF(OR('Tabel 4F VJ'!F31<5,'Tabel 4 VJ'!F31<0.5),"-",IFERROR('Tabel 4 VJ'!F31/'Tabel 4F VJ'!F31*100,"-")) -> - | G31: =IF(OR('Tabel 4F VJ'!G31<5,'Tabel 4 VJ'!G31<0.5),"-",IFERROR('Tabel 4 VJ'!G31/'Tabel 4F VJ'!G31*100,"-")) -> - | I31: =IF(OR('Tabel 4F VJ'!I31<5,'Tabel 4 VJ'!I31<0.5),"-",IFERROR('Tabel 4 VJ'!I31/'Tabel 4F VJ'!I31*100,"-")) -> 4.016064257
A32: Jurist | C32: =IF(OR('Tabel 4F VJ'!C32<5,'Tabel 4 VJ'!C32<0.5),"-",IFERROR('Tabel 4 VJ'!C32/'Tabel 4F VJ'!C32*100,"-")) -> 1.492537313 | D32: =IF(OR('Tabel 4F VJ'!D32<5,'Tabel 4 VJ'!D32<0.5),"-",IFERROR('Tabel 4 VJ'!D32/'Tabel 4F VJ'!D32*100,"-")) -> 0.8547008547 | E32: =IF(OR('Tabel 4F VJ'!E32<5,'Tabel 4 VJ'!E32<0.5),"-",IFERROR('Tabel 4 VJ'!E32/'Tabel 4F VJ'!E32*100,"-")) -> 1.666666667 | F32: =IF(OR('Tabel 4F VJ'!F32<5,'Tabel 4 VJ'!F32<0.5),"-",IFERROR('Tabel 4 VJ'!F32/'Tabel 4F VJ'!F32*100,"-")) -> - | G32: =IF(OR('Tabel 4F VJ'!G32<5,'Tabel 4 VJ'!G32<0.5),"-",IFERROR('Tabel 4 VJ'!G32/'Tabel 4F VJ'!G32*100,"-")) -> - | I32: =IF(OR('Tabel 4F VJ'!I32<5,'Tabel 4 VJ'!I32<0.5),"-",IFERROR('Tabel 4 VJ'!I32/'Tabel 4F VJ'!I32*100,"-")) -> 1.025641026
A33: Økonom | C33: =IF(OR('Tabel 4F VJ'!C33<5,'Tabel 4 VJ'!C33<0.5),"-",IFERROR('Tabel 4 VJ'!C33/'Tabel 4F VJ'!C33*100,"-")) -> 3.571428571 | D33: =IF(OR('Tabel 4F VJ'!D33<5,'Tabel 4 VJ'!D33<0.5),"-",IFERROR('Tabel 4 VJ'!D33/'Tabel 4F VJ'!D33*100,"-")) -> - | E33: =IF(OR('Tabel 4F VJ'!E33<5,'Tabel 4 VJ'!E33<0.5),"-",IFERROR('Tabel 4 VJ'!E33/'Tabel 4F VJ'!E33*100,"-")) -> 2.564102564 | F33: =IF(OR('Tabel 4F VJ'!F33<5,'Tabel 4 VJ'!F33<0.5),"-",IFERROR('Tabel 4 VJ'!F33/'Tabel 4F VJ'!F33*100,"-")) -> 3.846153846 | G33: =IF(OR('Tabel 4F VJ'!G33<5,'Tabel 4 VJ'!G33<0.5),"-",IFERROR('Tabel 4 VJ'!G33/'Tabel 4F VJ'!G33*100,"-")) -> - | I33: =IF(OR('Tabel 4F VJ'!I33<5,'Tabel 4 VJ'!I33<0.5),"-",IFERROR('Tabel 4 VJ'!I33/'Tabel 4F VJ'!I33*100,"-")) -> 2.312138728
A34: Samf. Adm. | C34: =IF(OR('Tabel 4F VJ'!C34<5,'Tabel 4 VJ'!C34<0.5),"-",IFERROR('Tabel 4 VJ'!C34/'Tabel 4F VJ'!C34*100,"-")) -> 23.72881356 | D34: =IF(OR('Tabel 4F VJ'!D34<5,'Tabel 4 VJ'!D34<0.5),"-",IFERROR('Tabel 4 VJ'!D34/'Tabel 4F VJ'!D34*100,"-")) -> 5.555555556 | E34: =IF(OR('Tabel 4F VJ'!E34<5,'Tabel 4 VJ'!E34<0.5),"-",IFERROR('Tabel 4 VJ'!E34/'Tabel 4F VJ'!E34*100,"-")) -> 1.526717557 | F34: =IF(OR('Tabel 4F VJ'!F34<5,'Tabel 4 VJ'!F34<0.5),"-",IFERROR('Tabel 4 VJ'!F34/'Tabel 4F VJ'!F34*100,"-")) -> 3.488372093 | G34: =IF(OR('Tabel 4F VJ'!G34<5,'Tabel 4 VJ'!G34<0.5),"-",IFERROR('Tabel 4 VJ'!G34/'Tabel 4F VJ'!G34*100,"-")) -> 9.090909091 | I34: =IF(OR('Tabel 4F VJ'!I34<5,'Tabel 4 VJ'!I34<0.5),"-",IFERROR('Tabel 4 VJ'!I34/'Tabel 4F VJ'!I34*100,"-")) -> 6.423982869
A35: Cand. Merc. | C35: =IF(OR('Tabel 4F VJ'!C35<5,'Tabel 4 VJ'!C35<0.5),"-",IFERROR('Tabel 4 VJ'!C35/'Tabel 4F VJ'!C35*100,"-")) -> 12.08053691 | D35: =IF(OR('Tabel 4F VJ'!D35<5,'Tabel 4 VJ'!D35<0.5),"-",IFERROR('Tabel 4 VJ'!D35/'Tabel 4F VJ'!D35*100,"-")) -> 2.325581395 | E35: =IF(OR('Tabel 4F VJ'!E35<5,'Tabel 4 VJ'!E35<0.5),"-",IFERROR('Tabel 4 VJ'!E35/'Tabel 4F VJ'!E35*100,"-")) -> 3.365384615 | F35: =IF(OR('Tabel 4F VJ'!F35<5,'Tabel 4 VJ'!F35<0.5),"-",IFERROR('Tabel 4 VJ'!F35/'Tabel 4F VJ'!F35*100,"-")) -> 3.921568627 | G35: =IF(OR('Tabel 4F VJ'!G35<5,'Tabel 4 VJ'!G35<0.5),"-",IFERROR('Tabel 4 VJ'!G35/'Tabel 4F VJ'!G35*100,"-")) -> 4.347826087 | I35: =IF(OR('Tabel 4F VJ'!I35<5,'Tabel 4 VJ'!I35<0.5),"-",IFERROR('Tabel 4 VJ'!I35/'Tabel 4F VJ'!I35*100,"-")) -> 4.676258993
A36: HA | C36: =IF(OR('Tabel 4F VJ'!C36<5,'Tabel 4 VJ'!C36<0.5),"-",IFERROR('Tabel 4 VJ'!C36/'Tabel 4F VJ'!C36*100,"-")) -> 29.26829268 | D36: =IF(OR('Tabel 4F VJ'!D36<5,'Tabel 4 VJ'!D36<0.5),"-",IFERROR('Tabel 4 VJ'!D36/'Tabel 4F VJ'!D36*100,"-")) -> 6.12244898 | E36: =IF(OR('Tabel 4F VJ'!E36<5,'Tabel 4 VJ'!E36<0.5),"-",IFERROR('Tabel 4 VJ'!E36/'Tabel 4F VJ'!E36*100,"-")) -> - | F36: =IF(OR('Tabel 4F VJ'!F36<5,'Tabel 4 VJ'!F36<0.5),"-",IFERROR('Tabel 4 VJ'!F36/'Tabel 4F VJ'!F36*100,"-")) -> 3.361344538 | G36: =IF(OR('Tabel 4F VJ'!G36<5,'Tabel 4 VJ'!G36<0.5),"-",IFERROR('Tabel 4 VJ'!G36/'Tabel 4F VJ'!G36*100,"-")) -> 5.263157895 | I36: =IF(OR('Tabel 4F VJ'!I36<5,'Tabel 4 VJ'!I36<0.5),"-",IFERROR('Tabel 4 VJ'!I36/'Tabel 4F VJ'!I36*100,"-")) -> 6.451612903
A37: HD | C37: =IF(OR('Tabel 4F VJ'!C37<5,'Tabel 4 VJ'!C37<0.5),"-",IFERROR('Tabel 4 VJ'!C37/'Tabel 4F VJ'!C37*100,"-")) -> 7.142857143 | D37: =IF(OR('Tabel 4F VJ'!D37<5,'Tabel 4 VJ'!D37<0.5),"-",IFERROR('Tabel 4 VJ'!D37/'Tabel 4F VJ'!D37*100,"-")) -> 8 | E37: =IF(OR('Tabel 4F VJ'!E37<5,'Tabel 4 VJ'!E37<0.5),"-",IFERROR('Tabel 4 VJ'!E37/'Tabel 4F VJ'!E37*100,"-")) -> - | F37: =IF(OR('Tabel 4F VJ'!F37<5,'Tabel 4 VJ'!F37<0.5),"-",IFERROR('Tabel 4 VJ'!F37/'Tabel 4F VJ'!F37*100,"-")) -> 2.777777778 | G37: =IF(OR('Tabel 4F VJ'!G37<5,'Tabel 4 VJ'!G37<0.5),"-",IFERROR('Tabel 4 VJ'!G37/'Tabel 4F VJ'!G37*100,"-")) -> - | I37: =IF(OR('Tabel 4F VJ'!I37<5,'Tabel 4 VJ'!I37<0.5),"-",IFERROR('Tabel 4 VJ'!I37/'Tabel 4F VJ'!I37*100,"-")) -> 2.525252525
A38: Komm. og Sprog | C38: =IF(OR('Tabel 4F VJ'!C38<5,'Tabel 4 VJ'!C38<0.5),"-",IFERROR('Tabel 4 VJ'!C38/'Tabel 4F VJ'!C38*100,"-")) -> 29.41176471 | D38: =IF(OR('Tabel 4F VJ'!D38<5,'Tabel 4 VJ'!D38<0.5),"-",IFERROR('Tabel 4 VJ'!D38/'Tabel 4F VJ'!D38*100,"-")) -> 3.703703704 | E38: =IF(OR('Tabel 4F VJ'!E38<5,'Tabel 4 VJ'!E38<0.5),"-",IFERROR('Tabel 4 VJ'!E38/'Tabel 4F VJ'!E38*100,"-")) -> - | F38: =IF(OR('Tabel 4F VJ'!F38<5,'Tabel 4 VJ'!F38<0.5),"-",IFERROR('Tabel 4 VJ'!F38/'Tabel 4F VJ'!F38*100,"-")) -> 8.333333333 | G38: =IF(OR('Tabel 4F VJ'!G38<5,'Tabel 4 VJ'!G38<0.5),"-",IFERROR('Tabel 4 VJ'!G38/'Tabel 4F VJ'!G38*100,"-")) -> 13.88888889 | I38: =IF(OR('Tabel 4F VJ'!I38<5,'Tabel 4 VJ'!I38<0.5),"-",IFERROR('Tabel 4 VJ'!I38/'Tabel 4F VJ'!I38*100,"-")) -> 6.85483871
A39: Cand. IT. | C39: =IF(OR('Tabel 4F VJ'!C39<5,'Tabel 4 VJ'!C39<0.5),"-",IFERROR('Tabel 4 VJ'!C39/'Tabel 4F VJ'!C39*100,"-")) -> 35.71428571 | D39: =IF(OR('Tabel 4F VJ'!D39<5,'Tabel 4 VJ'!D39<0.5),"-",IFERROR('Tabel 4 VJ'!D39/'Tabel 4F VJ'!D39*100,"-")) -> 13.88888889 | E39: =IF(OR('Tabel 4F VJ'!E39<5,'Tabel 4 VJ'!E39<0.5),"-",IFERROR('Tabel 4 VJ'!E39/'Tabel 4F VJ'!E39*100,"-")) -> - | F39: =IF(OR('Tabel 4F VJ'!F39<5,'Tabel 4 VJ'!F39<0.5),"-",IFERROR('Tabel 4 VJ'!F39/'Tabel 4F VJ'!F39*100,"-")) -> - | G39: =IF(OR('Tabel 4F VJ'!G39<5,'Tabel 4 VJ'!G39<0.5),"-",IFERROR('Tabel 4 VJ'!G39/'Tabel 4F VJ'!G39*100,"-")) -> - | I39: =IF(OR('Tabel 4F VJ'!I39<5,'Tabel 4 VJ'!I39<0.5),"-",IFERROR('Tabel 4 VJ'!I39/'Tabel 4F VJ'!I39*100,"-")) -> 16.94915254
A40: Bac. Samf. | C40: =IF(OR('Tabel 4F VJ'!C40<5,'Tabel 4 VJ'!C40<0.5),"-",IFERROR('Tabel 4 VJ'!C40/'Tabel 4F VJ'!C40*100,"-")) -> - | D40: =IF(OR('Tabel 4F VJ'!D40<5,'Tabel 4 VJ'!D40<0.5),"-",IFERROR('Tabel 4 VJ'!D40/'Tabel 4F VJ'!D40*100,"-")) -> - | E40: =IF(OR('Tabel 4F VJ'!E40<5,'Tabel 4 VJ'!E40<0.5),"-",IFERROR('Tabel 4 VJ'!E40/'Tabel 4F VJ'!E40*100,"-")) -> - | F40: =IF(OR('Tabel 4F VJ'!F40<5,'Tabel 4 VJ'!F40<0.5),"-",IFERROR('Tabel 4 VJ'!F40/'Tabel 4F VJ'!F40*100,"-")) -> - | G40: =IF(OR('Tabel 4F VJ'!G40<5,'Tabel 4 VJ'!G40<0.5),"-",IFERROR('Tabel 4 VJ'!G40/'Tabel 4F VJ'!G40*100,"-")) -> - | I40: =IF(OR('Tabel 4F VJ'!I40<5,'Tabel 4 VJ'!I40<0.5),"-",IFERROR('Tabel 4 VJ'!I40/'Tabel 4F VJ'!I40*100,"-")) -> -
A41: Bac. Hum. | C41: =IF(OR('Tabel 4F VJ'!C41<5,'Tabel 4 VJ'!C41<0.5),"-",IFERROR('Tabel 4 VJ'!C41/'Tabel 4F VJ'!C41*100,"-")) -> 36.36363636 | D41: =IF(OR('Tabel 4F VJ'!D41<5,'Tabel 4 VJ'!D41<0.5),"-",IFERROR('Tabel 4 VJ'!D41/'Tabel 4F VJ'!D41*100,"-")) -> 7.692307692 | E41: =IF(OR('Tabel 4F VJ'!E41<5,'Tabel 4 VJ'!E41<0.5),"-",IFERROR('Tabel 4 VJ'!E41/'Tabel 4F VJ'!E41*100,"-")) -> 3.846153846 | F41: =IF(OR('Tabel 4F VJ'!F41<5,'Tabel 4 VJ'!F41<0.5),"-",IFERROR('Tabel 4 VJ'!F41/'Tabel 4F VJ'!F41*100,"-")) -> 6.25 | G41: =IF(OR('Tabel 4F VJ'!G41<5,'Tabel 4 VJ'!G41<0.5),"-",IFERROR('Tabel 4 VJ'!G41/'Tabel 4F VJ'!G41*100,"-")) -> - | I41: =IF(OR('Tabel 4F VJ'!I41<5,'Tabel 4 VJ'!I41<0.5),"-",IFERROR('Tabel 4 VJ'!I41/'Tabel 4F VJ'!I41*100,"-")) -> 9.756097561
A42: Bac. Nat. | C42: =IF(OR('Tabel 4F VJ'!C42<5,'Tabel 4 VJ'!C42<0.5),"-",IFERROR('Tabel 4 VJ'!C42/'Tabel 4F VJ'!C42*100,"-")) -> - | D42: =IF(OR('Tabel 4F VJ'!D42<5,'Tabel 4 VJ'!D42<0.5),"-",IFERROR('Tabel 4 VJ'!D42/'Tabel 4F VJ'!D42*100,"-")) -> 2.083333333 | E42: =IF(OR('Tabel 4F VJ'!E42<5,'Tabel 4 VJ'!E42<0.5),"-",IFERROR('Tabel 4 VJ'!E42/'Tabel 4F VJ'!E42*100,"-")) -> - | F42: =IF(OR('Tabel 4F VJ'!F42<5,'Tabel 4 VJ'!F42<0.5),"-",IFERROR('Tabel 4 VJ'!F42/'Tabel 4F VJ'!F42*100,"-")) -> - | G42: =IF(OR('Tabel 4F VJ'!G42<5,'Tabel 4 VJ'!G42<0.5),"-",IFERROR('Tabel 4 VJ'!G42/'Tabel 4F VJ'!G42*100,"-")) -> - | I42: =IF(OR('Tabel 4F VJ'!I42<5,'Tabel 4 VJ'!I42<0.5),"-",IFERROR('Tabel 4 VJ'!I42/'Tabel 4F VJ'!I42*100,"-")) -> 1.123595506
A43: Andre | C43: =IF(OR('Tabel 4F VJ'!C43<5,'Tabel 4 VJ'!C43<0.5),"-",IFERROR('Tabel 4 VJ'!C43/'Tabel 4F VJ'!C43*100,"-")) -> 10 | D43: =IF(OR('Tabel 4F VJ'!D43<5,'Tabel 4 VJ'!D43<0.5),"-",IFERROR('Tabel 4 VJ'!D43/'Tabel 4F VJ'!D43*100,"-")) -> 5.027932961 | E43: =IF(OR('Tabel 4F VJ'!E43<5,'Tabel 4 VJ'!E43<0.5),"-",IFERROR('Tabel 4 VJ'!E43/'Tabel 4F VJ'!E43*100,"-")) -> 4.487179487 | F43: =IF(OR('Tabel 4F VJ'!F43<5,'Tabel 4 VJ'!F43<0.5),"-",IFERROR('Tabel 4 VJ'!F43/'Tabel 4F VJ'!F43*100,"-")) -> 2.542372881 | G43: =IF(OR('Tabel 4F VJ'!G43<5,'Tabel 4 VJ'!G43<0.5),"-",IFERROR('Tabel 4 VJ'!G43/'Tabel 4F VJ'!G43*100,"-")) -> 1.5625 | I43: =IF(OR('Tabel 4F VJ'!I43<5,'Tabel 4 VJ'!I43<0.5),"-",IFERROR('Tabel 4 VJ'!I43/'Tabel 4F VJ'!I43*100,"-")) -> 4.690117253
A45: Total | C45: =IF(OR('Tabel 4F VJ'!C45<5,'Tabel 4 VJ'!C45<0.5),"-",IFERROR('Tabel 4 VJ'!C45/'Tabel 4F VJ'!C45*100,"-")) -> 12.95955882 | D45: =IF(OR('Tabel 4F VJ'!D45<5,'Tabel 4 VJ'!D45<0.5),"-",IFERROR('Tabel 4 VJ'!D45/'Tabel 4F VJ'!D45*100,"-")) -> 4.347826087 | E45: =IF(OR('Tabel 4F VJ'!E45<5,'Tabel 4 VJ'!E45<0.5),"-",IFERROR('Tabel 4 VJ'!E45/'Tabel 4F VJ'!E45*100,"-")) -> 2.035184546 | F45: =IF(OR('Tabel 4F VJ'!F45<5,'Tabel 4 VJ'!F45<0.5),"-",IFERROR('Tabel 4 VJ'!F45/'Tabel 4F VJ'!F45*100,"-")) -> 2.132196162 | G45: =IF(OR('Tabel 4F VJ'!G45<5,'Tabel 4 VJ'!G45<0.5),"-",IFERROR('Tabel 4 VJ'!G45/'Tabel 4F VJ'!G45*100,"-")) -> 3.76344086 | I45: =IF(OR('Tabel 4F VJ'!I45<5,'Tabel 4 VJ'!I45<0.5),"-",IFERROR('Tabel 4 VJ'!I45/'Tabel 4F VJ'!I45*100,"-")) -> 4.047063597
A47: Ingeniører i alt | C47: =IF(OR('Tabel 4F VJ'!C47<5,'Tabel 4 VJ'!C47<0.5),"-",IFERROR('Tabel 4 VJ'!C47/'Tabel 4F VJ'!C47*100,"-")) -> 8.457711443 | D47: =IF(OR('Tabel 4F VJ'!D47<5,'Tabel 4 VJ'!D47<0.5),"-",IFERROR('Tabel 4 VJ'!D47/'Tabel 4F VJ'!D47*100,"-")) -> 1.769911504 | E47: =IF(OR('Tabel 4F VJ'!E47<5,'Tabel 4 VJ'!E47<0.5),"-",IFERROR('Tabel 4 VJ'!E47/'Tabel 4F VJ'!E47*100,"-")) -> 0.3645200486 | F47: =IF(OR('Tabel 4F VJ'!F47<5,'Tabel 4 VJ'!F47<0.5),"-",IFERROR('Tabel 4 VJ'!F47/'Tabel 4F VJ'!F47*100,"-")) -> 1.5 | G47: =IF(OR('Tabel 4F VJ'!G47<5,'Tabel 4 VJ'!G47<0.5),"-",IFERROR('Tabel 4 VJ'!G47/'Tabel 4F VJ'!G47*100,"-")) -> 4.347826087 | I47: =IF(OR('Tabel 4F VJ'!I47<5,'Tabel 4 VJ'!I47<0.5),"-",IFERROR('Tabel 4 VJ'!I47/'Tabel 4F VJ'!I47*100,"-")) -> 1.921568627
A48: Magistre i alt | C48: =IF(OR('Tabel 4F VJ'!C48<5,'Tabel 4 VJ'!C48<0.5),"-",IFERROR('Tabel 4 VJ'!C48/'Tabel 4F VJ'!C48*100,"-")) -> 19.39393939 | D48: =IF(OR('Tabel 4F VJ'!D48<5,'Tabel 4 VJ'!D48<0.5),"-",IFERROR('Tabel 4 VJ'!D48/'Tabel 4F VJ'!D48*100,"-")) -> 10.24208566 | E48: =IF(OR('Tabel 4F VJ'!E48<5,'Tabel 4 VJ'!E48<0.5),"-",IFERROR('Tabel 4 VJ'!E48/'Tabel 4F VJ'!E48*100,"-")) -> 4.15282392 | F48: =IF(OR('Tabel 4F VJ'!F48<5,'Tabel 4 VJ'!F48<0.5),"-",IFERROR('Tabel 4 VJ'!F48/'Tabel 4F VJ'!F48*100,"-")) -> 1.739130435 | G48: =IF(OR('Tabel 4F VJ'!G48<5,'Tabel 4 VJ'!G48<0.5),"-",IFERROR('Tabel 4 VJ'!G48/'Tabel 4F VJ'!G48*100,"-")) -> 5.128205128 | I48: =IF(OR('Tabel 4F VJ'!I48<5,'Tabel 4 VJ'!I48<0.5),"-",IFERROR('Tabel 4 VJ'!I48/'Tabel 4F VJ'!I48*100,"-")) -> 6.980609418
A49: DJØF'ere i alt | C49: =IF(OR('Tabel 4F VJ'!C49<5,'Tabel 4 VJ'!C49<0.5),"-",IFERROR('Tabel 4 VJ'!C49/'Tabel 4F VJ'!C49*100,"-")) -> 13.37209302 | D49: =IF(OR('Tabel 4F VJ'!D49<5,'Tabel 4 VJ'!D49<0.5),"-",IFERROR('Tabel 4 VJ'!D49/'Tabel 4F VJ'!D49*100,"-")) -> 3.017241379 | E49: =IF(OR('Tabel 4F VJ'!E49<5,'Tabel 4 VJ'!E49<0.5),"-",IFERROR('Tabel 4 VJ'!E49/'Tabel 4F VJ'!E49*100,"-")) -> 2.068965517 | F49: =IF(OR('Tabel 4F VJ'!F49<5,'Tabel 4 VJ'!F49<0.5),"-",IFERROR('Tabel 4 VJ'!F49/'Tabel 4F VJ'!F49*100,"-")) -> 3.105590062 | G49: =IF(OR('Tabel 4F VJ'!G49<5,'Tabel 4 VJ'!G49<0.5),"-",IFERROR('Tabel 4 VJ'!G49/'Tabel 4F VJ'!G49*100,"-")) -> 4.225352113 | I49: =IF(OR('Tabel 4F VJ'!I49<5,'Tabel 4 VJ'!I49<0.5),"-",IFERROR('Tabel 4 VJ'!I49/'Tabel 4F VJ'!I49*100,"-")) -> 4.461821527
A56: Herning
C58: Under 30 år | D58: 30 - 39 år | E58: 40 - 49 år | F58: 50 - 59 år | G58: Over 60 år | I58: I alt
A60: Civ. ing. | C60: =IF(OR('Tabel 4F VJ'!C60<5,'Tabel 4 VJ'!C60<0.5),"-",IFERROR('Tabel 4 VJ'!C60/'Tabel 4F VJ'!C60*100,"-")) -> 4.87804878 | D60: =IF(OR('Tabel 4F VJ'!D60<5,'Tabel 4 VJ'!D60<0.5),"-",IFERROR('Tabel 4 VJ'!D60/'Tabel 4F VJ'!D60*100,"-")) -> 2.912621359 | E60: =IF(OR('Tabel 4F VJ'!E60<5,'Tabel 4 VJ'!E60<0.5),"-",IFERROR('Tabel 4 VJ'!E60/'Tabel 4F VJ'!E60*100,"-")) -> - | F60: =IF(OR('Tabel 4F VJ'!F60<5,'Tabel 4 VJ'!F60<0.5),"-",IFERROR('Tabel 4 VJ'!F60/'Tabel 4F VJ'!F60*100,"-")) -> - | G60: =IF(OR('Tabel 4F VJ'!G60<5,'Tabel 4 VJ'!G60<0.5),"-",IFERROR('Tabel 4 VJ'!G60/'Tabel 4F VJ'!G60*100,"-")) -> - | I60: =IF(OR('Tabel 4F VJ'!I60<5,'Tabel 4 VJ'!I60<0.5),"-",IFERROR('Tabel 4 VJ'!I60/'Tabel 4F VJ'!I60*100,"-")) -> 2.463054187
A61: Diplom ing. | C61: =IF(OR('Tabel 4F VJ'!C61<5,'Tabel 4 VJ'!C61<0.5),"-",IFERROR('Tabel 4 VJ'!C61/'Tabel 4F VJ'!C61*100,"-")) -> 16.12903226 | D61: =IF(OR('Tabel 4F VJ'!D61<5,'Tabel 4 VJ'!D61<0.5),"-",IFERROR('Tabel 4 VJ'!D61/'Tabel 4F VJ'!D61*100,"-")) -> 3 | E61: =IF(OR('Tabel 4F VJ'!E61<5,'Tabel 4 VJ'!E61<0.5),"-",IFERROR('Tabel 4 VJ'!E61/'Tabel 4F VJ'!E61*100,"-")) -> - | F61: =IF(OR('Tabel 4F VJ'!F61<5,'Tabel 4 VJ'!F61<0.5),"-",IFERROR('Tabel 4 VJ'!F61/'Tabel 4F VJ'!F61*100,"-")) -> - | G61: =IF(OR('Tabel 4F VJ'!G61<5,'Tabel 4 VJ'!G61<0.5),"-",IFERROR('Tabel 4 VJ'!G61/'Tabel 4F VJ'!G61*100,"-")) -> 16.66666667 | I61: =IF(OR('Tabel 4F VJ'!I61<5,'Tabel 4 VJ'!I61<0.5),"-",IFERROR('Tabel 4 VJ'!I61/'Tabel 4F VJ'!I61*100,"-")) -> 2.69058296
A62: Cand. Scient. Tek | C62: =IF(OR('Tabel 4F VJ'!C62<5,'Tabel 4 VJ'!C62<0.5),"-",IFERROR('Tabel 4 VJ'!C62/'Tabel 4F VJ'!C62*100,"-")) -> 20 | D62: =IF(OR('Tabel 4F VJ'!D62<5,'Tabel 4 VJ'!D62<0.5),"-",IFERROR('Tabel 4 VJ'!D62/'Tabel 4F VJ'!D62*100,"-")) -> 5.714285714 | E62: =IF(OR('Tabel 4F VJ'!E62<5,'Tabel 4 VJ'!E62<0.5),"-",IFERROR('Tabel 4 VJ'!E62/'Tabel 4F VJ'!E62*100,"-")) -> 11.11111111 | F62: =IF(OR('Tabel 4F VJ'!F62<5,'Tabel 4 VJ'!F62<0.5),"-",IFERROR('Tabel 4 VJ'!F62/'Tabel 4F VJ'!F62*100,"-")) -> - | G62: =IF(OR('Tabel 4F VJ'!G62<5,'Tabel 4 VJ'!G62<0.5),"-",IFERROR('Tabel 4 VJ'!G62/'Tabel 4F VJ'!G62*100,"-")) -> - | I62: =IF(OR('Tabel 4F VJ'!I62<5,'Tabel 4 VJ'!I62<0.5),"-",IFERROR('Tabel 4 VJ'!I62/'Tabel 4F VJ'!I62*100,"-")) -> 10.29411765
A63: MA. Hum. | C63: =IF(OR('Tabel 4F VJ'!C63<5,'Tabel 4 VJ'!C63<0.5),"-",IFERROR('Tabel 4 VJ'!C63/'Tabel 4F VJ'!C63*100,"-")) -> 14.70588235 | D63: =IF(OR('Tabel 4F VJ'!D63<5,'Tabel 4 VJ'!D63<0.5),"-",IFERROR('Tabel 4 VJ'!D63/'Tabel 4F VJ'!D63*100,"-")) -> 10.75268817 | E63: =IF(OR('Tabel 4F VJ'!E63<5,'Tabel 4 VJ'!E63<0.5),"-",IFERROR('Tabel 4 VJ'!E63/'Tabel 4F VJ'!E63*100,"-")) -> 3.50877193 | F63: =IF(OR('Tabel 4F VJ'!F63<5,'Tabel 4 VJ'!F63<0.5),"-",IFERROR('Tabel 4 VJ'!F63/'Tabel 4F VJ'!F63*100,"-")) -> - | G63: =IF(OR('Tabel 4F VJ'!G63<5,'Tabel 4 VJ'!G63<0.5),"-",IFERROR('Tabel 4 VJ'!G63/'Tabel 4F VJ'!G63*100,"-")) -> 8.333333333 | I63: =IF(OR('Tabel 4F VJ'!I63<5,'Tabel 4 VJ'!I63<0.5),"-",IFERROR('Tabel 4 VJ'!I63/'Tabel 4F VJ'!I63*100,"-")) -> 8.737864078
A64: MA. Nat. | C64: =IF(OR('Tabel 4F VJ'!C64<5,'Tabel 4 VJ'!C64<0.5),"-",IFERROR('Tabel 4 VJ'!C64/'Tabel 4F VJ'!C64*100,"-")) -> - | D64: =IF(OR('Tabel 4F VJ'!D64<5,'Tabel 4 VJ'!D64<0.5),"-",IFERROR('Tabel 4 VJ'!D64/'Tabel 4F VJ'!D64*100,"-")) -> 20 | E64: =IF(OR('Tabel 4F VJ'!E64<5,'Tabel 4 VJ'!E64<0.5),"-",IFERROR('Tabel 4 VJ'!E64/'Tabel 4F VJ'!E64*100,"-")) -> - | F64: =IF(OR('Tabel 4F VJ'!F64<5,'Tabel 4 VJ'!F64<0.5),"-",IFERROR('Tabel 4 VJ'!F64/'Tabel 4F VJ'!F64*100,"-")) -> - | G64: =IF(OR('Tabel 4F VJ'!G64<5,'Tabel 4 VJ'!G64<0.5),"-",IFERROR('Tabel 4 VJ'!G64/'Tabel 4F VJ'!G64*100,"-")) -> - | I64: =IF(OR('Tabel 4F VJ'!I64<5,'Tabel 4 VJ'!I64<0.5),"-",IFERROR('Tabel 4 VJ'!I64/'Tabel 4F VJ'!I64*100,"-")) -> 4.761904762
A65: MA. Ph.d. | C65: =IF(OR('Tabel 4F VJ'!C65<5,'Tabel 4 VJ'!C65<0.5),"-",IFERROR('Tabel 4 VJ'!C65/'Tabel 4F VJ'!C65*100,"-")) -> - | D65: =IF(OR('Tabel 4F VJ'!D65<5,'Tabel 4 VJ'!D65<0.5),"-",IFERROR('Tabel 4 VJ'!D65/'Tabel 4F VJ'!D65*100,"-")) -> - | E65: =IF(OR('Tabel 4F VJ'!E65<5,'Tabel 4 VJ'!E65<0.5),"-",IFERROR('Tabel 4 VJ'!E65/'Tabel 4F VJ'!E65*100,"-")) -> - | F65: =IF(OR('Tabel 4F VJ'!F65<5,'Tabel 4 VJ'!F65<0.5),"-",IFERROR('Tabel 4 VJ'!F65/'Tabel 4F VJ'!F65*100,"-")) -> - | G65: =IF(OR('Tabel 4F VJ'!G65<5,'Tabel 4 VJ'!G65<0.5),"-",IFERROR('Tabel 4 VJ'!G65/'Tabel 4F VJ'!G65*100,"-")) -> - | I65: =IF(OR('Tabel 4F VJ'!I65<5,'Tabel 4 VJ'!I65<0.5),"-",IFERROR('Tabel 4 VJ'!I65/'Tabel 4F VJ'!I65*100,"-")) -> 16.66666667
A66: MA. Samf. | C66: =IF(OR('Tabel 4F VJ'!C66<5,'Tabel 4 VJ'!C66<0.5),"-",IFERROR('Tabel 4 VJ'!C66/'Tabel 4F VJ'!C66*100,"-")) -> - | D66: =IF(OR('Tabel 4F VJ'!D66<5,'Tabel 4 VJ'!D66<0.5),"-",IFERROR('Tabel 4 VJ'!D66/'Tabel 4F VJ'!D66*100,"-")) -> - | E66: =IF(OR('Tabel 4F VJ'!E66<5,'Tabel 4 VJ'!E66<0.5),"-",IFERROR('Tabel 4 VJ'!E66/'Tabel 4F VJ'!E66*100,"-")) -> - | F66: =IF(OR('Tabel 4F VJ'!F66<5,'Tabel 4 VJ'!F66<0.5),"-",IFERROR('Tabel 4 VJ'!F66/'Tabel 4F VJ'!F66*100,"-")) -> - | G66: =IF(OR('Tabel 4F VJ'!G66<5,'Tabel 4 VJ'!G66<0.5),"-",IFERROR('Tabel 4 VJ'!G66/'Tabel 4F VJ'!G66*100,"-")) -> - | I66: =IF(OR('Tabel 4F VJ'!I66<5,'Tabel 4 VJ'!I66<0.5),"-",IFERROR('Tabel 4 VJ'!I66/'Tabel 4F VJ'!I66*100,"-")) -> 7.142857143
A67: Øvrige Mag. | C67: =IF(OR('Tabel 4F VJ'!C67<5,'Tabel 4 VJ'!C67<0.5),"-",IFERROR('Tabel 4 VJ'!C67/'Tabel 4F VJ'!C67*100,"-")) -> - | D67: =IF(OR('Tabel 4F VJ'!D67<5,'Tabel 4 VJ'!D67<0.5),"-",IFERROR('Tabel 4 VJ'!D67/'Tabel 4F VJ'!D67*100,"-")) -> 20 | E67: =IF(OR('Tabel 4F VJ'!E67<5,'Tabel 4 VJ'!E67<0.5),"-",IFERROR('Tabel 4 VJ'!E67/'Tabel 4F VJ'!E67*100,"-")) -> - | F67: =IF(OR('Tabel 4F VJ'!F67<5,'Tabel 4 VJ'!F67<0.5),"-",IFERROR('Tabel 4 VJ'!F67/'Tabel 4F VJ'!F67*100,"-")) -> - | G67: =IF(OR('Tabel 4F VJ'!G67<5,'Tabel 4 VJ'!G67<0.5),"-",IFERROR('Tabel 4 VJ'!G67/'Tabel 4F VJ'!G67*100,"-")) -> - | I67: =IF(OR('Tabel 4F VJ'!I67<5,'Tabel 4 VJ'!I67<0.5),"-",IFERROR('Tabel 4 VJ'!I67/'Tabel 4F VJ'!I67*100,"-")) -> 8.333333333
A68: Agronom | C68: =IF(OR('Tabel 4F VJ'!C68<5,'Tabel 4 VJ'!C68<0.5),"-",IFERROR('Tabel 4 VJ'!C68/'Tabel 4F VJ'!C68*100,"-")) -> - | D68: =IF(OR('Tabel 4F VJ'!D68<5,'Tabel 4 VJ'!D68<0.5),"-",IFERROR('Tabel 4 VJ'!D68/'Tabel 4F VJ'!D68*100,"-")) -> - | E68: =IF(OR('Tabel 4F VJ'!E68<5,'Tabel 4 VJ'!E68<0.5),"-",IFERROR('Tabel 4 VJ'!E68/'Tabel 4F VJ'!E68*100,"-")) -> - | F68: =IF(OR('Tabel 4F VJ'!F68<5,'Tabel 4 VJ'!F68<0.5),"-",IFERROR('Tabel 4 VJ'!F68/'Tabel 4F VJ'!F68*100,"-")) -> - | G68: =IF(OR('Tabel 4F VJ'!G68<5,'Tabel 4 VJ'!G68<0.5),"-",IFERROR('Tabel 4 VJ'!G68/'Tabel 4F VJ'!G68*100,"-")) -> - | I68: =IF(OR('Tabel 4F VJ'!I68<5,'Tabel 4 VJ'!I68<0.5),"-",IFERROR('Tabel 4 VJ'!I68/'Tabel 4F VJ'!I68*100,"-")) -> 7.692307692
A69: Landsk. Arkt. | C69: =IF(OR('Tabel 4F VJ'!C69<5,'Tabel 4 VJ'!C69<0.5),"-",IFERROR('Tabel 4 VJ'!C69/'Tabel 4F VJ'!C69*100,"-")) -> - | D69: =IF(OR('Tabel 4F VJ'!D69<5,'Tabel 4 VJ'!D69<0.5),"-",IFERROR('Tabel 4 VJ'!D69/'Tabel 4F VJ'!D69*100,"-")) -> - | E69: =IF(OR('Tabel 4F VJ'!E69<5,'Tabel 4 VJ'!E69<0.5),"-",IFERROR('Tabel 4 VJ'!E69/'Tabel 4F VJ'!E69*100,"-")) -> - | F69: =IF(OR('Tabel 4F VJ'!F69<5,'Tabel 4 VJ'!F69<0.5),"-",IFERROR('Tabel 4 VJ'!F69/'Tabel 4F VJ'!F69*100,"-")) -> - | G69: =IF(OR('Tabel 4F VJ'!G69<5,'Tabel 4 VJ'!G69<0.5),"-",IFERROR('Tabel 4 VJ'!G69/'Tabel 4F VJ'!G69*100,"-")) -> - | I69: =IF(OR('Tabel 4F VJ'!I69<5,'Tabel 4 VJ'!I69<0.5),"-",IFERROR('Tabel 4 VJ'!I69/'Tabel 4F VJ'!I69*100,"-")) -> -
A70: Hortonom | C70: =IF(OR('Tabel 4F VJ'!C70<5,'Tabel 4 VJ'!C70<0.5),"-",IFERROR('Tabel 4 VJ'!C70/'Tabel 4F VJ'!C70*100,"-")) -> - | D70: =IF(OR('Tabel 4F VJ'!D70<5,'Tabel 4 VJ'!D70<0.5),"-",IFERROR('Tabel 4 VJ'!D70/'Tabel 4F VJ'!D70*100,"-")) -> - | E70: =IF(OR('Tabel 4F VJ'!E70<5,'Tabel 4 VJ'!E70<0.5),"-",IFERROR('Tabel 4 VJ'!E70/'Tabel 4F VJ'!E70*100,"-")) -> - | F70: =IF(OR('Tabel 4F VJ'!F70<5,'Tabel 4 VJ'!F70<0.5),"-",IFERROR('Tabel 4 VJ'!F70/'Tabel 4F VJ'!F70*100,"-")) -> - | G70: =IF(OR('Tabel 4F VJ'!G70<5,'Tabel 4 VJ'!G70<0.5),"-",IFERROR('Tabel 4 VJ'!G70/'Tabel 4F VJ'!G70*100,"-")) -> - | I70: =IF(OR('Tabel 4F VJ'!I70<5,'Tabel 4 VJ'!I70<0.5),"-",IFERROR('Tabel 4 VJ'!I70/'Tabel 4F VJ'!I70*100,"-")) -> -
A71: Forstkand. | C71: =IF(OR('Tabel 4F VJ'!C71<5,'Tabel 4 VJ'!C71<0.5),"-",IFERROR('Tabel 4 VJ'!C71/'Tabel 4F VJ'!C71*100,"-")) -> - | D71: =IF(OR('Tabel 4F VJ'!D71<5,'Tabel 4 VJ'!D71<0.5),"-",IFERROR('Tabel 4 VJ'!D71/'Tabel 4F VJ'!D71*100,"-")) -> - | E71: =IF(OR('Tabel 4F VJ'!E71<5,'Tabel 4 VJ'!E71<0.5),"-",IFERROR('Tabel 4 VJ'!E71/'Tabel 4F VJ'!E71*100,"-")) -> - | F71: =IF(OR('Tabel 4F VJ'!F71<5,'Tabel 4 VJ'!F71<0.5),"-",IFERROR('Tabel 4 VJ'!F71/'Tabel 4F VJ'!F71*100,"-")) -> - | G71: =IF(OR('Tabel 4F VJ'!G71<5,'Tabel 4 VJ'!G71<0.5),"-",IFERROR('Tabel 4 VJ'!G71/'Tabel 4F VJ'!G71*100,"-")) -> - | I71: =IF(OR('Tabel 4F VJ'!I71<5,'Tabel 4 VJ'!I71<0.5),"-",IFERROR('Tabel 4 VJ'!I71/'Tabel 4F VJ'!I71*100,"-")) -> -
A72: Jordbrugsakad. | C72: =IF(OR('Tabel 4F VJ'!C72<5,'Tabel 4 VJ'!C72<0.5),"-",IFERROR('Tabel 4 VJ'!C72/'Tabel 4F VJ'!C72*100,"-")) -> - | D72: =IF(OR('Tabel 4F VJ'!D72<5,'Tabel 4 VJ'!D72<0.5),"-",IFERROR('Tabel 4 VJ'!D72/'Tabel 4F VJ'!D72*100,"-")) -> 20 | E72: =IF(OR('Tabel 4F VJ'!E72<5,'Tabel 4 VJ'!E72<0.5),"-",IFERROR('Tabel 4 VJ'!E72/'Tabel 4F VJ'!E72*100,"-")) -> - | F72: =IF(OR('Tabel 4F VJ'!F72<5,'Tabel 4 VJ'!F72<0.5),"-",IFERROR('Tabel 4 VJ'!F72/'Tabel 4F VJ'!F72*100,"-")) -> - | G72: =IF(OR('Tabel 4F VJ'!G72<5,'Tabel 4 VJ'!G72<0.5),"-",IFERROR('Tabel 4 VJ'!G72/'Tabel 4F VJ'!G72*100,"-")) -> 20 | I72: =IF(OR('Tabel 4F VJ'!I72<5,'Tabel 4 VJ'!I72<0.5),"-",IFERROR('Tabel 4 VJ'!I72/'Tabel 4F VJ'!I72*100,"-")) -> 8.571428571
A73: Mejeriing. | C73: =IF(OR('Tabel 4F VJ'!C73<5,'Tabel 4 VJ'!C73<0.5),"-",IFERROR('Tabel 4 VJ'!C73/'Tabel 4F VJ'!C73*100,"-")) -> - | D73: =IF(OR('Tabel 4F VJ'!D73<5,'Tabel 4 VJ'!D73<0.5),"-",IFERROR('Tabel 4 VJ'!D73/'Tabel 4F VJ'!D73*100,"-")) -> - | E73: =IF(OR('Tabel 4F VJ'!E73<5,'Tabel 4 VJ'!E73<0.5),"-",IFERROR('Tabel 4 VJ'!E73/'Tabel 4F VJ'!E73*100,"-")) -> - | F73: =IF(OR('Tabel 4F VJ'!F73<5,'Tabel 4 VJ'!F73<0.5),"-",IFERROR('Tabel 4 VJ'!F73/'Tabel 4F VJ'!F73*100,"-")) -> - | G73: =IF(OR('Tabel 4F VJ'!G73<5,'Tabel 4 VJ'!G73<0.5),"-",IFERROR('Tabel 4 VJ'!G73/'Tabel 4F VJ'!G73*100,"-")) -> - | I73: =IF(OR('Tabel 4F VJ'!I73<5,'Tabel 4 VJ'!I73<0.5),"-",IFERROR('Tabel 4 VJ'!I73/'Tabel 4F VJ'!I73*100,"-")) -> -
A74: Levn.m.kand. | C74: =IF(OR('Tabel 4F VJ'!C74<5,'Tabel 4 VJ'!C74<0.5),"-",IFERROR('Tabel 4 VJ'!C74/'Tabel 4F VJ'!C74*100,"-")) -> - | D74: =IF(OR('Tabel 4F VJ'!D74<5,'Tabel 4 VJ'!D74<0.5),"-",IFERROR('Tabel 4 VJ'!D74/'Tabel 4F VJ'!D74*100,"-")) -> - | E74: =IF(OR('Tabel 4F VJ'!E74<5,'Tabel 4 VJ'!E74<0.5),"-",IFERROR('Tabel 4 VJ'!E74/'Tabel 4F VJ'!E74*100,"-")) -> - | F74: =IF(OR('Tabel 4F VJ'!F74<5,'Tabel 4 VJ'!F74<0.5),"-",IFERROR('Tabel 4 VJ'!F74/'Tabel 4F VJ'!F74*100,"-")) -> - | G74: =IF(OR('Tabel 4F VJ'!G74<5,'Tabel 4 VJ'!G74<0.5),"-",IFERROR('Tabel 4 VJ'!G74/'Tabel 4F VJ'!G74*100,"-")) -> - | I74: =IF(OR('Tabel 4F VJ'!I74<5,'Tabel 4 VJ'!I74<0.5),"-",IFERROR('Tabel 4 VJ'!I74/'Tabel 4F VJ'!I74*100,"-")) -> -
A75: Dyrlæge | C75: =IF(OR('Tabel 4F VJ'!C75<5,'Tabel 4 VJ'!C75<0.5),"-",IFERROR('Tabel 4 VJ'!C75/'Tabel 4F VJ'!C75*100,"-")) -> - | D75: =IF(OR('Tabel 4F VJ'!D75<5,'Tabel 4 VJ'!D75<0.5),"-",IFERROR('Tabel 4 VJ'!D75/'Tabel 4F VJ'!D75*100,"-")) -> - | E75: =IF(OR('Tabel 4F VJ'!E75<5,'Tabel 4 VJ'!E75<0.5),"-",IFERROR('Tabel 4 VJ'!E75/'Tabel 4F VJ'!E75*100,"-")) -> - | F75: =IF(OR('Tabel 4F VJ'!F75<5,'Tabel 4 VJ'!F75<0.5),"-",IFERROR('Tabel 4 VJ'!F75/'Tabel 4F VJ'!F75*100,"-")) -> - | G75: =IF(OR('Tabel 4F VJ'!G75<5,'Tabel 4 VJ'!G75<0.5),"-",IFERROR('Tabel 4 VJ'!G75/'Tabel 4F VJ'!G75*100,"-")) -> - | I75: =IF(OR('Tabel 4F VJ'!I75<5,'Tabel 4 VJ'!I75<0.5),"-",IFERROR('Tabel 4 VJ'!I75/'Tabel 4F VJ'!I75*100,"-")) -> -
A76: Farmaceut | C76: =IF(OR('Tabel 4F VJ'!C76<5,'Tabel 4 VJ'!C76<0.5),"-",IFERROR('Tabel 4 VJ'!C76/'Tabel 4F VJ'!C76*100,"-")) -> - | D76: =IF(OR('Tabel 4F VJ'!D76<5,'Tabel 4 VJ'!D76<0.5),"-",IFERROR('Tabel 4 VJ'!D76/'Tabel 4F VJ'!D76*100,"-")) -> 12.5 | E76: =IF(OR('Tabel 4F VJ'!E76<5,'Tabel 4 VJ'!E76<0.5),"-",IFERROR('Tabel 4 VJ'!E76/'Tabel 4F VJ'!E76*100,"-")) -> - | F76: =IF(OR('Tabel 4F VJ'!F76<5,'Tabel 4 VJ'!F76<0.5),"-",IFERROR('Tabel 4 VJ'!F76/'Tabel 4F VJ'!F76*100,"-")) -> - | G76: =IF(OR('Tabel 4F VJ'!G76<5,'Tabel 4 VJ'!G76<0.5),"-",IFERROR('Tabel 4 VJ'!G76/'Tabel 4F VJ'!G76*100,"-")) -> - | I76: =IF(OR('Tabel 4F VJ'!I76<5,'Tabel 4 VJ'!I76<0.5),"-",IFERROR('Tabel 4 VJ'!I76/'Tabel 4F VJ'!I76*100,"-")) -> 9.090909091
A77: Læge | C77: =IF(OR('Tabel 4F VJ'!C77<5,'Tabel 4 VJ'!C77<0.5),"-",IFERROR('Tabel 4 VJ'!C77/'Tabel 4F VJ'!C77*100,"-")) -> - | D77: =IF(OR('Tabel 4F VJ'!D77<5,'Tabel 4 VJ'!D77<0.5),"-",IFERROR('Tabel 4 VJ'!D77/'Tabel 4F VJ'!D77*100,"-")) -> 3.125 | E77: =IF(OR('Tabel 4F VJ'!E77<5,'Tabel 4 VJ'!E77<0.5),"-",IFERROR('Tabel 4 VJ'!E77/'Tabel 4F VJ'!E77*100,"-")) -> - | F77: =IF(OR('Tabel 4F VJ'!F77<5,'Tabel 4 VJ'!F77<0.5),"-",IFERROR('Tabel 4 VJ'!F77/'Tabel 4F VJ'!F77*100,"-")) -> - | G77: =IF(OR('Tabel 4F VJ'!G77<5,'Tabel 4 VJ'!G77<0.5),"-",IFERROR('Tabel 4 VJ'!G77/'Tabel 4F VJ'!G77*100,"-")) -> - | I77: =IF(OR('Tabel 4F VJ'!I77<5,'Tabel 4 VJ'!I77<0.5),"-",IFERROR('Tabel 4 VJ'!I77/'Tabel 4F VJ'!I77*100,"-")) -> 1.282051282
A78: Tandlæge | C78: =IF(OR('Tabel 4F VJ'!C78<5,'Tabel 4 VJ'!C78<0.5),"-",IFERROR('Tabel 4 VJ'!C78/'Tabel 4F VJ'!C78*100,"-")) -> - | D78: =IF(OR('Tabel 4F VJ'!D78<5,'Tabel 4 VJ'!D78<0.5),"-",IFERROR('Tabel 4 VJ'!D78/'Tabel 4F VJ'!D78*100,"-")) -> - | E78: =IF(OR('Tabel 4F VJ'!E78<5,'Tabel 4 VJ'!E78<0.5),"-",IFERROR('Tabel 4 VJ'!E78/'Tabel 4F VJ'!E78*100,"-")) -> - | F78: =IF(OR('Tabel 4F VJ'!F78<5,'Tabel 4 VJ'!F78<0.5),"-",IFERROR('Tabel 4 VJ'!F78/'Tabel 4F VJ'!F78*100,"-")) -> - | G78: =IF(OR('Tabel 4F VJ'!G78<5,'Tabel 4 VJ'!G78<0.5),"-",IFERROR('Tabel 4 VJ'!G78/'Tabel 4F VJ'!G78*100,"-")) -> - | I78: =IF(OR('Tabel 4F VJ'!I78<5,'Tabel 4 VJ'!I78<0.5),"-",IFERROR('Tabel 4 VJ'!I78/'Tabel 4F VJ'!I78*100,"-")) -> -
A79: Arkitekt | C79: =IF(OR('Tabel 4F VJ'!C79<5,'Tabel 4 VJ'!C79<0.5),"-",IFERROR('Tabel 4 VJ'!C79/'Tabel 4F VJ'!C79*100,"-")) -> - | D79: =IF(OR('Tabel 4F VJ'!D79<5,'Tabel 4 VJ'!D79<0.5),"-",IFERROR('Tabel 4 VJ'!D79/'Tabel 4F VJ'!D79*100,"-")) -> - | E79: =IF(OR('Tabel 4F VJ'!E79<5,'Tabel 4 VJ'!E79<0.5),"-",IFERROR('Tabel 4 VJ'!E79/'Tabel 4F VJ'!E79*100,"-")) -> - | F79: =IF(OR('Tabel 4F VJ'!F79<5,'Tabel 4 VJ'!F79<0.5),"-",IFERROR('Tabel 4 VJ'!F79/'Tabel 4F VJ'!F79*100,"-")) -> - | G79: =IF(OR('Tabel 4F VJ'!G79<5,'Tabel 4 VJ'!G79<0.5),"-",IFERROR('Tabel 4 VJ'!G79/'Tabel 4F VJ'!G79*100,"-")) -> - | I79: =IF(OR('Tabel 4F VJ'!I79<5,'Tabel 4 VJ'!I79<0.5),"-",IFERROR('Tabel 4 VJ'!I79/'Tabel 4F VJ'!I79*100,"-")) -> -
A80: Landinspek. | C80: =IF(OR('Tabel 4F VJ'!C80<5,'Tabel 4 VJ'!C80<0.5),"-",IFERROR('Tabel 4 VJ'!C80/'Tabel 4F VJ'!C80*100,"-")) -> - | D80: =IF(OR('Tabel 4F VJ'!D80<5,'Tabel 4 VJ'!D80<0.5),"-",IFERROR('Tabel 4 VJ'!D80/'Tabel 4F VJ'!D80*100,"-")) -> - | E80: =IF(OR('Tabel 4F VJ'!E80<5,'Tabel 4 VJ'!E80<0.5),"-",IFERROR('Tabel 4 VJ'!E80/'Tabel 4F VJ'!E80*100,"-")) -> - | F80: =IF(OR('Tabel 4F VJ'!F80<5,'Tabel 4 VJ'!F80<0.5),"-",IFERROR('Tabel 4 VJ'!F80/'Tabel 4F VJ'!F80*100,"-")) -> - | G80: =IF(OR('Tabel 4F VJ'!G80<5,'Tabel 4 VJ'!G80<0.5),"-",IFERROR('Tabel 4 VJ'!G80/'Tabel 4F VJ'!G80*100,"-")) -> - | I80: =IF(OR('Tabel 4F VJ'!I80<5,'Tabel 4 VJ'!I80<0.5),"-",IFERROR('Tabel 4 VJ'!I80/'Tabel 4F VJ'!I80*100,"-")) -> -
A81: Bibliotekar | C81: =IF(OR('Tabel 4F VJ'!C81<5,'Tabel 4 VJ'!C81<0.5),"-",IFERROR('Tabel 4 VJ'!C81/'Tabel 4F VJ'!C81*100,"-")) -> - | D81: =IF(OR('Tabel 4F VJ'!D81<5,'Tabel 4 VJ'!D81<0.5),"-",IFERROR('Tabel 4 VJ'!D81/'Tabel 4F VJ'!D81*100,"-")) -> - | E81: =IF(OR('Tabel 4F VJ'!E81<5,'Tabel 4 VJ'!E81<0.5),"-",IFERROR('Tabel 4 VJ'!E81/'Tabel 4F VJ'!E81*100,"-")) -> 8.333333333 | F81: =IF(OR('Tabel 4F VJ'!F81<5,'Tabel 4 VJ'!F81<0.5),"-",IFERROR('Tabel 4 VJ'!F81/'Tabel 4F VJ'!F81*100,"-")) -> 9.090909091 | G81: =IF(OR('Tabel 4F VJ'!G81<5,'Tabel 4 VJ'!G81<0.5),"-",IFERROR('Tabel 4 VJ'!G81/'Tabel 4F VJ'!G81*100,"-")) -> - | I81: =IF(OR('Tabel 4F VJ'!I81<5,'Tabel 4 VJ'!I81<0.5),"-",IFERROR('Tabel 4 VJ'!I81/'Tabel 4F VJ'!I81*100,"-")) -> 5.555555556
A82: Musikudd. | C82: =IF(OR('Tabel 4F VJ'!C82<5,'Tabel 4 VJ'!C82<0.5),"-",IFERROR('Tabel 4 VJ'!C82/'Tabel 4F VJ'!C82*100,"-")) -> - | D82: =IF(OR('Tabel 4F VJ'!D82<5,'Tabel 4 VJ'!D82<0.5),"-",IFERROR('Tabel 4 VJ'!D82/'Tabel 4F VJ'!D82*100,"-")) -> - | E82: =IF(OR('Tabel 4F VJ'!E82<5,'Tabel 4 VJ'!E82<0.5),"-",IFERROR('Tabel 4 VJ'!E82/'Tabel 4F VJ'!E82*100,"-")) -> - | F82: =IF(OR('Tabel 4F VJ'!F82<5,'Tabel 4 VJ'!F82<0.5),"-",IFERROR('Tabel 4 VJ'!F82/'Tabel 4F VJ'!F82*100,"-")) -> - | G82: =IF(OR('Tabel 4F VJ'!G82<5,'Tabel 4 VJ'!G82<0.5),"-",IFERROR('Tabel 4 VJ'!G82/'Tabel 4F VJ'!G82*100,"-")) -> - | I82: =IF(OR('Tabel 4F VJ'!I82<5,'Tabel 4 VJ'!I82<0.5),"-",IFERROR('Tabel 4 VJ'!I82/'Tabel 4F VJ'!I82*100,"-")) -> -
A83: Teolog | C83: =IF(OR('Tabel 4F VJ'!C83<5,'Tabel 4 VJ'!C83<0.5),"-",IFERROR('Tabel 4 VJ'!C83/'Tabel 4F VJ'!C83*100,"-")) -> - | D83: =IF(OR('Tabel 4F VJ'!D83<5,'Tabel 4 VJ'!D83<0.5),"-",IFERROR('Tabel 4 VJ'!D83/'Tabel 4F VJ'!D83*100,"-")) -> - | E83: =IF(OR('Tabel 4F VJ'!E83<5,'Tabel 4 VJ'!E83<0.5),"-",IFERROR('Tabel 4 VJ'!E83/'Tabel 4F VJ'!E83*100,"-")) -> - | F83: =IF(OR('Tabel 4F VJ'!F83<5,'Tabel 4 VJ'!F83<0.5),"-",IFERROR('Tabel 4 VJ'!F83/'Tabel 4F VJ'!F83*100,"-")) -> - | G83: =IF(OR('Tabel 4F VJ'!G83<5,'Tabel 4 VJ'!G83<0.5),"-",IFERROR('Tabel 4 VJ'!G83/'Tabel 4F VJ'!G83*100,"-")) -> - | I83: =IF(OR('Tabel 4F VJ'!I83<5,'Tabel 4 VJ'!I83<0.5),"-",IFERROR('Tabel 4 VJ'!I83/'Tabel 4F VJ'!I83*100,"-")) -> -
A84: Psykolog | C84: =IF(OR('Tabel 4F VJ'!C84<5,'Tabel 4 VJ'!C84<0.5),"-",IFERROR('Tabel 4 VJ'!C84/'Tabel 4F VJ'!C84*100,"-")) -> 40 | D84: =IF(OR('Tabel 4F VJ'!D84<5,'Tabel 4 VJ'!D84<0.5),"-",IFERROR('Tabel 4 VJ'!D84/'Tabel 4F VJ'!D84*100,"-")) -> - | E84: =IF(OR('Tabel 4F VJ'!E84<5,'Tabel 4 VJ'!E84<0.5),"-",IFERROR('Tabel 4 VJ'!E84/'Tabel 4F VJ'!E84*100,"-")) -> - | F84: =IF(OR('Tabel 4F VJ'!F84<5,'Tabel 4 VJ'!F84<0.5),"-",IFERROR('Tabel 4 VJ'!F84/'Tabel 4F VJ'!F84*100,"-")) -> - | G84: =IF(OR('Tabel 4F VJ'!G84<5,'Tabel 4 VJ'!G84<0.5),"-",IFERROR('Tabel 4 VJ'!G84/'Tabel 4F VJ'!G84*100,"-")) -> - | I84: =IF(OR('Tabel 4F VJ'!I84<5,'Tabel 4 VJ'!I84<0.5),"-",IFERROR('Tabel 4 VJ'!I84/'Tabel 4F VJ'!I84*100,"-")) -> 4.255319149
A85: Jurist | C85: =IF(OR('Tabel 4F VJ'!C85<5,'Tabel 4 VJ'!C85<0.5),"-",IFERROR('Tabel 4 VJ'!C85/'Tabel 4F VJ'!C85*100,"-")) -> 4.545454545 | D85: =IF(OR('Tabel 4F VJ'!D85<5,'Tabel 4 VJ'!D85<0.5),"-",IFERROR('Tabel 4 VJ'!D85/'Tabel 4F VJ'!D85*100,"-")) -> - | E85: =IF(OR('Tabel 4F VJ'!E85<5,'Tabel 4 VJ'!E85<0.5),"-",IFERROR('Tabel 4 VJ'!E85/'Tabel 4F VJ'!E85*100,"-")) -> - | F85: =IF(OR('Tabel 4F VJ'!F85<5,'Tabel 4 VJ'!F85<0.5),"-",IFERROR('Tabel 4 VJ'!F85/'Tabel 4F VJ'!F85*100,"-")) -> - | G85: =IF(OR('Tabel 4F VJ'!G85<5,'Tabel 4 VJ'!G85<0.5),"-",IFERROR('Tabel 4 VJ'!G85/'Tabel 4F VJ'!G85*100,"-")) -> - | I85: =IF(OR('Tabel 4F VJ'!I85<5,'Tabel 4 VJ'!I85<0.5),"-",IFERROR('Tabel 4 VJ'!I85/'Tabel 4F VJ'!I85*100,"-")) -> 1.086956522
A86: Økonom | C86: =IF(OR('Tabel 4F VJ'!C86<5,'Tabel 4 VJ'!C86<0.5),"-",IFERROR('Tabel 4 VJ'!C86/'Tabel 4F VJ'!C86*100,"-")) -> - | D86: =IF(OR('Tabel 4F VJ'!D86<5,'Tabel 4 VJ'!D86<0.5),"-",IFERROR('Tabel 4 VJ'!D86/'Tabel 4F VJ'!D86*100,"-")) -> - | E86: =IF(OR('Tabel 4F VJ'!E86<5,'Tabel 4 VJ'!E86<0.5),"-",IFERROR('Tabel 4 VJ'!E86/'Tabel 4F VJ'!E86*100,"-")) -> - | F86: =IF(OR('Tabel 4F VJ'!F86<5,'Tabel 4 VJ'!F86<0.5),"-",IFERROR('Tabel 4 VJ'!F86/'Tabel 4F VJ'!F86*100,"-")) -> - | G86: =IF(OR('Tabel 4F VJ'!G86<5,'Tabel 4 VJ'!G86<0.5),"-",IFERROR('Tabel 4 VJ'!G86/'Tabel 4F VJ'!G86*100,"-")) -> - | I86: =IF(OR('Tabel 4F VJ'!I86<5,'Tabel 4 VJ'!I86<0.5),"-",IFERROR('Tabel 4 VJ'!I86/'Tabel 4F VJ'!I86*100,"-")) -> -
A87: Samf. Adm. | C87: =IF(OR('Tabel 4F VJ'!C87<5,'Tabel 4 VJ'!C87<0.5),"-",IFERROR('Tabel 4 VJ'!C87/'Tabel 4F VJ'!C87*100,"-")) -> 18.75 | D87: =IF(OR('Tabel 4F VJ'!D87<5,'Tabel 4 VJ'!D87<0.5),"-",IFERROR('Tabel 4 VJ'!D87/'Tabel 4F VJ'!D87*100,"-")) -> 8.888888889 | E87: =IF(OR('Tabel 4F VJ'!E87<5,'Tabel 4 VJ'!E87<0.5),"-",IFERROR('Tabel 4 VJ'!E87/'Tabel 4F VJ'!E87*100,"-")) -> - | F87: =IF(OR('Tabel 4F VJ'!F87<5,'Tabel 4 VJ'!F87<0.5),"-",IFERROR('Tabel 4 VJ'!F87/'Tabel 4F VJ'!F87*100,"-")) -> - | G87: =IF(OR('Tabel 4F VJ'!G87<5,'Tabel 4 VJ'!G87<0.5),"-",IFERROR('Tabel 4 VJ'!G87/'Tabel 4F VJ'!G87*100,"-")) -> - | I87: =IF(OR('Tabel 4F VJ'!I87<5,'Tabel 4 VJ'!I87<0.5),"-",IFERROR('Tabel 4 VJ'!I87/'Tabel 4F VJ'!I87*100,"-")) -> 8.045977011
A88: Cand. Merc. | C88: =IF(OR('Tabel 4F VJ'!C88<5,'Tabel 4 VJ'!C88<0.5),"-",IFERROR('Tabel 4 VJ'!C88/'Tabel 4F VJ'!C88*100,"-")) -> 13.55932203 | D88: =IF(OR('Tabel 4F VJ'!D88<5,'Tabel 4 VJ'!D88<0.5),"-",IFERROR('Tabel 4 VJ'!D88/'Tabel 4F VJ'!D88*100,"-")) -> 2.040816327 | E88: =IF(OR('Tabel 4F VJ'!E88<5,'Tabel 4 VJ'!E88<0.5),"-",IFERROR('Tabel 4 VJ'!E88/'Tabel 4F VJ'!E88*100,"-")) -> 4.6875 | F88: =IF(OR('Tabel 4F VJ'!F88<5,'Tabel 4 VJ'!F88<0.5),"-",IFERROR('Tabel 4 VJ'!F88/'Tabel 4F VJ'!F88*100,"-")) -> 2.702702703 | G88: =IF(OR('Tabel 4F VJ'!G88<5,'Tabel 4 VJ'!G88<0.5),"-",IFERROR('Tabel 4 VJ'!G88/'Tabel 4F VJ'!G88*100,"-")) -> 20 | I88: =IF(OR('Tabel 4F VJ'!I88<5,'Tabel 4 VJ'!I88<0.5),"-",IFERROR('Tabel 4 VJ'!I88/'Tabel 4F VJ'!I88*100,"-")) -> 5.703422053
A89: HA | C89: =IF(OR('Tabel 4F VJ'!C89<5,'Tabel 4 VJ'!C89<0.5),"-",IFERROR('Tabel 4 VJ'!C89/'Tabel 4F VJ'!C89*100,"-")) -> 33.33333333 | D89: =IF(OR('Tabel 4F VJ'!D89<5,'Tabel 4 VJ'!D89<0.5),"-",IFERROR('Tabel 4 VJ'!D89/'Tabel 4F VJ'!D89*100,"-")) -> - | E89: =IF(OR('Tabel 4F VJ'!E89<5,'Tabel 4 VJ'!E89<0.5),"-",IFERROR('Tabel 4 VJ'!E89/'Tabel 4F VJ'!E89*100,"-")) -> - | F89: =IF(OR('Tabel 4F VJ'!F89<5,'Tabel 4 VJ'!F89<0.5),"-",IFERROR('Tabel 4 VJ'!F89/'Tabel 4F VJ'!F89*100,"-")) -> 2.173913043 | G89: =IF(OR('Tabel 4F VJ'!G89<5,'Tabel 4 VJ'!G89<0.5),"-",IFERROR('Tabel 4 VJ'!G89/'Tabel 4F VJ'!G89*100,"-")) -> - | I89: =IF(OR('Tabel 4F VJ'!I89<5,'Tabel 4 VJ'!I89<0.5),"-",IFERROR('Tabel 4 VJ'!I89/'Tabel 4F VJ'!I89*100,"-")) -> 4.958677686
A90: HD | C90: =IF(OR('Tabel 4F VJ'!C90<5,'Tabel 4 VJ'!C90<0.5),"-",IFERROR('Tabel 4 VJ'!C90/'Tabel 4F VJ'!C90*100,"-")) -> - | D90: =IF(OR('Tabel 4F VJ'!D90<5,'Tabel 4 VJ'!D90<0.5),"-",IFERROR('Tabel 4 VJ'!D90/'Tabel 4F VJ'!D90*100,"-")) -> - | E90: =IF(OR('Tabel 4F VJ'!E90<5,'Tabel 4 VJ'!E90<0.5),"-",IFERROR('Tabel 4 VJ'!E90/'Tabel 4F VJ'!E90*100,"-")) -> - | F90: =IF(OR('Tabel 4F VJ'!F90<5,'Tabel 4 VJ'!F90<0.5),"-",IFERROR('Tabel 4 VJ'!F90/'Tabel 4F VJ'!F90*100,"-")) -> - | G90: =IF(OR('Tabel 4F VJ'!G90<5,'Tabel 4 VJ'!G90<0.5),"-",IFERROR('Tabel 4 VJ'!G90/'Tabel 4F VJ'!G90*100,"-")) -> - | I90: =IF(OR('Tabel 4F VJ'!I90<5,'Tabel 4 VJ'!I90<0.5),"-",IFERROR('Tabel 4 VJ'!I90/'Tabel 4F VJ'!I90*100,"-")) -> -
A91: Komm. og Sprog | C91: =IF(OR('Tabel 4F VJ'!C91<5,'Tabel 4 VJ'!C91<0.5),"-",IFERROR('Tabel 4 VJ'!C91/'Tabel 4F VJ'!C91*100,"-")) -> 28.57142857 | D91: =IF(OR('Tabel 4F VJ'!D91<5,'Tabel 4 VJ'!D91<0.5),"-",IFERROR('Tabel 4 VJ'!D91/'Tabel 4F VJ'!D91*100,"-")) -> - | E91: =IF(OR('Tabel 4F VJ'!E91<5,'Tabel 4 VJ'!E91<0.5),"-",IFERROR('Tabel 4 VJ'!E91/'Tabel 4F VJ'!E91*100,"-")) -> - | F91: =IF(OR('Tabel 4F VJ'!F91<5,'Tabel 4 VJ'!F91<0.5),"-",IFERROR('Tabel 4 VJ'!F91/'Tabel 4F VJ'!F91*100,"-")) -> 6.25 | G91: =IF(OR('Tabel 4F VJ'!G91<5,'Tabel 4 VJ'!G91<0.5),"-",IFERROR('Tabel 4 VJ'!G91/'Tabel 4F VJ'!G91*100,"-")) -> - | I91: =IF(OR('Tabel 4F VJ'!I91<5,'Tabel 4 VJ'!I91<0.5),"-",IFERROR('Tabel 4 VJ'!I91/'Tabel 4F VJ'!I91*100,"-")) -> 5.555555556
A92: Cand. IT. | C92: =IF(OR('Tabel 4F VJ'!C92<5,'Tabel 4 VJ'!C92<0.5),"-",IFERROR('Tabel 4 VJ'!C92/'Tabel 4F VJ'!C92*100,"-")) -> - | D92: =IF(OR('Tabel 4F VJ'!D92<5,'Tabel 4 VJ'!D92<0.5),"-",IFERROR('Tabel 4 VJ'!D92/'Tabel 4F VJ'!D92*100,"-")) -> 12.5 | E92: =IF(OR('Tabel 4F VJ'!E92<5,'Tabel 4 VJ'!E92<0.5),"-",IFERROR('Tabel 4 VJ'!E92/'Tabel 4F VJ'!E92*100,"-")) -> - | F92: =IF(OR('Tabel 4F VJ'!F92<5,'Tabel 4 VJ'!F92<0.5),"-",IFERROR('Tabel 4 VJ'!F92/'Tabel 4F VJ'!F92*100,"-")) -> - | G92: =IF(OR('Tabel 4F VJ'!G92<5,'Tabel 4 VJ'!G92<0.5),"-",IFERROR('Tabel 4 VJ'!G92/'Tabel 4F VJ'!G92*100,"-")) -> - | I92: =IF(OR('Tabel 4F VJ'!I92<5,'Tabel 4 VJ'!I92<0.5),"-",IFERROR('Tabel 4 VJ'!I92/'Tabel 4F VJ'!I92*100,"-")) -> 9.090909091
A93: Bac. Samf. | C93: =IF(OR('Tabel 4F VJ'!C93<5,'Tabel 4 VJ'!C93<0.5),"-",IFERROR('Tabel 4 VJ'!C93/'Tabel 4F VJ'!C93*100,"-")) -> - | D93: =IF(OR('Tabel 4F VJ'!D93<5,'Tabel 4 VJ'!D93<0.5),"-",IFERROR('Tabel 4 VJ'!D93/'Tabel 4F VJ'!D93*100,"-")) -> - | E93: =IF(OR('Tabel 4F VJ'!E93<5,'Tabel 4 VJ'!E93<0.5),"-",IFERROR('Tabel 4 VJ'!E93/'Tabel 4F VJ'!E93*100,"-")) -> - | F93: =IF(OR('Tabel 4F VJ'!F93<5,'Tabel 4 VJ'!F93<0.5),"-",IFERROR('Tabel 4 VJ'!F93/'Tabel 4F VJ'!F93*100,"-")) -> - | G93: =IF(OR('Tabel 4F VJ'!G93<5,'Tabel 4 VJ'!G93<0.5),"-",IFERROR('Tabel 4 VJ'!G93/'Tabel 4F VJ'!G93*100,"-")) -> - | I93: =IF(OR('Tabel 4F VJ'!I93<5,'Tabel 4 VJ'!I93<0.5),"-",IFERROR('Tabel 4 VJ'!I93/'Tabel 4F VJ'!I93*100,"-")) -> -
A94: Bac. Hum. | C94: =IF(OR('Tabel 4F VJ'!C94<5,'Tabel 4 VJ'!C94<0.5),"-",IFERROR('Tabel 4 VJ'!C94/'Tabel 4F VJ'!C94*100,"-")) -> - | D94: =IF(OR('Tabel 4F VJ'!D94<5,'Tabel 4 VJ'!D94<0.5),"-",IFERROR('Tabel 4 VJ'!D94/'Tabel 4F VJ'!D94*100,"-")) -> - | E94: =IF(OR('Tabel 4F VJ'!E94<5,'Tabel 4 VJ'!E94<0.5),"-",IFERROR('Tabel 4 VJ'!E94/'Tabel 4F VJ'!E94*100,"-")) -> - | F94: =IF(OR('Tabel 4F VJ'!F94<5,'Tabel 4 VJ'!F94<0.5),"-",IFERROR('Tabel 4 VJ'!F94/'Tabel 4F VJ'!F94*100,"-")) -> - | G94: =IF(OR('Tabel 4F VJ'!G94<5,'Tabel 4 VJ'!G94<0.5),"-",IFERROR('Tabel 4 VJ'!G94/'Tabel 4F VJ'!G94*100,"-")) -> - | I94: =IF(OR('Tabel 4F VJ'!I94<5,'Tabel 4 VJ'!I94<0.5),"-",IFERROR('Tabel 4 VJ'!I94/'Tabel 4F VJ'!I94*100,"-")) -> 12.5
A95: Bac. Nat. | C95: =IF(OR('Tabel 4F VJ'!C95<5,'Tabel 4 VJ'!C95<0.5),"-",IFERROR('Tabel 4 VJ'!C95/'Tabel 4F VJ'!C95*100,"-")) -> - | D95: =IF(OR('Tabel 4F VJ'!D95<5,'Tabel 4 VJ'!D95<0.5),"-",IFERROR('Tabel 4 VJ'!D95/'Tabel 4F VJ'!D95*100,"-")) -> - | E95: =IF(OR('Tabel 4F VJ'!E95<5,'Tabel 4 VJ'!E95<0.5),"-",IFERROR('Tabel 4 VJ'!E95/'Tabel 4F VJ'!E95*100,"-")) -> - | F95: =IF(OR('Tabel 4F VJ'!F95<5,'Tabel 4 VJ'!F95<0.5),"-",IFERROR('Tabel 4 VJ'!F95/'Tabel 4F VJ'!F95*100,"-")) -> - | G95: =IF(OR('Tabel 4F VJ'!G95<5,'Tabel 4 VJ'!G95<0.5),"-",IFERROR('Tabel 4 VJ'!G95/'Tabel 4F VJ'!G95*100,"-")) -> - | I95: =IF(OR('Tabel 4F VJ'!I95<5,'Tabel 4 VJ'!I95<0.5),"-",IFERROR('Tabel 4 VJ'!I95/'Tabel 4F VJ'!I95*100,"-")) -> -
A96: Andre | C96: =IF(OR('Tabel 4F VJ'!C96<5,'Tabel 4 VJ'!C96<0.5),"-",IFERROR('Tabel 4 VJ'!C96/'Tabel 4F VJ'!C96*100,"-")) -> 12.5 | D96: =IF(OR('Tabel 4F VJ'!D96<5,'Tabel 4 VJ'!D96<0.5),"-",IFERROR('Tabel 4 VJ'!D96/'Tabel 4F VJ'!D96*100,"-")) -> 2.631578947 | E96: =IF(OR('Tabel 4F VJ'!E96<5,'Tabel 4 VJ'!E96<0.5),"-",IFERROR('Tabel 4 VJ'!E96/'Tabel 4F VJ'!E96*100,"-")) -> 7.692307692 | F96: =IF(OR('Tabel 4F VJ'!F96<5,'Tabel 4 VJ'!F96<0.5),"-",IFERROR('Tabel 4 VJ'!F96/'Tabel 4F VJ'!F96*100,"-")) -> - | G96: =IF(OR('Tabel 4F VJ'!G96<5,'Tabel 4 VJ'!G96<0.5),"-",IFERROR('Tabel 4 VJ'!G96/'Tabel 4F VJ'!G96*100,"-")) -> - | I96: =IF(OR('Tabel 4F VJ'!I96<5,'Tabel 4 VJ'!I96<0.5),"-",IFERROR('Tabel 4 VJ'!I96/'Tabel 4F VJ'!I96*100,"-")) -> 4.191616766
A98: Total | C98: =IF(OR('Tabel 4F VJ'!C98<5,'Tabel 4 VJ'!C98<0.5),"-",IFERROR('Tabel 4 VJ'!C98/'Tabel 4F VJ'!C98*100,"-")) -> 13.20754717 | D98: =IF(OR('Tabel 4F VJ'!D98<5,'Tabel 4 VJ'!D98<0.5),"-",IFERROR('Tabel 4 VJ'!D98/'Tabel 4F VJ'!D98*100,"-")) -> 4.369538077 | E98: =IF(OR('Tabel 4F VJ'!E98<5,'Tabel 4 VJ'!E98<0.5),"-",IFERROR('Tabel 4 VJ'!E98/'Tabel 4F VJ'!E98*100,"-")) -> 1.791530945 | F98: =IF(OR('Tabel 4F VJ'!F98<5,'Tabel 4 VJ'!F98<0.5),"-",IFERROR('Tabel 4 VJ'!F98/'Tabel 4F VJ'!F98*100,"-")) -> 1.131221719 | G98: =IF(OR('Tabel 4F VJ'!G98<5,'Tabel 4 VJ'!G98<0.5),"-",IFERROR('Tabel 4 VJ'!G98/'Tabel 4F VJ'!G98*100,"-")) -> 7.339449541 | I98: =IF(OR('Tabel 4F VJ'!I98<5,'Tabel 4 VJ'!I98<0.5),"-",IFERROR('Tabel 4 VJ'!I98/'Tabel 4F VJ'!I98*100,"-")) -> 4.42206655
A100: Ingeniører i alt | C100: =IF(OR('Tabel 4F VJ'!C100<5,'Tabel 4 VJ'!C100<0.5),"-",IFERROR('Tabel 4 VJ'!C100/'Tabel 4F VJ'!C100*100,"-")) -> 9.722222222 | D100: =IF(OR('Tabel 4F VJ'!D100<5,'Tabel 4 VJ'!D100<0.5),"-",IFERROR('Tabel 4 VJ'!D100/'Tabel 4F VJ'!D100*100,"-")) -> 2.955665025 | E100: =IF(OR('Tabel 4F VJ'!E100<5,'Tabel 4 VJ'!E100<0.5),"-",IFERROR('Tabel 4 VJ'!E100/'Tabel 4F VJ'!E100*100,"-")) -> - | F100: =IF(OR('Tabel 4F VJ'!F100<5,'Tabel 4 VJ'!F100<0.5),"-",IFERROR('Tabel 4 VJ'!F100/'Tabel 4F VJ'!F100*100,"-")) -> - | G100: =IF(OR('Tabel 4F VJ'!G100<5,'Tabel 4 VJ'!G100<0.5),"-",IFERROR('Tabel 4 VJ'!G100/'Tabel 4F VJ'!G100*100,"-")) -> 16 | I100: =IF(OR('Tabel 4F VJ'!I100<5,'Tabel 4 VJ'!I100<0.5),"-",IFERROR('Tabel 4 VJ'!I100/'Tabel 4F VJ'!I100*100,"-")) -> 2.619414484
A101: Magistre i alt | C101: =IF(OR('Tabel 4F VJ'!C101<5,'Tabel 4 VJ'!C101<0.5),"-",IFERROR('Tabel 4 VJ'!C101/'Tabel 4F VJ'!C101*100,"-")) -> 12.19512195 | D101: =IF(OR('Tabel 4F VJ'!D101<5,'Tabel 4 VJ'!D101<0.5),"-",IFERROR('Tabel 4 VJ'!D101/'Tabel 4F VJ'!D101*100,"-")) -> 12.09677419 | E101: =IF(OR('Tabel 4F VJ'!E101<5,'Tabel 4 VJ'!E101<0.5),"-",IFERROR('Tabel 4 VJ'!E101/'Tabel 4F VJ'!E101*100,"-")) -> 3.448275862 | F101: =IF(OR('Tabel 4F VJ'!F101<5,'Tabel 4 VJ'!F101<0.5),"-",IFERROR('Tabel 4 VJ'!F101/'Tabel 4F VJ'!F101*100,"-")) -> - | G101: =IF(OR('Tabel 4F VJ'!G101<5,'Tabel 4 VJ'!G101<0.5),"-",IFERROR('Tabel 4 VJ'!G101/'Tabel 4F VJ'!G101*100,"-")) -> 5.263157895 | I101: =IF(OR('Tabel 4F VJ'!I101<5,'Tabel 4 VJ'!I101<0.5),"-",IFERROR('Tabel 4 VJ'!I101/'Tabel 4F VJ'!I101*100,"-")) -> 7.973421927
A102: DJØF'ere i alt | C102: =IF(OR('Tabel 4F VJ'!C102<5,'Tabel 4 VJ'!C102<0.5),"-",IFERROR('Tabel 4 VJ'!C102/'Tabel 4F VJ'!C102*100,"-")) -> 14.65517241 | D102: =IF(OR('Tabel 4F VJ'!D102<5,'Tabel 4 VJ'!D102<0.5),"-",IFERROR('Tabel 4 VJ'!D102/'Tabel 4F VJ'!D102*100,"-")) -> 2.985074627 | E102: =IF(OR('Tabel 4F VJ'!E102<5,'Tabel 4 VJ'!E102<0.5),"-",IFERROR('Tabel 4 VJ'!E102/'Tabel 4F VJ'!E102*100,"-")) -> 2.027027027 | F102: =IF(OR('Tabel 4F VJ'!F102<5,'Tabel 4 VJ'!F102<0.5),"-",IFERROR('Tabel 4 VJ'!F102/'Tabel 4F VJ'!F102*100,"-")) -> 1.612903226 | G102: =IF(OR('Tabel 4F VJ'!G102<5,'Tabel 4 VJ'!G102<0.5),"-",IFERROR('Tabel 4 VJ'!G102/'Tabel 4F VJ'!G102*100,"-")) -> 8.333333333 | I102: =IF(OR('Tabel 4F VJ'!I102<5,'Tabel 4 VJ'!I102<0.5),"-",IFERROR('Tabel 4 VJ'!I102/'Tabel 4F VJ'!I102*100,"-")) -> 4.825291181
A109: Holstebro
C111: Under 30 år | D111: 30 - 39 år | E111: 40 - 49 år | F111: 50 - 59 år | G111: Over 60 år | I111: I alt
A113: Civ. ing. | C113: =IF(OR('Tabel 4F VJ'!C113<5,'Tabel 4 VJ'!C113<0.5),"-",IFERROR('Tabel 4 VJ'!C113/'Tabel 4F VJ'!C113*100,"-")) -> 12.5 | D113: =IF(OR('Tabel 4F VJ'!D113<5,'Tabel 4 VJ'!D113<0.5),"-",IFERROR('Tabel 4 VJ'!D113/'Tabel 4F VJ'!D113*100,"-")) -> - | E113: =IF(OR('Tabel 4F VJ'!E113<5,'Tabel 4 VJ'!E113<0.5),"-",IFERROR('Tabel 4 VJ'!E113/'Tabel 4F VJ'!E113*100,"-")) -> - | F113: =IF(OR('Tabel 4F VJ'!F113<5,'Tabel 4 VJ'!F113<0.5),"-",IFERROR('Tabel 4 VJ'!F113/'Tabel 4F VJ'!F113*100,"-")) -> - | G113: =IF(OR('Tabel 4F VJ'!G113<5,'Tabel 4 VJ'!G113<0.5),"-",IFERROR('Tabel 4 VJ'!G113/'Tabel 4F VJ'!G113*100,"-")) -> - | I113: =IF(OR('Tabel 4F VJ'!I113<5,'Tabel 4 VJ'!I113<0.5),"-",IFERROR('Tabel 4 VJ'!I113/'Tabel 4F VJ'!I113*100,"-")) -> 2
A114: Diplom ing. | C114: =IF(OR('Tabel 4F VJ'!C114<5,'Tabel 4 VJ'!C114<0.5),"-",IFERROR('Tabel 4 VJ'!C114/'Tabel 4F VJ'!C114*100,"-")) -> - | D114: =IF(OR('Tabel 4F VJ'!D114<5,'Tabel 4 VJ'!D114<0.5),"-",IFERROR('Tabel 4 VJ'!D114/'Tabel 4F VJ'!D114*100,"-")) -> 4.545454545 | E114: =IF(OR('Tabel 4F VJ'!E114<5,'Tabel 4 VJ'!E114<0.5),"-",IFERROR('Tabel 4 VJ'!E114/'Tabel 4F VJ'!E114*100,"-")) -> - | F114: =IF(OR('Tabel 4F VJ'!F114<5,'Tabel 4 VJ'!F114<0.5),"-",IFERROR('Tabel 4 VJ'!F114/'Tabel 4F VJ'!F114*100,"-")) -> 1.265822785 | G114: =IF(OR('Tabel 4F VJ'!G114<5,'Tabel 4 VJ'!G114<0.5),"-",IFERROR('Tabel 4 VJ'!G114/'Tabel 4F VJ'!G114*100,"-")) -> - | I114: =IF(OR('Tabel 4F VJ'!I114<5,'Tabel 4 VJ'!I114<0.5),"-",IFERROR('Tabel 4 VJ'!I114/'Tabel 4F VJ'!I114*100,"-")) -> 0.9049773756
A115: Cand. Scient. Tek | C115: =IF(OR('Tabel 4F VJ'!C115<5,'Tabel 4 VJ'!C115<0.5),"-",IFERROR('Tabel 4 VJ'!C115/'Tabel 4F VJ'!C115*100,"-")) -> 14.28571429 | D115: =IF(OR('Tabel 4F VJ'!D115<5,'Tabel 4 VJ'!D115<0.5),"-",IFERROR('Tabel 4 VJ'!D115/'Tabel 4F VJ'!D115*100,"-")) -> - | E115: =IF(OR('Tabel 4F VJ'!E115<5,'Tabel 4 VJ'!E115<0.5),"-",IFERROR('Tabel 4 VJ'!E115/'Tabel 4F VJ'!E115*100,"-")) -> - | F115: =IF(OR('Tabel 4F VJ'!F115<5,'Tabel 4 VJ'!F115<0.5),"-",IFERROR('Tabel 4 VJ'!F115/'Tabel 4F VJ'!F115*100,"-")) -> - | G115: =IF(OR('Tabel 4F VJ'!G115<5,'Tabel 4 VJ'!G115<0.5),"-",IFERROR('Tabel 4 VJ'!G115/'Tabel 4F VJ'!G115*100,"-")) -> - | I115: =IF(OR('Tabel 4F VJ'!I115<5,'Tabel 4 VJ'!I115<0.5),"-",IFERROR('Tabel 4 VJ'!I115/'Tabel 4F VJ'!I115*100,"-")) -> 5.405405405
A116: MA. Hum. | C116: =IF(OR('Tabel 4F VJ'!C116<5,'Tabel 4 VJ'!C116<0.5),"-",IFERROR('Tabel 4 VJ'!C116/'Tabel 4F VJ'!C116*100,"-")) -> 18.75 | D116: =IF(OR('Tabel 4F VJ'!D116<5,'Tabel 4 VJ'!D116<0.5),"-",IFERROR('Tabel 4 VJ'!D116/'Tabel 4F VJ'!D116*100,"-")) -> 9.375 | E116: =IF(OR('Tabel 4F VJ'!E116<5,'Tabel 4 VJ'!E116<0.5),"-",IFERROR('Tabel 4 VJ'!E116/'Tabel 4F VJ'!E116*100,"-")) -> 5.263157895 | F116: =IF(OR('Tabel 4F VJ'!F116<5,'Tabel 4 VJ'!F116<0.5),"-",IFERROR('Tabel 4 VJ'!F116/'Tabel 4F VJ'!F116*100,"-")) -> - | G116: =IF(OR('Tabel 4F VJ'!G116<5,'Tabel 4 VJ'!G116<0.5),"-",IFERROR('Tabel 4 VJ'!G116/'Tabel 4F VJ'!G116*100,"-")) -> 6.666666667 | I116: =IF(OR('Tabel 4F VJ'!I116<5,'Tabel 4 VJ'!I116<0.5),"-",IFERROR('Tabel 4 VJ'!I116/'Tabel 4F VJ'!I116*100,"-")) -> 7.262569832
A117: MA. Nat. | C117: =IF(OR('Tabel 4F VJ'!C117<5,'Tabel 4 VJ'!C117<0.5),"-",IFERROR('Tabel 4 VJ'!C117/'Tabel 4F VJ'!C117*100,"-")) -> 33.33333333 | D117: =IF(OR('Tabel 4F VJ'!D117<5,'Tabel 4 VJ'!D117<0.5),"-",IFERROR('Tabel 4 VJ'!D117/'Tabel 4F VJ'!D117*100,"-")) -> - | E117: =IF(OR('Tabel 4F VJ'!E117<5,'Tabel 4 VJ'!E117<0.5),"-",IFERROR('Tabel 4 VJ'!E117/'Tabel 4F VJ'!E117*100,"-")) -> - | F117: =IF(OR('Tabel 4F VJ'!F117<5,'Tabel 4 VJ'!F117<0.5),"-",IFERROR('Tabel 4 VJ'!F117/'Tabel 4F VJ'!F117*100,"-")) -> - | G117: =IF(OR('Tabel 4F VJ'!G117<5,'Tabel 4 VJ'!G117<0.5),"-",IFERROR('Tabel 4 VJ'!G117/'Tabel 4F VJ'!G117*100,"-")) -> 14.28571429 | I117: =IF(OR('Tabel 4F VJ'!I117<5,'Tabel 4 VJ'!I117<0.5),"-",IFERROR('Tabel 4 VJ'!I117/'Tabel 4F VJ'!I117*100,"-")) -> 5.769230769
A118: MA. Ph.d. | C118: =IF(OR('Tabel 4F VJ'!C118<5,'Tabel 4 VJ'!C118<0.5),"-",IFERROR('Tabel 4 VJ'!C118/'Tabel 4F VJ'!C118*100,"-")) -> - | D118: =IF(OR('Tabel 4F VJ'!D118<5,'Tabel 4 VJ'!D118<0.5),"-",IFERROR('Tabel 4 VJ'!D118/'Tabel 4F VJ'!D118*100,"-")) -> - | E118: =IF(OR('Tabel 4F VJ'!E118<5,'Tabel 4 VJ'!E118<0.5),"-",IFERROR('Tabel 4 VJ'!E118/'Tabel 4F VJ'!E118*100,"-")) -> - | F118: =IF(OR('Tabel 4F VJ'!F118<5,'Tabel 4 VJ'!F118<0.5),"-",IFERROR('Tabel 4 VJ'!F118/'Tabel 4F VJ'!F118*100,"-")) -> - | G118: =IF(OR('Tabel 4F VJ'!G118<5,'Tabel 4 VJ'!G118<0.5),"-",IFERROR('Tabel 4 VJ'!G118/'Tabel 4F VJ'!G118*100,"-")) -> - | I118: =IF(OR('Tabel 4F VJ'!I118<5,'Tabel 4 VJ'!I118<0.5),"-",IFERROR('Tabel 4 VJ'!I118/'Tabel 4F VJ'!I118*100,"-")) -> -
A119: MA. Samf. | C119: =IF(OR('Tabel 4F VJ'!C119<5,'Tabel 4 VJ'!C119<0.5),"-",IFERROR('Tabel 4 VJ'!C119/'Tabel 4F VJ'!C119*100,"-")) -> - | D119: =IF(OR('Tabel 4F VJ'!D119<5,'Tabel 4 VJ'!D119<0.5),"-",IFERROR('Tabel 4 VJ'!D119/'Tabel 4F VJ'!D119*100,"-")) -> 22.22222222 | E119: =IF(OR('Tabel 4F VJ'!E119<5,'Tabel 4 VJ'!E119<0.5),"-",IFERROR('Tabel 4 VJ'!E119/'Tabel 4F VJ'!E119*100,"-")) -> - | F119: =IF(OR('Tabel 4F VJ'!F119<5,'Tabel 4 VJ'!F119<0.5),"-",IFERROR('Tabel 4 VJ'!F119/'Tabel 4F VJ'!F119*100,"-")) -> - | G119: =IF(OR('Tabel 4F VJ'!G119<5,'Tabel 4 VJ'!G119<0.5),"-",IFERROR('Tabel 4 VJ'!G119/'Tabel 4F VJ'!G119*100,"-")) -> - | I119: =IF(OR('Tabel 4F VJ'!I119<5,'Tabel 4 VJ'!I119<0.5),"-",IFERROR('Tabel 4 VJ'!I119/'Tabel 4F VJ'!I119*100,"-")) -> 33.33333333
A120: Øvrige Mag. | C120: =IF(OR('Tabel 4F VJ'!C120<5,'Tabel 4 VJ'!C120<0.5),"-",IFERROR('Tabel 4 VJ'!C120/'Tabel 4F VJ'!C120*100,"-")) -> - | D120: =IF(OR('Tabel 4F VJ'!D120<5,'Tabel 4 VJ'!D120<0.5),"-",IFERROR('Tabel 4 VJ'!D120/'Tabel 4F VJ'!D120*100,"-")) -> - | E120: =IF(OR('Tabel 4F VJ'!E120<5,'Tabel 4 VJ'!E120<0.5),"-",IFERROR('Tabel 4 VJ'!E120/'Tabel 4F VJ'!E120*100,"-")) -> - | F120: =IF(OR('Tabel 4F VJ'!F120<5,'Tabel 4 VJ'!F120<0.5),"-",IFERROR('Tabel 4 VJ'!F120/'Tabel 4F VJ'!F120*100,"-")) -> - | G120: =IF(OR('Tabel 4F VJ'!G120<5,'Tabel 4 VJ'!G120<0.5),"-",IFERROR('Tabel 4 VJ'!G120/'Tabel 4F VJ'!G120*100,"-")) -> - | I120: =IF(OR('Tabel 4F VJ'!I120<5,'Tabel 4 VJ'!I120<0.5),"-",IFERROR('Tabel 4 VJ'!I120/'Tabel 4F VJ'!I120*100,"-")) -> -
A121: Agronom | C121: =IF(OR('Tabel 4F VJ'!C121<5,'Tabel 4 VJ'!C121<0.5),"-",IFERROR('Tabel 4 VJ'!C121/'Tabel 4F VJ'!C121*100,"-")) -> - | D121: =IF(OR('Tabel 4F VJ'!D121<5,'Tabel 4 VJ'!D121<0.5),"-",IFERROR('Tabel 4 VJ'!D121/'Tabel 4F VJ'!D121*100,"-")) -> - | E121: =IF(OR('Tabel 4F VJ'!E121<5,'Tabel 4 VJ'!E121<0.5),"-",IFERROR('Tabel 4 VJ'!E121/'Tabel 4F VJ'!E121*100,"-")) -> - | F121: =IF(OR('Tabel 4F VJ'!F121<5,'Tabel 4 VJ'!F121<0.5),"-",IFERROR('Tabel 4 VJ'!F121/'Tabel 4F VJ'!F121*100,"-")) -> - | G121: =IF(OR('Tabel 4F VJ'!G121<5,'Tabel 4 VJ'!G121<0.5),"-",IFERROR('Tabel 4 VJ'!G121/'Tabel 4F VJ'!G121*100,"-")) -> - | I121: =IF(OR('Tabel 4F VJ'!I121<5,'Tabel 4 VJ'!I121<0.5),"-",IFERROR('Tabel 4 VJ'!I121/'Tabel 4F VJ'!I121*100,"-")) -> -
A122: Landsk. Arkt. | C122: =IF(OR('Tabel 4F VJ'!C122<5,'Tabel 4 VJ'!C122<0.5),"-",IFERROR('Tabel 4 VJ'!C122/'Tabel 4F VJ'!C122*100,"-")) -> - | D122: =IF(OR('Tabel 4F VJ'!D122<5,'Tabel 4 VJ'!D122<0.5),"-",IFERROR('Tabel 4 VJ'!D122/'Tabel 4F VJ'!D122*100,"-")) -> - | E122: =IF(OR('Tabel 4F VJ'!E122<5,'Tabel 4 VJ'!E122<0.5),"-",IFERROR('Tabel 4 VJ'!E122/'Tabel 4F VJ'!E122*100,"-")) -> - | F122: =IF(OR('Tabel 4F VJ'!F122<5,'Tabel 4 VJ'!F122<0.5),"-",IFERROR('Tabel 4 VJ'!F122/'Tabel 4F VJ'!F122*100,"-")) -> - | G122: =IF(OR('Tabel 4F VJ'!G122<5,'Tabel 4 VJ'!G122<0.5),"-",IFERROR('Tabel 4 VJ'!G122/'Tabel 4F VJ'!G122*100,"-")) -> - | I122: =IF(OR('Tabel 4F VJ'!I122<5,'Tabel 4 VJ'!I122<0.5),"-",IFERROR('Tabel 4 VJ'!I122/'Tabel 4F VJ'!I122*100,"-")) -> -
A123: Hortonom | C123: =IF(OR('Tabel 4F VJ'!C123<5,'Tabel 4 VJ'!C123<0.5),"-",IFERROR('Tabel 4 VJ'!C123/'Tabel 4F VJ'!C123*100,"-")) -> - | D123: =IF(OR('Tabel 4F VJ'!D123<5,'Tabel 4 VJ'!D123<0.5),"-",IFERROR('Tabel 4 VJ'!D123/'Tabel 4F VJ'!D123*100,"-")) -> - | E123: =IF(OR('Tabel 4F VJ'!E123<5,'Tabel 4 VJ'!E123<0.5),"-",IFERROR('Tabel 4 VJ'!E123/'Tabel 4F VJ'!E123*100,"-")) -> - | F123: =IF(OR('Tabel 4F VJ'!F123<5,'Tabel 4 VJ'!F123<0.5),"-",IFERROR('Tabel 4 VJ'!F123/'Tabel 4F VJ'!F123*100,"-")) -> - | G123: =IF(OR('Tabel 4F VJ'!G123<5,'Tabel 4 VJ'!G123<0.5),"-",IFERROR('Tabel 4 VJ'!G123/'Tabel 4F VJ'!G123*100,"-")) -> - | I123: =IF(OR('Tabel 4F VJ'!I123<5,'Tabel 4 VJ'!I123<0.5),"-",IFERROR('Tabel 4 VJ'!I123/'Tabel 4F VJ'!I123*100,"-")) -> -
A124: Forstkand. | C124: =IF(OR('Tabel 4F VJ'!C124<5,'Tabel 4 VJ'!C124<0.5),"-",IFERROR('Tabel 4 VJ'!C124/'Tabel 4F VJ'!C124*100,"-")) -> - | D124: =IF(OR('Tabel 4F VJ'!D124<5,'Tabel 4 VJ'!D124<0.5),"-",IFERROR('Tabel 4 VJ'!D124/'Tabel 4F VJ'!D124*100,"-")) -> - | E124: =IF(OR('Tabel 4F VJ'!E124<5,'Tabel 4 VJ'!E124<0.5),"-",IFERROR('Tabel 4 VJ'!E124/'Tabel 4F VJ'!E124*100,"-")) -> - | F124: =IF(OR('Tabel 4F VJ'!F124<5,'Tabel 4 VJ'!F124<0.5),"-",IFERROR('Tabel 4 VJ'!F124/'Tabel 4F VJ'!F124*100,"-")) -> - | G124: =IF(OR('Tabel 4F VJ'!G124<5,'Tabel 4 VJ'!G124<0.5),"-",IFERROR('Tabel 4 VJ'!G124/'Tabel 4F VJ'!G124*100,"-")) -> - | I124: =IF(OR('Tabel 4F VJ'!I124<5,'Tabel 4 VJ'!I124<0.5),"-",IFERROR('Tabel 4 VJ'!I124/'Tabel 4F VJ'!I124*100,"-")) -> -
A125: Jordbrugsakad. | C125: =IF(OR('Tabel 4F VJ'!C125<5,'Tabel 4 VJ'!C125<0.5),"-",IFERROR('Tabel 4 VJ'!C125/'Tabel 4F VJ'!C125*100,"-")) -> - | D125: =IF(OR('Tabel 4F VJ'!D125<5,'Tabel 4 VJ'!D125<0.5),"-",IFERROR('Tabel 4 VJ'!D125/'Tabel 4F VJ'!D125*100,"-")) -> - | E125: =IF(OR('Tabel 4F VJ'!E125<5,'Tabel 4 VJ'!E125<0.5),"-",IFERROR('Tabel 4 VJ'!E125/'Tabel 4F VJ'!E125*100,"-")) -> - | F125: =IF(OR('Tabel 4F VJ'!F125<5,'Tabel 4 VJ'!F125<0.5),"-",IFERROR('Tabel 4 VJ'!F125/'Tabel 4F VJ'!F125*100,"-")) -> - | G125: =IF(OR('Tabel 4F VJ'!G125<5,'Tabel 4 VJ'!G125<0.5),"-",IFERROR('Tabel 4 VJ'!G125/'Tabel 4F VJ'!G125*100,"-")) -> - | I125: =IF(OR('Tabel 4F VJ'!I125<5,'Tabel 4 VJ'!I125<0.5),"-",IFERROR('Tabel 4 VJ'!I125/'Tabel 4F VJ'!I125*100,"-")) -> 3.333333333
A126: Mejeriing. | C126: =IF(OR('Tabel 4F VJ'!C126<5,'Tabel 4 VJ'!C126<0.5),"-",IFERROR('Tabel 4 VJ'!C126/'Tabel 4F VJ'!C126*100,"-")) -> - | D126: =IF(OR('Tabel 4F VJ'!D126<5,'Tabel 4 VJ'!D126<0.5),"-",IFERROR('Tabel 4 VJ'!D126/'Tabel 4F VJ'!D126*100,"-")) -> - | E126: =IF(OR('Tabel 4F VJ'!E126<5,'Tabel 4 VJ'!E126<0.5),"-",IFERROR('Tabel 4 VJ'!E126/'Tabel 4F VJ'!E126*100,"-")) -> - | F126: =IF(OR('Tabel 4F VJ'!F126<5,'Tabel 4 VJ'!F126<0.5),"-",IFERROR('Tabel 4 VJ'!F126/'Tabel 4F VJ'!F126*100,"-")) -> - | G126: =IF(OR('Tabel 4F VJ'!G126<5,'Tabel 4 VJ'!G126<0.5),"-",IFERROR('Tabel 4 VJ'!G126/'Tabel 4F VJ'!G126*100,"-")) -> - | I126: =IF(OR('Tabel 4F VJ'!I126<5,'Tabel 4 VJ'!I126<0.5),"-",IFERROR('Tabel 4 VJ'!I126/'Tabel 4F VJ'!I126*100,"-")) -> -
A127: Levn.m.kand. | C127: =IF(OR('Tabel 4F VJ'!C127<5,'Tabel 4 VJ'!C127<0.5),"-",IFERROR('Tabel 4 VJ'!C127/'Tabel 4F VJ'!C127*100,"-")) -> - | D127: =IF(OR('Tabel 4F VJ'!D127<5,'Tabel 4 VJ'!D127<0.5),"-",IFERROR('Tabel 4 VJ'!D127/'Tabel 4F VJ'!D127*100,"-")) -> - | E127: =IF(OR('Tabel 4F VJ'!E127<5,'Tabel 4 VJ'!E127<0.5),"-",IFERROR('Tabel 4 VJ'!E127/'Tabel 4F VJ'!E127*100,"-")) -> - | F127: =IF(OR('Tabel 4F VJ'!F127<5,'Tabel 4 VJ'!F127<0.5),"-",IFERROR('Tabel 4 VJ'!F127/'Tabel 4F VJ'!F127*100,"-")) -> - | G127: =IF(OR('Tabel 4F VJ'!G127<5,'Tabel 4 VJ'!G127<0.5),"-",IFERROR('Tabel 4 VJ'!G127/'Tabel 4F VJ'!G127*100,"-")) -> - | I127: =IF(OR('Tabel 4F VJ'!I127<5,'Tabel 4 VJ'!I127<0.5),"-",IFERROR('Tabel 4 VJ'!I127/'Tabel 4F VJ'!I127*100,"-")) -> -
A128: Dyrlæge | C128: =IF(OR('Tabel 4F VJ'!C128<5,'Tabel 4 VJ'!C128<0.5),"-",IFERROR('Tabel 4 VJ'!C128/'Tabel 4F VJ'!C128*100,"-")) -> - | D128: =IF(OR('Tabel 4F VJ'!D128<5,'Tabel 4 VJ'!D128<0.5),"-",IFERROR('Tabel 4 VJ'!D128/'Tabel 4F VJ'!D128*100,"-")) -> - | E128: =IF(OR('Tabel 4F VJ'!E128<5,'Tabel 4 VJ'!E128<0.5),"-",IFERROR('Tabel 4 VJ'!E128/'Tabel 4F VJ'!E128*100,"-")) -> - | F128: =IF(OR('Tabel 4F VJ'!F128<5,'Tabel 4 VJ'!F128<0.5),"-",IFERROR('Tabel 4 VJ'!F128/'Tabel 4F VJ'!F128*100,"-")) -> - | G128: =IF(OR('Tabel 4F VJ'!G128<5,'Tabel 4 VJ'!G128<0.5),"-",IFERROR('Tabel 4 VJ'!G128/'Tabel 4F VJ'!G128*100,"-")) -> - | I128: =IF(OR('Tabel 4F VJ'!I128<5,'Tabel 4 VJ'!I128<0.5),"-",IFERROR('Tabel 4 VJ'!I128/'Tabel 4F VJ'!I128*100,"-")) -> -
A129: Farmaceut | C129: =IF(OR('Tabel 4F VJ'!C129<5,'Tabel 4 VJ'!C129<0.5),"-",IFERROR('Tabel 4 VJ'!C129/'Tabel 4F VJ'!C129*100,"-")) -> - | D129: =IF(OR('Tabel 4F VJ'!D129<5,'Tabel 4 VJ'!D129<0.5),"-",IFERROR('Tabel 4 VJ'!D129/'Tabel 4F VJ'!D129*100,"-")) -> - | E129: =IF(OR('Tabel 4F VJ'!E129<5,'Tabel 4 VJ'!E129<0.5),"-",IFERROR('Tabel 4 VJ'!E129/'Tabel 4F VJ'!E129*100,"-")) -> - | F129: =IF(OR('Tabel 4F VJ'!F129<5,'Tabel 4 VJ'!F129<0.5),"-",IFERROR('Tabel 4 VJ'!F129/'Tabel 4F VJ'!F129*100,"-")) -> - | G129: =IF(OR('Tabel 4F VJ'!G129<5,'Tabel 4 VJ'!G129<0.5),"-",IFERROR('Tabel 4 VJ'!G129/'Tabel 4F VJ'!G129*100,"-")) -> - | I129: =IF(OR('Tabel 4F VJ'!I129<5,'Tabel 4 VJ'!I129<0.5),"-",IFERROR('Tabel 4 VJ'!I129/'Tabel 4F VJ'!I129*100,"-")) -> 10
A130: Læge | C130: =IF(OR('Tabel 4F VJ'!C130<5,'Tabel 4 VJ'!C130<0.5),"-",IFERROR('Tabel 4 VJ'!C130/'Tabel 4F VJ'!C130*100,"-")) -> 5.555555556 | D130: =IF(OR('Tabel 4F VJ'!D130<5,'Tabel 4 VJ'!D130<0.5),"-",IFERROR('Tabel 4 VJ'!D130/'Tabel 4F VJ'!D130*100,"-")) -> - | E130: =IF(OR('Tabel 4F VJ'!E130<5,'Tabel 4 VJ'!E130<0.5),"-",IFERROR('Tabel 4 VJ'!E130/'Tabel 4F VJ'!E130*100,"-")) -> - | F130: =IF(OR('Tabel 4F VJ'!F130<5,'Tabel 4 VJ'!F130<0.5),"-",IFERROR('Tabel 4 VJ'!F130/'Tabel 4F VJ'!F130*100,"-")) -> 11.11111111 | G130: =IF(OR('Tabel 4F VJ'!G130<5,'Tabel 4 VJ'!G130<0.5),"-",IFERROR('Tabel 4 VJ'!G130/'Tabel 4F VJ'!G130*100,"-")) -> - | I130: =IF(OR('Tabel 4F VJ'!I130<5,'Tabel 4 VJ'!I130<0.5),"-",IFERROR('Tabel 4 VJ'!I130/'Tabel 4F VJ'!I130*100,"-")) -> 2.631578947
A131: Tandlæge | C131: =IF(OR('Tabel 4F VJ'!C131<5,'Tabel 4 VJ'!C131<0.5),"-",IFERROR('Tabel 4 VJ'!C131/'Tabel 4F VJ'!C131*100,"-")) -> - | D131: =IF(OR('Tabel 4F VJ'!D131<5,'Tabel 4 VJ'!D131<0.5),"-",IFERROR('Tabel 4 VJ'!D131/'Tabel 4F VJ'!D131*100,"-")) -> - | E131: =IF(OR('Tabel 4F VJ'!E131<5,'Tabel 4 VJ'!E131<0.5),"-",IFERROR('Tabel 4 VJ'!E131/'Tabel 4F VJ'!E131*100,"-")) -> 20 | F131: =IF(OR('Tabel 4F VJ'!F131<5,'Tabel 4 VJ'!F131<0.5),"-",IFERROR('Tabel 4 VJ'!F131/'Tabel 4F VJ'!F131*100,"-")) -> - | G131: =IF(OR('Tabel 4F VJ'!G131<5,'Tabel 4 VJ'!G131<0.5),"-",IFERROR('Tabel 4 VJ'!G131/'Tabel 4F VJ'!G131*100,"-")) -> - | I131: =IF(OR('Tabel 4F VJ'!I131<5,'Tabel 4 VJ'!I131<0.5),"-",IFERROR('Tabel 4 VJ'!I131/'Tabel 4F VJ'!I131*100,"-")) -> 5.555555556
A132: Arkitekt | C132: =IF(OR('Tabel 4F VJ'!C132<5,'Tabel 4 VJ'!C132<0.5),"-",IFERROR('Tabel 4 VJ'!C132/'Tabel 4F VJ'!C132*100,"-")) -> - | D132: =IF(OR('Tabel 4F VJ'!D132<5,'Tabel 4 VJ'!D132<0.5),"-",IFERROR('Tabel 4 VJ'!D132/'Tabel 4F VJ'!D132*100,"-")) -> - | E132: =IF(OR('Tabel 4F VJ'!E132<5,'Tabel 4 VJ'!E132<0.5),"-",IFERROR('Tabel 4 VJ'!E132/'Tabel 4F VJ'!E132*100,"-")) -> - | F132: =IF(OR('Tabel 4F VJ'!F132<5,'Tabel 4 VJ'!F132<0.5),"-",IFERROR('Tabel 4 VJ'!F132/'Tabel 4F VJ'!F132*100,"-")) -> - | G132: =IF(OR('Tabel 4F VJ'!G132<5,'Tabel 4 VJ'!G132<0.5),"-",IFERROR('Tabel 4 VJ'!G132/'Tabel 4F VJ'!G132*100,"-")) -> - | I132: =IF(OR('Tabel 4F VJ'!I132<5,'Tabel 4 VJ'!I132<0.5),"-",IFERROR('Tabel 4 VJ'!I132/'Tabel 4F VJ'!I132*100,"-")) -> -
A133: Landinspek. | C133: =IF(OR('Tabel 4F VJ'!C133<5,'Tabel 4 VJ'!C133<0.5),"-",IFERROR('Tabel 4 VJ'!C133/'Tabel 4F VJ'!C133*100,"-")) -> - | D133: =IF(OR('Tabel 4F VJ'!D133<5,'Tabel 4 VJ'!D133<0.5),"-",IFERROR('Tabel 4 VJ'!D133/'Tabel 4F VJ'!D133*100,"-")) -> - | E133: =IF(OR('Tabel 4F VJ'!E133<5,'Tabel 4 VJ'!E133<0.5),"-",IFERROR('Tabel 4 VJ'!E133/'Tabel 4F VJ'!E133*100,"-")) -> - | F133: =IF(OR('Tabel 4F VJ'!F133<5,'Tabel 4 VJ'!F133<0.5),"-",IFERROR('Tabel 4 VJ'!F133/'Tabel 4F VJ'!F133*100,"-")) -> - | G133: =IF(OR('Tabel 4F VJ'!G133<5,'Tabel 4 VJ'!G133<0.5),"-",IFERROR('Tabel 4 VJ'!G133/'Tabel 4F VJ'!G133*100,"-")) -> - | I133: =IF(OR('Tabel 4F VJ'!I133<5,'Tabel 4 VJ'!I133<0.5),"-",IFERROR('Tabel 4 VJ'!I133/'Tabel 4F VJ'!I133*100,"-")) -> -
A134: Bibliotekar | C134: =IF(OR('Tabel 4F VJ'!C134<5,'Tabel 4 VJ'!C134<0.5),"-",IFERROR('Tabel 4 VJ'!C134/'Tabel 4F VJ'!C134*100,"-")) -> - | D134: =IF(OR('Tabel 4F VJ'!D134<5,'Tabel 4 VJ'!D134<0.5),"-",IFERROR('Tabel 4 VJ'!D134/'Tabel 4F VJ'!D134*100,"-")) -> 16.66666667 | E134: =IF(OR('Tabel 4F VJ'!E134<5,'Tabel 4 VJ'!E134<0.5),"-",IFERROR('Tabel 4 VJ'!E134/'Tabel 4F VJ'!E134*100,"-")) -> - | F134: =IF(OR('Tabel 4F VJ'!F134<5,'Tabel 4 VJ'!F134<0.5),"-",IFERROR('Tabel 4 VJ'!F134/'Tabel 4F VJ'!F134*100,"-")) -> - | G134: =IF(OR('Tabel 4F VJ'!G134<5,'Tabel 4 VJ'!G134<0.5),"-",IFERROR('Tabel 4 VJ'!G134/'Tabel 4F VJ'!G134*100,"-")) -> - | I134: =IF(OR('Tabel 4F VJ'!I134<5,'Tabel 4 VJ'!I134<0.5),"-",IFERROR('Tabel 4 VJ'!I134/'Tabel 4F VJ'!I134*100,"-")) -> 4
A135: Musikudd. | C135: =IF(OR('Tabel 4F VJ'!C135<5,'Tabel 4 VJ'!C135<0.5),"-",IFERROR('Tabel 4 VJ'!C135/'Tabel 4F VJ'!C135*100,"-")) -> - | D135: =IF(OR('Tabel 4F VJ'!D135<5,'Tabel 4 VJ'!D135<0.5),"-",IFERROR('Tabel 4 VJ'!D135/'Tabel 4F VJ'!D135*100,"-")) -> - | E135: =IF(OR('Tabel 4F VJ'!E135<5,'Tabel 4 VJ'!E135<0.5),"-",IFERROR('Tabel 4 VJ'!E135/'Tabel 4F VJ'!E135*100,"-")) -> - | F135: =IF(OR('Tabel 4F VJ'!F135<5,'Tabel 4 VJ'!F135<0.5),"-",IFERROR('Tabel 4 VJ'!F135/'Tabel 4F VJ'!F135*100,"-")) -> - | G135: =IF(OR('Tabel 4F VJ'!G135<5,'Tabel 4 VJ'!G135<0.5),"-",IFERROR('Tabel 4 VJ'!G135/'Tabel 4F VJ'!G135*100,"-")) -> - | I135: =IF(OR('Tabel 4F VJ'!I135<5,'Tabel 4 VJ'!I135<0.5),"-",IFERROR('Tabel 4 VJ'!I135/'Tabel 4F VJ'!I135*100,"-")) -> -
A136: Teolog | C136: =IF(OR('Tabel 4F VJ'!C136<5,'Tabel 4 VJ'!C136<0.5),"-",IFERROR('Tabel 4 VJ'!C136/'Tabel 4F VJ'!C136*100,"-")) -> - | D136: =IF(OR('Tabel 4F VJ'!D136<5,'Tabel 4 VJ'!D136<0.5),"-",IFERROR('Tabel 4 VJ'!D136/'Tabel 4F VJ'!D136*100,"-")) -> - | E136: =IF(OR('Tabel 4F VJ'!E136<5,'Tabel 4 VJ'!E136<0.5),"-",IFERROR('Tabel 4 VJ'!E136/'Tabel 4F VJ'!E136*100,"-")) -> - | F136: =IF(OR('Tabel 4F VJ'!F136<5,'Tabel 4 VJ'!F136<0.5),"-",IFERROR('Tabel 4 VJ'!F136/'Tabel 4F VJ'!F136*100,"-")) -> - | G136: =IF(OR('Tabel 4F VJ'!G136<5,'Tabel 4 VJ'!G136<0.5),"-",IFERROR('Tabel 4 VJ'!G136/'Tabel 4F VJ'!G136*100,"-")) -> - | I136: =IF(OR('Tabel 4F VJ'!I136<5,'Tabel 4 VJ'!I136<0.5),"-",IFERROR('Tabel 4 VJ'!I136/'Tabel 4F VJ'!I136*100,"-")) -> -
A137: Psykolog | C137: =IF(OR('Tabel 4F VJ'!C137<5,'Tabel 4 VJ'!C137<0.5),"-",IFERROR('Tabel 4 VJ'!C137/'Tabel 4F VJ'!C137*100,"-")) -> 16.66666667 | D137: =IF(OR('Tabel 4F VJ'!D137<5,'Tabel 4 VJ'!D137<0.5),"-",IFERROR('Tabel 4 VJ'!D137/'Tabel 4F VJ'!D137*100,"-")) -> - | E137: =IF(OR('Tabel 4F VJ'!E137<5,'Tabel 4 VJ'!E137<0.5),"-",IFERROR('Tabel 4 VJ'!E137/'Tabel 4F VJ'!E137*100,"-")) -> - | F137: =IF(OR('Tabel 4F VJ'!F137<5,'Tabel 4 VJ'!F137<0.5),"-",IFERROR('Tabel 4 VJ'!F137/'Tabel 4F VJ'!F137*100,"-")) -> - | G137: =IF(OR('Tabel 4F VJ'!G137<5,'Tabel 4 VJ'!G137<0.5),"-",IFERROR('Tabel 4 VJ'!G137/'Tabel 4F VJ'!G137*100,"-")) -> - | I137: =IF(OR('Tabel 4F VJ'!I137<5,'Tabel 4 VJ'!I137<0.5),"-",IFERROR('Tabel 4 VJ'!I137/'Tabel 4F VJ'!I137*100,"-")) -> 2.272727273
A138: Jurist | C138: =IF(OR('Tabel 4F VJ'!C138<5,'Tabel 4 VJ'!C138<0.5),"-",IFERROR('Tabel 4 VJ'!C138/'Tabel 4F VJ'!C138*100,"-")) -> - | D138: =IF(OR('Tabel 4F VJ'!D138<5,'Tabel 4 VJ'!D138<0.5),"-",IFERROR('Tabel 4 VJ'!D138/'Tabel 4F VJ'!D138*100,"-")) -> 5.882352941 | E138: =IF(OR('Tabel 4F VJ'!E138<5,'Tabel 4 VJ'!E138<0.5),"-",IFERROR('Tabel 4 VJ'!E138/'Tabel 4F VJ'!E138*100,"-")) -> - | F138: =IF(OR('Tabel 4F VJ'!F138<5,'Tabel 4 VJ'!F138<0.5),"-",IFERROR('Tabel 4 VJ'!F138/'Tabel 4F VJ'!F138*100,"-")) -> - | G138: =IF(OR('Tabel 4F VJ'!G138<5,'Tabel 4 VJ'!G138<0.5),"-",IFERROR('Tabel 4 VJ'!G138/'Tabel 4F VJ'!G138*100,"-")) -> - | I138: =IF(OR('Tabel 4F VJ'!I138<5,'Tabel 4 VJ'!I138<0.5),"-",IFERROR('Tabel 4 VJ'!I138/'Tabel 4F VJ'!I138*100,"-")) -> 1.886792453
A139: Økonom | C139: =IF(OR('Tabel 4F VJ'!C139<5,'Tabel 4 VJ'!C139<0.5),"-",IFERROR('Tabel 4 VJ'!C139/'Tabel 4F VJ'!C139*100,"-")) -> - | D139: =IF(OR('Tabel 4F VJ'!D139<5,'Tabel 4 VJ'!D139<0.5),"-",IFERROR('Tabel 4 VJ'!D139/'Tabel 4F VJ'!D139*100,"-")) -> - | E139: =IF(OR('Tabel 4F VJ'!E139<5,'Tabel 4 VJ'!E139<0.5),"-",IFERROR('Tabel 4 VJ'!E139/'Tabel 4F VJ'!E139*100,"-")) -> - | F139: =IF(OR('Tabel 4F VJ'!F139<5,'Tabel 4 VJ'!F139<0.5),"-",IFERROR('Tabel 4 VJ'!F139/'Tabel 4F VJ'!F139*100,"-")) -> - | G139: =IF(OR('Tabel 4F VJ'!G139<5,'Tabel 4 VJ'!G139<0.5),"-",IFERROR('Tabel 4 VJ'!G139/'Tabel 4F VJ'!G139*100,"-")) -> - | I139: =IF(OR('Tabel 4F VJ'!I139<5,'Tabel 4 VJ'!I139<0.5),"-",IFERROR('Tabel 4 VJ'!I139/'Tabel 4F VJ'!I139*100,"-")) -> -
A140: Samf. Adm. | C140: =IF(OR('Tabel 4F VJ'!C140<5,'Tabel 4 VJ'!C140<0.5),"-",IFERROR('Tabel 4 VJ'!C140/'Tabel 4F VJ'!C140*100,"-")) -> 37.5 | D140: =IF(OR('Tabel 4F VJ'!D140<5,'Tabel 4 VJ'!D140<0.5),"-",IFERROR('Tabel 4 VJ'!D140/'Tabel 4F VJ'!D140*100,"-")) -> 6.666666667 | E140: =IF(OR('Tabel 4F VJ'!E140<5,'Tabel 4 VJ'!E140<0.5),"-",IFERROR('Tabel 4 VJ'!E140/'Tabel 4F VJ'!E140*100,"-")) -> - | F140: =IF(OR('Tabel 4F VJ'!F140<5,'Tabel 4 VJ'!F140<0.5),"-",IFERROR('Tabel 4 VJ'!F140/'Tabel 4F VJ'!F140*100,"-")) -> 10 | G140: =IF(OR('Tabel 4F VJ'!G140<5,'Tabel 4 VJ'!G140<0.5),"-",IFERROR('Tabel 4 VJ'!G140/'Tabel 4F VJ'!G140*100,"-")) -> - | I140: =IF(OR('Tabel 4F VJ'!I140<5,'Tabel 4 VJ'!I140<0.5),"-",IFERROR('Tabel 4 VJ'!I140/'Tabel 4F VJ'!I140*100,"-")) -> 9.375
A141: Cand. Merc. | C141: =IF(OR('Tabel 4F VJ'!C141<5,'Tabel 4 VJ'!C141<0.5),"-",IFERROR('Tabel 4 VJ'!C141/'Tabel 4F VJ'!C141*100,"-")) -> 5.555555556 | D141: =IF(OR('Tabel 4F VJ'!D141<5,'Tabel 4 VJ'!D141<0.5),"-",IFERROR('Tabel 4 VJ'!D141/'Tabel 4F VJ'!D141*100,"-")) -> - | E141: =IF(OR('Tabel 4F VJ'!E141<5,'Tabel 4 VJ'!E141<0.5),"-",IFERROR('Tabel 4 VJ'!E141/'Tabel 4F VJ'!E141*100,"-")) -> 3.448275862 | F141: =IF(OR('Tabel 4F VJ'!F141<5,'Tabel 4 VJ'!F141<0.5),"-",IFERROR('Tabel 4 VJ'!F141/'Tabel 4F VJ'!F141*100,"-")) -> - | G141: =IF(OR('Tabel 4F VJ'!G141<5,'Tabel 4 VJ'!G141<0.5),"-",IFERROR('Tabel 4 VJ'!G141/'Tabel 4F VJ'!G141*100,"-")) -> - | I141: =IF(OR('Tabel 4F VJ'!I141<5,'Tabel 4 VJ'!I141<0.5),"-",IFERROR('Tabel 4 VJ'!I141/'Tabel 4F VJ'!I141*100,"-")) -> 1.739130435
A142: HA | C142: =IF(OR('Tabel 4F VJ'!C142<5,'Tabel 4 VJ'!C142<0.5),"-",IFERROR('Tabel 4 VJ'!C142/'Tabel 4F VJ'!C142*100,"-")) -> 20 | D142: =IF(OR('Tabel 4F VJ'!D142<5,'Tabel 4 VJ'!D142<0.5),"-",IFERROR('Tabel 4 VJ'!D142/'Tabel 4F VJ'!D142*100,"-")) -> - | E142: =IF(OR('Tabel 4F VJ'!E142<5,'Tabel 4 VJ'!E142<0.5),"-",IFERROR('Tabel 4 VJ'!E142/'Tabel 4F VJ'!E142*100,"-")) -> - | F142: =IF(OR('Tabel 4F VJ'!F142<5,'Tabel 4 VJ'!F142<0.5),"-",IFERROR('Tabel 4 VJ'!F142/'Tabel 4F VJ'!F142*100,"-")) -> - | G142: =IF(OR('Tabel 4F VJ'!G142<5,'Tabel 4 VJ'!G142<0.5),"-",IFERROR('Tabel 4 VJ'!G142/'Tabel 4F VJ'!G142*100,"-")) -> - | I142: =IF(OR('Tabel 4F VJ'!I142<5,'Tabel 4 VJ'!I142<0.5),"-",IFERROR('Tabel 4 VJ'!I142/'Tabel 4F VJ'!I142*100,"-")) -> 2.941176471
